Workbook

Sheet Offsets (hidden)
A1: Vol Sum Dir | G1: St Athan | I1: 3185-WAL | L1: WYG
A2: =OFFSET(A4,A3,0) -> Combined | Z2: Graph Data
A3: 3 | F3: =OFFSET(F4,$N$4,0) -> 1 | G3: B4265 | H3: 51.39833, -3.41253 | I3: 1 | J3: =OFFSET(J4,$N$4,0) -> Eastbound | K3: Westbound | L3: =OFFSET(L4,$N$4,0) -> 2016-06-07 | M3: =OFFSET(M4,$N$4,0) -> 40 | N3: 1. B4265 - 51.39833, -3.41253 | P3: =OFFSET(P4,$N$4,0) -> 2016-07-13 | Q3: =OFFSET(Q4,$N$4,0) -> 2016-06-07 | R3: 2016-06-08 | S3: 2016-06-09 | T3: 2016-06-10 | U3: 2016-06-11 | V3: 2016-06-12 | AK3: FALSE | AL3: FALSE | AM3: FALSE | AN3: FALSE | AO3: FALSE | AP3: FALSE | AQ3: FALSE | AR3: FALSE | AS3: FALSE
A4: Direction | G4: Road | H4: Location | I4: Site No. | J4: Dir 1 | K4: Dir 2 | L4: Start Date | M4: Speed Limit | N4: 1 | O4: Start Day | P4: Mon | Q4: Tue | R4: Wed | S4: Thu | T4: Fri | U4: Sat | V4: Sun | AA4: Mon | AB4: Tue | AC4: Wed | AD4: Thu | AE4: Fri | AF4: Sat | AG4: Sun | AH4: 5 Day Ave | AI4: 7 Day Ave | AK4: Mon | AL4: Tue | AM4: Wed | AN4: Thu | AO4: Fri | AP4: Sat | AQ4: Sun | AR4: 5 Day Ave | AS4: 7 Day Ave
A5: =+J3 -> Eastbound | F5: 1 | G5: B4265 | H5: 51.39833, -3.41253 | I5: 1 | J5: Eastbound | K5: =IF(J5="Northbound","Southbound",IF(J5="Eastbound","Westbound",IF(J5="Southbound","Northbound",IF(J5="Westbound","Eastbound")))) -> Westbound | L5: 2016-06-07 | M5: 40 | N5: =IF(ISBLANK(G5),0,I5&". "&G5&" - "&H5) -> 1. B4265 - 51.39833, -3.41253 | O5: =TEXT(L5,"dddd") -> Tuesday | P5: 2016-07-13 | Q5: 2016-06-07 | R5: 2016-06-08 | S5: 2016-06-09 | T5: 2016-06-10 | U5: 2016-06-11 | V5: 2016-06-12 | Z5: 0 | AA5: =OFFSET(Data!EC5,$A$37,$A$36) -> 16 | AB5: =OFFSET(Data!ED5,$A$37,$A$36) -> 14 | AC5: =OFFSET(Data!EE5,$A$37,$A$36) -> 14 | AD5: =OFFSET(Data!EF5,$A$37,$A$36) -> 17 | AE5: =OFFSET(Data!EG5,$A$37,$A$36) -> 23 | AF5: =OFFSET(Data!EH5,$A$37,$A$36) -> 26 | AG5: =OFFSET(Data!EI5,$A$37,$A$36) -> 38 | AH5: =SUM(AA5:AE5)/5 -> 16.8 | AI5: =SUM(AA5:AG5)/7 -> 21.14285714 | AJ5: 0 | AK5: =IF(AK$3=TRUE,AA5,"") ->  | AL5: =IF(AL$3=TRUE,AB5,"") ->  | AR5: =IF(AR$3=TRUE,AH5,"") ->  | AS5: =IF(AS$3=TRUE,AI5,"") -> 
A6: =+K3 -> Westbound | F6: 2 | G6: Gileston Road | H6: 51.40016, -3.41362 | I6: 2 | J6: Northbound | K6: =IF(J6="Northbound","Southbound",IF(J6="Eastbound","Westbound",IF(J6="Southbound","Northbound",IF(J6="Westbound","Eastbound")))) -> Southbound | L6: 2016-06-07 | M6: 30 | N6: =IF(ISBLANK(G6),0,I6&". "&G6&" - "&H6) -> 2. Gileston Road - 51.40016, -3.41362 | O6: =TEXT(L6,"dddd") -> Tuesday | P6: 2016-07-13 | Q6: 2016-06-07 | R6: 2016-06-08 | S6: 2016-06-09 | T6: 2016-06-10 | U6: 2016-06-11 | V6: 2016-06-12 | Z6: 15 | AA6: =OFFSET(Data!EC6,$A$37,$A$36) -> 10 | AB6: =OFFSET(Data!ED6,$A$37,$A$36) -> 13 | AC6: =OFFSET(Data!EE6,$A$37,$A$36) -> 10 | AD6: =OFFSET(Data!EF6,$A$37,$A$36) -> 13 | AE6: =OFFSET(Data!EG6,$A$37,$A$36) -> 22 | AF6: =OFFSET(Data!EH6,$A$37,$A$36) -> 21 | AG6: =OFFSET(Data!EI6,$A$37,$A$36) -> 40 | AH6: =SUM(AA6:AE6)/5 -> 13.6 | AI6: 18.42857143 | AJ6: 15 | AK6: =IF(AK$3=TRUE,AA6,"") ->  | AL6: =IF(AL$3=TRUE,AB6,"") ->  | AM6: =IF(AM$3=TRUE,AC6,"") ->  | AN6: =IF(AN$3=TRUE,AD6,"") ->  | AO6: =IF(AO$3=TRUE,AE6,"") ->  | AP6: =IF(AP$3=TRUE,AF6,"") ->  | AQ6: =IF(AQ$3=TRUE,AG6,"") ->  | AR6: =IF(AR$3=TRUE,AH6,"") ->  | AS6: =IF(AS$3=TRUE,AI6,"") -> 
A7: Combined | F7: 3 | G7: St Athan Road | H7: 51.41599, -3.42599 | I7: 3 | J7: Northbound | K7: Southbound | L7: 2016-06-07 | M7: 30 | N7: 3. St Athan Road - 51.41599, -3.42599 | O7: Tuesday | P7: 2016-07-13 | Q7: 2016-06-07 | R7: 2016-06-08 | S7: 2016-06-09 | T7: 2016-06-10 | U7: 2016-06-11 | V7: 2016-06-12 | Z7: 30 | AA7: =OFFSET(Data!EC7,$A$37,$A$36) -> 20 | AB7: =OFFSET(Data!ED7,$A$37,$A$36) -> 8 | AC7: =OFFSET(Data!EE7,$A$37,$A$36) -> 10 | AD7: =OFFSET(Data!EF7,$A$37,$A$36) -> 11 | AE7: =OFFSET(Data!EG7,$A$37,$A$36) -> 12 | AF7: =OFFSET(Data!EH7,$A$37,$A$36) -> 19 | AG7: =OFFSET(Data!EI7,$A$37,$A$36) -> 43 | AH7: 12.2 | AI7: 17.57142857 | AJ7: 30
F8: 4 | G8: B4265 | H8: 51.41063, -3.46588 | I8: 4 | J8: Eastbound | K8: Westbound | L8: 2016-06-07 | M8: 40 | N8: 4. B4265 - 51.41063, -3.46588 | O8: Tuesday | P8: 2016-07-13 | Q8: 2016-06-07 | R8: 2016-06-08 | S8: 2016-06-09 | T8: 2016-06-10 | U8: 2016-06-11 | V8: 2016-06-12 | Z8: 45 | AA8: =OFFSET(Data!EC8,$A$37,$A$36) -> 16 | AB8: =OFFSET(Data!ED8,$A$37,$A$36) -> 5 | AC8: =OFFSET(Data!EE8,$A$37,$A$36) -> 8 | AD8: =OFFSET(Data!EF8,$A$37,$A$36) -> 7 | AE8: =OFFSET(Data!EG8,$A$37,$A$36) -> 8 | AF8: =OFFSET(Data!EH8,$A$37,$A$36) -> 26 | AG8: =OFFSET(Data!EI8,$A$37,$A$36) -> 37 | AH8: 8.8 | AI8: 15.28571429 | AJ8: 45
A9: Vol Sum Dir | F9: 5 | G9: Eglwys-Brewis Road | H9: 51.40966, -3.45586 | I9: 5 | J9: Northbound | K9: Southbound | L9: 2016-06-07 | M9: 30 | N9: 5. Eglwys-Brewis Road - 51.40966, -3.45586 | O9: Tuesday | P9: 2016-07-13 | Q9: 2016-06-07 | R9: 2016-06-08 | S9: 2016-06-09 | T9: 2016-06-10 | U9: 2016-06-11 | V9: 2016-06-12 | Z9: 100 | AA9: =OFFSET(Data!EC9,$A$37,$A$36) -> 11 | AB9: =OFFSET(Data!ED9,$A$37,$A$36) -> 12 | AC9: =OFFSET(Data!EE9,$A$37,$A$36) -> 3 | AD9: =OFFSET(Data!EF9,$A$37,$A$36) -> 14 | AE9: =OFFSET(Data!EG9,$A$37,$A$36) -> 6 | AF9: =OFFSET(Data!EH9,$A$37,$A$36) -> 24 | AG9: =OFFSET(Data!EI9,$A$37,$A$36) -> 33 | AH9: 9.2 | AI9: 14.71428571 | AJ9: 100
A10: =SUM(A3-1)*7 -> 14 | B10: Col | C10: Dir | F10: 6 | I10: 6 | K10: FALSE | N10: 0 | O10: Saturday | Z10: 115 | AA10: =OFFSET(Data!EC10,$A$37,$A$36) -> 11 | AB10: =OFFSET(Data!ED10,$A$37,$A$36) -> 5 | AC10: =OFFSET(Data!EE10,$A$37,$A$36) -> 5 | AD10: =OFFSET(Data!EF10,$A$37,$A$36) -> 9 | AE10: =OFFSET(Data!EG10,$A$37,$A$36) -> 8 | AF10: =OFFSET(Data!EH10,$A$37,$A$36) -> 14 | AG10: =OFFSET(Data!EI10,$A$37,$A$36) -> 27 | AH10: 7.6 | AI10: 11.28571429 | AJ10: 115
A11: =SUM($F$3-1)*867 -> 0 | B11: Row | C11: Site | F11: 7 | I11: 7 | K11: FALSE | N11: 0 | O11: Saturday | Z11: 130 | AA11: =OFFSET(Data!EC11,$A$37,$A$36) -> 6 | AB11: =OFFSET(Data!ED11,$A$37,$A$36) -> 4 | AC11: =OFFSET(Data!EE11,$A$37,$A$36) -> 3 | AD11: =OFFSET(Data!EF11,$A$37,$A$36) -> 8 | AE11: =OFFSET(Data!EG11,$A$37,$A$36) -> 3 | AF11: =OFFSET(Data!EH11,$A$37,$A$36) -> 7 | AG11: =OFFSET(Data!EI11,$A$37,$A$36) -> 14 | AH11: 4.8 | AI11: 6.428571429 | AJ11: 130
F12: 8 | I12: 8 | K12: FALSE | N12: 0 | O12: Saturday | Z12: 145 | AA12: =OFFSET(Data!EC12,$A$37,$A$36) -> 8 | AB12: =OFFSET(Data!ED12,$A$37,$A$36) -> 11 | AC12: =OFFSET(Data!EE12,$A$37,$A$36) -> 4 | AD12: =OFFSET(Data!EF12,$A$37,$A$36) -> 10 | AE12: =OFFSET(Data!EG12,$A$37,$A$36) -> 8 | AF12: =OFFSET(Data!EH12,$A$37,$A$36) -> 15 | AG12: =OFFSET(Data!EI12,$A$37,$A$36) -> 8 | AH12: 8.2 | AI12: 9.142857143 | AJ12: 145
F13: 9 | I13: 9 | K13: FALSE | N13: 0 | O13: Saturday | Z13: 200 | AA13: =OFFSET(Data!EC13,$A$37,$A$36) -> 6 | AB13: =OFFSET(Data!ED13,$A$37,$A$36) -> 13 | AC13: =OFFSET(Data!EE13,$A$37,$A$36) -> 2 | AD13: =OFFSET(Data!EF13,$A$37,$A$36) -> 6 | AE13: =OFFSET(Data!EG13,$A$37,$A$36) -> 11 | AF13: =OFFSET(Data!EH13,$A$37,$A$36) -> 16 | AG13: =OFFSET(Data!EI13,$A$37,$A$36) -> 8 | AH13: 7.6 | AI13: 8.857142857 | AJ13: 200
A14: Class Summ | F14: 10 | I14: 10 | K14: FALSE | N14: 0 | O14: Saturday | Z14: 215 | AA14: =OFFSET(Data!EC14,$A$37,$A$36) -> 8 | AB14: =OFFSET(Data!ED14,$A$37,$A$36) -> 7 | AC14: =OFFSET(Data!EE14,$A$37,$A$36) -> 11 | AD14: =OFFSET(Data!EF14,$A$37,$A$36) -> 9 | AE14: =OFFSET(Data!EG14,$A$37,$A$36) -> 6 | AF14: =OFFSET(Data!EH14,$A$37,$A$36) -> 11 | AG14: =OFFSET(Data!EI14,$A$37,$A$36) -> 13 | AH14: 8.2 | AI14: 9.285714286 | AJ14: 215
A15: 9 | F15: 11 | I15: 11 | K15: FALSE | N15: 0 | O15: Saturday | Z15: 230 | AA15: =OFFSET(Data!EC15,$A$37,$A$36) -> 12 | AB15: =OFFSET(Data!ED15,$A$37,$A$36) -> 12 | AC15: =OFFSET(Data!EE15,$A$37,$A$36) -> 5 | AD15: =OFFSET(Data!EF15,$A$37,$A$36) -> 10 | AE15: =OFFSET(Data!EG15,$A$37,$A$36) -> 7 | AF15: =OFFSET(Data!EH15,$A$37,$A$36) -> 16 | AG15: =OFFSET(Data!EI15,$A$37,$A$36) -> 14 | AH15: 9.2 | AI15: 10.85714286 | AJ15: 230
A16: Monday | F16: 12 | I16: 12 | K16: FALSE | N16: 0 | O16: Saturday | Z16: 245 | AA16: =OFFSET(Data!EC16,$A$37,$A$36) -> 8 | AB16: =OFFSET(Data!ED16,$A$37,$A$36) -> 4 | AC16: =OFFSET(Data!EE16,$A$37,$A$36) -> 4 | AD16: =OFFSET(Data!EF16,$A$37,$A$36) -> 5 | AE16: =OFFSET(Data!EG16,$A$37,$A$36) -> 9 | AF16: =OFFSET(Data!EH16,$A$37,$A$36) -> 6 | AG16: =OFFSET(Data!EI16,$A$37,$A$36) -> 3 | AH16: 6 | AI16: 5.571428571 | AJ16: 245
A17: Tuesday | F17: 13 | I17: 13 | K17: FALSE | N17: 0 | O17: Saturday | Z17: 300 | AA17: =OFFSET(Data!EC17,$A$37,$A$36) -> 15 | AB17: =OFFSET(Data!ED17,$A$37,$A$36) -> 6 | AC17: =OFFSET(Data!EE17,$A$37,$A$36) -> 8 | AD17: =OFFSET(Data!EF17,$A$37,$A$36) -> 9 | AE17: =OFFSET(Data!EG17,$A$37,$A$36) -> 5 | AF17: =OFFSET(Data!EH17,$A$37,$A$36) -> 10 | AG17: =OFFSET(Data!EI17,$A$37,$A$36) -> 3 | AH17: 8.6 | AI17: 8 | AJ17: 300
A18: Wednesday | F18: 14 | I18: 14 | K18: FALSE | N18: 0 | O18: Saturday | Z18: 315 | AA18: =OFFSET(Data!EC18,$A$37,$A$36) -> 18 | AB18: =OFFSET(Data!ED18,$A$37,$A$36) -> 13 | AC18: =OFFSET(Data!EE18,$A$37,$A$36) -> 3 | AD18: =OFFSET(Data!EF18,$A$37,$A$36) -> 15 | AE18: =OFFSET(Data!EG18,$A$37,$A$36) -> 10 | AF18: =OFFSET(Data!EH18,$A$37,$A$36) -> 17 | AG18: =OFFSET(Data!EI18,$A$37,$A$36) -> 10 | AH18: 11.8 | AI18: 12.28571429 | AJ18: 315
A19: Thursday | F19: 15 | I19: 15 | K19: FALSE | N19: 0 | O19: Saturday | Z19: 330 | AA19: =OFFSET(Data!EC19,$A$37,$A$36) -> 8 | AB19: =OFFSET(Data!ED19,$A$37,$A$36) -> 15 | AC19: =OFFSET(Data!EE19,$A$37,$A$36) -> 7 | AD19: =OFFSET(Data!EF19,$A$37,$A$36) -> 11 | AE19: =OFFSET(Data!EG19,$A$37,$A$36) -> 4 | AF19: =OFFSET(Data!EH19,$A$37,$A$36) -> 15 | AG19: =OFFSET(Data!EI19,$A$37,$A$36) -> 15 | AH19: 9 | AI19: 10.71428571 | AJ19: 330
A20: Friday | F20: 16 | I20: 16 | K20: FALSE | N20: 0 | O20: Saturday | Z20: 345 | AA20: =OFFSET(Data!EC20,$A$37,$A$36) -> 13 | AB20: =OFFSET(Data!ED20,$A$37,$A$36) -> 24 | AC20: =OFFSET(Data!EE20,$A$37,$A$36) -> 6 | AD20: =OFFSET(Data!EF20,$A$37,$A$36) -> 10 | AE20: =OFFSET(Data!EG20,$A$37,$A$36) -> 10 | AF20: =OFFSET(Data!EH20,$A$37,$A$36) -> 11 | AG20: =OFFSET(Data!EI20,$A$37,$A$36) -> 12 | AH20: 12.6 | AI20: 12.28571429 | AJ20: 345
A21: Saturday | F21: 17 | I21: 17 | K21: FALSE | N21: 0 | O21: Saturday | Z21: 400 | AA21: =OFFSET(Data!EC21,$A$37,$A$36) -> 8 | AB21: =OFFSET(Data!ED21,$A$37,$A$36) -> 15 | AC21: =OFFSET(Data!EE21,$A$37,$A$36) -> 4 | AD21: =OFFSET(Data!EF21,$A$37,$A$36) -> 12 | AE21: =OFFSET(Data!EG21,$A$37,$A$36) -> 7 | AF21: =OFFSET(Data!EH21,$A$37,$A$36) -> 12 | AG21: =OFFSET(Data!EI21,$A$37,$A$36) -> 11 | AH21: 9.2 | AI21: 9.857142857 | AJ21: 400
A22: Sunday | F22: 18 | I22: 18 | K22: FALSE | N22: 0 | O22: Saturday | Z22: 415 | AA22: =OFFSET(Data!EC22,$A$37,$A$36) -> 15 | AB22: =OFFSET(Data!ED22,$A$37,$A$36) -> 10 | AC22: =OFFSET(Data!EE22,$A$37,$A$36) -> 9 | AD22: =OFFSET(Data!EF22,$A$37,$A$36) -> 13 | AE22: =OFFSET(Data!EG22,$A$37,$A$36) -> 5 | AF22: =OFFSET(Data!EH22,$A$37,$A$36) -> 10 | AG22: =OFFSET(Data!EI22,$A$37,$A$36) -> 13 | AH22: 10.4 | AI22: 10.71428571 | AJ22: 415
A23: Weekday Average | F23: 19 | I23: 19 | K23: FALSE | N23: 0 | O23: Saturday | Z23: 430 | AA23: =OFFSET(Data!EC23,$A$37,$A$36) -> 25 | AB23: =OFFSET(Data!ED23,$A$37,$A$36) -> 14 | AC23: =OFFSET(Data!EE23,$A$37,$A$36) -> 17 | AD23: =OFFSET(Data!EF23,$A$37,$A$36) -> 12 | AE23: =OFFSET(Data!EG23,$A$37,$A$36) -> 13 | AF23: =OFFSET(Data!EH23,$A$37,$A$36) -> 14 | AG23: =OFFSET(Data!EI23,$A$37,$A$36) -> 5 | AH23: 16.2 | AI23: 14.28571429 | AJ23: 430
A24: 7 Day Average | F24: 20 | I24: 20 | K24: FALSE | N24: 0 | O24: Saturday | Z24: 445 | AA24: =OFFSET(Data!EC24,$A$37,$A$36) -> 24 | AB24: =OFFSET(Data!ED24,$A$37,$A$36) -> 24 | AC24: =OFFSET(Data!EE24,$A$37,$A$36) -> 13 | AD24: =OFFSET(Data!EF24,$A$37,$A$36) -> 13 | AE24: =OFFSET(Data!EG24,$A$37,$A$36) -> 19 | AF24: =OFFSET(Data!EH24,$A$37,$A$36) -> 15 | AG24: =OFFSET(Data!EI24,$A$37,$A$36) -> 7 | AH24: 18.6 | AI24: 16.42857143 | AJ24: 445
Z25: 500 | AA25: =OFFSET(Data!EC25,$A$37,$A$36) -> 28 | AB25: =OFFSET(Data!ED25,$A$37,$A$36) -> 16 | AC25: =OFFSET(Data!EE25,$A$37,$A$36) -> 24 | AD25: =OFFSET(Data!EF25,$A$37,$A$36) -> 17 | AE25: =OFFSET(Data!EG25,$A$37,$A$36) -> 27 | AF25: =OFFSET(Data!EH25,$A$37,$A$36) -> 29 | AG25: =OFFSET(Data!EI25,$A$37,$A$36) -> 18 | AH25: 22.4 | AI25: 22.71428571 | AJ25: 500
A26: Class Summ | H26: PictureList Details: | Z26: 515 | AA26: =OFFSET(Data!EC26,$A$37,$A$36) -> 37 | AB26: =OFFSET(Data!ED26,$A$37,$A$36) -> 29 | AC26: =OFFSET(Data!EE26,$A$37,$A$36) -> 38 | AD26: =OFFSET(Data!EF26,$A$37,$A$36) -> 32 | AE26: =OFFSET(Data!EG26,$A$37,$A$36) -> 32 | AF26: =OFFSET(Data!EH26,$A$37,$A$36) -> 24 | AG26: =OFFSET(Data!EI26,$A$37,$A$36) -> 26 | AH26: 33.6 | AI26: 31.14285714 | AJ26: 515
A27: =SUM(A15-1)*96 -> 768 | B27: Row 1 | C27: Day | H27: "Select Site…" | I27: Road | J27: Location | K27: Site No. | L27: Dir 1 | M27: Dir 2 | N27: Speed limit | Z27: 530 | AA27: =OFFSET(Data!EC27,$A$37,$A$36) -> 46 | AB27: =OFFSET(Data!ED27,$A$37,$A$36) -> 43 | AC27: =OFFSET(Data!EE27,$A$37,$A$36) -> 36 | AD27: =OFFSET(Data!EF27,$A$37,$A$36) -> 39 | AE27: =OFFSET(Data!EG27,$A$37,$A$36) -> 46 | AF27: =OFFSET(Data!EH27,$A$37,$A$36) -> 46 | AG27: =OFFSET(Data!EI27,$A$37,$A$36) -> 35 | AH27: 42 | AI27: 41.57142857 | AJ27: 530
A28: =SUM(($F$3-1)*867)+A27 -> 768 | B28: Row 2 | C28: Site | H28: =N5 -> 1. B4265 - 51.39833, -3.41253 | I28: =G5 -> B4265 | J28: =H5 -> 51.39833, -3.41253 | K28: =I5 -> 1 | L28: =J5 -> Eastbound | M28: =K5 -> Westbound | N28: =M5 -> 40 | Z28: 545 | AA28: =OFFSET(Data!EC28,$A$37,$A$36) -> 51 | AB28: =OFFSET(Data!ED28,$A$37,$A$36) -> 70 | AC28: =OFFSET(Data!EE28,$A$37,$A$36) -> 71 | AD28: =OFFSET(Data!EF28,$A$37,$A$36) -> 78 | AE28: =OFFSET(Data!EG28,$A$37,$A$36) -> 61 | AF28: =OFFSET(Data!EH28,$A$37,$A$36) -> 52 | AG28: =OFFSET(Data!EI28,$A$37,$A$36) -> 46 | AH28: 66.2 | AI28: 61.28571429 | AJ28: 545
H29: 2. Gileston Road - 51.40016, -3.41362 | I29: Gileston Road | J29: 51.40016, -3.41362 | K29: 2 | L29: Northbound | M29: Southbound | N29: 30 | Z29: 600 | AA29: =OFFSET(Data!EC29,$A$37,$A$36) -> 77 | AB29: =OFFSET(Data!ED29,$A$37,$A$36) -> 102 | AC29: =OFFSET(Data!EE29,$A$37,$A$36) -> 86 | AD29: =OFFSET(Data!EF29,$A$37,$A$36) -> 95 | AE29: =OFFSET(Data!EG29,$A$37,$A$36) -> 95 | AF29: =OFFSET(Data!EH29,$A$37,$A$36) -> 47 | AG29: =OFFSET(Data!EI29,$A$37,$A$36) -> 50 | AH29: =SUM(AA29:AE29)/5 -> 91 | AI29: =SUM(AA29:AG29)/7 -> 78.85714286 | AJ29: 600
A30: Speed Summary | H30: 3. St Athan Road - 51.41599, -3.42599 | I30: St Athan Road | J30: 51.41599, -3.42599 | K30: 3 | L30: Northbound | M30: Southbound | N30: 30 | Z30: 615 | AA30: =OFFSET(Data!EC30,$A$37,$A$36) -> 82 | AB30: =OFFSET(Data!ED30,$A$37,$A$36) -> 69 | AC30: =OFFSET(Data!EE30,$A$37,$A$36) -> 77 | AD30: =OFFSET(Data!EF30,$A$37,$A$36) -> 73 | AE30: =OFFSET(Data!EG30,$A$37,$A$36) -> 81 | AF30: =OFFSET(Data!EH30,$A$37,$A$36) -> 46 | AG30: =OFFSET(Data!EI30,$A$37,$A$36) -> 25 | AH30: 76.4 | AI30: 64.71428571 | AJ30: 615
A31: =SUM(A3-1)*38 -> 76 | B31: Col | H31: 4. B4265 - 51.41063, -3.46588 | I31: B4265 | J31: 51.41063, -3.46588 | K31: 4 | L31: Eastbound | M31: Westbound | N31: 40 | Z31: 630 | AA31: =OFFSET(Data!EC31,$A$37,$A$36) -> 108 | AB31: =OFFSET(Data!ED31,$A$37,$A$36) -> 124 | AC31: =OFFSET(Data!EE31,$A$37,$A$36) -> 97 | AD31: =OFFSET(Data!EF31,$A$37,$A$36) -> 100 | AE31: =OFFSET(Data!EG31,$A$37,$A$36) -> 93 | AF31: =OFFSET(Data!EH31,$A$37,$A$36) -> 59 | AG31: =OFFSET(Data!EI31,$A$37,$A$36) -> 39 | AH31: 104.4 | AI31: 88.57142857 | AJ31: 630
A32: =SUM(A15-1)*96 -> 768 | B32: Row1 | H32: 5. Eglwys-Brewis Road - 51.40966, -3.45586 | I32: Eglwys-Brewis Road | J32: 51.40966, -3.45586 | K32: 5 | L32: Northbound | M32: Southbound | N32: 30 | Z32: 645 | AA32: =OFFSET(Data!EC32,$A$37,$A$36) -> 101 | AB32: =OFFSET(Data!ED32,$A$37,$A$36) -> 88 | AC32: =OFFSET(Data!EE32,$A$37,$A$36) -> 111 | AD32: =OFFSET(Data!EF32,$A$37,$A$36) -> 126 | AE32: =OFFSET(Data!EG32,$A$37,$A$36) -> 113 | AF32: =OFFSET(Data!EH32,$A$37,$A$36) -> 45 | AG32: =OFFSET(Data!EI32,$A$37,$A$36) -> 42 | AH32: 107.8 | AI32: 89.42857143 | AJ32: 645
A33: =SUM(A32+A11) -> 768 | B33: Row2 | H33: 0 | I33: 0 | J33: 0 | K33: 6 | L33: 0 | M33: FALSE | N33: 0 | Z33: 700 | AA33: =OFFSET(Data!EC33,$A$37,$A$36) -> 141 | AB33: =OFFSET(Data!ED33,$A$37,$A$36) -> 164 | AC33: =OFFSET(Data!EE33,$A$37,$A$36) -> 136 | AD33: =OFFSET(Data!EF33,$A$37,$A$36) -> 153 | AE33: =OFFSET(Data!EG33,$A$37,$A$36) -> 131 | AF33: =OFFSET(Data!EH33,$A$37,$A$36) -> 55 | AG33: =OFFSET(Data!EI33,$A$37,$A$36) -> 26 | AH33: 145 | AI33: 115.1428571 | AJ33: 700
H34: 0 | I34: 0 | J34: 0 | K34: 7 | L34: 0 | M34: FALSE | N34: 0 | Z34: 715 | AA34: =OFFSET(Data!EC34,$A$37,$A$36) -> 161 | AB34: =OFFSET(Data!ED34,$A$37,$A$36) -> 184 | AC34: =OFFSET(Data!EE34,$A$37,$A$36) -> 188 | AD34: =OFFSET(Data!EF34,$A$37,$A$36) -> 176 | AE34: =OFFSET(Data!EG34,$A$37,$A$36) -> 171 | AF34: =OFFSET(Data!EH34,$A$37,$A$36) -> 51 | AG34: =OFFSET(Data!EI34,$A$37,$A$36) -> 29 | AH34: 176 | AI34: 137.1428571 | AJ34: 715
A35: Vol Graph | H35: 0 | I35: 0 | J35: 0 | K35: 8 | L35: 0 | M35: FALSE | N35: 0 | Z35: 730 | AA35: =OFFSET(Data!EC35,$A$37,$A$36) -> 235 | AB35: =OFFSET(Data!ED35,$A$37,$A$36) -> 242 | AC35: =OFFSET(Data!EE35,$A$37,$A$36) -> 266 | AD35: =OFFSET(Data!EF35,$A$37,$A$36) -> 223 | AE35: =OFFSET(Data!EG35,$A$37,$A$36) -> 241 | AF35: =OFFSET(Data!EH35,$A$37,$A$36) -> 57 | AG35: =OFFSET(Data!EI35,$A$37,$A$36) -> 39 | AH35: 241.4 | AI35: 186.1428571 | AJ35: 730
A36: =+A10 -> 14 | B36: Col | H36: 0 | I36: 0 | J36: 0 | K36: 9 | L36: 0 | M36: FALSE | N36: 0 | Z36: 745 | AA36: =OFFSET(Data!EC36,$A$37,$A$36) -> 258 | AB36: =OFFSET(Data!ED36,$A$37,$A$36) -> 267 | AC36: =OFFSET(Data!EE36,$A$37,$A$36) -> 283 | AD36: =OFFSET(Data!EF36,$A$37,$A$36) -> 252 | AE36: =OFFSET(Data!EG36,$A$37,$A$36) -> 242 | AF36: =OFFSET(Data!EH36,$A$37,$A$36) -> 52 | AG36: =OFFSET(Data!EI36,$A$37,$A$36) -> 46 | AH36: 260.4 | AI36: 200 | AJ36: 745
A37: =+A11 -> 0 | B37: Row | C37: Site | H37: 0 | I37: 0 | J37: 0 | K37: 10 | L37: 0 | M37: FALSE | N37: 0 | Z37: 800 | AA37: =OFFSET(Data!EC37,$A$37,$A$36) -> 271 | AB37: =OFFSET(Data!ED37,$A$37,$A$36) -> 279 | AC37: =OFFSET(Data!EE37,$A$37,$A$36) -> 265 | AD37: =OFFSET(Data!EF37,$A$37,$A$36) -> 268 | AE37: =OFFSET(Data!EG37,$A$37,$A$36) -> 252 | AF37: =OFFSET(Data!EH37,$A$37,$A$36) -> 0 | AG37: =OFFSET(Data!EI37,$A$37,$A$36) -> 50 | AH37: 267 | AI37: 197.8571429 | AJ37: 800
H38: 0 | I38: 0 | J38: 0 | K38: 11 | L38: 0 | M38: FALSE | N38: 0 | Z38: 815 | AA38: =OFFSET(Data!EC38,$A$37,$A$36) -> 260 | AB38: =OFFSET(Data!ED38,$A$37,$A$36) -> 277 | AC38: =OFFSET(Data!EE38,$A$37,$A$36) -> 249 | AD38: =OFFSET(Data!EF38,$A$37,$A$36) -> 299 | AE38: =OFFSET(Data!EG38,$A$37,$A$36) -> 252 | AF38: =OFFSET(Data!EH38,$A$37,$A$36) -> 0 | AG38: =OFFSET(Data!EI38,$A$37,$A$36) -> 64 | AH38: 267.4 | AI38: 200.1428571 | AJ38: 815
H39: 0 | I39: 0 | J39: 0 | K39: 12 | L39: 0 | M39: FALSE | N39: 0 | Z39: 830 | AA39: =OFFSET(Data!EC39,$A$37,$A$36) -> 227 | AB39: =OFFSET(Data!ED39,$A$37,$A$36) -> 257 | AC39: =OFFSET(Data!EE39,$A$37,$A$36) -> 215 | AD39: =OFFSET(Data!EF39,$A$37,$A$36) -> 219 | AE39: =OFFSET(Data!EG39,$A$37,$A$36) -> 220 | AF39: =OFFSET(Data!EH39,$A$37,$A$36) -> 0 | AG39: =OFFSET(Data!EI39,$A$37,$A$36) -> 64 | AH39: 227.6 | AI39: 171.7142857 | AJ39: 830
H40: 0 | I40: 0 | J40: 0 | K40: 13 | L40: 0 | M40: FALSE | N40: 0 | Z40: 845 | AA40: =OFFSET(Data!EC40,$A$37,$A$36) -> 185 | AB40: =OFFSET(Data!ED40,$A$37,$A$36) -> 205 | AC40: =OFFSET(Data!EE40,$A$37,$A$36) -> 190 | AD40: =OFFSET(Data!EF40,$A$37,$A$36) -> 195 | AE40: =OFFSET(Data!EG40,$A$37,$A$36) -> 189 | AF40: =OFFSET(Data!EH40,$A$37,$A$36) -> 96 | AG40: =OFFSET(Data!EI40,$A$37,$A$36) -> 63 | AH40: 192.8 | AI40: 160.4285714 | AJ40: 845
H41: 0 | I41: 0 | J41: 0 | K41: 14 | L41: 0 | M41: FALSE | N41: 0 | Z41: 900 | AA41: =OFFSET(Data!EC41,$A$37,$A$36) -> 175 | AB41: =OFFSET(Data!ED41,$A$37,$A$36) -> 205 | AC41: =OFFSET(Data!EE41,$A$37,$A$36) -> 203 | AD41: =OFFSET(Data!EF41,$A$37,$A$36) -> 178 | AE41: =OFFSET(Data!EG41,$A$37,$A$36) -> 210 | AF41: =OFFSET(Data!EH41,$A$37,$A$36) -> 106 | AG41: =OFFSET(Data!EI41,$A$37,$A$36) -> 62 | AH41: 194.2 | AI41: 162.7142857 | AJ41: 900
H42: 0 | I42: 0 | J42: 0 | K42: 15 | L42: 0 | M42: FALSE | N42: 0 | Z42: 915 | AA42: =OFFSET(Data!EC42,$A$37,$A$36) -> 180 | AB42: =OFFSET(Data!ED42,$A$37,$A$36) -> 167 | AC42: =OFFSET(Data!EE42,$A$37,$A$36) -> 183 | AD42: =OFFSET(Data!EF42,$A$37,$A$36) -> 186 | AE42: =OFFSET(Data!EG42,$A$37,$A$36) -> 181 | AF42: =OFFSET(Data!EH42,$A$37,$A$36) -> 95 | AG42: =OFFSET(Data!EI42,$A$37,$A$36) -> 75 | AH42: 179.4 | AI42: 152.4285714 | AJ42: 915
H43: 0 | I43: 0 | J43: 0 | K43: 16 | L43: 0 | M43: FALSE | N43: 0 | Z43: 930 | AA43: =OFFSET(Data!EC43,$A$37,$A$36) -> 171 | AB43: =OFFSET(Data!ED43,$A$37,$A$36) -> 178 | AC43: =OFFSET(Data!EE43,$A$37,$A$36) -> 169 | AD43: =OFFSET(Data!EF43,$A$37,$A$36) -> 174 | AE43: =OFFSET(Data!EG43,$A$37,$A$36) -> 167 | AF43: =OFFSET(Data!EH43,$A$37,$A$36) -> 143 | AG43: =OFFSET(Data!EI43,$A$37,$A$36) -> 103 | AH43: 171.8 | AI43: 157.8571429 | AJ43: 930
H44: 0 | I44: 0 | J44: 0 | K44: 17 | L44: 0 | M44: FALSE | N44: 0 | Z44: 945 | AA44: =OFFSET(Data!EC44,$A$37,$A$36) -> 172 | AB44: =OFFSET(Data!ED44,$A$37,$A$36) -> 162 | AC44: =OFFSET(Data!EE44,$A$37,$A$36) -> 159 | AD44: =OFFSET(Data!EF44,$A$37,$A$36) -> 167 | AE44: =OFFSET(Data!EG44,$A$37,$A$36) -> 177 | AF44: =OFFSET(Data!EH44,$A$37,$A$36) -> 132 | AG44: =OFFSET(Data!EI44,$A$37,$A$36) -> 111 | AH44: 167.4 | AI44: 154.2857143 | AJ44: 945
H45: 0 | I45: 0 | J45: 0 | K45: 18 | L45: 0 | M45: FALSE | N45: 0 | Z45: 1000 | AA45: =OFFSET(Data!EC45,$A$37,$A$36) -> 125 | AB45: =OFFSET(Data!ED45,$A$37,$A$36) -> 157 | AC45: =OFFSET(Data!EE45,$A$37,$A$36) -> 161 | AD45: =OFFSET(Data!EF45,$A$37,$A$36) -> 131 | AE45: =OFFSET(Data!EG45,$A$37,$A$36) -> 171 | AF45: =OFFSET(Data!EH45,$A$37,$A$36) -> 126 | AG45: =OFFSET(Data!EI45,$A$37,$A$36) -> 123 | AH45: 149 | AI45: 142 | AJ45: 1000
H46: 0 | I46: 0 | J46: 0 | K46: 19 | L46: 0 | M46: FALSE | N46: 0 | Z46: 1015 | AA46: =OFFSET(Data!EC46,$A$37,$A$36) -> 155 | AB46: =OFFSET(Data!ED46,$A$37,$A$36) -> 167 | AC46: =OFFSET(Data!EE46,$A$37,$A$36) -> 164 | AD46: =OFFSET(Data!EF46,$A$37,$A$36) -> 141 | AE46: =OFFSET(Data!EG46,$A$37,$A$36) -> 177 | AF46: =OFFSET(Data!EH46,$A$37,$A$36) -> 134 | AG46: =OFFSET(Data!EI46,$A$37,$A$36) -> 131 | AH46: 160.8 | AI46: 152.7142857 | AJ46: 1015
H47: 0 | I47: 0 | J47: 0 | K47: 20 | L47: 0 | M47: FALSE | N47: 0 | Z47: 1030 | AA47: =OFFSET(Data!EC47,$A$37,$A$36) -> 158 | AB47: =OFFSET(Data!ED47,$A$37,$A$36) -> 183 | AC47: =OFFSET(Data!EE47,$A$37,$A$36) -> 162 | AD47: =OFFSET(Data!EF47,$A$37,$A$36) -> 197 | AE47: =OFFSET(Data!EG47,$A$37,$A$36) -> 190 | AF47: =OFFSET(Data!EH47,$A$37,$A$36) -> 163 | AG47: =OFFSET(Data!EI47,$A$37,$A$36) -> 145 | AH47: 178 | AI47: 171.1428571 | AJ47: 1030
Z48: 1045 | AA48: =OFFSET(Data!EC48,$A$37,$A$36) -> 177 | AB48: =OFFSET(Data!ED48,$A$37,$A$36) -> 187 | AC48: =OFFSET(Data!EE48,$A$37,$A$36) -> 171 | AD48: =OFFSET(Data!EF48,$A$37,$A$36) -> 187 | AE48: =OFFSET(Data!EG48,$A$37,$A$36) -> 154 | AF48: =OFFSET(Data!EH48,$A$37,$A$36) -> 182 | AG48: =OFFSET(Data!EI48,$A$37,$A$36) -> 150 | AH48: 175.2 | AI48: 172.5714286 | AJ48: 1045
Z49: 1100 | AA49: =OFFSET(Data!EC49,$A$37,$A$36) -> 188 | AB49: =OFFSET(Data!ED49,$A$37,$A$36) -> 153 | AC49: =OFFSET(Data!EE49,$A$37,$A$36) -> 144 | AD49: =OFFSET(Data!EF49,$A$37,$A$36) -> 160 | AE49: =OFFSET(Data!EG49,$A$37,$A$36) -> 166 | AF49: =OFFSET(Data!EH49,$A$37,$A$36) -> 162 | AG49: =OFFSET(Data!EI49,$A$37,$A$36) -> 150 | AH49: 162.2 | AI49: 160.4285714 | AJ49: 1100
Z50: 1115 | AA50: =OFFSET(Data!EC50,$A$37,$A$36) -> 138 | AB50: =OFFSET(Data!ED50,$A$37,$A$36) -> 156 | AC50: =OFFSET(Data!EE50,$A$37,$A$36) -> 167 | AD50: =OFFSET(Data!EF50,$A$37,$A$36) -> 166 | AE50: =OFFSET(Data!EG50,$A$37,$A$36) -> 196 | AF50: =OFFSET(Data!EH50,$A$37,$A$36) -> 190 | AG50: =OFFSET(Data!EI50,$A$37,$A$36) -> 173 | AH50: 164.6 | AI50: 169.4285714 | AJ50: 1115
Z51: 1130 | AA51: =OFFSET(Data!EC51,$A$37,$A$36) -> 168 | AB51: =OFFSET(Data!ED51,$A$37,$A$36) -> 200 | AC51: =OFFSET(Data!EE51,$A$37,$A$36) -> 183 | AD51: =OFFSET(Data!EF51,$A$37,$A$36) -> 162 | AE51: =OFFSET(Data!EG51,$A$37,$A$36) -> 171 | AF51: =OFFSET(Data!EH51,$A$37,$A$36) -> 198 | AG51: =OFFSET(Data!EI51,$A$37,$A$36) -> 147 | AH51: 176.8 | AI51: 175.5714286 | AJ51: 1130
Z52: 1145 | AA52: =OFFSET(Data!EC52,$A$37,$A$36) -> 161 | AB52: =OFFSET(Data!ED52,$A$37,$A$36) -> 182 | AC52: =OFFSET(Data!EE52,$A$37,$A$36) -> 172 | AD52: =OFFSET(Data!EF52,$A$37,$A$36) -> 202 | AE52: =OFFSET(Data!EG52,$A$37,$A$36) -> 185 | AF52: =OFFSET(Data!EH52,$A$37,$A$36) -> 183 | AG52: =OFFSET(Data!EI52,$A$37,$A$36) -> 174 | AH52: 180.4 | AI52: 179.8571429 | AJ52: 1145
Z53: 1200 | AA53: =OFFSET(Data!EC53,$A$37,$A$36) -> 150 | AB53: =OFFSET(Data!ED53,$A$37,$A$36) -> 190 | AC53: =OFFSET(Data!EE53,$A$37,$A$36) -> 175 | AD53: =OFFSET(Data!EF53,$A$37,$A$36) -> 169 | AE53: =OFFSET(Data!EG53,$A$37,$A$36) -> 192 | AF53: =OFFSET(Data!EH53,$A$37,$A$36) -> 177 | AG53: =OFFSET(Data!EI53,$A$37,$A$36) -> 168 | AH53: 175.2 | AI53: 174.4285714 | AJ53: 1200
Z54: 1215 | AA54: =OFFSET(Data!EC54,$A$37,$A$36) -> 147 | AB54: =OFFSET(Data!ED54,$A$37,$A$36) -> 201 | AC54: =OFFSET(Data!EE54,$A$37,$A$36) -> 200 | AD54: =OFFSET(Data!EF54,$A$37,$A$36) -> 167 | AE54: =OFFSET(Data!EG54,$A$37,$A$36) -> 204 | AF54: =OFFSET(Data!EH54,$A$37,$A$36) -> 200 | AG54: =OFFSET(Data!EI54,$A$37,$A$36) -> 214 | AH54: 183.8 | AI54: 190.4285714 | AJ54: 1215
Z55: 1230 | AA55: =OFFSET(Data!EC55,$A$37,$A$36) -> 168 | AB55: =OFFSET(Data!ED55,$A$37,$A$36) -> 182 | AC55: =OFFSET(Data!EE55,$A$37,$A$36) -> 198 | AD55: =OFFSET(Data!EF55,$A$37,$A$36) -> 201 | AE55: =OFFSET(Data!EG55,$A$37,$A$36) -> 203 | AF55: =OFFSET(Data!EH55,$A$37,$A$36) -> 230 | AG55: =OFFSET(Data!EI55,$A$37,$A$36) -> 190 | AH55: 190.4 | AI55: 196 | AJ55: 1230
Z56: 1245 | AA56: =OFFSET(Data!EC56,$A$37,$A$36) -> 180 | AB56: =OFFSET(Data!ED56,$A$37,$A$36) -> 186 | AC56: =OFFSET(Data!EE56,$A$37,$A$36) -> 183 | AD56: =OFFSET(Data!EF56,$A$37,$A$36) -> 190 | AE56: =OFFSET(Data!EG56,$A$37,$A$36) -> 170 | AF56: =OFFSET(Data!EH56,$A$37,$A$36) -> 178 | AG56: =OFFSET(Data!EI56,$A$37,$A$36) -> 164 | AH56: 181.8 | AI56: 178.7142857 | AJ56: 1245
Z57: 1300 | AA57: =OFFSET(Data!EC57,$A$37,$A$36) -> 177 | AB57: =OFFSET(Data!ED57,$A$37,$A$36) -> 184 | AC57: =OFFSET(Data!EE57,$A$37,$A$36) -> 169 | AD57: =OFFSET(Data!EF57,$A$37,$A$36) -> 170 | AE57: =OFFSET(Data!EG57,$A$37,$A$36) -> 223 | AF57: =OFFSET(Data!EH57,$A$37,$A$36) -> 182 | AG57: =OFFSET(Data!EI57,$A$37,$A$36) -> 192 | AH57: 184.6 | AI57: 185.2857143 | AJ57: 1300
Z58: 1315 | AA58: =OFFSET(Data!EC58,$A$37,$A$36) -> 168 | AB58: =OFFSET(Data!ED58,$A$37,$A$36) -> 176 | AC58: =OFFSET(Data!EE58,$A$37,$A$36) -> 191 | AD58: =OFFSET(Data!EF58,$A$37,$A$36) -> 191 | AE58: =OFFSET(Data!EG58,$A$37,$A$36) -> 183 | AF58: =OFFSET(Data!EH58,$A$37,$A$36) -> 196 | AG58: =OFFSET(Data!EI58,$A$37,$A$36) -> 174 | AH58: 181.8 | AI58: 182.7142857 | AJ58: 1315
Z59: 1330 | AA59: =OFFSET(Data!EC59,$A$37,$A$36) -> 150 | AB59: =OFFSET(Data!ED59,$A$37,$A$36) -> 173 | AC59: =OFFSET(Data!EE59,$A$37,$A$36) -> 182 | AD59: =OFFSET(Data!EF59,$A$37,$A$36) -> 174 | AE59: =OFFSET(Data!EG59,$A$37,$A$36) -> 227 | AF59: =OFFSET(Data!EH59,$A$37,$A$36) -> 201 | AG59: =OFFSET(Data!EI59,$A$37,$A$36) -> 187 | AH59: 181.2 | AI59: 184.8571429 | AJ59: 1330
Z60: 1345 | AA60: =OFFSET(Data!EC60,$A$37,$A$36) -> 141 | AB60: =OFFSET(Data!ED60,$A$37,$A$36) -> 167 | AC60: =OFFSET(Data!EE60,$A$37,$A$36) -> 184 | AD60: =OFFSET(Data!EF60,$A$37,$A$36) -> 202 | AE60: =OFFSET(Data!EG60,$A$37,$A$36) -> 196 | AF60: =OFFSET(Data!EH60,$A$37,$A$36) -> 191 | AG60: =OFFSET(Data!EI60,$A$37,$A$36) -> 171 | AH60: 178 | AI60: 178.8571429 | AJ60: 1345
Z61: 1400 | AA61: =OFFSET(Data!EC61,$A$37,$A$36) -> 177 | AB61: =OFFSET(Data!ED61,$A$37,$A$36) -> 187 | AC61: =OFFSET(Data!EE61,$A$37,$A$36) -> 191 | AD61: =OFFSET(Data!EF61,$A$37,$A$36) -> 162 | AE61: =OFFSET(Data!EG61,$A$37,$A$36) -> 201 | AF61: =OFFSET(Data!EH61,$A$37,$A$36) -> 193 | AG61: =OFFSET(Data!EI61,$A$37,$A$36) -> 184 | AH61: 183.6 | AI61: 185 | AJ61: 1400
Z62: 1415 | AA62: =OFFSET(Data!EC62,$A$37,$A$36) -> 174 | AB62: =OFFSET(Data!ED62,$A$37,$A$36) -> 171 | AC62: =OFFSET(Data!EE62,$A$37,$A$36) -> 193 | AD62: =OFFSET(Data!EF62,$A$37,$A$36) -> 185 | AE62: =OFFSET(Data!EG62,$A$37,$A$36) -> 205 | AF62: =OFFSET(Data!EH62,$A$37,$A$36) -> 184 | AG62: =OFFSET(Data!EI62,$A$37,$A$36) -> 198 | AH62: 185.6 | AI62: 187.1428571 | AJ62: 1415
Z63: 1430 | AA63: =OFFSET(Data!EC63,$A$37,$A$36) -> 183 | AB63: =OFFSET(Data!ED63,$A$37,$A$36) -> 195 | AC63: =OFFSET(Data!EE63,$A$37,$A$36) -> 208 | AD63: =OFFSET(Data!EF63,$A$37,$A$36) -> 239 | AE63: =OFFSET(Data!EG63,$A$37,$A$36) -> 191 | AF63: =OFFSET(Data!EH63,$A$37,$A$36) -> 191 | AG63: =OFFSET(Data!EI63,$A$37,$A$36) -> 163 | AH63: 203.2 | AI63: 195.7142857 | AJ63: 1430
Z64: 1445 | AA64: =OFFSET(Data!EC64,$A$37,$A$36) -> 187 | AB64: =OFFSET(Data!ED64,$A$37,$A$36) -> 182 | AC64: =OFFSET(Data!EE64,$A$37,$A$36) -> 192 | AD64: =OFFSET(Data!EF64,$A$37,$A$36) -> 207 | AE64: =OFFSET(Data!EG64,$A$37,$A$36) -> 249 | AF64: =OFFSET(Data!EH64,$A$37,$A$36) -> 180 | AG64: =OFFSET(Data!EI64,$A$37,$A$36) -> 167 | AH64: 203.4 | AI64: 194.8571429 | AJ64: 1445
Z65: 1500 | AA65: =OFFSET(Data!EC65,$A$37,$A$36) -> 210 | AB65: =OFFSET(Data!ED65,$A$37,$A$36) -> 192 | AC65: =OFFSET(Data!EE65,$A$37,$A$36) -> 233 | AD65: =OFFSET(Data!EF65,$A$37,$A$36) -> 196 | AE65: =OFFSET(Data!EG65,$A$37,$A$36) -> 239 | AF65: =OFFSET(Data!EH65,$A$37,$A$36) -> 154 | AG65: =OFFSET(Data!EI65,$A$37,$A$36) -> 165 | AH65: 214 | AI65: 198.4285714 | AJ65: 1500
Z66: 1515 | AA66: =OFFSET(Data!EC66,$A$37,$A$36) -> 191 | AB66: =OFFSET(Data!ED66,$A$37,$A$36) -> 200 | AC66: =OFFSET(Data!EE66,$A$37,$A$36) -> 236 | AD66: =OFFSET(Data!EF66,$A$37,$A$36) -> 255 | AE66: =OFFSET(Data!EG66,$A$37,$A$36) -> 255 | AF66: =OFFSET(Data!EH66,$A$37,$A$36) -> 175 | AG66: =OFFSET(Data!EI66,$A$37,$A$36) -> 189 | AH66: 227.4 | AI66: 214.4285714 | AJ66: 1515
Z67: 1530 | AA67: =OFFSET(Data!EC67,$A$37,$A$36) -> 215 | AB67: =OFFSET(Data!ED67,$A$37,$A$36) -> 255 | AC67: =OFFSET(Data!EE67,$A$37,$A$36) -> 250 | AD67: =OFFSET(Data!EF67,$A$37,$A$36) -> 212 | AE67: =OFFSET(Data!EG67,$A$37,$A$36) -> 288 | AF67: =OFFSET(Data!EH67,$A$37,$A$36) -> 151 | AG67: =OFFSET(Data!EI67,$A$37,$A$36) -> 176 | AH67: 244 | AI67: 221 | AJ67: 1530
Z68: 1545 | AA68: =OFFSET(Data!EC68,$A$37,$A$36) -> 268 | AB68: =OFFSET(Data!ED68,$A$37,$A$36) -> 252 | AC68: =OFFSET(Data!EE68,$A$37,$A$36) -> 230 | AD68: =OFFSET(Data!EF68,$A$37,$A$36) -> 239 | AE68: =OFFSET(Data!EG68,$A$37,$A$36) -> 247 | AF68: =OFFSET(Data!EH68,$A$37,$A$36) -> 169 | AG68: =OFFSET(Data!EI68,$A$37,$A$36) -> 181 | AH68: 247.2 | AI68: 226.5714286 | AJ68: 1545
Z69: 1600 | AA69: =OFFSET(Data!EC69,$A$37,$A$36) -> 234 | AB69: =OFFSET(Data!ED69,$A$37,$A$36) -> 278 | AC69: =OFFSET(Data!EE69,$A$37,$A$36) -> 283 | AD69: =OFFSET(Data!EF69,$A$37,$A$36) -> 252 | AE69: =OFFSET(Data!EG69,$A$37,$A$36) -> 255 | AF69: =OFFSET(Data!EH69,$A$37,$A$36) -> 169 | AG69: =OFFSET(Data!EI69,$A$37,$A$36) -> 180 | AH69: 260.4 | AI69: 235.8571429 | AJ69: 1600
Z70: 1615 | AA70: =OFFSET(Data!EC70,$A$37,$A$36) -> 237 | AB70: =OFFSET(Data!ED70,$A$37,$A$36) -> 247 | AC70: =OFFSET(Data!EE70,$A$37,$A$36) -> 276 | AD70: =OFFSET(Data!EF70,$A$37,$A$36) -> 237 | AE70: =OFFSET(Data!EG70,$A$37,$A$36) -> 229 | AF70: =OFFSET(Data!EH70,$A$37,$A$36) -> 176 | AG70: =OFFSET(Data!EI70,$A$37,$A$36) -> 174 | AH70: 245.2 | AI70: 225.1428571 | AJ70: 1615 | AK70: =IF(AK$3=TRUE,AA70,"") ->  | AL70: =IF(AL$3=TRUE,AB70,"") ->  | AM70: =IF(AM$3=TRUE,AC70,"") ->  | AN70: =IF(AN$3=TRUE,AD70,"") ->  | AO70: =IF(AO$3=TRUE,AE70,"") ->  | AP70: =IF(AP$3=TRUE,AF70,"") ->  | AQ70: =IF(AQ$3=TRUE,AG70,"") ->  | AR70: =IF(AR$3=TRUE,AH70,"") ->  | AS70: =IF(AS$3=TRUE,AI70,"") -> 
Z71: 1630 | AA71: =OFFSET(Data!EC71,$A$37,$A$36) -> 236 | AB71: =OFFSET(Data!ED71,$A$37,$A$36) -> 283 | AC71: =OFFSET(Data!EE71,$A$37,$A$36) -> 247 | AD71: =OFFSET(Data!EF71,$A$37,$A$36) -> 240 | AE71: =OFFSET(Data!EG71,$A$37,$A$36) -> 223 | AF71: =OFFSET(Data!EH71,$A$37,$A$36) -> 150 | AG71: =OFFSET(Data!EI71,$A$37,$A$36) -> 193 | AH71: 245.8 | AI71: 224.5714286 | AJ71: 1630
Z72: 1645 | AA72: =OFFSET(Data!EC72,$A$37,$A$36) -> 240 | AB72: =OFFSET(Data!ED72,$A$37,$A$36) -> 233 | AC72: =OFFSET(Data!EE72,$A$37,$A$36) -> 228 | AD72: =OFFSET(Data!EF72,$A$37,$A$36) -> 240 | AE72: =OFFSET(Data!EG72,$A$37,$A$36) -> 245 | AF72: =OFFSET(Data!EH72,$A$37,$A$36) -> 151 | AG72: =OFFSET(Data!EI72,$A$37,$A$36) -> 170 | AH72: 237.2 | AI72: 215.2857143 | AJ72: 1645
Z73: 1700 | AA73: =OFFSET(Data!EC73,$A$37,$A$36) -> 236 | AB73: =OFFSET(Data!ED73,$A$37,$A$36) -> 264 | AC73: =OFFSET(Data!EE73,$A$37,$A$36) -> 257 | AD73: =OFFSET(Data!EF73,$A$37,$A$36) -> 249 | AE73: =OFFSET(Data!EG73,$A$37,$A$36) -> 268 | AF73: =OFFSET(Data!EH73,$A$37,$A$36) -> 165 | AG73: =OFFSET(Data!EI73,$A$37,$A$36) -> 204 | AH73: 254.8 | AI73: 234.7142857 | AJ73: 1700
Z74: 1715 | AA74: =OFFSET(Data!EC74,$A$37,$A$36) -> 230 | AB74: =OFFSET(Data!ED74,$A$37,$A$36) -> 252 | AC74: =OFFSET(Data!EE74,$A$37,$A$36) -> 261 | AD74: =OFFSET(Data!EF74,$A$37,$A$36) -> 241 | AE74: =OFFSET(Data!EG74,$A$37,$A$36) -> 230 | AF74: =OFFSET(Data!EH74,$A$37,$A$36) -> 173 | AG74: =OFFSET(Data!EI74,$A$37,$A$36) -> 174 | AH74: 242.8 | AI74: 223 | AJ74: 1715
Z75: 1730 | AA75: =OFFSET(Data!EC75,$A$37,$A$36) -> 224 | AB75: =OFFSET(Data!ED75,$A$37,$A$36) -> 254 | AC75: =OFFSET(Data!EE75,$A$37,$A$36) -> 241 | AD75: =OFFSET(Data!EF75,$A$37,$A$36) -> 245 | AE75: =OFFSET(Data!EG75,$A$37,$A$36) -> 235 | AF75: =OFFSET(Data!EH75,$A$37,$A$36) -> 158 | AG75: =OFFSET(Data!EI75,$A$37,$A$36) -> 178 | AH75: 239.8 | AI75: 219.2857143 | AJ75: 1730
Z76: 1745 | AA76: =OFFSET(Data!EC76,$A$37,$A$36) -> 189 | AB76: =OFFSET(Data!ED76,$A$37,$A$36) -> 233 | AC76: =OFFSET(Data!EE76,$A$37,$A$36) -> 216 | AD76: =OFFSET(Data!EF76,$A$37,$A$36) -> 245 | AE76: =OFFSET(Data!EG76,$A$37,$A$36) -> 201 | AF76: =OFFSET(Data!EH76,$A$37,$A$36) -> 140 | AG76: =OFFSET(Data!EI76,$A$37,$A$36) -> 135 | AH76: 216.8 | AI76: 194.1428571 | AJ76: 1745
Z77: 1800 | AA77: =OFFSET(Data!EC77,$A$37,$A$36) -> 181 | AB77: =OFFSET(Data!ED77,$A$37,$A$36) -> 225 | AC77: =OFFSET(Data!EE77,$A$37,$A$36) -> 213 | AD77: =OFFSET(Data!EF77,$A$37,$A$36) -> 241 | AE77: =OFFSET(Data!EG77,$A$37,$A$36) -> 197 | AF77: =OFFSET(Data!EH77,$A$37,$A$36) -> 143 | AG77: =OFFSET(Data!EI77,$A$37,$A$36) -> 172 | AH77: 211.4 | AI77: 196 | AJ77: 1800
Z78: 1815 | AA78: =OFFSET(Data!EC78,$A$37,$A$36) -> 183 | AB78: =OFFSET(Data!ED78,$A$37,$A$36) -> 183 | AC78: =OFFSET(Data!EE78,$A$37,$A$36) -> 195 | AD78: =OFFSET(Data!EF78,$A$37,$A$36) -> 168 | AE78: =OFFSET(Data!EG78,$A$37,$A$36) -> 178 | AF78: =OFFSET(Data!EH78,$A$37,$A$36) -> 117 | AG78: =OFFSET(Data!EI78,$A$37,$A$36) -> 125 | AH78: 181.4 | AI78: 164.1428571 | AJ78: 1815
Z79: 1830 | AA79: =OFFSET(Data!EC79,$A$37,$A$36) -> 177 | AB79: =OFFSET(Data!ED79,$A$37,$A$36) -> 194 | AC79: =OFFSET(Data!EE79,$A$37,$A$36) -> 182 | AD79: =OFFSET(Data!EF79,$A$37,$A$36) -> 215 | AE79: =OFFSET(Data!EG79,$A$37,$A$36) -> 219 | AF79: =OFFSET(Data!EH79,$A$37,$A$36) -> 156 | AG79: =OFFSET(Data!EI79,$A$37,$A$36) -> 170 | AH79: 197.4 | AI79: 187.5714286 | AJ79: 1830
Z80: 1845 | AA80: =OFFSET(Data!EC80,$A$37,$A$36) -> 158 | AB80: =OFFSET(Data!ED80,$A$37,$A$36) -> 201 | AC80: =OFFSET(Data!EE80,$A$37,$A$36) -> 180 | AD80: =OFFSET(Data!EF80,$A$37,$A$36) -> 162 | AE80: =OFFSET(Data!EG80,$A$37,$A$36) -> 165 | AF80: =OFFSET(Data!EH80,$A$37,$A$36) -> 106 | AG80: =OFFSET(Data!EI80,$A$37,$A$36) -> 170 | AH80: 173.2 | AI80: 163.1428571 | AJ80: 1845
Z81: 1900 | AA81: =OFFSET(Data!EC81,$A$37,$A$36) -> 150 | AB81: =OFFSET(Data!ED81,$A$37,$A$36) -> 161 | AC81: =OFFSET(Data!EE81,$A$37,$A$36) -> 157 | AD81: =OFFSET(Data!EF81,$A$37,$A$36) -> 171 | AE81: =OFFSET(Data!EG81,$A$37,$A$36) -> 136 | AF81: =OFFSET(Data!EH81,$A$37,$A$36) -> 129 | AG81: =OFFSET(Data!EI81,$A$37,$A$36) -> 120 | AH81: 155 | AI81: 146.2857143 | AJ81: 1900
Z82: 1915 | AA82: =OFFSET(Data!EC82,$A$37,$A$36) -> 115 | AB82: =OFFSET(Data!ED82,$A$37,$A$36) -> 134 | AC82: =OFFSET(Data!EE82,$A$37,$A$36) -> 153 | AD82: =OFFSET(Data!EF82,$A$37,$A$36) -> 133 | AE82: =OFFSET(Data!EG82,$A$37,$A$36) -> 123 | AF82: =OFFSET(Data!EH82,$A$37,$A$36) -> 101 | AG82: =OFFSET(Data!EI82,$A$37,$A$36) -> 102 | AH82: 131.6 | AI82: 123 | AJ82: 1915
Z83: 1930 | AA83: =OFFSET(Data!EC83,$A$37,$A$36) -> 115 | AB83: =OFFSET(Data!ED83,$A$37,$A$36) -> 109 | AC83: =OFFSET(Data!EE83,$A$37,$A$36) -> 124 | AD83: =OFFSET(Data!EF83,$A$37,$A$36) -> 131 | AE83: =OFFSET(Data!EG83,$A$37,$A$36) -> 122 | AF83: =OFFSET(Data!EH83,$A$37,$A$36) -> 107 | AG83: =OFFSET(Data!EI83,$A$37,$A$36) -> 93 | AH83: 120.2 | AI83: 114.4285714 | AJ83: 1930
Z84: 1945 | AA84: =OFFSET(Data!EC84,$A$37,$A$36) -> 93 | AB84: =OFFSET(Data!ED84,$A$37,$A$36) -> 125 | AC84: =OFFSET(Data!EE84,$A$37,$A$36) -> 106 | AD84: =OFFSET(Data!EF84,$A$37,$A$36) -> 121 | AE84: =OFFSET(Data!EG84,$A$37,$A$36) -> 95 | AF84: =OFFSET(Data!EH84,$A$37,$A$36) -> 96 | AG84: =OFFSET(Data!EI84,$A$37,$A$36) -> 87 | AH84: 108 | AI84: 103.2857143 | AJ84: 1945
Z85: 2000 | AA85: =OFFSET(Data!EC85,$A$37,$A$36) -> 81 | AB85: =OFFSET(Data!ED85,$A$37,$A$36) -> 122 | AC85: =OFFSET(Data!EE85,$A$37,$A$36) -> 102 | AD85: =OFFSET(Data!EF85,$A$37,$A$36) -> 102 | AE85: =OFFSET(Data!EG85,$A$37,$A$36) -> 102 | AF85: =OFFSET(Data!EH85,$A$37,$A$36) -> 85 | AG85: =OFFSET(Data!EI85,$A$37,$A$36) -> 79 | AH85: 101.8 | AI85: 96.14285714 | AJ85: 2000
Z86: 2015 | AA86: =OFFSET(Data!EC86,$A$37,$A$36) -> 91 | AB86: =OFFSET(Data!ED86,$A$37,$A$36) -> 111 | AC86: =OFFSET(Data!EE86,$A$37,$A$36) -> 109 | AD86: =OFFSET(Data!EF86,$A$37,$A$36) -> 111 | AE86: =OFFSET(Data!EG86,$A$37,$A$36) -> 92 | AF86: =OFFSET(Data!EH86,$A$37,$A$36) -> 70 | AG86: =OFFSET(Data!EI86,$A$37,$A$36) -> 77 | AH86: 102.8 | AI86: 94.42857143 | AJ86: 2015
Z87: 2030 | AA87: =OFFSET(Data!EC87,$A$37,$A$36) -> 67 | AB87: =OFFSET(Data!ED87,$A$37,$A$36) -> 106 | AC87: =OFFSET(Data!EE87,$A$37,$A$36) -> 110 | AD87: =OFFSET(Data!EF87,$A$37,$A$36) -> 83 | AE87: =OFFSET(Data!EG87,$A$37,$A$36) -> 70 | AF87: =OFFSET(Data!EH87,$A$37,$A$36) -> 50 | AG87: =OFFSET(Data!EI87,$A$37,$A$36) -> 66 | AH87: 87.2 | AI87: 78.85714286 | AJ87: 2030
Z88: 2045 | AA88: =OFFSET(Data!EC88,$A$37,$A$36) -> 86 | AB88: =OFFSET(Data!ED88,$A$37,$A$36) -> 100 | AC88: =OFFSET(Data!EE88,$A$37,$A$36) -> 87 | AD88: =OFFSET(Data!EF88,$A$37,$A$36) -> 86 | AE88: =OFFSET(Data!EG88,$A$37,$A$36) -> 85 | AF88: =OFFSET(Data!EH88,$A$37,$A$36) -> 68 | AG88: =OFFSET(Data!EI88,$A$37,$A$36) -> 51 | AH88: 88.8 | AI88: 80.42857143 | AJ88: 2045
Z89: 2100 | AA89: =OFFSET(Data!EC89,$A$37,$A$36) -> 76 | AB89: =OFFSET(Data!ED89,$A$37,$A$36) -> 79 | AC89: =OFFSET(Data!EE89,$A$37,$A$36) -> 78 | AD89: =OFFSET(Data!EF89,$A$37,$A$36) -> 77 | AE89: =OFFSET(Data!EG89,$A$37,$A$36) -> 72 | AF89: =OFFSET(Data!EH89,$A$37,$A$36) -> 40 | AG89: =OFFSET(Data!EI89,$A$37,$A$36) -> 58 | AH89: 76.4 | AI89: 68.57142857 | AJ89: 2100
Z90: 2115 | AA90: =OFFSET(Data!EC90,$A$37,$A$36) -> 53 | AB90: =OFFSET(Data!ED90,$A$37,$A$36) -> 83 | AC90: =OFFSET(Data!EE90,$A$37,$A$36) -> 82 | AD90: =OFFSET(Data!EF90,$A$37,$A$36) -> 74 | AE90: =OFFSET(Data!EG90,$A$37,$A$36) -> 70 | AF90: =OFFSET(Data!EH90,$A$37,$A$36) -> 55 | AG90: =OFFSET(Data!EI90,$A$37,$A$36) -> 53 | AH90: 72.4 | AI90: 67.14285714 | AJ90: 2115
Z91: 2130 | AA91: =OFFSET(Data!EC91,$A$37,$A$36) -> 61 | AB91: =OFFSET(Data!ED91,$A$37,$A$36) -> 84 | AC91: =OFFSET(Data!EE91,$A$37,$A$36) -> 93 | AD91: =OFFSET(Data!EF91,$A$37,$A$36) -> 75 | AE91: =OFFSET(Data!EG91,$A$37,$A$36) -> 67 | AF91: =OFFSET(Data!EH91,$A$37,$A$36) -> 41 | AG91: =OFFSET(Data!EI91,$A$37,$A$36) -> 56 | AH91: 76 | AI91: 68.14285714 | AJ91: 2130
Z92: 2145 | AA92: =OFFSET(Data!EC92,$A$37,$A$36) -> 62 | AB92: =OFFSET(Data!ED92,$A$37,$A$36) -> 72 | AC92: =OFFSET(Data!EE92,$A$37,$A$36) -> 79 | AD92: =OFFSET(Data!EF92,$A$37,$A$36) -> 72 | AE92: =OFFSET(Data!EG92,$A$37,$A$36) -> 71 | AF92: =OFFSET(Data!EH92,$A$37,$A$36) -> 52 | AG92: =OFFSET(Data!EI92,$A$37,$A$36) -> 60 | AH92: 71.2 | AI92: 66.85714286 | AJ92: 2145
Z93: 2200 | AA93: =OFFSET(Data!EC93,$A$37,$A$36) -> 41 | AB93: =OFFSET(Data!ED93,$A$37,$A$36) -> 44 | AC93: =OFFSET(Data!EE93,$A$37,$A$36) -> 67 | AD93: =OFFSET(Data!EF93,$A$37,$A$36) -> 65 | AE93: =OFFSET(Data!EG93,$A$37,$A$36) -> 79 | AF93: =OFFSET(Data!EH93,$A$37,$A$36) -> 61 | AG93: =OFFSET(Data!EI93,$A$37,$A$36) -> 47 | AH93: =SUM(AA93:AE93)/5 -> 59.2 | AI93: =SUM(AA93:AG93)/7 -> 57.71428571 | AJ93: 2200
Z94: 2215 | AA94: =OFFSET(Data!EC94,$A$37,$A$36) -> 34 | AB94: =OFFSET(Data!ED94,$A$37,$A$36) -> 68 | AC94: =OFFSET(Data!EE94,$A$37,$A$36) -> 45 | AD94: =OFFSET(Data!EF94,$A$37,$A$36) -> 52 | AE94: =OFFSET(Data!EG94,$A$37,$A$36) -> 60 | AF94: =OFFSET(Data!EH94,$A$37,$A$36) -> 65 | AG94: =OFFSET(Data!EI94,$A$37,$A$36) -> 55 | AH94: 51.8 | AI94: 54.14285714 | AJ94: 2215
Z95: 2230 | AA95: =OFFSET(Data!EC95,$A$37,$A$36) -> 35 | AB95: =OFFSET(Data!ED95,$A$37,$A$36) -> 54 | AC95: =OFFSET(Data!EE95,$A$37,$A$36) -> 39 | AD95: =OFFSET(Data!EF95,$A$37,$A$36) -> 50 | AE95: =OFFSET(Data!EG95,$A$37,$A$36) -> 49 | AF95: =OFFSET(Data!EH95,$A$37,$A$36) -> 57 | AG95: =OFFSET(Data!EI95,$A$37,$A$36) -> 40 | AH95: 45.4 | AI95: 46.28571429 | AJ95: 2230
Z96: 2245 | AA96: =OFFSET(Data!EC96,$A$37,$A$36) -> 30 | AB96: =OFFSET(Data!ED96,$A$37,$A$36) -> 47 | AC96: =OFFSET(Data!EE96,$A$37,$A$36) -> 37 | AD96: =OFFSET(Data!EF96,$A$37,$A$36) -> 38 | AE96: =OFFSET(Data!EG96,$A$37,$A$36) -> 63 | AF96: =OFFSET(Data!EH96,$A$37,$A$36) -> 37 | AG96: =OFFSET(Data!EI96,$A$37,$A$36) -> 38 | AH96: 43 | AI96: 41.42857143 | AJ96: 2245
Z97: 2300 | AA97: =OFFSET(Data!EC97,$A$37,$A$36) -> 20 | AB97: =OFFSET(Data!ED97,$A$37,$A$36) -> 40 | AC97: =OFFSET(Data!EE97,$A$37,$A$36) -> 19 | AD97: =OFFSET(Data!EF97,$A$37,$A$36) -> 32 | AE97: =OFFSET(Data!EG97,$A$37,$A$36) -> 45 | AF97: =OFFSET(Data!EH97,$A$37,$A$36) -> 37 | AG97: =OFFSET(Data!EI97,$A$37,$A$36) -> 23 | AH97: 31.2 | AI97: 30.85714286 | AJ97: 2300
Z98: 2315 | AA98: =OFFSET(Data!EC98,$A$37,$A$36) -> 22 | AB98: =OFFSET(Data!ED98,$A$37,$A$36) -> 28 | AC98: =OFFSET(Data!EE98,$A$37,$A$36) -> 20 | AD98: =OFFSET(Data!EF98,$A$37,$A$36) -> 48 | AE98: =OFFSET(Data!EG98,$A$37,$A$36) -> 35 | AF98: =OFFSET(Data!EH98,$A$37,$A$36) -> 41 | AG98: =OFFSET(Data!EI98,$A$37,$A$36) -> 32 | AH98: 30.6 | AI98: 32.28571429 | AJ98: 2315
Z99: 2330 | AA99: =OFFSET(Data!EC99,$A$37,$A$36) -> 12 | AB99: =OFFSET(Data!ED99,$A$37,$A$36) -> 20 | AC99: =OFFSET(Data!EE99,$A$37,$A$36) -> 23 | AD99: =OFFSET(Data!EF99,$A$37,$A$36) -> 33 | AE99: =OFFSET(Data!EG99,$A$37,$A$36) -> 37 | AF99: =OFFSET(Data!EH99,$A$37,$A$36) -> 50 | AG99: =OFFSET(Data!EI99,$A$37,$A$36) -> 19 | AH99: 25 | AI99: 27.71428571 | AJ99: 2330
Z100: 2345 | AA100: =OFFSET(Data!EC100,$A$37,$A$36) -> 21 | AB100: =OFFSET(Data!ED100,$A$37,$A$36) -> 20 | AC100: =OFFSET(Data!EE100,$A$37,$A$36) -> 20 | AD100: =OFFSET(Data!EF100,$A$37,$A$36) -> 27 | AE100: =OFFSET(Data!EG100,$A$37,$A$36) -> 32 | AF100: =OFFSET(Data!EH100,$A$37,$A$36) -> 41 | AG100: =OFFSET(Data!EI100,$A$37,$A$36) -> 11 | AH100: 24 | AI100: 24.57142857 | AJ100: 2345

Sheet Data (hidden)
A2: 1 | C2: =+Offsets!J5 -> Eastbound | AI2: Speed | AO2: =+Offsets!K5 -> Westbound | BU2: Speed | CA2: COMBINED | DG2: Speed | DK2: =+C2 -> Eastbound | DQ2: =+AO2 -> Westbound | DW2: COMBINED | EC2: =+DK2 -> Eastbound | EJ2: =+DQ2 -> Westbound | EQ2: COMBINED | FN2: =EC2 -> Eastbound | FU2: =EJ2 -> Westbound | GB2: =EQ2 -> COMBINED
C3: Vehicle Classification | O3: Vehicle Speed Bins | AO3: Vehicle Classification | BA3: Vehicle Speed Bins | CA3: Vehicle Classification | CM3: Vehicle Speed Bins | DK3: M'Cycle & P'Cycle | DL3: Cars | DM3: LGV | DN3: OGV1 & PSV | DO3: OGV2 | DP3: Total | DQ3: M'Cycle & P'Cycle | DR3: Cars | DS3: LGV | DT3: OGV1 & PSV | DU3: OGV2 | DV3: Total | DW3: M'Cycle & P'Cycle | DX3: Cars | DY3: LGV | DZ3: OGV1 & PSV | EA3: OGV2 | EB3: Total | EX3: PRI 5 | EY3: PRI 7 | FE3: SEC 5 | FF3: SEC 7 | FL3: COM 5 | FM3: COM 7
C4: 1 | D4: 2 | E4: 3 | F4: 4 | G4: 5 | H4: 6 | I4: 7 | J4: 8 | K4: 9 | L4: 10 | M4: 11 | N4: 12 | O4: 0-10 | P4: 10-15 | Q4: 15-20 | R4: 20-25 | S4: 25-30 | T4: 30-35 | U4: 35-40 | V4: 40-45 | W4: 45-50 | X4: 50-55 | Y4: 55-60 | Z4: 60-65 | AA4: 65-70 | AB4: 70-75 | AC4: 75-80 | AD4: 80-85 | AE4: 85-90 | AF4: 90-95 | AG4: 95-100 | AH4: 100+ | AI4: Ave | AJ4: 85%ile | AK4: Min | AL4: Max | AO4: 1 | AP4: 2 | AQ4: 3 | AR4: 4 | AS4: 5 | AT4: 6 | AU4: 7 | AV4: 8 | AW4: 9 | AX4: 10 | AY4: 11 | AZ4: 12 | BA4: 010 | BB4: 1015 | BC4: 1520 | BD4: 2025 | BE4: 2530 | BF4: 3035 | BG4: 3540 | BH4: 4045 | BI4: 4550 | BJ4: 5055 | BK4: 5560 | BL4: 6065 | BM4: 6570 | BN4: 7075 | BO4: 7580 | BP4: 8085 | BQ4: 8590 | BR4: 9095 | BS4: 95100 | BT4: 100+ | BU4: Ave | BV4: 85%ile | BW4: Min | BX4: Max | CA4: 1 | CB4: 2 | CC4: 3 | CD4: 4 | CE4: 5 | CF4: 6 | CG4: 7 | CH4: 8 | CI4: 9 | CJ4: 10 | CK4: 11 | CL4: 12 | CM4: 010 | CN4: 1015 | CO4: 1520 | CP4: 2025 | CQ4: 2530 | CR4: 3035 | CS4: 3540 | CT4: 4045 | CU4: 4550 | CV4: 5055 | CW4: 5560 | CX4: 6065 | CY4: 6570 | CZ4: 7075 | DA4: 7580 | DB4: 8085 | DC4: 8590 | DD4: 9095 | DE4: 95100 | DF4: 100+ | DG4: Ave | DH4: 85%ile | DI4: Min | DJ4: Max | EC4: Mon | ED4: Tue | EE4: Wed | EF4: Thu | EG4: Fri | EH4: Sat | EI4: Sun | EJ4: Mon | EK4: Tue | EL4: Wed | EM4: Thu | EN4: Fri | EO4: Sat | EP4: Sun | EQ4: Mon | ER4: Tue | ES4: Wed | ET4: Thu | EU4: Fri | EV4: Sat | EW4: Sun | FN4: Mon | FO4: Tue | FP4: Wed | FQ4: Thu | FR4: Fri | FS4: Sat | FT4: Sun | FU4: Mon | FV4: Tue | FW4: Wed | FX4: Thu | FY4: Fri | FZ4: Sat | GA4: Sun | GB4: Mon | GC4: Tue | GD4: Wed | GE4: Thu | GF4: Fri | GG4: Sat | GH4: Sun
A5: Mon | B5: 0 | C5: 0 | D5: 1 | E5: 0 | F5: 2 | G5: 0 | H5: 0 | I5: 0 | J5: 0 | K5: 0 | L5: 0 | M5: 0 | N5: 0 | O5: 0 | P5: 0 | Q5: 0 | R5: 1 | S5: 0 | T5: 0 | U5: 2 | V5: 0 | W5: 0 | X5: 0 | Y5: 0 | Z5: 0 | AA5: 0 | AB5: 0 | AC5: 0 | AD5: 0 | AE5: 0 | AF5: 0 | AG5: 0 | AH5: 0 | AI5: 32.7 | AJ5: - | AK5: 23.4 | AL5: 37.9 | AM5: Mon | AN5: 0 | AO5: 1 | AP5: 12 | AQ5: 0 | AR5: 0 | AS5: 0 | AT5: 0 | AU5: 0 | AV5: 0 | AW5: 0 | AX5: 0 | AY5: 0 | AZ5: 0 | BA5: 0 | BB5: 0 | BC5: 0 | BD5: 0 | BE5: 1 | BF5: 1 | BG5: 4 | BH5: 3 | BI5: 2 | BJ5: 0 | BK5: 2 | BL5: 0 | BM5: 0 | BN5: 0 | BO5: 0 | BP5: 0 | BQ5: 0 | BR5: 0 | BS5: 0 | BT5: 0 | BU5: 41.7 | BV5: 49 | BW5: 25.2 | BX5: 57.2 | BY5: Mon | BZ5: 0 | CA5: =SUM(C5+AO5) -> 1 | CB5: =SUM(D5+AP5) -> 13 | CC5: =SUM(E5+AQ5) -> 0 | CD5: =SUM(F5+AR5) -> 2 | CE5: =SUM(G5+AS5) -> 0 | CF5: =SUM(H5+AT5) -> 0 | CG5: =SUM(I5+AU5) -> 0 | CH5: =SUM(J5+AV5) -> 0 | CI5: =SUM(K5+AW5) -> 0 | CJ5: =SUM(L5+AX5) -> 0 | CK5: =SUM(M5+AY5) -> 0 | CL5: =SUM(N5+AZ5) -> 0 | CM5: =SUM(O5+BA5) -> 0 | CN5: =SUM(P5+BB5) -> 0 | CO5: =SUM(Q5+BC5) -> 0 | CP5: =SUM(R5+BD5) -> 1 | CQ5: =SUM(S5+BE5) -> 1 | CR5: =SUM(T5+BF5) -> 1 | CS5: =SUM(U5+BG5) -> 6 | CT5: =SUM(V5+BH5) -> 3 | CU5: =SUM(W5+BI5) -> 2 | CV5: =SUM(X5+BJ5) -> 0 | CW5: =SUM(Y5+BK5) -> 2 | CX5: =SUM(Z5+BL5) -> 0 | CY5: =SUM(AA5+BM5) -> 0 | CZ5: =SUM(AB5+BN5) -> 0 | DA5: =SUM(AC5+BO5) -> 0 | DB5: =SUM(AD5+BP5) -> 0 | DC5: =SUM(AE5+BQ5) -> 0 | DD5: =SUM(AF5+BR5) -> 0 | DE5: =SUM(AG5+BS5) -> 0 | DF5: =SUM(AH5+BT5) -> 0 | DG5: =IF(EB5=0,"-",IF(DP5=0,BU5,IF(DV5=0,AI5,SUM((AI5*DP5),(BU5*DV5))/EB5))) -> 40.0125 | DH5: =IFERROR(IF(BV5="-",IF(AJ5="-","-",AJ5),IF(AJ5="-",BV5,AVERAGE(AJ5,BV5))), "-") -> 49 | DI5: =IF(MIN(AK5,BW5)=0,"-",MIN(AK5,BW5)) -> 23.4 | DJ5: =IF(MAX(AL5,BX5)=0,"-",MAX(AL5,BX5)) -> 57.2 | DK5: =SUM(C5) -> 0 | DL5: =SUM(D5+E5) -> 1 | DM5: =F5 -> 2 | DN5: =SUM(G5:H5) -> 0 | DO5: =SUM(I5:N5) -> 0 | DP5: =SUM(C5:N5) -> 3 | DQ5: =SUM(AO5) -> 1 | DR5: =SUM(AP5+AQ5) -> 12 | DS5: =AR5 -> 0 | DT5: =SUM(AS5:AT5) -> 0 | DU5: =SUM(AU5:AZ5) -> 0 | DV5: =SUM(AO5:AZ5) -> 13 | DW5: =SUM(DK5+DQ5) -> 1 | DX5: =SUM(DL5+DR5) -> 13 | DY5: 2 | DZ5: 0 | EA5: 0 | EB5: 16 | EC5: =+DP5 -> 3 | ED5: =+DP101 -> 3 | EE5: =+DP197 -> 4 | EF5: =+DP293 -> 3 | EG5: =+DP389 -> 4 | EH5: =+DP485 -> 10 | EI5: =+DP581 -> 20 | EJ5: =+DV5 -> 13 | EK5: =+DV101 -> 11 | EL5: =+DV197 -> 10 | EM5: =+DV293 -> 14 | EN5: =+DV389 -> 19 | EO5: =+DV485 -> 16 | EP5: =+DV581 -> 18 | EQ5: =SUM(EC5+EJ5) -> 16 | ER5: 14 | ES5: 14 | ET5: 17 | EU5: 23 | EV5: 26 | EW5: 38 | EX5: =IF((SUM(FN5:FR5))>0,AVERAGE(FN5:FR5),0) -> 3.4 | EY5: =IF((SUM(FN5:FT5))>0,AVERAGE(FN5:FT5),0) -> 6.714285714 | FE5: =IF((SUM(FU5:FY5))>0,AVERAGE(FU5:FY5),0) -> 13.4 | FF5: =IF((SUM(FU5:GA5))>0,AVERAGE(FU5:GA5),0) -> 14.42857143 | FL5: =IF((SUM(GB5:GF5))>0,AVERAGE(GB5:GF5),0) -> 16.8 | FM5: =IF((SUM(GB5:GH5))>0,AVERAGE(GB5:GH5),0) -> 21.14285714 | FN5: =IF(C5="", "-", SUM(C5:N5)) -> 3 | FO5: =IF(C101="","-",SUM(C101:N101)) -> 3 | FP5: =IF(C197="","-",SUM(C197:N197)) -> 4 | FQ5: =IF(C293="","-",SUM(C293:N293)) -> 3 | FR5: =IF(C389="","-",SUM(C389:N389)) -> 4 | FS5: =IF(C485="","-",SUM(C485:N485)) -> 10 | FT5: =IF(C581="","-",SUM(C581:N581)) -> 20 | FU5: =IF(AO5="","-",SUM(AO5:AZ5)) -> 13 | FV5: =IF(AO101="","-",SUM(AO101:AZ101)) -> 11 | FW5: =IF(AO197="","-",SUM(AO197:AZ197)) -> 10 | FX5: =IF(AO293="","-",SUM(AO293:AZ293)) -> 14 | FY5: =IF(AO389="","-",SUM(AO389:AZ389)) -> 19 | FZ5: =IF(AO485="","-",SUM(AO485:AZ485)) -> 16 | GA5: =IF(AO581="","-",SUM(AO581:AZ581)) -> 18 | GB5: =IF(FN5="-","-",IF(FU5="-","-",FN5+FU5)) -> 16 | GC5: 14 | GD5: 14 | GE5: 17 | GF5: 23 | GG5: 26 | GH5: 38
A6: =+A5 -> Mon | B6: 15 | C6: 0 | D6: 1 | E6: 0 | F6: 0 | G6: 0 | H6: 0 | I6: 0 | J6: 0 | K6: 0 | L6: 0 | M6: 0 | N6: 0 | O6: 0 | P6: 0 | Q6: 0 | R6: 0 | S6: 0 | T6: 0 | U6: 0 | V6: 1 | W6: 0 | X6: 0 | Y6: 0 | Z6: 0 | AA6: 0 | AB6: 0 | AC6: 0 | AD6: 0 | AE6: 0 | AF6: 0 | AG6: 0 | AH6: 0 | AI6: 40.8 | AJ6: - | AK6: 40.8 | AL6: 40.8 | AM6: Mon | AN6: 15 | AO6: 0 | AP6: 9 | AQ6: 0 | AR6: 0 | AS6: 0 | AT6: 0 | AU6: 0 | AV6: 0 | AW6: 0 | AX6: 0 | AY6: 0 | AZ6: 0 | BA6: 0 | BB6: 0 | BC6: 0 | BD6: 0 | BE6: 0 | BF6: 1 | BG6: 6 | BH6: 1 | BI6: 0 | BJ6: 0 | BK6: 0 | BL6: 0 | BM6: 0 | BN6: 1 | BO6: 0 | BP6: 0 | BQ6: 0 | BR6: 0 | BS6: 0 | BT6: 0 | BU6: 41.3 | BV6: - | BW6: 33.5 | BX6: 70.3 | BY6: Mon | BZ6: 15 | CA6: 0 | CB6: 10 | CC6: 0 | CD6: 0 | CE6: 0 | CF6: 0 | CG6: 0 | CH6: 0 | CI6: 0 | CJ6: 0 | CK6: 0 | CL6: 0 | CM6: 0 | CN6: 0 | CO6: 0 | CP6: 0 | CQ6: 0 | CR6: 1 | CS6: 6 | CT6: 2 | CU6: 0 | CV6: 0 | CW6: 0 | CX6: 0 | CY6: 0 | CZ6: 1 | DA6: 0 | DB6: 0 | DC6: 0 | DD6: 0 | DE6: 0 | DF6: 0 | DG6: =IF(EB6=0,"-",IF(DP6=0,BU6,IF(DV6=0,AI6,SUM((AI6*DP6),(BU6*DV6))/EB6))) -> 41.25 | DH6: =IFERROR(IF(BV6="-",IF(AJ6="-","-",AJ6),IF(AJ6="-",BV6,AVERAGE(AJ6,BV6))), "-") -> - | DI6: =IF(MIN(AK6,BW6)=0,"-",MIN(AK6,BW6)) -> 33.5 | DJ6: =IF(MAX(AL6,BX6)=0,"-",MAX(AL6,BX6)) -> 70.3 | DK6: =SUM(C6) -> 0 | DL6: =SUM(D6+E6) -> 1 | DM6: =F6 -> 0 | DN6: =SUM(G6:H6) -> 0 | DO6: =SUM(I6:N6) -> 0 | DP6: =SUM(C6:N6) -> 1 | DQ6: =SUM(AO6) -> 0 | DR6: =SUM(AP6+AQ6) -> 9 | DS6: =AR6 -> 0 | DT6: =SUM(AS6:AT6) -> 0 | DU6: =SUM(AU6:AZ6) -> 0 | DV6: =SUM(AO6:AZ6) -> 9 | DW6: 0 | DX6: 10 | DY6: 0 | DZ6: 0 | EA6: 0 | EB6: 10 | EC6: =+DP6 -> 1 | ED6: =+DP102 -> 5 | EE6: =+DP198 -> 5 | EF6: =+DP294 -> 5 | EG6: =+DP390 -> 4 | EH6: =+DP486 -> 5 | EI6: =+DP582 -> 5 | EJ6: =+DV6 -> 9 | EK6: =+DV102 -> 8 | EL6: =+DV198 -> 5 | EM6: =+DV294 -> 8 | EN6: =+DV390 -> 18 | EO6: =+DV486 -> 16 | EP6: =+DV582 -> 35 | EQ6: 10 | ER6: 13 | ES6: 10 | ET6: 13 | EU6: 22 | EV6: 21 | EW6: 40 | EX6: =IF((SUM(FN6:FR6))>0,AVERAGE(FN6:FR6),0) -> 4 | EY6: =IF((SUM(FN6:FT6))>0,AVERAGE(FN6:FT6),0) -> 4.285714286 | FE6: =IF((SUM(FU6:FY6))>0,AVERAGE(FU6:FY6),0) -> 9.6 | FF6: =IF((SUM(FU6:GA6))>0,AVERAGE(FU6:GA6),0) -> 14.14285714 | FL6: =IF((SUM(GB6:GF6))>0,AVERAGE(GB6:GF6),0) -> 13.6 | FM6: =IF((SUM(GB6:GH6))>0,AVERAGE(GB6:GH6),0) -> 18.42857143 | FN6: =IF(C6="", "-", SUM(C6:N6)) -> 1 | FO6: =IF(C102="","-",SUM(C102:N102)) -> 5 | FP6: =IF(C198="","-",SUM(C198:N198)) -> 5 | FQ6: =IF(C294="","-",SUM(C294:N294)) -> 5 | FR6: =IF(C390="","-",SUM(C390:N390)) -> 4 | FS6: =IF(C486="","-",SUM(C486:N486)) -> 5 | FT6: =IF(C582="","-",SUM(C582:N582)) -> 5 | FU6: =IF(AO6="","-",SUM(AO6:AZ6)) -> 9 | FV6: =IF(AO102="","-",SUM(AO102:AZ102)) -> 8 | FW6: =IF(AO198="","-",SUM(AO198:AZ198)) -> 5 | FX6: =IF(AO294="","-",SUM(AO294:AZ294)) -> 8 | FY6: =IF(AO390="","-",SUM(AO390:AZ390)) -> 18 | FZ6: =IF(AO486="","-",SUM(AO486:AZ486)) -> 16 | GA6: =IF(AO582="","-",SUM(AO582:AZ582)) -> 35 | GB6: =IF(FN6="-","-",IF(FU6="-","-",FN6+FU6)) -> 10 | GC6: =IF(FO6="-","-",IF(FV6="-","-",FO6+FV6)) -> 13 | GD6: =IF(FP6="-","-",IF(FW6="-","-",FP6+FW6)) -> 10 | GE6: =IF(FQ6="-","-",IF(FX6="-","-",FQ6+FX6)) -> 13 | GF6: =IF(FR6="-","-",IF(FY6="-","-",FR6+FY6)) -> 22 | GG6: =IF(FS6="-","-",IF(FZ6="-","-",FS6+FZ6)) -> 21 | GH6: =IF(FT6="-","-",IF(GA6="-","-",FT6+GA6)) -> 40
A7: =+A6 -> Mon | B7: 30 | C7: 0 | D7: 3 | E7: 0 | F7: 0 | G7: 0 | H7: 0 | I7: 0 | J7: 0 | K7: 0 | L7: 0 | M7: 0 | N7: 0 | O7: 0 | P7: 0 | Q7: 0 | R7: 0 | S7: 0 | T7: 1 | U7: 1 | V7: 1 | W7: 0 | X7: 0 | Y7: 0 | Z7: 0 | AA7: 0 | AB7: 0 | AC7: 0 | AD7: 0 | AE7: 0 | AF7: 0 | AG7: 0 | AH7: 0 | AI7: 36.9 | AJ7: - | AK7: 33.9 | AL7: 40.2 | AM7: Mon | AN7: 30 | AO7: 1 | AP7: 13 | AQ7: 0 | AR7: 3 | AS7: 0 | AT7: 0 | AU7: 0 | AV7: 0 | AW7: 0 | AX7: 0 | AY7: 0 | AZ7: 0 | BA7: 0 | BB7: 0 | BC7: 0 | BD7: 0 | BE7: 0 | BF7: 1 | BG7: 4 | BH7: 4 | BI7: 6 | BJ7: 2 | BK7: 0 | BL7: 0 | BM7: 0 | BN7: 0 | BO7: 0 | BP7: 0 | BQ7: 0 | BR7: 0 | BS7: 0 | BT7: 0 | BU7: 44.4 | BV7: 48.3 | BW7: 34.6 | BX7: 54.8 | BY7: Mon | BZ7: 30 | CA7: 1 | CB7: 16 | CC7: 0 | CD7: 3 | CE7: 0 | CF7: 0 | CG7: 0 | CH7: 0 | CI7: 0 | CJ7: 0 | CK7: 0 | CL7: 0 | CM7: 0 | CN7: 0 | CO7: 0 | CP7: 0 | CQ7: 0 | CR7: 2 | CS7: 5 | CT7: 5 | CU7: 6 | CV7: 2 | CW7: 0 | CX7: 0 | CY7: 0 | CZ7: 0 | DA7: 0 | DB7: 0 | DC7: 0 | DD7: 0 | DE7: 0 | DF7: 0 | DG7: 43.275 | DH7: 48.3 | DI7: 33.9 | DJ7: 54.8 | DK7: 0 | DL7: 3 | DM7: 0 | DN7: 0 | DO7: 0 | DP7: 3 | DQ7: 1 | DR7: 13 | DS7: 3 | DT7: 0 | DU7: 0 | DV7: 17 | DW7: 1 | DX7: 16 | DY7: 3 | DZ7: 0 | EA7: 0 | EB7: 20 | EC7: 3 | ED7: 2 | EE7: 6 | EF7: 8 | EG7: 5 | EH7: 9 | EI7: 18 | EJ7: 17 | EK7: 6 | EL7: 4 | EM7: 3 | EN7: 7 | EO7: 10 | EP7: 25 | EQ7: 20 | ER7: 8 | ES7: 10 | ET7: 11 | EU7: 12 | EV7: 19 | EW7: 43 | EX7: 4.8 | EY7: 7.285714286 | FE7: 7.4 | FF7: 10.28571429 | FL7: 12.2 | FM7: 17.57142857 | FN7: 3 | FO7: 2 | FP7: 6 | FQ7: 8 | FR7: 5 | FS7: 9 | FT7: 18 | FU7: 17 | FV7: 6 | FW7: 4 | FX7: 3 | FY7: 7 | FZ7: 10 | GA7: 25 | GB7: =IF(FN7="-","-",IF(FU7="-","-",FN7+FU7)) -> 20 | GC7: 8 | GD7: 10 | GE7: 11 | GF7: 12 | GG7: 19 | GH7: 43
A8: Mon | B8: 45 | C8: 0 | D8: 3 | E8: 0 | F8: 0 | G8: 0 | H8: 0 | I8: 0 | J8: 0 | K8: 0 | L8: 0 | M8: 0 | N8: 0 | O8: 0 | P8: 0 | Q8: 0 | R8: 0 | S8: 1 | T8: 0 | U8: 0 | V8: 1 | W8: 0 | X8: 0 | Y8: 0 | Z8: 1 | AA8: 0 | AB8: 0 | AC8: 0 | AD8: 0 | AE8: 0 | AF8: 0 | AG8: 0 | AH8: 0 | AI8: 44 | AJ8: - | AK8: 27.2 | AL8: 60.8 | AM8: Mon | AN8: 45 | AO8: 1 | AP8: 12 | AQ8: 0 | AR8: 0 | AS8: 0 | AT8: 0 | AU8: 0 | AV8: 0 | AW8: 0 | AX8: 0 | AY8: 0 | AZ8: 0 | BA8: 0 | BB8: 0 | BC8: 0 | BD8: 0 | BE8: 0 | BF8: 3 | BG8: 3 | BH8: 5 | BI8: 2 | BJ8: 0 | BK8: 0 | BL8: 0 | BM8: 0 | BN8: 0 | BO8: 0 | BP8: 0 | BQ8: 0 | BR8: 0 | BS8: 0 | BT8: 0 | BU8: 39.8 | BV8: 44.1 | BW8: 31.6 | BX8: 49.8 | BY8: Mon | BZ8: 45 | CA8: 1 | CB8: 15 | CC8: 0 | CD8: 0 | CE8: 0 | CF8: 0 | CG8: 0 | CH8: 0 | CI8: 0 | CJ8: 0 | CK8: 0 | CL8: 0 | CM8: 0 | CN8: 0 | CO8: 0 | CP8: 0 | CQ8: 1 | CR8: 3 | CS8: 3 | CT8: 6 | CU8: 2 | CV8: 0 | CW8: 0 | CX8: 1 | CY8: 0 | CZ8: 0 | DA8: 0 | DB8: 0 | DC8: 0 | DD8: 0 | DE8: 0 | DF8: 0 | DG8: 40.5875 | DH8: 44.1 | DI8: 27.2 | DJ8: 60.8 | DK8: 0 | DL8: 3 | DM8: 0 | DN8: 0 | DO8: 0 | DP8: 3 | DQ8: 1 | DR8: 12 | DS8: 0 | DT8: 0 | DU8: 0 | DV8: 13 | DW8: 1 | DX8: 15 | DY8: 0 | DZ8: 0 | EA8: 0 | EB8: 16 | EC8: 3 | ED8: 2 | EE8: 3 | EF8: 2 | EG8: 5 | EH8: 9 | EI8: 12 | EJ8: 13 | EK8: 3 | EL8: 5 | EM8: 5 | EN8: 3 | EO8: 17 | EP8: 25 | EQ8: 16 | ER8: 5 | ES8: 8 | ET8: 7 | EU8: 8 | EV8: 26 | EW8: 37 | EX8: 3 | EY8: 5.142857143 | FE8: 5.8 | FF8: 10.14285714 | FL8: 8.8 | FM8: 15.28571429 | FN8: 3 | FO8: 2 | FP8: 3 | FQ8: 2 | FR8: 5 | FS8: 9 | FT8: 12 | FU8: 13 | FV8: 3 | FW8: 5 | FX8: 5 | FY8: 3 | FZ8: 17 | GA8: 25 | GB8: =IF(FN8="-","-",IF(FU8="-","-",FN8+FU8)) -> 16 | GC8: 5 | GD8: 8 | GE8: 7 | GF8: 8 | GG8: 26 | GH8: 37
A9: Mon | B9: 100 | C9: 0 | D9: 1 | E9: 0 | F9: 0 | G9: 0 | H9: 0 | I9: 0 | J9: 0 | K9: 0 | L9: 0 | M9: 0 | N9: 0 | O9: 0 | P9: 0 | Q9: 0 | R9: 0 | S9: 0 | T9: 0 | U9: 0 | V9: 0 | W9: 0 | X9: 0 | Y9: 1 | Z9: 0 | AA9: 0 | AB9: 0 | AC9: 0 | AD9: 0 | AE9: 0 | AF9: 0 | AG9: 0 | AH9: 0 | AI9: 57.8 | AJ9: - | AK9: 57.8 | AL9: 57.8 | AM9: Mon | AN9: 100 | AO9: 0 | AP9: 10 | AQ9: 0 | AR9: 0 | AS9: 0 | AT9: 0 | AU9: 0 | AV9: 0 | AW9: 0 | AX9: 0 | AY9: 0 | AZ9: 0 | BA9: 0 | BB9: 0 | BC9: 0 | BD9: 0 | BE9: 0 | BF9: 1 | BG9: 4 | BH9: 3 | BI9: 2 | BJ9: 0 | BK9: 0 | BL9: 0 | BM9: 0 | BN9: 0 | BO9: 0 | BP9: 0 | BQ9: 0 | BR9: 0 | BS9: 0 | BT9: 0 | BU9: 41.1 | BV9: - | BW9: 34.5 | BX9: 48.9 | BY9: Mon | BZ9: 100 | CA9: 0 | CB9: 11 | CC9: 0 | CD9: 0 | CE9: 0 | CF9: 0 | CG9: 0 | CH9: 0 | CI9: 0 | CJ9: 0 | CK9: 0 | CL9: 0 | CM9: 0 | CN9: 0 | CO9: 0 | CP9: 0 | CQ9: 0 | CR9: 1 | CS9: 4 | CT9: 3 | CU9: 2 | CV9: 0 | CW9: 1 | CX9: 0 | CY9: 0 | CZ9: 0 | DA9: 0 | DB9: 0 | DC9: 0 | DD9: 0 | DE9: 0 | DF9: 0 | DG9: 42.61818182 | DH9: - | DI9: 34.5 | DJ9: 57.8 | DK9: 0 | DL9: 1 | DM9: 0 | DN9: 0 | DO9: 0 | DP9: 1 | DQ9: 0 | DR9: 10 | DS9: 0 | DT9: 0 | DU9: 0 | DV9: 10 | DW9: 0 | DX9: 11 | DY9: 0 | DZ9: 0 | EA9: 0 | EB9: 11 | EC9: 1 | ED9: 5 | EE9: 0 | EF9: 3 | EG9: 2 | EH9: 9 | EI9: 12 | EJ9: 10 | EK9: 7 | EL9: 3 | EM9: 11 | EN9: 4 | EO9: 15 | EP9: 21 | EQ9: 11 | ER9: 12 | ES9: 3 | ET9: 14 | EU9: 6 | EV9: 24 | EW9: 33 | EX9: 2.2 | EY9: 4.571428571 | FE9: 7 | FF9: 10.14285714 | FL9: 9.2 | FM9: 14.71428571 | FN9: 1 | FO9: 5 | FP9: 0 | FQ9: 3 | FR9: 2 | FS9: 9 | FT9: 12 | FU9: 10 | FV9: 7 | FW9: 3 | FX9: 11 | FY9: 4 | FZ9: 15 | GA9: 21 | GB9: 11 | GC9: 12 | GD9: 3 | GE9: 14 | GF9: 6 | GG9: 24 | GH9: 33
A10: Mon | B10: 115 | C10: 0 | D10: 2 | E10: 0 | F10: 0 | G10: 0 | H10: 0 | I10: 0 | J10: 0 | K10: 0 | L10: 0 | M10: 0 | N10: 0 | O10: 0 | P10: 0 | Q10: 0 | R10: 0 | S10: 0 | T10: 1 | U10: 0 | V10: 0 | W10: 0 | X10: 0 | Y10: 0 | Z10: 1 | AA10: 0 | AB10: 0 | AC10: 0 | AD10: 0 | AE10: 0 | AF10: 0 | AG10: 0 | AH10: 0 | AI10: 46.6 | AJ10: - | AK10: 30 | AL10: 63.2 | AM10: Mon | AN10: 115 | AO10: 0 | AP10: 9 | AQ10: 0 | AR10: 0 | AS10: 0 | AT10: 0 | AU10: 0 | AV10: 0 | AW10: 0 | AX10: 0 | AY10: 0 | AZ10: 0 | BA10: 0 | BB10: 0 | BC10: 0 | BD10: 0 | BE10: 0 | BF10: 1 | BG10: 2 | BH10: 4 | BI10: 0 | BJ10: 2 | BK10: 0 | BL10: 0 | BM10: 0 | BN10: 0 | BO10: 0 | BP10: 0 | BQ10: 0 | BR10: 0 | BS10: 0 | BT10: 0 | BU10: 41.7 | BV10: - | BW10: 31.4 | BX10: 51 | BY10: Mon | BZ10: 115 | CA10: 0 | CB10: 11 | CC10: 0 | CD10: 0 | CE10: 0 | CF10: 0 | CG10: 0 | CH10: 0 | CI10: 0 | CJ10: 0 | CK10: 0 | CL10: 0 | CM10: 0 | CN10: 0 | CO10: 0 | CP10: 0 | CQ10: 0 | CR10: 2 | CS10: 2 | CT10: 4 | CU10: 0 | CV10: 2 | CW10: 0 | CX10: 1 | CY10: 0 | CZ10: 0 | DA10: 0 | DB10: 0 | DC10: 0 | DD10: 0 | DE10: 0 | DF10: 0 | DG10: 42.59090909 | DH10: - | DI10: 30 | DJ10: 63.2 | DK10: 0 | DL10: 2 | DM10: 0 | DN10: 0 | DO10: 0 | DP10: 2 | DQ10: 0 | DR10: 9 | DS10: 0 | DT10: 0 | DU10: 0 | DV10: 9 | DW10: 0 | DX10: 11 | DY10: 0 | DZ10: 0 | EA10: 0 | EB10: 11 | EC10: 2 | ED10: 3 | EE10: 3 | EF10: 2 | EG10: 3 | EH10: 7 | EI10: 15 | EJ10: 9 | EK10: 2 | EL10: 2 | EM10: 7 | EN10: 5 | EO10: 7 | EP10: 12 | EQ10: 11 | ER10: 5 | ES10: 5 | ET10: 9 | EU10: 8 | EV10: 14 | EW10: 27 | EX10: 2.6 | EY10: 5 | FE10: 5 | FF10: 6.285714286 | FL10: 7.6 | FM10: 11.28571429 | FN10: 2 | FO10: 3 | FP10: 3 | FQ10: 2 | FR10: 3 | FS10: 7 | FT10: 15 | FU10: 9 | FV10: 2 | FW10: 2 | FX10: 7 | FY10: 5 | FZ10: 7 | GA10: 12 | GB10: 11 | GC10: 5 | GD10: 5 | GE10: 9 | GF10: 8 | GG10: 14 | GH10: 27
A11: Mon | B11: 130 | C11: 0 | D11: 2 | E11: 0 | F11: 1 | G11: 0 | H11: 0 | I11: 0 | J11: 0 | K11: 0 | L11: 0 | M11: 0 | N11: 0 | O11: 0 | P11: 0 | Q11: 0 | R11: 0 | S11: 1 | T11: 0 | U11: 0 | V11: 1 | W11: 0 | X11: 0 | Y11: 0 | Z11: 1 | AA11: 0 | AB11: 0 | AC11: 0 | AD11: 0 | AE11: 0 | AF11: 0 | AG11: 0 | AH11: 0 | AI11: 45.5 | AJ11: - | AK11: 29 | AL11: 63.1 | AM11: Mon | AN11: 130 | AO11: 0 | AP11: 3 | AQ11: 0 | AR11: 0 | AS11: 0 | AT11: 0 | AU11: 0 | AV11: 0 | AW11: 0 | AX11: 0 | AY11: 0 | AZ11: 0 | BA11: 0 | BB11: 0 | BC11: 0 | BD11: 0 | BE11: 0 | BF11: 0 | BG11: 2 | BH11: 1 | BI11: 0 | BJ11: 0 | BK11: 0 | BL11: 0 | BM11: 0 | BN11: 0 | BO11: 0 | BP11: 0 | BQ11: 0 | BR11: 0 | BS11: 0 | BT11: 0 | BU11: 37.8 | BV11: - | BW11: 35.9 | BX11: 41 | BY11: Mon | BZ11: 130 | CA11: 0 | CB11: 5 | CC11: 0 | CD11: 1 | CE11: 0 | CF11: 0 | CG11: 0 | CH11: 0 | CI11: 0 | CJ11: 0 | CK11: 0 | CL11: 0 | CM11: 0 | CN11: 0 | CO11: 0 | CP11: 0 | CQ11: 1 | CR11: 0 | CS11: 2 | CT11: 2 | CU11: 0 | CV11: 0 | CW11: 0 | CX11: 1 | CY11: 0 | CZ11: 0 | DA11: 0 | DB11: 0 | DC11: 0 | DD11: 0 | DE11: 0 | DF11: 0 | DG11: 41.65 | DH11: - | DI11: 29 | DJ11: 63.1 | DK11: 0 | DL11: 2 | DM11: 1 | DN11: 0 | DO11: 0 | DP11: 3 | DQ11: 0 | DR11: 3 | DS11: 0 | DT11: 0 | DU11: 0 | DV11: 3 | DW11: 0 | DX11: 5 | DY11: 1 | DZ11: 0 | EA11: 0 | EB11: 6 | EC11: 3 | ED11: 1 | EE11: 1 | EF11: 5 | EG11: 2 | EH11: 2 | EI11: 6 | EJ11: 3 | EK11: 3 | EL11: 2 | EM11: 3 | EN11: 1 | EO11: 5 | EP11: 8 | EQ11: 6 | ER11: 4 | ES11: 3 | ET11: 8 | EU11: 3 | EV11: 7 | EW11: 14 | EX11: 2.4 | EY11: 2.857142857 | FE11: 2.4 | FF11: 3.571428571 | FL11: 4.8 | FM11: 6.428571429 | FN11: 3 | FO11: 1 | FP11: 1 | FQ11: 5 | FR11: 2 | FS11: 2 | FT11: 6 | FU11: 3 | FV11: 3 | FW11: 2 | FX11: 3 | FY11: 1 | FZ11: 5 | GA11: 8 | GB11: 6 | GC11: 4 | GD11: 3 | GE11: 8 | GF11: 3 | GG11: 7 | GH11: 14
A12: Mon | B12: 145 | C12: 0 | D12: 2 | E12: 0 | F12: 0 | G12: 0 | H12: 0 | I12: 0 | J12: 0 | K12: 0 | L12: 0 | M12: 0 | N12: 0 | O12: 0 | P12: 0 | Q12: 0 | R12: 0 | S12: 1 | T12: 0 | U12: 1 | V12: 0 | W12: 0 | X12: 0 | Y12: 0 | Z12: 0 | AA12: 0 | AB12: 0 | AC12: 0 | AD12: 0 | AE12: 0 | AF12: 0 | AG12: 0 | AH12: 0 | AI12: 30.3 | AJ12: - | AK12: 25.1 | AL12: 35.5 | AM12: Mon | AN12: 145 | AO12: 0 | AP12: 6 | AQ12: 0 | AR12: 0 | AS12: 0 | AT12: 0 | AU12: 0 | AV12: 0 | AW12: 0 | AX12: 0 | AY12: 0 | AZ12: 0 | BA12: 0 | BB12: 0 | BC12: 0 | BD12: 0 | BE12: 0 | BF12: 1 | BG12: 0 | BH12: 2 | BI12: 1 | BJ12: 2 | BK12: 0 | BL12: 0 | BM12: 0 | BN12: 0 | BO12: 0 | BP12: 0 | BQ12: 0 | BR12: 0 | BS12: 0 | BT12: 0 | BU12: 45.3 | BV12: - | BW12: 34.7 | BX12: 54 | BY12: Mon | BZ12: 145 | CA12: 0 | CB12: 8 | CC12: 0 | CD12: 0 | CE12: 0 | CF12: 0 | CG12: 0 | CH12: 0 | CI12: 0 | CJ12: 0 | CK12: 0 | CL12: 0 | CM12: 0 | CN12: 0 | CO12: 0 | CP12: 0 | CQ12: 1 | CR12: 1 | CS12: 1 | CT12: 2 | CU12: 1 | CV12: 2 | CW12: 0 | CX12: 0 | CY12: 0 | CZ12: 0 | DA12: 0 | DB12: 0 | DC12: 0 | DD12: 0 | DE12: 0 | DF12: 0 | DG12: 41.55 | DH12: - | DI12: 25.1 | DJ12: 54 | DK12: 0 | DL12: 2 | DM12: 0 | DN12: 0 | DO12: 0 | DP12: 2 | DQ12: 0 | DR12: 6 | DS12: 0 | DT12: 0 | DU12: 0 | DV12: 6 | DW12: 0 | DX12: 8 | DY12: 0 | DZ12: 0 | EA12: 0 | EB12: 8 | EC12: 2 | ED12: 5 | EE12: 2 | EF12: 6 | EG12: 0 | EH12: 4 | EI12: 3 | EJ12: 6 | EK12: 6 | EL12: 2 | EM12: 4 | EN12: 8 | EO12: 11 | EP12: 5 | EQ12: 8 | ER12: 11 | ES12: 4 | ET12: 10 | EU12: 8 | EV12: 15 | EW12: 8 | EX12: 3 | EY12: 3.142857143 | FE12: 5.2 | FF12: 6 | FL12: 8.2 | FM12: 9.142857143 | FN12: 2 | FO12: 5 | FP12: 2 | FQ12: 6 | FR12: 0 | FS12: 4 | FT12: 3 | FU12: 6 | FV12: 6 | FW12: 2 | FX12: 4 | FY12: 8 | FZ12: 11 | GA12: 5 | GB12: 8 | GC12: 11 | GD12: 4 | GE12: 10 | GF12: 8 | GG12: 15 | GH12: 8
A13: Mon | B13: 200 | C13: 0 | D13: 1 | E13: 0 | F13: 0 | G13: 0 | H13: 0 | I13: 0 | J13: 0 | K13: 0 | L13: 0 | M13: 0 | N13: 0 | O13: 0 | P13: 0 | Q13: 0 | R13: 0 | S13: 0 | T13: 0 | U13: 0 | V13: 1 | W13: 0 | X13: 0 | Y13: 0 | Z13: 0 | AA13: 0 | AB13: 0 | AC13: 0 | AD13: 0 | AE13: 0 | AF13: 0 | AG13: 0 | AH13: 0 | AI13: 42.6 | AJ13: - | AK13: 42.6 | AL13: 42.6 | AM13: Mon | AN13: 200 | AO13: 0 | AP13: 5 | AQ13: 0 | AR13: 0 | AS13: 0 | AT13: 0 | AU13: 0 | AV13: 0 | AW13: 0 | AX13: 0 | AY13: 0 | AZ13: 0 | BA13: 0 | BB13: 0 | BC13: 0 | BD13: 0 | BE13: 0 | BF13: 0 | BG13: 1 | BH13: 1 | BI13: 0 | BJ13: 0 | BK13: 2 | BL13: 1 | BM13: 0 | BN13: 0 | BO13: 0 | BP13: 0 | BQ13: 0 | BR13: 0 | BS13: 0 | BT13: 0 | BU13: 52.6 | BV13: - | BW13: 39.2 | BX13: 62.8 | BY13: Mon | BZ13: 200 | CA13: 0 | CB13: 6 | CC13: 0 | CD13: 0 | CE13: 0 | CF13: 0 | CG13: 0 | CH13: 0 | CI13: 0 | CJ13: 0 | CK13: 0 | CL13: 0 | CM13: 0 | CN13: 0 | CO13: 0 | CP13: 0 | CQ13: 0 | CR13: 0 | CS13: 1 | CT13: 2 | CU13: 0 | CV13: 0 | CW13: 2 | CX13: 1 | CY13: 0 | CZ13: 0 | DA13: 0 | DB13: 0 | DC13: 0 | DD13: 0 | DE13: 0 | DF13: 0 | DG13: 50.93333333 | DH13: - | DI13: 39.2 | DJ13: 62.8 | DK13: 0 | DL13: 1 | DM13: 0 | DN13: 0 | DO13: 0 | DP13: 1 | DQ13: 0 | DR13: 5 | DS13: 0 | DT13: 0 | DU13: 0 | DV13: 5 | DW13: 0 | DX13: 6 | DY13: 0 | DZ13: 0 | EA13: 0 | EB13: 6 | EC13: 1 | ED13: 5 | EE13: 0 | EF13: 5 | EG13: 8 | EH13: 6 | EI13: 4 | EJ13: 5 | EK13: 8 | EL13: 2 | EM13: 1 | EN13: 3 | EO13: 10 | EP13: 4 | EQ13: 6 | ER13: 13 | ES13: 2 | ET13: 6 | EU13: 11 | EV13: 16 | EW13: 8 | EX13: 3.8 | EY13: 4.142857143 | FE13: 3.8 | FF13: 4.714285714 | FL13: 7.6 | FM13: 8.857142857 | FN13: 1 | FO13: 5 | FP13: 0 | FQ13: 5 | FR13: 8 | FS13: 6 | FT13: 4 | FU13: 5 | FV13: 8 | FW13: 2 | FX13: 1 | FY13: 3 | FZ13: 10 | GA13: 4 | GB13: 6 | GC13: 13 | GD13: 2 | GE13: 6 | GF13: 11 | GG13: 16 | GH13: 8
A14: Mon | B14: 215 | C14: 0 | D14: 7 | E14: 0 | F14: 0 | G14: 0 | H14: 0 | I14: 0 | J14: 0 | K14: 0 | L14: 0 | M14: 0 | N14: 0 | O14: 0 | P14: 0 | Q14: 0 | R14: 0 | S14: 0 | T14: 2 | U14: 1 | V14: 1 | W14: 3 | X14: 0 | Y14: 0 | Z14: 0 | AA14: 0 | AB14: 0 | AC14: 0 | AD14: 0 | AE14: 0 | AF14: 0 | AG14: 0 | AH14: 0 | AI14: 40.7 | AJ14: - | AK14: 31.5 | AL14: 49.6 | AM14: Mon | AN14: 215 | AO14: 0 | AP14: 1 | AQ14: 0 | AR14: 0 | AS14: 0 | AT14: 0 | AU14: 0 | AV14: 0 | AW14: 0 | AX14: 0 | AY14: 0 | AZ14: 0 | BA14: 0 | BB14: 0 | BC14: 0 | BD14: 0 | BE14: 0 | BF14: 1 | BG14: 0 | BH14: 0 | BI14: 0 | BJ14: 0 | BK14: 0 | BL14: 0 | BM14: 0 | BN14: 0 | BO14: 0 | BP14: 0 | BQ14: 0 | BR14: 0 | BS14: 0 | BT14: 0 | BU14: 32.2 | BV14: - | BW14: 32.2 | BX14: 32.2 | BY14: Mon | BZ14: 215 | CA14: 0 | CB14: 8 | CC14: 0 | CD14: 0 | CE14: 0 | CF14: 0 | CG14: 0 | CH14: 0 | CI14: 0 | CJ14: 0 | CK14: 0 | CL14: 0 | CM14: 0 | CN14: 0 | CO14: 0 | CP14: 0 | CQ14: 0 | CR14: 3 | CS14: 1 | CT14: 1 | CU14: 3 | CV14: 0 | CW14: 0 | CX14: 0 | CY14: 0 | CZ14: 0 | DA14: 0 | DB14: 0 | DC14: 0 | DD14: 0 | DE14: 0 | DF14: 0 | DG14: 39.6375 | DH14: - | DI14: 31.5 | DJ14: 49.6 | DK14: 0 | DL14: 7 | DM14: 0 | DN14: 0 | DO14: 0 | DP14: 7 | DQ14: 0 | DR14: 1 | DS14: 0 | DT14: 0 | DU14: 0 | DV14: 1 | DW14: 0 | DX14: 8 | DY14: 0 | DZ14: 0 | EA14: 0 | EB14: 8 | EC14: 7 | ED14: 4 | EE14: 6 | EF14: 4 | EG14: 3 | EH14: 7 | EI14: 7 | EJ14: 1 | EK14: 3 | EL14: 5 | EM14: 5 | EN14: 3 | EO14: 4 | EP14: 6 | EQ14: 8 | ER14: 7 | ES14: 11 | ET14: 9 | EU14: 6 | EV14: 11 | EW14: 13 | EX14: 4.8 | EY14: 5.428571429 | FE14: 3.4 | FF14: 3.857142857 | FL14: 8.2 | FM14: 9.285714286 | FN14: 7 | FO14: 4 | FP14: 6 | FQ14: 4 | FR14: 3 | FS14: 7 | FT14: 7 | FU14: 1 | FV14: 3 | FW14: 5 | FX14: 5 | FY14: 3 | FZ14: 4 | GA14: 6 | GB14: 8 | GC14: 7 | GD14: 11 | GE14: 9 | GF14: 6 | GG14: 11 | GH14: 13
A15: Mon | B15: 230 | C15: 0 | D15: 6 | E15: 0 | F15: 0 | G15: 0 | H15: 0 | I15: 0 | J15: 0 | K15: 0 | L15: 0 | M15: 0 | N15: 0 | O15: 0 | P15: 0 | Q15: 0 | R15: 0 | S15: 3 | T15: 0 | U15: 0 | V15: 2 | W15: 0 | X15: 1 | Y15: 0 | Z15: 0 | AA15: 0 | AB15: 0 | AC15: 0 | AD15: 0 | AE15: 0 | AF15: 0 | AG15: 0 | AH15: 0 | AI15: 37.3 | AJ15: - | AK15: 25.7 | AL15: 53.2 | AM15: Mon | AN15: 230 | AO15: 0 | AP15: 6 | AQ15: 0 | AR15: 0 | AS15: 0 | AT15: 0 | AU15: 0 | AV15: 0 | AW15: 0 | AX15: 0 | AY15: 0 | AZ15: 0 | BA15: 0 | BB15: 0 | BC15: 0 | BD15: 1 | BE15: 0 | BF15: 1 | BG15: 0 | BH15: 0 | BI15: 2 | BJ15: 2 | BK15: 0 | BL15: 0 | BM15: 0 | BN15: 0 | BO15: 0 | BP15: 0 | BQ15: 0 | BR15: 0 | BS15: 0 | BT15: 0 | BU15: 43.6 | BV15: - | BW15: 23 | BX15: 54.5 | BY15: Mon | BZ15: 230 | CA15: 0 | CB15: 12 | CC15: 0 | CD15: 0 | CE15: 0 | CF15: 0 | CG15: 0 | CH15: 0 | CI15: 0 | CJ15: 0 | CK15: 0 | CL15: 0 | CM15: 0 | CN15: 0 | CO15: 0 | CP15: 1 | CQ15: 3 | CR15: 1 | CS15: 0 | CT15: 2 | CU15: 2 | CV15: 3 | CW15: 0 | CX15: 0 | CY15: 0 | CZ15: 0 | DA15: 0 | DB15: 0 | DC15: 0 | DD15: 0 | DE15: 0 | DF15: 0 | DG15: 40.45 | DH15: - | DI15: 23 | DJ15: 54.5 | DK15: 0 | DL15: 6 | DM15: 0 | DN15: 0 | DO15: 0 | DP15: 6 | DQ15: 0 | DR15: 6 | DS15: 0 | DT15: 0 | DU15: 0 | DV15: 6 | DW15: 0 | DX15: 12 | DY15: 0 | DZ15: 0 | EA15: 0 | EB15: 12 | EC15: 6 | ED15: 10 | EE15: 3 | EF15: 4 | EG15: 6 | EH15: 14 | EI15: 10 | EJ15: 6 | EK15: 2 | EL15: 2 | EM15: 6 | EN15: 1 | EO15: 2 | EP15: 4 | EQ15: 12 | ER15: 12 | ES15: 5 | ET15: 10 | EU15: 7 | EV15: 16 | EW15: 14 | EX15: 5.8 | EY15: 7.571428571 | FE15: 3.4 | FF15: 3.285714286 | FL15: 9.2 | FM15: 10.85714286 | FN15: 6 | FO15: 10 | FP15: 3 | FQ15: 4 | FR15: 6 | FS15: 14 | FT15: 10 | FU15: 6 | FV15: 2 | FW15: 2 | FX15: 6 | FY15: 1 | FZ15: 2 | GA15: 4 | GB15: 12 | GC15: 12 | GD15: 5 | GE15: 10 | GF15: 7 | GG15: 16 | GH15: 14
A16: Mon | B16: 245 | C16: 0 | D16: 5 | E16: 0 | F16: 0 | G16: 0 | H16: 0 | I16: 0 | J16: 0 | K16: 0 | L16: 0 | M16: 0 | N16: 0 | O16: 0 | P16: 0 | Q16: 0 | R16: 0 | S16: 0 | T16: 0 | U16: 1 | V16: 2 | W16: 1 | X16: 1 | Y16: 0 | Z16: 0 | AA16: 0 | AB16: 0 | AC16: 0 | AD16: 0 | AE16: 0 | AF16: 0 | AG16: 0 | AH16: 0 | AI16: 44.6 | AJ16: - | AK16: 39.8 | AL16: 51.2 | AM16: Mon | AN16: 245 | AO16: 0 | AP16: 2 | AQ16: 0 | AR16: 1 | AS16: 0 | AT16: 0 | AU16: 0 | AV16: 0 | AW16: 0 | AX16: 0 | AY16: 0 | AZ16: 0 | BA16: 0 | BB16: 0 | BC16: 0 | BD16: 0 | BE16: 0 | BF16: 0 | BG16: 0 | BH16: 1 | BI16: 1 | BJ16: 0 | BK16: 1 | BL16: 0 | BM16: 0 | BN16: 0 | BO16: 0 | BP16: 0 | BQ16: 0 | BR16: 0 | BS16: 0 | BT16: 0 | BU16: 49.6 | BV16: - | BW16: 41.2 | BX16: 59.3 | BY16: Mon | BZ16: 245 | CA16: 0 | CB16: 7 | CC16: 0 | CD16: 1 | CE16: 0 | CF16: 0 | CG16: 0 | CH16: 0 | CI16: 0 | CJ16: 0 | CK16: 0 | CL16: 0 | CM16: 0 | CN16: 0 | CO16: 0 | CP16: 0 | CQ16: 0 | CR16: 0 | CS16: 1 | CT16: 3 | CU16: 2 | CV16: 1 | CW16: 1 | CX16: 0 | CY16: 0 | CZ16: 0 | DA16: 0 | DB16: 0 | DC16: 0 | DD16: 0 | DE16: 0 | DF16: 0 | DG16: 46.475 | DH16: - | DI16: 39.8 | DJ16: 59.3 | DK16: 0 | DL16: 5 | DM16: 0 | DN16: 0 | DO16: 0 | DP16: 5 | DQ16: 0 | DR16: 2 | DS16: 1 | DT16: 0 | DU16: 0 | DV16: 3 | DW16: 0 | DX16: 7 | DY16: 1 | DZ16: 0 | EA16: 0 | EB16: 8 | EC16: 5 | ED16: 4 | EE16: 3 | EF16: 1 | EG16: 3 | EH16: 3 | EI16: 3 | EJ16: 3 | EK16: 0 | EL16: 1 | EM16: 4 | EN16: 6 | EO16: 3 | EP16: 0 | EQ16: 8 | ER16: 4 | ES16: 4 | ET16: 5 | EU16: 9 | EV16: 6 | EW16: 3 | EX16: 3.2 | EY16: 3.142857143 | FE16: 2.8 | FF16: 2.428571429 | FL16: 6 | FM16: 5.571428571 | FN16: 5 | FO16: 4 | FP16: 3 | FQ16: 1 | FR16: 3 | FS16: 3 | FT16: 3 | FU16: 3 | FV16: 0 | FW16: 1 | FX16: 4 | FY16: 6 | FZ16: 3 | GA16: 0 | GB16: 8 | GC16: 4 | GD16: 4 | GE16: 5 | GF16: 9 | GG16: 6 | GH16: 3
A17: Mon | B17: 300 | C17: 0 | D17: 2 | E17: 0 | F17: 0 | G17: 0 | H17: 0 | I17: 0 | J17: 0 | K17: 0 | L17: 0 | M17: 0 | N17: 0 | O17: 0 | P17: 0 | Q17: 0 | R17: 0 | S17: 0 | T17: 0 | U17: 1 | V17: 0 | W17: 0 | X17: 0 | Y17: 1 | Z17: 0 | AA17: 0 | AB17: 0 | AC17: 0 | AD17: 0 | AE17: 0 | AF17: 0 | AG17: 0 | AH17: 0 | AI17: 47.1 | AJ17: - | AK17: 39 | AL17: 55.2 | AM17: Mon | AN17: 300 | AO17: 0 | AP17: 13 | AQ17: 0 | AR17: 0 | AS17: 0 | AT17: 0 | AU17: 0 | AV17: 0 | AW17: 0 | AX17: 0 | AY17: 0 | AZ17: 0 | BA17: 0 | BB17: 0 | BC17: 0 | BD17: 0 | BE17: 1 | BF17: 1 | BG17: 4 | BH17: 4 | BI17: 2 | BJ17: 1 | BK17: 0 | BL17: 0 | BM17: 0 | BN17: 0 | BO17: 0 | BP17: 0 | BQ17: 0 | BR17: 0 | BS17: 0 | BT17: 0 | BU17: 41.3 | BV17: 46.3 | BW17: 29.8 | BX17: 54.3 | BY17: Mon | BZ17: 300 | CA17: 0 | CB17: 15 | CC17: 0 | CD17: 0 | CE17: 0 | CF17: 0 | CG17: 0 | CH17: 0 | CI17: 0 | CJ17: 0 | CK17: 0 | CL17: 0 | CM17: 0 | CN17: 0 | CO17: 0 | CP17: 0 | CQ17: 1 | CR17: 1 | CS17: 5 | CT17: 4 | CU17: 2 | CV17: 1 | CW17: 1 | CX17: 0 | CY17: 0 | CZ17: 0 | DA17: 0 | DB17: 0 | DC17: 0 | DD17: 0 | DE17: 0 | DF17: 0 | DG17: 42.07333333 | DH17: 46.3 | DI17: 29.8 | DJ17: 55.2 | DK17: 0 | DL17: 2 | DM17: 0 | DN17: 0 | DO17: 0 | DP17: 2 | DQ17: 0 | DR17: 13 | DS17: 0 | DT17: 0 | DU17: 0 | DV17: 13 | DW17: 0 | DX17: 15 | DY17: 0 | DZ17: 0 | EA17: 0 | EB17: 15 | EC17: 2 | ED17: 5 | EE17: 5 | EF17: 6 | EG17: 2 | EH17: 7 | EI17: 2 | EJ17: 13 | EK17: 1 | EL17: 3 | EM17: 3 | EN17: 3 | EO17: 3 | EP17: 1 | EQ17: 15 | ER17: 6 | ES17: 8 | ET17: 9 | EU17: 5 | EV17: 10 | EW17: 3 | EX17: 4 | EY17: 4.142857143 | FE17: 4.6 | FF17: 3.857142857 | FL17: 8.6 | FM17: 8 | FN17: 2 | FO17: 5 | FP17: 5 | FQ17: 6 | FR17: 2 | FS17: 7 | FT17: 2 | FU17: 13 | FV17: 1 | FW17: 3 | FX17: 3 | FY17: 3 | FZ17: 3 | GA17: 1 | GB17: 15 | GC17: 6 | GD17: 8 | GE17: 9 | GF17: 5 | GG17: 10 | GH17: 3
A18: Mon | B18: 315 | C18: 0 | D18: 9 | E18: 0 | F18: 0 | G18: 0 | H18: 0 | I18: 0 | J18: 0 | K18: 0 | L18: 0 | M18: 0 | N18: 0 | O18: 0 | P18: 0 | Q18: 0 | R18: 0 | S18: 0 | T18: 2 | U18: 3 | V18: 2 | W18: 1 | X18: 1 | Y18: 0 | Z18: 0 | AA18: 0 | AB18: 0 | AC18: 0 | AD18: 0 | AE18: 0 | AF18: 0 | AG18: 0 | AH18: 0 | AI18: 40.8 | AJ18: - | AK18: 34.4 | AL18: 53.6 | AM18: Mon | AN18: 315 | AO18: 0 | AP18: 9 | AQ18: 0 | AR18: 0 | AS18: 0 | AT18: 0 | AU18: 0 | AV18: 0 | AW18: 0 | AX18: 0 | AY18: 0 | AZ18: 0 | BA18: 0 | BB18: 0 | BC18: 0 | BD18: 1 | BE18: 2 | BF18: 1 | BG18: 1 | BH18: 4 | BI18: 0 | BJ18: 0 | BK18: 0 | BL18: 0 | BM18: 0 | BN18: 0 | BO18: 0 | BP18: 0 | BQ18: 0 | BR18: 0 | BS18: 0 | BT18: 0 | BU18: 35.8 | BV18: - | BW18: 24.9 | BX18: 42.8 | BY18: Mon | BZ18: 315 | CA18: 0 | CB18: 18 | CC18: 0 | CD18: 0 | CE18: 0 | CF18: 0 | CG18: 0 | CH18: 0 | CI18: 0 | CJ18: 0 | CK18: 0 | CL18: 0 | CM18: 0 | CN18: 0 | CO18: 0 | CP18: 1 | CQ18: 2 | CR18: 3 | CS18: 4 | CT18: 6 | CU18: 1 | CV18: 1 | CW18: 0 | CX18: 0 | CY18: 0 | CZ18: 0 | DA18: 0 | DB18: 0 | DC18: 0 | DD18: 0 | DE18: 0 | DF18: 0 | DG18: 38.3 | DH18: - | DI18: 24.9 | DJ18: 53.6 | DK18: 0 | DL18: 9 | DM18: 0 | DN18: 0 | DO18: 0 | DP18: 9 | DQ18: 0 | DR18: 9 | DS18: 0 | DT18: 0 | DU18: 0 | DV18: 9 | DW18: 0 | DX18: 18 | DY18: 0 | DZ18: 0 | EA18: 0 | EB18: 18 | EC18: 9 | ED18: 6 | EE18: 2 | EF18: 9 | EG18: 7 | EH18: 8 | EI18: 6 | EJ18: 9 | EK18: 7 | EL18: 1 | EM18: 6 | EN18: 3 | EO18: 9 | EP18: 4 | EQ18: 18 | ER18: 13 | ES18: 3 | ET18: 15 | EU18: 10 | EV18: 17 | EW18: 10 | EX18: 6.6 | EY18: 6.714285714 | FE18: 5.2 | FF18: 5.571428571 | FL18: 11.8 | FM18: 12.28571429 | FN18: 9 | FO18: 6 | FP18: 2 | FQ18: 9 | FR18: 7 | FS18: 8 | FT18: 6 | FU18: 9 | FV18: 7 | FW18: 1 | FX18: 6 | FY18: 3 | FZ18: 9 | GA18: 4 | GB18: 18 | GC18: 13 | GD18: 3 | GE18: 15 | GF18: 10 | GG18: 17 | GH18: 10
A19: Mon | B19: 330 | C19: 0 | D19: 6 | E19: 0 | F19: 1 | G19: 0 | H19: 0 | I19: 0 | J19: 0 | K19: 0 | L19: 0 | M19: 0 | N19: 0 | O19: 0 | P19: 0 | Q19: 0 | R19: 1 | S19: 1 | T19: 1 | U19: 2 | V19: 1 | W19: 1 | X19: 0 | Y19: 0 | Z19: 0 | AA19: 0 | AB19: 0 | AC19: 0 | AD19: 0 | AE19: 0 | AF19: 0 | AG19: 0 | AH19: 0 | AI19: 35.6 | AJ19: - | AK19: 24.9 | AL19: 46.1 | AM19: Mon | AN19: 330 | AO19: 0 | AP19: 1 | AQ19: 0 | AR19: 0 | AS19: 0 | AT19: 0 | AU19: 0 | AV19: 0 | AW19: 0 | AX19: 0 | AY19: 0 | AZ19: 0 | BA19: 0 | BB19: 0 | BC19: 0 | BD19: 0 | BE19: 0 | BF19: 1 | BG19: 0 | BH19: 0 | BI19: 0 | BJ19: 0 | BK19: 0 | BL19: 0 | BM19: 0 | BN19: 0 | BO19: 0 | BP19: 0 | BQ19: 0 | BR19: 0 | BS19: 0 | BT19: 0 | BU19: 31.6 | BV19: - | BW19: 31.6 | BX19: 31.6 | BY19: Mon | BZ19: 330 | CA19: 0 | CB19: 7 | CC19: 0 | CD19: 1 | CE19: 0 | CF19: 0 | CG19: 0 | CH19: 0 | CI19: 0 | CJ19: 0 | CK19: 0 | CL19: 0 | CM19: 0 | CN19: 0 | CO19: 0 | CP19: 1 | CQ19: 1 | CR19: 2 | CS19: 2 | CT19: 1 | CU19: 1 | CV19: 0 | CW19: 0 | CX19: 0 | CY19: 0 | CZ19: 0 | DA19: 0 | DB19: 0 | DC19: 0 | DD19: 0 | DE19: 0 | DF19: 0 | DG19: 35.1 | DH19: - | DI19: 24.9 | DJ19: 46.1 | DK19: 0 | DL19: 6 | DM19: 1 | DN19: 0 | DO19: 0 | DP19: 7 | DQ19: 0 | DR19: 1 | DS19: 0 | DT19: 0 | DU19: 0 | DV19: 1 | DW19: 0 | DX19: 7 | DY19: 1 | DZ19: 0 | EA19: 0 | EB19: 8 | EC19: 7 | ED19: 11 | EE19: 4 | EF19: 8 | EG19: 3 | EH19: 7 | EI19: 6 | EJ19: 1 | EK19: 4 | EL19: 3 | EM19: 3 | EN19: 1 | EO19: 8 | EP19: 9 | EQ19: 8 | ER19: 15 | ES19: 7 | ET19: 11 | EU19: 4 | EV19: 15 | EW19: 15 | EX19: 6.6 | EY19: 6.571428571 | FE19: 2.4 | FF19: 4.142857143 | FL19: 9 | FM19: 10.71428571 | FN19: 7 | FO19: 11 | FP19: 4 | FQ19: 8 | FR19: 3 | FS19: 7 | FT19: 6 | FU19: 1 | FV19: 4 | FW19: 3 | FX19: 3 | FY19: 1 | FZ19: 8 | GA19: 9 | GB19: 8 | GC19: 15 | GD19: 7 | GE19: 11 | GF19: 4 | GG19: 15 | GH19: 15
A20: Mon | B20: 345 | C20: 0 | D20: 9 | E20: 0 | F20: 0 | G20: 0 | H20: 0 | I20: 0 | J20: 0 | K20: 0 | L20: 0 | M20: 0 | N20: 0 | O20: 0 | P20: 0 | Q20: 0 | R20: 0 | S20: 0 | T20: 2 | U20: 2 | V20: 3 | W20: 2 | X20: 0 | Y20: 0 | Z20: 0 | AA20: 0 | AB20: 0 | AC20: 0 | AD20: 0 | AE20: 0 | AF20: 0 | AG20: 0 | AH20: 0 | AI20: 40.5 | AJ20: - | AK20: 32.2 | AL20: 49.6 | AM20: Mon | AN20: 345 | AO20: 0 | AP20: 3 | AQ20: 0 | AR20: 1 | AS20: 0 | AT20: 0 | AU20: 0 | AV20: 0 | AW20: 0 | AX20: 0 | AY20: 0 | AZ20: 0 | BA20: 0 | BB20: 0 | BC20: 0 | BD20: 0 | BE20: 1 | BF20: 0 | BG20: 1 | BH20: 0 | BI20: 1 | BJ20: 1 | BK20: 0 | BL20: 0 | BM20: 0 | BN20: 0 | BO20: 0 | BP20: 0 | BQ20: 0 | BR20: 0 | BS20: 0 | BT20: 0 | BU20: 40.5 | BV20: - | BW20: 25.6 | BX20: 53 | BY20: Mon | BZ20: 345 | CA20: 0 | CB20: 12 | CC20: 0 | CD20: 1 | CE20: 0 | CF20: 0 | CG20: 0 | CH20: 0 | CI20: 0 | CJ20: 0 | CK20: 0 | CL20: 0 | CM20: 0 | CN20: 0 | CO20: 0 | CP20: 0 | CQ20: 1 | CR20: 2 | CS20: 3 | CT20: 3 | CU20: 3 | CV20: 1 | CW20: 0 | CX20: 0 | CY20: 0 | CZ20: 0 | DA20: 0 | DB20: 0 | DC20: 0 | DD20: 0 | DE20: 0 | DF20: 0 | DG20: 40.5 | DH20: - | DI20: 25.6 | DJ20: 53 | DK20: 0 | DL20: 9 | DM20: 0 | DN20: 0 | DO20: 0 | DP20: 9 | DQ20: 0 | DR20: 3 | DS20: 1 | DT20: 0 | DU20: 0 | DV20: 4 | DW20: 0 | DX20: 12 | DY20: 1 | DZ20: 0 | EA20: 0 | EB20: 13 | EC20: 9 | ED20: 10 | EE20: 3 | EF20: 5 | EG20: 7 | EH20: 8 | EI20: 3 | EJ20: 4 | EK20: 14 | EL20: 3 | EM20: 5 | EN20: 3 | EO20: 3 | EP20: 9 | EQ20: 13 | ER20: 24 | ES20: 6 | ET20: 10 | EU20: 10 | EV20: 11 | EW20: 12 | EX20: 6.8 | EY20: 6.428571429 | FE20: 5.8 | FF20: 5.857142857 | FL20: 12.6 | FM20: 12.28571429 | FN20: 9 | FO20: 10 | FP20: 3 | FQ20: 5 | FR20: 7 | FS20: 8 | FT20: 3 | FU20: 4 | FV20: 14 | FW20: 3 | FX20: 5 | FY20: 3 | FZ20: 3 | GA20: 9 | GB20: 13 | GC20: 24 | GD20: 6 | GE20: 10 | GF20: 10 | GG20: 11 | GH20: 12
A21: Mon | B21: 400 | C21: 0 | D21: 5 | E21: 0 | F21: 0 | G21: 0 | H21: 0 | I21: 0 | J21: 0 | K21: 0 | L21: 0 | M21: 0 | N21: 0 | O21: 0 | P21: 0 | Q21: 0 | R21: 0 | S21: 0 | T21: 2 | U21: 2 | V21: 0 | W21: 1 | X21: 0 | Y21: 0 | Z21: 0 | AA21: 0 | AB21: 0 | AC21: 0 | AD21: 0 | AE21: 0 | AF21: 0 | AG21: 0 | AH21: 0 | AI21: 37.9 | AJ21: - | AK21: 32.7 | AL21: 47.4 | AM21: Mon | AN21: 400 | AO21: 0 | AP21: 2 | AQ21: 0 | AR21: 0 | AS21: 0 | AT21: 0 | AU21: 0 | AV21: 0 | AW21: 1 | AX21: 0 | AY21: 0 | AZ21: 0 | BA21: 0 | BB21: 0 | BC21: 0 | BD21: 0 | BE21: 0 | BF21: 1 | BG21: 1 | BH21: 0 | BI21: 0 | BJ21: 0 | BK21: 0 | BL21: 1 | BM21: 0 | BN21: 0 | BO21: 0 | BP21: 0 | BQ21: 0 | BR21: 0 | BS21: 0 | BT21: 0 | BU21: 44.9 | BV21: - | BW21: 33.2 | BX21: 64.8 | BY21: Mon | BZ21: 400 | CA21: 0 | CB21: 7 | CC21: 0 | CD21: 0 | CE21: 0 | CF21: 0 | CG21: 0 | CH21: 0 | CI21: 1 | CJ21: 0 | CK21: 0 | CL21: 0 | CM21: 0 | CN21: 0 | CO21: 0 | CP21: 0 | CQ21: 0 | CR21: 3 | CS21: 3 | CT21: 0 | CU21: 1 | CV21: 0 | CW21: 0 | CX21: 1 | CY21: 0 | CZ21: 0 | DA21: 0 | DB21: 0 | DC21: 0 | DD21: 0 | DE21: 0 | DF21: 0 | DG21: 40.525 | DH21: - | DI21: 32.7 | DJ21: 64.8 | DK21: 0 | DL21: 5 | DM21: 0 | DN21: 0 | DO21: 0 | DP21: 5 | DQ21: 0 | DR21: 2 | DS21: 0 | DT21: 0 | DU21: 1 | DV21: 3 | DW21: 0 | DX21: 7 | DY21: 0 | DZ21: 0 | EA21: 1 | EB21: 8 | EC21: 5 | ED21: 9 | EE21: 3 | EF21: 8 | EG21: 4 | EH21: 6 | EI21: 6 | EJ21: 3 | EK21: 6 | EL21: 1 | EM21: 4 | EN21: 3 | EO21: 6 | EP21: 5 | EQ21: =SUM(EC21+EJ21) -> 8 | ER21: 15 | ES21: 4 | ET21: 12 | EU21: 7 | EV21: 12 | EW21: 11 | EX21: 5.8 | EY21: 5.857142857 | FE21: 3.4 | FF21: 4 | FL21: 9.2 | FM21: 9.857142857 | FN21: 5 | FO21: 9 | FP21: 3 | FQ21: 8 | FR21: 4 | FS21: 6 | FT21: 6 | FU21: 3 | FV21: 6 | FW21: 1 | FX21: 4 | FY21: 3 | FZ21: 6 | GA21: 5 | GB21: 8 | GC21: 15 | GD21: 4 | GE21: 12 | GF21: 7 | GG21: 12 | GH21: 11
A22: Mon | B22: 415 | C22: 0 | D22: 12 | E22: 0 | F22: 0 | G22: 0 | H22: 0 | I22: 0 | J22: 0 | K22: 0 | L22: 0 | M22: 0 | N22: 0 | O22: 0 | P22: 0 | Q22: 0 | R22: 0 | S22: 1 | T22: 2 | U22: 3 | V22: 3 | W22: 0 | X22: 2 | Y22: 1 | Z22: 0 | AA22: 0 | AB22: 0 | AC22: 0 | AD22: 0 | AE22: 0 | AF22: 0 | AG22: 0 | AH22: 0 | AI22: 40.7 | AJ22: 50.1 | AK22: 27.1 | AL22: 56.4 | AM22: Mon | AN22: 415 | AO22: 0 | AP22: 3 | AQ22: 0 | AR22: 0 | AS22: 0 | AT22: 0 | AU22: 0 | AV22: 0 | AW22: 0 | AX22: 0 | AY22: 0 | AZ22: 0 | BA22: 0 | BB22: 0 | BC22: 0 | BD22: 0 | BE22: 0 | BF22: 1 | BG22: 0 | BH22: 1 | BI22: 1 | BJ22: 0 | BK22: 0 | BL22: 0 | BM22: 0 | BN22: 0 | BO22: 0 | BP22: 0 | BQ22: 0 | BR22: 0 | BS22: 0 | BT22: 0 | BU22: 41.6 | BV22: - | BW22: 33.1 | BX22: 48.6 | BY22: Mon | BZ22: 415 | CA22: 0 | CB22: 15 | CC22: 0 | CD22: 0 | CE22: 0 | CF22: 0 | CG22: 0 | CH22: 0 | CI22: 0 | CJ22: 0 | CK22: 0 | CL22: 0 | CM22: 0 | CN22: 0 | CO22: 0 | CP22: 0 | CQ22: 1 | CR22: 3 | CS22: 3 | CT22: 4 | CU22: 1 | CV22: 2 | CW22: 1 | CX22: 0 | CY22: 0 | CZ22: 0 | DA22: 0 | DB22: 0 | DC22: 0 | DD22: 0 | DE22: 0 | DF22: 0 | DG22: 40.88 | DH22: 50.1 | DI22: 27.1 | DJ22: 56.4 | DK22: 0 | DL22: 12 | DM22: 0 | DN22: 0 | DO22: 0 | DP22: 12 | DQ22: 0 | DR22: 3 | DS22: 0 | DT22: 0 | DU22: 0 | DV22: 3 | DW22: 0 | DX22: 15 | DY22: 0 | DZ22: 0 | EA22: 0 | EB22: 15 | EC22: 12 | ED22: 7 | EE22: 7 | EF22: 8 | EG22: 2 | EH22: 6 | EI22: 11 | EJ22: 3 | EK22: 3 | EL22: 2 | EM22: 5 | EN22: 3 | EO22: 4 | EP22: 2 | EQ22: 15 | ER22: 10 | ES22: 9 | ET22: 13 | EU22: 5 | EV22: 10 | EW22: 13 | EX22: 7.2 | EY22: 7.571428571 | FE22: 3.2 | FF22: 3.142857143 | FL22: 10.4 | FM22: 10.71428571 | FN22: 12 | FO22: 7 | FP22: 7 | FQ22: 8 | FR22: 2 | FS22: 6 | FT22: 11 | FU22: 3 | FV22: 3 | FW22: 2 | FX22: 5 | FY22: 3 | FZ22: 4 | GA22: 2 | GB22: 15 | GC22: 10 | GD22: 9 | GE22: 13 | GF22: 5 | GG22: 10 | GH22: 13
A23: Mon | B23: 430 | C23: 0 | D23: 12 | E23: 0 | F23: 2 | G23: 0 | H23: 0 | I23: 0 | J23: 0 | K23: 0 | L23: 0 | M23: 0 | N23: 0 | O23: 0 | P23: 0 | Q23: 0 | R23: 1 | S23: 2 | T23: 2 | U23: 3 | V23: 1 | W23: 3 | X23: 2 | Y23: 0 | Z23: 0 | AA23: 0 | AB23: 0 | AC23: 0 | AD23: 0 | AE23: 0 | AF23: 0 | AG23: 0 | AH23: 0 | AI23: 38.6 | AJ23: 49.7 | AK23: 24.9 | AL23: 51.6 | AM23: Mon | AN23: 430 | AO23: 0 | AP23: 10 | AQ23: 0 | AR23: 1 | AS23: 0 | AT23: 0 | AU23: 0 | AV23: 0 | AW23: 0 | AX23: 0 | AY23: 0 | AZ23: 0 | BA23: 0 | BB23: 0 | BC23: 0 | BD23: 0 | BE23: 0 | BF23: 3 | BG23: 3 | BH23: 1 | BI23: 2 | BJ23: 2 | BK23: 0 | BL23: 0 | BM23: 0 | BN23: 0 | BO23: 0 | BP23: 0 | BQ23: 0 | BR23: 0 | BS23: 0 | BT23: 0 | BU23: 41.1 | BV23: 49.7 | BW23: 31.7 | BX23: 51.8 | BY23: Mon | BZ23: 430 | CA23: 0 | CB23: 22 | CC23: 0 | CD23: 3 | CE23: 0 | CF23: 0 | CG23: 0 | CH23: 0 | CI23: 0 | CJ23: 0 | CK23: 0 | CL23: 0 | CM23: 0 | CN23: 0 | CO23: 0 | CP23: 1 | CQ23: 2 | CR23: 5 | CS23: 6 | CT23: 2 | CU23: 5 | CV23: 4 | CW23: 0 | CX23: 0 | CY23: 0 | CZ23: 0 | DA23: 0 | DB23: 0 | DC23: 0 | DD23: 0 | DE23: 0 | DF23: 0 | DG23: 39.7 | DH23: 49.7 | DI23: 24.9 | DJ23: 51.8 | DK23: 0 | DL23: 12 | DM23: 2 | DN23: 0 | DO23: 0 | DP23: 14 | DQ23: 0 | DR23: 10 | DS23: 1 | DT23: 0 | DU23: 0 | DV23: 11 | DW23: 0 | DX23: 22 | DY23: 3 | DZ23: 0 | EA23: 0 | EB23: 25 | EC23: 14 | ED23: 10 | EE23: 16 | EF23: 9 | EG23: 9 | EH23: 13 | EI23: 3 | EJ23: 11 | EK23: 4 | EL23: 1 | EM23: 3 | EN23: 4 | EO23: 1 | EP23: 2 | EQ23: 25 | ER23: 14 | ES23: 17 | ET23: 12 | EU23: 13 | EV23: 14 | EW23: 5 | EX23: 11.6 | EY23: 10.57142857 | FE23: 4.6 | FF23: 3.714285714 | FL23: 16.2 | FM23: 14.28571429 | FN23: 14 | FO23: 10 | FP23: 16 | FQ23: 9 | FR23: 9 | FS23: 13 | FT23: 3 | FU23: 11 | FV23: 4 | FW23: 1 | FX23: 3 | FY23: 4 | FZ23: 1 | GA23: 2 | GB23: 25 | GC23: 14 | GD23: 17 | GE23: 12 | GF23: 13 | GG23: 14 | GH23: 5
A24: Mon | B24: 445 | C24: 1 | D24: 13 | E24: 0 | F24: 1 | G24: 0 | H24: 0 | I24: 0 | J24: 0 | K24: 0 | L24: 0 | M24: 0 | N24: 0 | O24: 0 | P24: 0 | Q24: 0 | R24: 0 | S24: 3 | T24: 2 | U24: 3 | V24: 1 | W24: 4 | X24: 1 | Y24: 1 | Z24: 0 | AA24: 0 | AB24: 0 | AC24: 0 | AD24: 0 | AE24: 0 | AF24: 0 | AG24: 0 | AH24: 0 | AI24: 40.4 | AJ24: 48.5 | AK24: 26 | AL24: 58.6 | AM24: Mon | AN24: 445 | AO24: 0 | AP24: 8 | AQ24: 0 | AR24: 1 | AS24: 0 | AT24: 0 | AU24: 0 | AV24: 0 | AW24: 0 | AX24: 0 | AY24: 0 | AZ24: 0 | BA24: 0 | BB24: 0 | BC24: 0 | BD24: 1 | BE24: 0 | BF24: 0 | BG24: 1 | BH24: 1 | BI24: 3 | BJ24: 3 | BK24: 0 | BL24: 0 | BM24: 0 | BN24: 0 | BO24: 0 | BP24: 0 | BQ24: 0 | BR24: 0 | BS24: 0 | BT24: 0 | BU24: 44.4 | BV24: - | BW24: 24.4 | BX24: 54.1 | BY24: Mon | BZ24: 445 | CA24: 1 | CB24: 21 | CC24: 0 | CD24: 2 | CE24: 0 | CF24: 0 | CG24: 0 | CH24: 0 | CI24: 0 | CJ24: 0 | CK24: 0 | CL24: 0 | CM24: 0 | CN24: 0 | CO24: 0 | CP24: 1 | CQ24: 3 | CR24: 2 | CS24: 4 | CT24: 2 | CU24: 7 | CV24: 4 | CW24: 1 | CX24: 0 | CY24: 0 | CZ24: 0 | DA24: 0 | DB24: 0 | DC24: 0 | DD24: 0 | DE24: 0 | DF24: 0 | DG24: 41.9 | DH24: 48.5 | DI24: 24.4 | DJ24: 58.6 | DK24: 1 | DL24: 13 | DM24: 1 | DN24: 0 | DO24: 0 | DP24: 15 | DQ24: 0 | DR24: 8 | DS24: 1 | DT24: 0 | DU24: 0 | DV24: 9 | DW24: 1 | DX24: 21 | DY24: 2 | DZ24: 0 | EA24: 0 | EB24: 24 | EC24: 15 | ED24: 15 | EE24: 9 | EF24: 7 | EG24: 15 | EH24: 10 | EI24: 6 | EJ24: 9 | EK24: 9 | EL24: 4 | EM24: 6 | EN24: 4 | EO24: 5 | EP24: 1 | EQ24: 24 | ER24: 24 | ES24: 13 | ET24: 13 | EU24: 19 | EV24: 15 | EW24: 7 | EX24: 12.2 | EY24: 11 | FE24: 6.4 | FF24: 5.428571429 | FL24: 18.6 | FM24: 16.42857143 | FN24: 15 | FO24: 15 | FP24: 9 | FQ24: 7 | FR24: 15 | FS24: 10 | FT24: 6 | FU24: 9 | FV24: 9 | FW24: 4 | FX24: 6 | FY24: 4 | FZ24: 5 | GA24: 1 | GB24: 24 | GC24: 24 | GD24: 13 | GE24: 13 | GF24: 19 | GG24: 15 | GH24: 7
A25: Mon | B25: 500 | C25: 0 | D25: 14 | E25: 0 | F25: 3 | G25: 0 | H25: 0 | I25: 0 | J25: 0 | K25: 0 | L25: 0 | M25: 0 | N25: 0 | O25: 0 | P25: 0 | Q25: 0 | R25: 1 | S25: 3 | T25: 3 | U25: 0 | V25: 5 | W25: 3 | X25: 0 | Y25: 2 | Z25: 0 | AA25: 0 | AB25: 0 | AC25: 0 | AD25: 0 | AE25: 0 | AF25: 0 | AG25: 0 | AH25: 0 | AI25: 39.7 | AJ25: 46.5 | AK25: 24.8 | AL25: 59.9 | AM25: Mon | AN25: 500 | AO25: 0 | AP25: 11 | AQ25: 0 | AR25: 0 | AS25: 0 | AT25: 0 | AU25: 0 | AV25: 0 | AW25: 0 | AX25: 0 | AY25: 0 | AZ25: 0 | BA25: 0 | BB25: 0 | BC25: 0 | BD25: 0 | BE25: 1 | BF25: 3 | BG25: 0 | BH25: 1 | BI25: 4 | BJ25: 2 | BK25: 0 | BL25: 0 | BM25: 0 | BN25: 0 | BO25: 0 | BP25: 0 | BQ25: 0 | BR25: 0 | BS25: 0 | BT25: 0 | BU25: 42.1 | BV25: 49.7 | BW25: 26.9 | BX25: 54.7 | BY25: Mon | BZ25: 500 | CA25: 0 | CB25: 25 | CC25: 0 | CD25: 3 | CE25: 0 | CF25: 0 | CG25: 0 | CH25: 0 | CI25: 0 | CJ25: 0 | CK25: 0 | CL25: 0 | CM25: 0 | CN25: 0 | CO25: 0 | CP25: 1 | CQ25: 4 | CR25: 6 | CS25: 0 | CT25: 6 | CU25: 7 | CV25: 2 | CW25: 2 | CX25: 0 | CY25: 0 | CZ25: 0 | DA25: 0 | DB25: 0 | DC25: 0 | DD25: 0 | DE25: 0 | DF25: 0 | DG25: 40.64285714 | DH25: 48.1 | DI25: 24.8 | DJ25: 59.9 | DK25: 0 | DL25: 14 | DM25: 3 | DN25: 0 | DO25: 0 | DP25: 17 | DQ25: 0 | DR25: 11 | DS25: 0 | DT25: 0 | DU25: 0 | DV25: 11 | DW25: 0 | DX25: 25 | DY25: 3 | DZ25: 0 | EA25: 0 | EB25: 28 | EC25: 17 | ED25: 11 | EE25: 15 | EF25: 14 | EG25: 19 | EH25: 14 | EI25: 10 | EJ25: 11 | EK25: 5 | EL25: 9 | EM25: 3 | EN25: 8 | EO25: 15 | EP25: 8 | EQ25: 28 | ER25: 16 | ES25: 24 | ET25: 17 | EU25: 27 | EV25: 29 | EW25: 18 | EX25: 15.2 | EY25: 14.28571429 | FE25: 7.2 | FF25: 8.428571429 | FL25: 22.4 | FM25: 22.71428571 | FN25: 17 | FO25: 11 | FP25: 15 | FQ25: 14 | FR25: 19 | FS25: 14 | FT25: 10 | FU25: 11 | FV25: 5 | FW25: 9 | FX25: 3 | FY25: 8 | FZ25: 15 | GA25: 8 | GB25: 28 | GC25: 16 | GD25: 24 | GE25: 17 | GF25: 27 | GG25: 29 | GH25: 18
A26: Mon | B26: 515 | C26: 1 | D26: 24 | E26: 0 | F26: 3 | G26: 2 | H26: 0 | I26: 0 | J26: 0 | K26: 0 | L26: 0 | M26: 0 | N26: 0 | O26: 0 | P26: 1 | Q26: 0 | R26: 1 | S26: 3 | T26: 6 | U26: 2 | V26: 6 | W26: 9 | X26: 1 | Y26: 1 | Z26: 0 | AA26: 0 | AB26: 0 | AC26: 0 | AD26: 0 | AE26: 0 | AF26: 0 | AG26: 0 | AH26: 0 | AI26: 39.3 | AJ26: 48.3 | AK26: 14.4 | AL26: 55.6 | AM26: Mon | AN26: 515 | AO26: 0 | AP26: 7 | AQ26: 0 | AR26: 0 | AS26: 0 | AT26: 0 | AU26: 0 | AV26: 0 | AW26: 0 | AX26: 0 | AY26: 0 | AZ26: 0 | BA26: 0 | BB26: 0 | BC26: 0 | BD26: 0 | BE26: 0 | BF26: 2 | BG26: 2 | BH26: 2 | BI26: 1 | BJ26: 0 | BK26: 0 | BL26: 0 | BM26: 0 | BN26: 0 | BO26: 0 | BP26: 0 | BQ26: 0 | BR26: 0 | BS26: 0 | BT26: 0 | BU26: 40 | BV26: - | BW26: 34.2 | BX26: 45.3 | BY26: Mon | BZ26: 515 | CA26: 1 | CB26: 31 | CC26: 0 | CD26: 3 | CE26: 2 | CF26: 0 | CG26: 0 | CH26: 0 | CI26: 0 | CJ26: 0 | CK26: 0 | CL26: 0 | CM26: 0 | CN26: 1 | CO26: 0 | CP26: 1 | CQ26: 3 | CR26: 8 | CS26: 4 | CT26: 8 | CU26: 10 | CV26: 1 | CW26: 1 | CX26: 0 | CY26: 0 | CZ26: 0 | DA26: 0 | DB26: 0 | DC26: 0 | DD26: 0 | DE26: 0 | DF26: 0 | DG26: 39.43243243 | DH26: 48.3 | DI26: 14.4 | DJ26: 55.6 | DK26: 1 | DL26: 24 | DM26: 3 | DN26: 2 | DO26: 0 | DP26: 30 | DQ26: 0 | DR26: 7 | DS26: 0 | DT26: 0 | DU26: 0 | DV26: 7 | DW26: 1 | DX26: 31 | DY26: 3 | DZ26: 2 | EA26: 0 | EB26: 37 | EC26: 30 | ED26: 21 | EE26: 25 | EF26: 21 | EG26: 24 | EH26: 16 | EI26: 15 | EJ26: 7 | EK26: 8 | EL26: 13 | EM26: 11 | EN26: 8 | EO26: 8 | EP26: 11 | EQ26: 37 | ER26: 29 | ES26: 38 | ET26: 32 | EU26: 32 | EV26: 24 | EW26: 26 | EX26: 24.2 | EY26: 21.71428571 | FE26: 9.4 | FF26: 9.428571429 | FL26: 33.6 | FM26: 31.14285714 | FN26: 30 | FO26: 21 | FP26: 25 | FQ26: 21 | FR26: 24 | FS26: 16 | FT26: 15 | FU26: 7 | FV26: 8 | FW26: 13 | FX26: 11 | FY26: 8 | FZ26: 8 | GA26: 11 | GB26: 37 | GC26: 29 | GD26: 38 | GE26: 32 | GF26: 32 | GG26: 24 | GH26: 26
A27: Mon | B27: 530 | C27: 2 | D27: 29 | E27: 0 | F27: 6 | G27: 0 | H27: 0 | I27: 0 | J27: 0 | K27: 0 | L27: 0 | M27: 0 | N27: 0 | O27: 0 | P27: 0 | Q27: 1 | R27: 0 | S27: 4 | T27: 8 | U27: 6 | V27: 6 | W27: 9 | X27: 1 | Y27: 2 | Z27: 0 | AA27: 0 | AB27: 0 | AC27: 0 | AD27: 0 | AE27: 0 | AF27: 0 | AG27: 0 | AH27: 0 | AI27: 39.2 | AJ27: 47.2 | AK27: 18.6 | AL27: 57.2 | AM27: Mon | AN27: 530 | AO27: 0 | AP27: 7 | AQ27: 0 | AR27: 2 | AS27: 0 | AT27: 0 | AU27: 0 | AV27: 0 | AW27: 0 | AX27: 0 | AY27: 0 | AZ27: 0 | BA27: 0 | BB27: 0 | BC27: 0 | BD27: 0 | BE27: 0 | BF27: 2 | BG27: 4 | BH27: 1 | BI27: 2 | BJ27: 0 | BK27: 0 | BL27: 0 | BM27: 0 | BN27: 0 | BO27: 0 | BP27: 0 | BQ27: 0 | BR27: 0 | BS27: 0 | BT27: 0 | BU27: 39.2 | BV27: - | BW27: 30.6 | BX27: 46.3 | BY27: Mon | BZ27: 530 | CA27: 2 | CB27: 36 | CC27: 0 | CD27: 8 | CE27: 0 | CF27: 0 | CG27: 0 | CH27: 0 | CI27: 0 | CJ27: 0 | CK27: 0 | CL27: 0 | CM27: 0 | CN27: 0 | CO27: 1 | CP27: 0 | CQ27: 4 | CR27: 10 | CS27: 10 | CT27: 7 | CU27: 11 | CV27: 1 | CW27: 2 | CX27: 0 | CY27: 0 | CZ27: 0 | DA27: 0 | DB27: 0 | DC27: 0 | DD27: 0 | DE27: 0 | DF27: 0 | DG27: 39.2 | DH27: 47.2 | DI27: 18.6 | DJ27: 57.2 | DK27: 2 | DL27: 29 | DM27: 6 | DN27: 0 | DO27: 0 | DP27: 37 | DQ27: 0 | DR27: 7 | DS27: 2 | DT27: 0 | DU27: 0 | DV27: 9 | DW27: 2 | DX27: 36 | DY27: 8 | DZ27: 0 | EA27: 0 | EB27: 46 | EC27: 37 | ED27: 31 | EE27: 29 | EF27: 30 | EG27: 36 | EH27: 28 | EI27: 22 | EJ27: 9 | EK27: 12 | EL27: 7 | EM27: 9 | EN27: 10 | EO27: 18 | EP27: 13 | EQ27: 46 | ER27: 43 | ES27: 36 | ET27: 39 | EU27: 46 | EV27: 46 | EW27: 35 | EX27: 32.6 | EY27: 30.42857143 | FE27: 9.4 | FF27: 11.14285714 | FL27: 42 | FM27: 41.57142857 | FN27: 37 | FO27: 31 | FP27: 29 | FQ27: 30 | FR27: 36 | FS27: 28 | FT27: 22 | FU27: 9 | FV27: 12 | FW27: 7 | FX27: 9 | FY27: 10 | FZ27: 18 | GA27: 13 | GB27: 46 | GC27: 43 | GD27: 36 | GE27: 39 | GF27: 46 | GG27: 46 | GH27: 35
A28: Mon | B28: 545 | C28: 3 | D28: 34 | E28: 1 | F28: 3 | G28: 0 | H28: 0 | I28: 0 | J28: 0 | K28: 0 | L28: 0 | M28: 0 | N28: 0 | O28: 0 | P28: 1 | Q28: 0 | R28: 1 | S28: 4 | T28: 8 | U28: 6 | V28: 2 | W28: 15 | X28: 4 | Y28: 0 | Z28: 0 | AA28: 0 | AB28: 0 | AC28: 0 | AD28: 0 | AE28: 0 | AF28: 0 | AG28: 0 | AH28: 0 | AI28: 40.5 | AJ28: 49 | AK28: 14.5 | AL28: 53.6 | AM28: Mon | AN28: 545 | AO28: 0 | AP28: 5 | AQ28: 0 | AR28: 1 | AS28: 0 | AT28: 0 | AU28: 0 | AV28: 3 | AW28: 1 | AX28: 0 | AY28: 0 | AZ28: 0 | BA28: 0 | BB28: 0 | BC28: 0 | BD28: 0 | BE28: 0 | BF28: 2 | BG28: 2 | BH28: 3 | BI28: 2 | BJ28: 1 | BK28: 0 | BL28: 0 | BM28: 0 | BN28: 0 | BO28: 0 | BP28: 0 | BQ28: 0 | BR28: 0 | BS28: 0 | BT28: 0 | BU28: 41 | BV28: - | BW28: 31.1 | BX28: 50.8 | BY28: Mon | BZ28: 545 | CA28: 3 | CB28: 39 | CC28: 1 | CD28: 4 | CE28: 0 | CF28: 0 | CG28: 0 | CH28: 3 | CI28: 1 | CJ28: 0 | CK28: 0 | CL28: 0 | CM28: 0 | CN28: 1 | CO28: 0 | CP28: 1 | CQ28: 4 | CR28: 10 | CS28: 8 | CT28: 5 | CU28: 17 | CV28: 5 | CW28: 0 | CX28: 0 | CY28: 0 | CZ28: 0 | DA28: 0 | DB28: 0 | DC28: 0 | DD28: 0 | DE28: 0 | DF28: 0 | DG28: 40.59803922 | DH28: 49 | DI28: 14.5 | DJ28: 53.6 | DK28: 3 | DL28: 35 | DM28: 3 | DN28: 0 | DO28: 0 | DP28: 41 | DQ28: 0 | DR28: 5 | DS28: 1 | DT28: 0 | DU28: 4 | DV28: 10 | DW28: 3 | DX28: 40 | DY28: 4 | DZ28: 0 | EA28: 4 | EB28: 51 | EC28: 41 | ED28: 53 | EE28: 53 | EF28: 58 | EG28: 41 | EH28: 41 | EI28: 37 | EJ28: 10 | EK28: 17 | EL28: 18 | EM28: 20 | EN28: 20 | EO28: 11 | EP28: 9 | EQ28: 51 | ER28: 70 | ES28: 71 | ET28: 78 | EU28: 61 | EV28: 52 | EW28: 46 | EX28: 49.2 | EY28: 46.28571429 | FE28: 17 | FF28: 15 | FL28: 66.2 | FM28: 61.28571429 | FN28: 41 | FO28: 53 | FP28: 53 | FQ28: 58 | FR28: 41 | FS28: 41 | FT28: 37 | FU28: 10 | FV28: 17 | FW28: 18 | FX28: 20 | FY28: 20 | FZ28: 11 | GA28: 9 | GB28: 51 | GC28: 70 | GD28: 71 | GE28: 78 | GF28: 61 | GG28: 52 | GH28: 46
A29: Mon | B29: 600 | C29: 1 | D29: 49 | E29: 0 | F29: 2 | G29: 0 | H29: 0 | I29: 0 | J29: 0 | K29: 1 | L29: 3 | M29: 0 | N29: 0 | O29: 0 | P29: 0 | Q29: 0 | R29: 0 | S29: 14 | T29: 3 | U29: 1 | V29: 11 | W29: 14 | X29: 8 | Y29: 5 | Z29: 0 | AA29: 0 | AB29: 0 | AC29: 0 | AD29: 0 | AE29: 0 | AF29: 0 | AG29: 0 | AH29: 0 | AI29: 42.4 | AJ29: 51.4 | AK29: 26.1 | AL29: 59 | AM29: Mon | AN29: 600 | AO29: 1 | AP29: 10 | AQ29: 0 | AR29: 4 | AS29: 0 | AT29: 0 | AU29: 0 | AV29: 3 | AW29: 3 | AX29: 0 | AY29: 0 | AZ29: 0 | BA29: 0 | BB29: 0 | BC29: 0 | BD29: 1 | BE29: 2 | BF29: 0 | BG29: 3 | BH29: 11 | BI29: 3 | BJ29: 1 | BK29: 0 | BL29: 0 | BM29: 0 | BN29: 0 | BO29: 0 | BP29: 0 | BQ29: 0 | BR29: 0 | BS29: 0 | BT29: 0 | BU29: 40.2 | BV29: 46.1 | BW29: 20.6 | BX29: 50.8 | BY29: Mon | BZ29: 600 | CA29: 2 | CB29: 59 | CC29: 0 | CD29: 6 | CE29: 0 | CF29: 0 | CG29: 0 | CH29: 3 | CI29: 4 | CJ29: 3 | CK29: 0 | CL29: 0 | CM29: 0 | CN29: 0 | CO29: 0 | CP29: 1 | CQ29: 16 | CR29: 3 | CS29: 4 | CT29: 22 | CU29: 17 | CV29: 9 | CW29: 5 | CX29: 0 | CY29: 0 | CZ29: 0 | DA29: 0 | DB29: 0 | DC29: 0 | DD29: 0 | DE29: 0 | DF29: 0 | DG29: 41.8 | DH29: 48.75 | DI29: 20.6 | DJ29: 59 | DK29: 1 | DL29: 49 | DM29: 2 | DN29: 0 | DO29: 4 | DP29: 56 | DQ29: 1 | DR29: 10 | DS29: 4 | DT29: 0 | DU29: 6 | DV29: 21 | DW29: 2 | DX29: 59 | DY29: 6 | DZ29: 0 | EA29: 10 | EB29: 77 | EC29: 56 | ED29: 76 | EE29: 60 | EF29: 66 | EG29: 74 | EH29: 36 | EI29: 39 | EJ29: 21 | EK29: 26 | EL29: 26 | EM29: 29 | EN29: 21 | EO29: 11 | EP29: 11 | EQ29: 77 | ER29: 102 | ES29: 86 | ET29: 95 | EU29: 95 | EV29: 47 | EW29: 50 | EX29: 66.4 | EY29: 58.14285714 | FE29: 24.6 | FF29: 20.71428571 | FL29: 91 | FM29: 78.85714286 | FN29: 56 | FO29: 76 | FP29: 60 | FQ29: 66 | FR29: 74 | FS29: 36 | FT29: 39 | FU29: 21 | FV29: 26 | FW29: 26 | FX29: 29 | FY29: 21 | FZ29: 11 | GA29: 11 | GB29: 77 | GC29: 102 | GD29: 86 | GE29: 95 | GF29: 95 | GG29: 47 | GH29: 50
A30: Mon | B30: 615 | C30: 1 | D30: 52 | E30: 0 | F30: 5 | G30: 0 | H30: 0 | I30: 0 | J30: 0 | K30: 0 | L30: 0 | M30: 0 | N30: 0 | O30: 0 | P30: 0 | Q30: 0 | R30: 1 | S30: 8 | T30: 10 | U30: 6 | V30: 14 | W30: 11 | X30: 6 | Y30: 1 | Z30: 0 | AA30: 1 | AB30: 0 | AC30: 0 | AD30: 0 | AE30: 0 | AF30: 0 | AG30: 0 | AH30: 0 | AI30: 40.3 | AJ30: 49.4 | AK30: 23.4 | AL30: 69.2 | AM30: Mon | AN30: 615 | AO30: 0 | AP30: 18 | AQ30: 0 | AR30: 3 | AS30: 1 | AT30: 0 | AU30: 1 | AV30: 1 | AW30: 0 | AX30: 0 | AY30: 0 | AZ30: 0 | BA30: 0 | BB30: 0 | BC30: 0 | BD30: 0 | BE30: 0 | BF30: 3 | BG30: 8 | BH30: 6 | BI30: 6 | BJ30: 1 | BK30: 0 | BL30: 0 | BM30: 0 | BN30: 0 | BO30: 0 | BP30: 0 | BQ30: 0 | BR30: 0 | BS30: 0 | BT30: 0 | BU30: 40.6 | BV30: 46.8 | BW30: 31 | BX30: 51.4 | BY30: Mon | BZ30: 615 | CA30: 1 | CB30: 70 | CC30: 0 | CD30: 8 | CE30: 1 | CF30: 0 | CG30: 1 | CH30: 1 | CI30: 0 | CJ30: 0 | CK30: 0 | CL30: 0 | CM30: 0 | CN30: 0 | CO30: 0 | CP30: 1 | CQ30: 8 | CR30: 13 | CS30: 14 | CT30: 20 | CU30: 17 | CV30: 7 | CW30: 1 | CX30: 0 | CY30: 1 | CZ30: 0 | DA30: 0 | DB30: 0 | DC30: 0 | DD30: 0 | DE30: 0 | DF30: 0 | DG30: 40.38780488 | DH30: 48.1 | DI30: 23.4 | DJ30: 69.2 | DK30: 1 | DL30: 52 | DM30: 5 | DN30: 0 | DO30: 0 | DP30: 58 | DQ30: 0 | DR30: 18 | DS30: 3 | DT30: 1 | DU30: 2 | DV30: 24 | DW30: 1 | DX30: 70 | DY30: 8 | DZ30: 1 | EA30: 2 | EB30: 82 | EC30: 58 | ED30: 45 | EE30: 53 | EF30: 51 | EG30: 52 | EH30: 31 | EI30: 16 | EJ30: 24 | EK30: 24 | EL30: 24 | EM30: 22 | EN30: 29 | EO30: 15 | EP30: 9 | EQ30: 82 | ER30: 69 | ES30: 77 | ET30: 73 | EU30: 81 | EV30: 46 | EW30: 25 | EX30: 51.8 | EY30: 43.71428571 | FE30: 24.6 | FF30: 21 | FL30: 76.4 | FM30: 64.71428571 | FN30: 58 | FO30: 45 | FP30: 53 | FQ30: 51 | FR30: 52 | FS30: 31 | FT30: 16 | FU30: 24 | FV30: 24 | FW30: 24 | FX30: 22 | FY30: 29 | FZ30: 15 | GA30: 9 | GB30: 82 | GC30: 69 | GD30: 77 | GE30: 73 | GF30: 81 | GG30: 46 | GH30: 25
A31: Mon | B31: 630 | C31: 1 | D31: 54 | E31: 0 | F31: 5 | G31: 1 | H31: 0 | I31: 0 | J31: 0 | K31: 2 | L31: 0 | M31: 0 | N31: 0 | O31: 0 | P31: 0 | Q31: 0 | R31: 3 | S31: 5 | T31: 10 | U31: 14 | V31: 16 | W31: 6 | X31: 6 | Y31: 2 | Z31: 1 | AA31: 0 | AB31: 0 | AC31: 0 | AD31: 0 | AE31: 0 | AF31: 0 | AG31: 0 | AH31: 0 | AI31: 39.8 | AJ31: 49.2 | AK31: 23.5 | AL31: 61.9 | AM31: Mon | AN31: 630 | AO31: 2 | AP31: 39 | AQ31: 0 | AR31: 4 | AS31: 0 | AT31: 0 | AU31: 0 | AV31: 0 | AW31: 0 | AX31: 0 | AY31: 0 | AZ31: 0 | BA31: 0 | BB31: 0 | BC31: 0 | BD31: 0 | BE31: 0 | BF31: 6 | BG31: 8 | BH31: 18 | BI31: 8 | BJ31: 5 | BK31: 0 | BL31: 0 | BM31: 0 | BN31: 0 | BO31: 0 | BP31: 0 | BQ31: 0 | BR31: 0 | BS31: 0 | BT31: 0 | BU31: 41.9 | BV31: 48.1 | BW31: 30.4 | BX31: 52.4 | BY31: Mon | BZ31: 630 | CA31: 3 | CB31: 93 | CC31: 0 | CD31: 9 | CE31: 1 | CF31: 0 | CG31: 0 | CH31: 0 | CI31: 2 | CJ31: 0 | CK31: 0 | CL31: 0 | CM31: 0 | CN31: 0 | CO31: 0 | CP31: 3 | CQ31: 5 | CR31: 16 | CS31: 22 | CT31: 34 | CU31: 14 | CV31: 11 | CW31: 2 | CX31: 1 | CY31: 0 | CZ31: 0 | DA31: 0 | DB31: 0 | DC31: 0 | DD31: 0 | DE31: 0 | DF31: 0 | DG31: 40.675 | DH31: 48.65 | DI31: 23.5 | DJ31: 61.9 | DK31: 1 | DL31: 54 | DM31: 5 | DN31: 1 | DO31: 2 | DP31: 63 | DQ31: 2 | DR31: 39 | DS31: 4 | DT31: 0 | DU31: 0 | DV31: 45 | DW31: 3 | DX31: 93 | DY31: 9 | DZ31: 1 | EA31: 2 | EB31: 108 | EC31: 63 | ED31: 78 | EE31: 57 | EF31: 57 | EG31: 60 | EH31: 32 | EI31: 20 | EJ31: 45 | EK31: 46 | EL31: 40 | EM31: 43 | EN31: 33 | EO31: 27 | EP31: 19 | EQ31: 108 | ER31: 124 | ES31: 97 | ET31: 100 | EU31: 93 | EV31: 59 | EW31: 39 | EX31: 63 | EY31: 52.42857143 | FE31: 41.4 | FF31: 36.14285714 | FL31: 104.4 | FM31: 88.57142857 | FN31: 63 | FO31: 78 | FP31: 57 | FQ31: 57 | FR31: 60 | FS31: 32 | FT31: 20 | FU31: 45 | FV31: 46 | FW31: 40 | FX31: 43 | FY31: 33 | FZ31: 27 | GA31: 19 | GB31: 108 | GC31: 124 | GD31: 97 | GE31: 100 | GF31: 93 | GG31: 59 | GH31: 39
A32: Mon | B32: 645 | C32: 0 | D32: 53 | E32: 1 | F32: 5 | G32: 0 | H32: 0 | I32: 1 | J32: 0 | K32: 0 | L32: 0 | M32: 0 | N32: 0 | O32: 0 | P32: 0 | Q32: 0 | R32: 1 | S32: 11 | T32: 14 | U32: 9 | V32: 12 | W32: 8 | X32: 5 | Y32: 0 | Z32: 0 | AA32: 0 | AB32: 0 | AC32: 0 | AD32: 0 | AE32: 0 | AF32: 0 | AG32: 0 | AH32: 0 | AI32: 38 | AJ32: 46.1 | AK32: 24.8 | AL32: 55 | AM32: Mon | AN32: 645 | AO32: 0 | AP32: 34 | AQ32: 0 | AR32: 6 | AS32: 0 | AT32: 0 | AU32: 0 | AV32: 0 | AW32: 0 | AX32: 1 | AY32: 0 | AZ32: 0 | BA32: 0 | BB32: 0 | BC32: 0 | BD32: 0 | BE32: 0 | BF32: 1 | BG32: 14 | BH32: 12 | BI32: 12 | BJ32: 1 | BK32: 1 | BL32: 0 | BM32: 0 | BN32: 0 | BO32: 0 | BP32: 0 | BQ32: 0 | BR32: 0 | BS32: 0 | BT32: 0 | BU32: 42.6 | BV32: 48.3 | BW32: 34.3 | BX32: 57.7 | BY32: Mon | BZ32: 645 | CA32: 0 | CB32: 87 | CC32: 1 | CD32: 11 | CE32: 0 | CF32: 0 | CG32: 1 | CH32: 0 | CI32: 0 | CJ32: 1 | CK32: 0 | CL32: 0 | CM32: 0 | CN32: 0 | CO32: 0 | CP32: 1 | CQ32: 11 | CR32: 15 | CS32: 23 | CT32: 24 | CU32: 20 | CV32: 6 | CW32: 1 | CX32: 0 | CY32: 0 | CZ32: 0 | DA32: 0 | DB32: 0 | DC32: 0 | DD32: 0 | DE32: 0 | DF32: 0 | DG32: 39.86732673 | DH32: 47.2 | DI32: 24.8 | DJ32: 57.7 | DK32: 0 | DL32: 54 | DM32: 5 | DN32: 0 | DO32: 1 | DP32: 60 | DQ32: 0 | DR32: 34 | DS32: 6 | DT32: 0 | DU32: 1 | DV32: 41 | DW32: 0 | DX32: 88 | DY32: 11 | DZ32: 0 | EA32: 2 | EB32: 101 | EC32: 60 | ED32: 54 | EE32: 70 | EF32: 72 | EG32: 64 | EH32: 27 | EI32: 23 | EJ32: 41 | EK32: 34 | EL32: 41 | EM32: 54 | EN32: 49 | EO32: 18 | EP32: 19 | EQ32: 101 | ER32: 88 | ES32: 111 | ET32: 126 | EU32: 113 | EV32: 45 | EW32: 42 | EX32: 64 | EY32: 52.85714286 | FE32: 43.8 | FF32: 36.57142857 | FL32: 107.8 | FM32: 89.42857143 | FN32: 60 | FO32: 54 | FP32: 70 | FQ32: 72 | FR32: 64 | FS32: 27 | FT32: 23 | FU32: 41 | FV32: 34 | FW32: 41 | FX32: 54 | FY32: 49 | FZ32: 18 | GA32: 19 | GB32: 101 | GC32: 88 | GD32: 111 | GE32: 126 | GF32: 113 | GG32: 45 | GH32: 42
A33: Mon | B33: 700 | C33: 0 | D33: 82 | E33: 1 | F33: 5 | G33: 1 | H33: 1 | I33: 0 | J33: 1 | K33: 0 | L33: 0 | M33: 0 | N33: 0 | O33: 0 | P33: 0 | Q33: 0 | R33: 0 | S33: 21 | T33: 23 | U33: 14 | V33: 13 | W33: 13 | X33: 6 | Y33: 1 | Z33: 0 | AA33: 0 | AB33: 0 | AC33: 0 | AD33: 0 | AE33: 0 | AF33: 0 | AG33: 0 | AH33: 0 | AI33: 37.3 | AJ33: 47 | AK33: 25.4 | AL33: 59.5 | AM33: Mon | AN33: 700 | AO33: 1 | AP33: 40 | AQ33: 0 | AR33: 8 | AS33: 1 | AT33: 0 | AU33: 0 | AV33: 0 | AW33: 0 | AX33: 0 | AY33: 0 | AZ33: 0 | BA33: 0 | BB33: 0 | BC33: 0 | BD33: 2 | BE33: 1 | BF33: 7 | BG33: 20 | BH33: 9 | BI33: 7 | BJ33: 4 | BK33: 0 | BL33: 0 | BM33: 0 | BN33: 0 | BO33: 0 | BP33: 0 | BQ33: 0 | BR33: 0 | BS33: 0 | BT33: 0 | BU33: 39.8 | BV33: 47.4 | BW33: 21.5 | BX33: 52.6 | BY33: Mon | BZ33: 700 | CA33: 1 | CB33: 122 | CC33: 1 | CD33: 13 | CE33: 2 | CF33: 1 | CG33: 0 | CH33: 1 | CI33: 0 | CJ33: 0 | CK33: 0 | CL33: 0 | CM33: 0 | CN33: 0 | CO33: 0 | CP33: 2 | CQ33: 22 | CR33: 30 | CS33: 34 | CT33: 22 | CU33: 20 | CV33: 10 | CW33: 1 | CX33: 0 | CY33: 0 | CZ33: 0 | DA33: 0 | DB33: 0 | DC33: 0 | DD33: 0 | DE33: 0 | DF33: 0 | DG33: 38.18652482 | DH33: 47.2 | DI33: 21.5 | DJ33: 59.5 | DK33: 0 | DL33: 83 | DM33: 5 | DN33: 2 | DO33: 1 | DP33: 91 | DQ33: 1 | DR33: 40 | DS33: 8 | DT33: 1 | DU33: 0 | DV33: 50 | DW33: 1 | DX33: 123 | DY33: 13 | DZ33: 3 | EA33: 1 | EB33: 141 | EC33: 91 | ED33: 91 | EE33: 82 | EF33: 81 | EG33: 78 | EH33: 28 | EI33: 12 | EJ33: 50 | EK33: 73 | EL33: 54 | EM33: 72 | EN33: 53 | EO33: 27 | EP33: 14 | EQ33: 141 | ER33: 164 | ES33: 136 | ET33: 153 | EU33: 131 | EV33: 55 | EW33: 26 | EX33: 84.6 | EY33: 66.14285714 | FE33: 60.4 | FF33: 49 | FL33: 145 | FM33: 115.1428571 | FN33: 91 | FO33: 91 | FP33: 82 | FQ33: 81 | FR33: 78 | FS33: 28 | FT33: 12 | FU33: 50 | FV33: 73 | FW33: 54 | FX33: 72 | FY33: 53 | FZ33: 27 | GA33: 14 | GB33: 141 | GC33: 164 | GD33: 136 | GE33: 153 | GF33: 131 | GG33: 55 | GH33: 26
A34: Mon | B34: 715 | C34: 2 | D34: 85 | E34: 1 | F34: 5 | G34: 0 | H34: 0 | I34: 0 | J34: 0 | K34: 0 | L34: 0 | M34: 0 | N34: 0 | O34: 0 | P34: 0 | Q34: 1 | R34: 2 | S34: 13 | T34: 15 | U34: 7 | V34: 23 | W34: 18 | X34: 7 | Y34: 7 | Z34: 0 | AA34: 0 | AB34: 0 | AC34: 0 | AD34: 0 | AE34: 0 | AF34: 0 | AG34: 0 | AH34: 0 | AI34: 40.5 | AJ34: 49.2 | AK34: 19 | AL34: 59.3 | AM34: Mon | AN34: 715 | AO34: 0 | AP34: 62 | AQ34: 0 | AR34: 6 | AS34: 0 | AT34: 0 | AU34: 0 | AV34: 0 | AW34: 0 | AX34: 0 | AY34: 0 | AZ34: 0 | BA34: 0 | BB34: 0 | BC34: 0 | BD34: 0 | BE34: 2 | BF34: 21 | BG34: 19 | BH34: 14 | BI34: 8 | BJ34: 4 | BK34: 0 | BL34: 0 | BM34: 0 | BN34: 0 | BO34: 0 | BP34: 0 | BQ34: 0 | BR34: 0 | BS34: 0 | BT34: 0 | BU34: 38.7 | BV34: 46.5 | BW34: 29.3 | BX34: 52.4 | BY34: Mon | BZ34: 715 | CA34: 2 | CB34: 147 | CC34: 1 | CD34: 11 | CE34: 0 | CF34: 0 | CG34: 0 | CH34: 0 | CI34: 0 | CJ34: 0 | CK34: 0 | CL34: 0 | CM34: 0 | CN34: 0 | CO34: 1 | CP34: 2 | CQ34: 15 | CR34: 36 | CS34: 26 | CT34: 37 | CU34: 26 | CV34: 11 | CW34: 7 | CX34: 0 | CY34: 0 | CZ34: 0 | DA34: 0 | DB34: 0 | DC34: 0 | DD34: 0 | DE34: 0 | DF34: 0 | DG34: 39.73975155 | DH34: 47.85 | DI34: 19 | DJ34: 59.3 | DK34: 2 | DL34: 86 | DM34: 5 | DN34: 0 | DO34: 0 | DP34: 93 | DQ34: 0 | DR34: 62 | DS34: 6 | DT34: 0 | DU34: 0 | DV34: 68 | DW34: 2 | DX34: 148 | DY34: 11 | DZ34: 0 | EA34: 0 | EB34: 161 | EC34: 93 | ED34: 95 | EE34: 105 | EF34: 94 | EG34: 101 | EH34: 25 | EI34: 17 | EJ34: 68 | EK34: 89 | EL34: 83 | EM34: 82 | EN34: 70 | EO34: 26 | EP34: 12 | EQ34: 161 | ER34: 184 | ES34: 188 | ET34: 176 | EU34: 171 | EV34: 51 | EW34: 29 | EX34: 97.6 | EY34: 75.71428571 | FE34: 78.4 | FF34: 61.42857143 | FL34: 176 | FM34: 137.1428571 | FN34: 93 | FO34: 95 | FP34: 105 | FQ34: 94 | FR34: 101 | FS34: 25 | FT34: 17 | FU34: 68 | FV34: 89 | FW34: 83 | FX34: 82 | FY34: 70 | FZ34: 26 | GA34: 12 | GB34: 161 | GC34: 184 | GD34: 188 | GE34: 176 | GF34: 171 | GG34: 51 | GH34: 29
A35: Mon | B35: 730 | C35: 0 | D35: 129 | E35: 0 | F35: 8 | G35: 1 | H35: 1 | I35: 0 | J35: 0 | K35: 0 | L35: 1 | M35: 0 | N35: 0 | O35: 0 | P35: 0 | Q35: 2 | R35: 14 | S35: 37 | T35: 30 | U35: 26 | V35: 20 | W35: 10 | X35: 1 | Y35: 0 | Z35: 0 | AA35: 0 | AB35: 0 | AC35: 0 | AD35: 0 | AE35: 0 | AF35: 0 | AG35: 0 | AH35: 0 | AI35: 33.7 | AJ35: 41.8 | AK35: 18.5 | AL35: 50.9 | AM35: Mon | AN35: 730 | AO35: 0 | AP35: 81 | AQ35: 0 | AR35: 10 | AS35: 0 | AT35: 0 | AU35: 0 | AV35: 0 | AW35: 0 | AX35: 4 | AY35: 0 | AZ35: 0 | BA35: 2 | BB35: 4 | BC35: 6 | BD35: 5 | BE35: 14 | BF35: 27 | BG35: 25 | BH35: 10 | BI35: 1 | BJ35: 0 | BK35: 1 | BL35: 0 | BM35: 0 | BN35: 0 | BO35: 0 | BP35: 0 | BQ35: 0 | BR35: 0 | BS35: 0 | BT35: 0 | BU35: 32.1 | BV35: 39.8 | BW35: 6.8 | BX35: 60 | BY35: Mon | BZ35: 730 | CA35: 0 | CB35: 210 | CC35: 0 | CD35: 18 | CE35: 1 | CF35: 1 | CG35: 0 | CH35: 0 | CI35: 0 | CJ35: 5 | CK35: 0 | CL35: 0 | CM35: 2 | CN35: 4 | CO35: 8 | CP35: 19 | CQ35: 51 | CR35: 57 | CS35: 51 | CT35: 30 | CU35: 11 | CV35: 1 | CW35: 1 | CX35: 0 | CY35: 0 | CZ35: 0 | DA35: 0 | DB35: 0 | DC35: 0 | DD35: 0 | DE35: 0 | DF35: 0 | DG35: 33.05319149 | DH35: 40.8 | DI35: 6.8 | DJ35: 60 | DK35: 0 | DL35: 129 | DM35: 8 | DN35: 2 | DO35: 1 | DP35: 140 | DQ35: 0 | DR35: 81 | DS35: 10 | DT35: 0 | DU35: 4 | DV35: 95 | DW35: 0 | DX35: 210 | DY35: 18 | DZ35: 2 | EA35: 5 | EB35: 235 | EC35: 140 | ED35: 137 | EE35: 154 | EF35: 137 | EG35: 138 | EH35: 32 | EI35: 25 | EJ35: 95 | EK35: 105 | EL35: 112 | EM35: 86 | EN35: 103 | EO35: 25 | EP35: 14 | EQ35: 235 | ER35: 242 | ES35: 266 | ET35: 223 | EU35: 241 | EV35: 57 | EW35: 39 | EX35: 141.2 | EY35: 109 | FE35: 100.2 | FF35: 77.14285714 | FL35: 241.4 | FM35: 186.1428571 | FN35: 140 | FO35: 137 | FP35: 154 | FQ35: 137 | FR35: 138 | FS35: 32 | FT35: 25 | FU35: 95 | FV35: 105 | FW35: 112 | FX35: 86 | FY35: 103 | FZ35: 25 | GA35: 14 | GB35: 235 | GC35: 242 | GD35: 266 | GE35: 223 | GF35: 241 | GG35: 57 | GH35: 39
A36: Mon | B36: 745 | C36: 1 | D36: 108 | E36: 0 | F36: 9 | G36: 2 | H36: 1 | I36: 0 | J36: 0 | K36: 0 | L36: 2 | M36: 0 | N36: 0 | O36: 0 | P36: 0 | Q36: 1 | R36: 1 | S36: 13 | T36: 27 | U36: 50 | V36: 20 | W36: 8 | X36: 3 | Y36: 0 | Z36: 0 | AA36: 0 | AB36: 0 | AC36: 0 | AD36: 0 | AE36: 0 | AF36: 0 | AG36: 0 | AH36: 0 | AI36: 37 | AJ36: 42.7 | AK36: 16 | AL36: 53.8 | AM36: Mon | AN36: 745 | AO36: 2 | AP36: 110 | AQ36: 1 | AR36: 20 | AS36: 0 | AT36: 0 | AU36: 0 | AV36: 1 | AW36: 0 | AX36: 1 | AY36: 0 | AZ36: 0 | BA36: 0 | BB36: 10 | BC36: 17 | BD36: 19 | BE36: 6 | BF36: 32 | BG36: 30 | BH36: 14 | BI36: 6 | BJ36: 1 | BK36: 0 | BL36: 0 | BM36: 0 | BN36: 0 | BO36: 0 | BP36: 0 | BQ36: 0 | BR36: 0 | BS36: 0 | BT36: 0 | BU36: 30.2 | BV36: 40 | BW36: 10.2 | BX36: 50 | BY36: Mon | BZ36: 745 | CA36: 3 | CB36: 218 | CC36: 1 | CD36: 29 | CE36: 2 | CF36: 1 | CG36: 0 | CH36: 1 | CI36: 0 | CJ36: 3 | CK36: 0 | CL36: 0 | CM36: 0 | CN36: 10 | CO36: 18 | CP36: 20 | CQ36: 19 | CR36: 59 | CS36: 80 | CT36: 34 | CU36: 14 | CV36: 4 | CW36: 0 | CX36: 0 | CY36: 0 | CZ36: 0 | DA36: 0 | DB36: 0 | DC36: 0 | DD36: 0 | DE36: 0 | DF36: 0 | DG36: 33.44186047 | DH36: 41.35 | DI36: 10.2 | DJ36: 53.8 | DK36: 1 | DL36: 108 | DM36: 9 | DN36: 3 | DO36: 2 | DP36: 123 | DQ36: 2 | DR36: 111 | DS36: 20 | DT36: 0 | DU36: 2 | DV36: 135 | DW36: 3 | DX36: 219 | DY36: 29 | DZ36: 3 | EA36: 4 | EB36: 258 | EC36: 123 | ED36: 135 | EE36: 133 | EF36: 133 | EG36: 121 | EH36: 29 | EI36: 30 | EJ36: 135 | EK36: 132 | EL36: 150 | EM36: 119 | EN36: 121 | EO36: 23 | EP36: 16 | EQ36: 258 | ER36: 267 | ES36: 283 | ET36: 252 | EU36: 242 | EV36: 52 | EW36: 46 | EX36: 129 | EY36: 100.5714286 | FE36: 131.4 | FF36: 99.42857143 | FL36: 260.4 | FM36: 200 | FN36: 123 | FO36: 135 | FP36: 133 | FQ36: 133 | FR36: 121 | FS36: 29 | FT36: 30 | FU36: 135 | FV36: 132 | FW36: 150 | FX36: 119 | FY36: 121 | FZ36: 23 | GA36: 16 | GB36: 258 | GC36: 267 | GD36: 283 | GE36: 252 | GF36: 242 | GG36: 52 | GH36: 46
A37: Mon | B37: 800 | C37: 0 | D37: 132 | E37: 0 | F37: 13 | G37: 1 | H37: 4 | I37: 0 | J37: 0 | K37: 1 | L37: 0 | M37: 0 | N37: 0 | O37: 0 | P37: 0 | Q37: 0 | R37: 4 | S37: 31 | T37: 30 | U37: 32 | V37: 42 | W37: 12 | X37: 0 | Y37: 0 | Z37: 0 | AA37: 0 | AB37: 0 | AC37: 0 | AD37: 0 | AE37: 0 | AF37: 0 | AG37: 0 | AH37: 0 | AI37: 36.3 | AJ37: 42.7 | AK37: 21.6 | AL37: 48.7 | AM37: Mon | AN37: 800 | AO37: 0 | AP37: 106 | AQ37: 0 | AR37: 11 | AS37: 0 | AT37: 0 | AU37: 0 | AV37: 2 | AW37: 1 | AX37: 0 | AY37: 0 | AZ37: 0 | BA37: 0 | BB37: 0 | BC37: 1 | BD37: 5 | BE37: 11 | BF37: 32 | BG37: 42 | BH37: 24 | BI37: 5 | BJ37: 0 | BK37: 0 | BL37: 0 | BM37: 0 | BN37: 0 | BO37: 0 | BP37: 0 | BQ37: 0 | BR37: 0 | BS37: 0 | BT37: 0 | BU37: 35.8 | BV37: 41.8 | BW37: 18.9 | BX37: 49.7 | BY37: Mon | BZ37: 800 | CA37: 0 | CB37: 238 | CC37: 0 | CD37: 24 | CE37: 1 | CF37: 4 | CG37: 0 | CH37: 2 | CI37: 2 | CJ37: 0 | CK37: 0 | CL37: 0 | CM37: 0 | CN37: 0 | CO37: 1 | CP37: 9 | CQ37: 42 | CR37: 62 | CS37: 74 | CT37: 66 | CU37: 17 | CV37: 0 | CW37: 0 | CX37: 0 | CY37: 0 | CZ37: 0 | DA37: 0 | DB37: 0 | DC37: 0 | DD37: 0 | DE37: 0 | DF37: 0 | DG37: 36.07859779 | DH37: 42.25 | DI37: 18.9 | DJ37: 49.7 | DK37: 0 | DL37: 132 | DM37: 13 | DN37: 5 | DO37: 1 | DP37: 151 | DQ37: 0 | DR37: 106 | DS37: 11 | DT37: 0 | DU37: 3 | DV37: 120 | DW37: =SUM(DK37+DQ37) -> 0 | DX37: 238 | DY37: 24 | DZ37: 5 | EA37: 4 | EB37: 271 | EC37: 151 | ED37: 156 | EE37: 139 | EF37: 152 | EG37: 136 | EH37: 0 | EI37: 28 | EJ37: 120 | EK37: 123 | EL37: 126 | EM37: 116 | EN37: 116 | EO37: 0 | EP37: 22 | EQ37: 271 | ER37: 279 | ES37: 265 | ET37: 268 | EU37: 252 | EV37: 0 | EW37: 50 | EX37: 146.8 | EY37: 108.8571429 | FE37: 120.2 | FF37: 89 | FL37: 267 | FM37: 197.8571429 | FN37: 151 | FO37: 156 | FP37: 139 | FQ37: 152 | FR37: 136 | FS37: 0 | FT37: 28 | FU37: 120 | FV37: 123 | FW37: 126 | FX37: 116 | FY37: 116 | FZ37: 0 | GA37: 22 | GB37: 271 | GC37: 279 | GD37: 265 | GE37: 268 | GF37: 252 | GG37: 0 | GH37: 50
A38: Mon | B38: 815 | C38: 2 | D38: 140 | E38: 0 | F38: 7 | G38: 2 | H38: 2 | I38: 0 | J38: 0 | K38: 1 | L38: 3 | M38: 0 | N38: 0 | O38: 0 | P38: 0 | Q38: 0 | R38: 3 | S38: 31 | T38: 38 | U38: 50 | V38: 29 | W38: 6 | X38: 0 | Y38: 0 | Z38: 0 | AA38: 0 | AB38: 0 | AC38: 0 | AD38: 0 | AE38: 0 | AF38: 0 | AG38: 0 | AH38: 0 | AI38: 35.3 | AJ38: 40.9 | AK38: 21.3 | AL38: 49.1 | AM38: Mon | AN38: 815 | AO38: 1 | AP38: 87 | AQ38: 1 | AR38: 7 | AS38: 3 | AT38: 1 | AU38: 0 | AV38: 2 | AW38: 1 | AX38: 0 | AY38: 0 | AZ38: 0 | BA38: 1 | BB38: 6 | BC38: 6 | BD38: 9 | BE38: 9 | BF38: 19 | BG38: 30 | BH38: 13 | BI38: 9 | BJ38: 0 | BK38: 1 | BL38: 0 | BM38: 0 | BN38: 0 | BO38: 0 | BP38: 0 | BQ38: 0 | BR38: 0 | BS38: 0 | BT38: 0 | BU38: 33 | BV38: 41.8 | BW38: 8.2 | BX38: 55.6 | BY38: Mon | BZ38: 815 | CA38: 3 | CB38: 227 | CC38: 1 | CD38: 14 | CE38: 5 | CF38: 3 | CG38: 0 | CH38: 2 | CI38: 2 | CJ38: 3 | CK38: 0 | CL38: 0 | CM38: 1 | CN38: 6 | CO38: 6 | CP38: 12 | CQ38: 40 | CR38: 57 | CS38: 80 | CT38: 42 | CU38: 15 | CV38: 0 | CW38: 1 | CX38: 0 | CY38: 0 | CZ38: 0 | DA38: 0 | DB38: 0 | DC38: 0 | DD38: 0 | DE38: 0 | DF38: 0 | DG38: 34.38884615 | DH38: 41.35 | DI38: 8.2 | DJ38: 55.6 | DK38: 2 | DL38: 140 | DM38: 7 | DN38: 4 | DO38: 4 | DP38: 157 | DQ38: 1 | DR38: 88 | DS38: 7 | DT38: 4 | DU38: 3 | DV38: 103 | DW38: 3 | DX38: 228 | DY38: 14 | DZ38: 8 | EA38: 7 | EB38: 260 | EC38: 157 | ED38: 158 | EE38: 147 | EF38: 166 | EG38: 151 | EH38: 0 | EI38: 27 | EJ38: 103 | EK38: 119 | EL38: 102 | EM38: 133 | EN38: 101 | EO38: 0 | EP38: 37 | EQ38: 260 | ER38: 277 | ES38: 249 | ET38: 299 | EU38: 252 | EV38: 0 | EW38: 64 | EX38: 155.8 | EY38: 115.1428571 | FE38: 111.6 | FF38: 85 | FL38: 267.4 | FM38: 200.1428571 | FN38: 157 | FO38: 158 | FP38: 147 | FQ38: 166 | FR38: 151 | FS38: 0 | FT38: 27 | FU38: 103 | FV38: 119 | FW38: 102 | FX38: 133 | FY38: 101 | FZ38: 0 | GA38: 37 | GB38: 260 | GC38: 277 | GD38: 249 | GE38: 299 | GF38: 252 | GG38: 0 | GH38: 64
A39: Mon | B39: 830 | C39: 2 | D39: 109 | E39: 2 | F39: 5 | G39: 3 | H39: 1 | I39: 0 | J39: 0 | K39: 0 | L39: 2 | M39: 0 | N39: 0 | O39: 0 | P39: 0 | Q39: 1 | R39: 7 | S39: 41 | T39: 20 | U39: 22 | V39: 27 | W39: 4 | X39: 2 | Y39: 0 | Z39: 0 | AA39: 0 | AB39: 0 | AC39: 0 | AD39: 0 | AE39: 0 | AF39: 0 | AG39: 0 | AH39: 0 | AI39: 34.3 | AJ39: 41.8 | AK39: 18.6 | AL39: 54 | AM39: Mon | AN39: 830 | AO39: 0 | AP39: 92 | AQ39: 1 | AR39: 6 | AS39: 1 | AT39: 2 | AU39: 0 | AV39: 1 | AW39: 0 | AX39: 0 | AY39: 0 | AZ39: 0 | BA39: 0 | BB39: 4 | BC39: 4 | BD39: 10 | BE39: 12 | BF39: 16 | BG39: 23 | BH39: 25 | BI39: 8 | BJ39: 1 | BK39: 0 | BL39: 0 | BM39: 0 | BN39: 0 | BO39: 0 | BP39: 0 | BQ39: 0 | BR39: 0 | BS39: 0 | BT39: 0 | BU39: 34.5 | BV39: 43.6 | BW39: 13.7 | BX39: 52.9 | BY39: Mon | BZ39: 830 | CA39: 2 | CB39: 201 | CC39: 3 | CD39: 11 | CE39: 4 | CF39: 3 | CG39: 0 | CH39: 1 | CI39: 0 | CJ39: 2 | CK39: 0 | CL39: 0 | CM39: 0 | CN39: 4 | CO39: 5 | CP39: 17 | CQ39: 53 | CR39: 36 | CS39: 45 | CT39: 52 | CU39: 12 | CV39: 3 | CW39: 0 | CX39: 0 | CY39: 0 | CZ39: 0 | DA39: 0 | DB39: 0 | DC39: 0 | DD39: 0 | DE39: 0 | DF39: 0 | DG39: 34.3907489 | DH39: 42.7 | DI39: 13.7 | DJ39: 54 | DK39: 2 | DL39: 111 | DM39: 5 | DN39: 4 | DO39: 2 | DP39: 124 | DQ39: 0 | DR39: 93 | DS39: 6 | DT39: 3 | DU39: 1 | DV39: 103 | DW39: 2 | DX39: 204 | DY39: 11 | DZ39: 7 | EA39: 3 | EB39: 227 | EC39: 124 | ED39: 132 | EE39: 115 | EF39: 120 | EG39: 130 | EH39: 0 | EI39: 26 | EJ39: 103 | EK39: 125 | EL39: 100 | EM39: 99 | EN39: 90 | EO39: 0 | EP39: 38 | EQ39: 227 | ER39: 257 | ES39: 215 | ET39: 219 | EU39: 220 | EV39: 0 | EW39: 64 | EX39: 124.2 | EY39: 92.42857143 | FE39: 103.4 | FF39: 79.28571429 | FL39: 227.6 | FM39: 171.7142857 | FN39: 124 | FO39: 132 | FP39: 115 | FQ39: 120 | FR39: 130 | FS39: 0 | FT39: 26 | FU39: 103 | FV39: 125 | FW39: 100 | FX39: 99 | FY39: 90 | FZ39: 0 | GA39: 38 | GB39: 227 | GC39: 257 | GD39: 215 | GE39: 219 | GF39: 220 | GG39: 0 | GH39: 64
A40: Mon | B40: 845 | C40: 1 | D40: 82 | E40: 2 | F40: 4 | G40: 0 | H40: 2 | I40: 0 | J40: 0 | K40: 0 | L40: 0 | M40: 0 | N40: 0 | O40: 0 | P40: 0 | Q40: 1 | R40: 14 | S40: 14 | T40: 15 | U40: 14 | V40: 20 | W40: 10 | X40: 3 | Y40: 0 | Z40: 0 | AA40: 0 | AB40: 0 | AC40: 0 | AD40: 0 | AE40: 0 | AF40: 0 | AG40: 0 | AH40: 0 | AI40: 35.4 | AJ40: 44.5 | AK40: 18.8 | AL40: 53.7 | AM40: Mon | AN40: 845 | AO40: 0 | AP40: 82 | AQ40: 0 | AR40: 3 | AS40: 0 | AT40: 5 | AU40: 0 | AV40: 2 | AW40: 1 | AX40: 1 | AY40: 0 | AZ40: 0 | BA40: 0 | BB40: 0 | BC40: 1 | BD40: 9 | BE40: 8 | BF40: 19 | BG40: 31 | BH40: 18 | BI40: 7 | BJ40: 1 | BK40: 0 | BL40: 0 | BM40: 0 | BN40: 0 | BO40: 0 | BP40: 0 | BQ40: 0 | BR40: 0 | BS40: 0 | BT40: 0 | BU40: 35.8 | BV40: 42.3 | BW40: 18.6 | BX40: 52.8 | BY40: Mon | BZ40: 845 | CA40: 1 | CB40: 164 | CC40: 2 | CD40: 7 | CE40: 0 | CF40: 7 | CG40: 0 | CH40: 2 | CI40: 1 | CJ40: 1 | CK40: 0 | CL40: 0 | CM40: 0 | CN40: 0 | CO40: 2 | CP40: 23 | CQ40: 22 | CR40: 34 | CS40: 45 | CT40: 38 | CU40: 17 | CV40: 4 | CW40: 0 | CX40: 0 | CY40: 0 | CZ40: 0 | DA40: 0 | DB40: 0 | DC40: 0 | DD40: 0 | DE40: 0 | DF40: 0 | DG40: 35.60324324 | DH40: 43.4 | DI40: 18.6 | DJ40: 53.7 | DK40: 1 | DL40: 84 | DM40: 4 | DN40: 2 | DO40: 0 | DP40: 91 | DQ40: 0 | DR40: 82 | DS40: 3 | DT40: 5 | DU40: 4 | DV40: 94 | DW40: 1 | DX40: 166 | DY40: 7 | DZ40: 7 | EA40: 4 | EB40: 185 | EC40: 91 | ED40: 118 | EE40: 103 | EF40: 91 | EG40: 107 | EH40: 57 | EI40: 42 | EJ40: 94 | EK40: 87 | EL40: 87 | EM40: 104 | EN40: 82 | EO40: 39 | EP40: 21 | EQ40: 185 | ER40: 205 | ES40: 190 | ET40: 195 | EU40: 189 | EV40: 96 | EW40: 63 | EX40: 102 | EY40: 87 | FE40: 90.8 | FF40: 73.42857143 | FL40: 192.8 | FM40: 160.4285714 | FN40: 91 | FO40: 118 | FP40: 103 | FQ40: 91 | FR40: 107 | FS40: 57 | FT40: 42 | FU40: 94 | FV40: 87 | FW40: 87 | FX40: 104 | FY40: 82 | FZ40: 39 | GA40: 21 | GB40: 185 | GC40: 205 | GD40: 190 | GE40: 195 | GF40: 189 | GG40: 96 | GH40: 63
A41: Mon | B41: 900 | C41: 1 | D41: 72 | E41: 1 | F41: 8 | G41: 0 | H41: 1 | I41: 0 | J41: 0 | K41: 0 | L41: 1 | M41: 0 | N41: 0 | O41: 0 | P41: 0 | Q41: 0 | R41: 3 | S41: 18 | T41: 20 | U41: 26 | V41: 12 | W41: 4 | X41: 0 | Y41: 1 | Z41: 0 | AA41: 0 | AB41: 0 | AC41: 0 | AD41: 0 | AE41: 0 | AF41: 0 | AG41: 0 | AH41: 0 | AI41: 35.2 | AJ41: 40.5 | AK41: 20.4 | AL41: 58.7 | AM41: Mon | AN41: 900 | AO41: 1 | AP41: 73 | AQ41: 1 | AR41: 13 | AS41: 1 | AT41: 1 | AU41: 0 | AV41: 0 | AW41: 0 | AX41: 1 | AY41: 0 | AZ41: 0 | BA41: 0 | BB41: 0 | BC41: 5 | BD41: 4 | BE41: 7 | BF41: 27 | BG41: 24 | BH41: 20 | BI41: 2 | BJ41: 2 | BK41: 0 | BL41: 0 | BM41: 0 | BN41: 0 | BO41: 0 | BP41: 0 | BQ41: 0 | BR41: 0 | BS41: 0 | BT41: 0 | BU41: 35.1 | BV41: 40.9 | BW41: 18.5 | BX41: 54.2 | BY41: Mon | BZ41: 900 | CA41: 2 | CB41: 145 | CC41: 2 | CD41: 21 | CE41: 1 | CF41: 2 | CG41: 0 | CH41: 0 | CI41: 0 | CJ41: 2 | CK41: 0 | CL41: 0 | CM41: 0 | CN41: 0 | CO41: 5 | CP41: 7 | CQ41: 25 | CR41: 47 | CS41: 50 | CT41: 32 | CU41: 6 | CV41: 2 | CW41: 1 | CX41: 0 | CY41: 0 | CZ41: 0 | DA41: 0 | DB41: 0 | DC41: 0 | DD41: 0 | DE41: 0 | DF41: 0 | DG41: 35.148 | DH41: 40.7 | DI41: 18.5 | DJ41: 58.7 | DK41: 1 | DL41: 73 | DM41: 8 | DN41: 1 | DO41: 1 | DP41: 84 | DQ41: 1 | DR41: 74 | DS41: 13 | DT41: 2 | DU41: 1 | DV41: 91 | DW41: 2 | DX41: 147 | DY41: 21 | DZ41: 3 | EA41: 2 | EB41: 175 | EC41: 84 | ED41: 108 | EE41: 118 | EF41: 97 | EG41: 126 | EH41: 60 | EI41: 40 | EJ41: 91 | EK41: 97 | EL41: 85 | EM41: 81 | EN41: 84 | EO41: 46 | EP41: 22 | EQ41: 175 | ER41: 205 | ES41: 203 | ET41: 178 | EU41: 210 | EV41: 106 | EW41: 62 | EX41: 106.6 | EY41: 90.42857143 | FE41: 87.6 | FF41: 72.28571429 | FL41: 194.2 | FM41: 162.7142857 | FN41: 84 | FO41: 108 | FP41: 118 | FQ41: 97 | FR41: 126 | FS41: 60 | FT41: 40 | FU41: 91 | FV41: 97 | FW41: 85 | FX41: 81 | FY41: 84 | FZ41: 46 | GA41: 22 | GB41: 175 | GC41: 205 | GD41: 203 | GE41: 178 | GF41: 210 | GG41: 106 | GH41: 62
A42: Mon | B42: 915 | C42: 0 | D42: 76 | E42: 1 | F42: 6 | G42: 0 | H42: 1 | I42: 0 | J42: 0 | K42: 0 | L42: 0 | M42: 0 | N42: 0 | O42: 0 | P42: 0 | Q42: 0 | R42: 4 | S42: 8 | T42: 21 | U42: 19 | V42: 16 | W42: 15 | X42: 1 | Y42: 0 | Z42: 0 | AA42: 0 | AB42: 0 | AC42: 0 | AD42: 0 | AE42: 0 | AF42: 0 | AG42: 0 | AH42: 0 | AI42: 38.1 | AJ42: 46.5 | AK42: 21.4 | AL42: 53.7 | AM42: Mon | AN42: 915 | AO42: 1 | AP42: 78 | AQ42: 2 | AR42: 12 | AS42: 0 | AT42: 3 | AU42: 0 | AV42: 0 | AW42: 0 | AX42: 0 | AY42: 0 | AZ42: 0 | BA42: 0 | BB42: 0 | BC42: 0 | BD42: 4 | BE42: 8 | BF42: 22 | BG42: 30 | BH42: 23 | BI42: 8 | BJ42: 1 | BK42: 0 | BL42: 0 | BM42: 0 | BN42: 0 | BO42: 0 | BP42: 0 | BQ42: 0 | BR42: 0 | BS42: 0 | BT42: 0 | BU42: 36.9 | BV42: 42.9 | BW42: 23.6 | BX42: 53.6 | BY42: Mon | BZ42: 915 | CA42: 1 | CB42: 154 | CC42: 3 | CD42: 18 | CE42: 0 | CF42: 4 | CG42: 0 | CH42: 0 | CI42: 0 | CJ42: 0 | CK42: 0 | CL42: 0 | CM42: 0 | CN42: 0 | CO42: 0 | CP42: 8 | CQ42: 16 | CR42: 43 | CS42: 49 | CT42: 39 | CU42: 23 | CV42: 2 | CW42: 0 | CX42: 0 | CY42: 0 | CZ42: 0 | DA42: 0 | DB42: 0 | DC42: 0 | DD42: 0 | DE42: 0 | DF42: 0 | DG42: 37.46 | DH42: 44.7 | DI42: 21.4 | DJ42: 53.7 | DK42: 0 | DL42: 77 | DM42: 6 | DN42: 1 | DO42: 0 | DP42: 84 | DQ42: 1 | DR42: 80 | DS42: 12 | DT42: 3 | DU42: 0 | DV42: 96 | DW42: 1 | DX42: 157 | DY42: 18 | DZ42: 4 | EA42: 0 | EB42: 180 | EC42: 84 | ED42: 92 | EE42: 98 | EF42: 98 | EG42: 94 | EH42: 58 | EI42: 49 | EJ42: 96 | EK42: 75 | EL42: 85 | EM42: 88 | EN42: 87 | EO42: 37 | EP42: 26 | EQ42: 180 | ER42: 167 | ES42: 183 | ET42: 186 | EU42: 181 | EV42: 95 | EW42: 75 | EX42: 93.2 | EY42: 81.85714286 | FE42: 86.2 | FF42: 70.57142857 | FL42: 179.4 | FM42: 152.4285714 | FN42: 84 | FO42: 92 | FP42: 98 | FQ42: 98 | FR42: 94 | FS42: 58 | FT42: 49 | FU42: 96 | FV42: 75 | FW42: 85 | FX42: 88 | FY42: 87 | FZ42: 37 | GA42: 26 | GB42: 180 | GC42: 167 | GD42: 183 | GE42: 186 | GF42: 181 | GG42: 95 | GH42: 75
A43: Mon | B43: 930 | C43: 0 | D43: 64 | E43: 3 | F43: 11 | G43: 1 | H43: 1 | I43: 0 | J43: 0 | K43: 0 | L43: 5 | M43: 0 | N43: 0 | O43: 0 | P43: 0 | Q43: 0 | R43: 4 | S43: 18 | T43: 16 | U43: 17 | V43: 17 | W43: 8 | X43: 4 | Y43: 1 | Z43: 0 | AA43: 0 | AB43: 0 | AC43: 0 | AD43: 0 | AE43: 0 | AF43: 0 | AG43: 0 | AH43: 0 | AI43: 36.8 | AJ43: 44.5 | AK43: 22.3 | AL43: 55.5 | AM43: Mon | AN43: 930 | AO43: 1 | AP43: 75 | AQ43: 2 | AR43: 4 | AS43: 0 | AT43: 1 | AU43: 0 | AV43: 1 | AW43: 1 | AX43: 1 | AY43: 0 | AZ43: 0 | BA43: 0 | BB43: 1 | BC43: 0 | BD43: 0 | BE43: 11 | BF43: 26 | BG43: 21 | BH43: 20 | BI43: 5 | BJ43: 2 | BK43: 0 | BL43: 0 | BM43: 0 | BN43: 0 | BO43: 0 | BP43: 0 | BQ43: 0 | BR43: 0 | BS43: 0 | BT43: 0 | BU43: 36.4 | BV43: 43.4 | BW43: 12.5 | BX43: 54.5 | BY43: Mon | BZ43: 930 | CA43: 1 | CB43: 139 | CC43: 5 | CD43: 15 | CE43: 1 | CF43: 2 | CG43: 0 | CH43: 1 | CI43: 1 | CJ43: 6 | CK43: 0 | CL43: 0 | CM43: 0 | CN43: 1 | CO43: 0 | CP43: 4 | CQ43: 29 | CR43: 42 | CS43: 38 | CT43: 37 | CU43: 13 | CV43: 6 | CW43: 1 | CX43: 0 | CY43: 0 | CZ43: 0 | DA43: 0 | DB43: 0 | DC43: 0 | DD43: 0 | DE43: 0 | DF43: 0 | DG43: 36.59883041 | DH43: 43.95 | DI43: 12.5 | DJ43: 55.5 | DK43: 0 | DL43: 67 | DM43: 11 | DN43: 2 | DO43: 5 | DP43: 85 | DQ43: 1 | DR43: 77 | DS43: 4 | DT43: 1 | DU43: 3 | DV43: 86 | DW43: 1 | DX43: 144 | DY43: 15 | DZ43: 3 | EA43: 8 | EB43: 171 | EC43: 85 | ED43: 91 | EE43: 93 | EF43: 101 | EG43: 88 | EH43: 76 | EI43: 61 | EJ43: 86 | EK43: 87 | EL43: 76 | EM43: 73 | EN43: 79 | EO43: 67 | EP43: 42 | EQ43: 171 | ER43: 178 | ES43: 169 | ET43: 174 | EU43: 167 | EV43: 143 | EW43: 103 | EX43: 91.6 | EY43: 85 | FE43: 80.2 | FF43: 72.85714286 | FL43: 171.8 | FM43: 157.8571429 | FN43: 85 | FO43: 91 | FP43: 93 | FQ43: 101 | FR43: 88 | FS43: 76 | FT43: 61 | FU43: 86 | FV43: 87 | FW43: 76 | FX43: 73 | FY43: 79 | FZ43: 67 | GA43: 42 | GB43: 171 | GC43: 178 | GD43: 169 | GE43: 174 | GF43: 167 | GG43: 143 | GH43: 103
A44: Mon | B44: 945 | C44: 0 | D44: 83 | E44: 1 | F44: 7 | G44: 2 | H44: 1 | I44: 0 | J44: 1 | K44: 0 | L44: 2 | M44: 1 | N44: 1 | O44: 0 | P44: 0 | Q44: 0 | R44: 3 | S44: 12 | T44: 28 | U44: 29 | V44: 18 | W44: 8 | X44: 1 | Y44: 0 | Z44: 0 | AA44: 0 | AB44: 0 | AC44: 0 | AD44: 0 | AE44: 0 | AF44: 0 | AG44: 0 | AH44: 0 | AI44: 36.3 | AJ44: 42.9 | AK44: 21.1 | AL44: 50.7 | AM44: Mon | AN44: 945 | AO44: 0 | AP44: 59 | AQ44: 0 | AR44: 8 | AS44: 2 | AT44: 1 | AU44: 0 | AV44: 1 | AW44: 2 | AX44: 0 | AY44: 0 | AZ44: 0 | BA44: 0 | BB44: 0 | BC44: 0 | BD44: 1 | BE44: 16 | BF44: 16 | BG44: 24 | BH44: 9 | BI44: 4 | BJ44: 1 | BK44: 2 | BL44: 0 | BM44: 0 | BN44: 0 | BO44: 0 | BP44: 0 | BQ44: 0 | BR44: 0 | BS44: 0 | BT44: 0 | BU44: 36 | BV44: 42.1 | BW44: 24.5 | BX44: 59.6 | BY44: Mon | BZ44: 945 | CA44: 0 | CB44: 142 | CC44: 1 | CD44: 15 | CE44: 4 | CF44: 2 | CG44: 0 | CH44: 2 | CI44: 2 | CJ44: 2 | CK44: 1 | CL44: 1 | CM44: 0 | CN44: 0 | CO44: 0 | CP44: 4 | CQ44: 28 | CR44: 44 | CS44: 53 | CT44: 27 | CU44: 12 | CV44: 2 | CW44: 2 | CX44: 0 | CY44: 0 | CZ44: 0 | DA44: 0 | DB44: 0 | DC44: 0 | DD44: 0 | DE44: 0 | DF44: 0 | DG44: 36.17267442 | DH44: 42.5 | DI44: 21.1 | DJ44: 59.6 | DK44: 0 | DL44: 84 | DM44: 7 | DN44: 3 | DO44: 5 | DP44: 99 | DQ44: 0 | DR44: 59 | DS44: 8 | DT44: 3 | DU44: 3 | DV44: 73 | DW44: 0 | DX44: 143 | DY44: 15 | DZ44: 6 | EA44: 8 | EB44: 172 | EC44: 99 | ED44: 90 | EE44: 70 | EF44: 70 | EG44: 92 | EH44: 78 | EI44: 67 | EJ44: 73 | EK44: 72 | EL44: 89 | EM44: 97 | EN44: 85 | EO44: 54 | EP44: 44 | EQ44: 172 | ER44: 162 | ES44: 159 | ET44: 167 | EU44: 177 | EV44: 132 | EW44: 111 | EX44: 84.2 | EY44: 80.85714286 | FE44: 83.2 | FF44: 73.42857143 | FL44: 167.4 | FM44: 154.2857143 | FN44: 99 | FO44: 90 | FP44: 70 | FQ44: 70 | FR44: 92 | FS44: 78 | FT44: 67 | FU44: 73 | FV44: 72 | FW44: 89 | FX44: 97 | FY44: 85 | FZ44: 54 | GA44: 44 | GB44: 172 | GC44: 162 | GD44: 159 | GE44: 167 | GF44: 177 | GG44: 132 | GH44: 111
A45: Mon | B45: 1000 | C45: 0 | D45: 54 | E45: 0 | F45: 6 | G45: 0 | H45: 0 | I45: 0 | J45: 0 | K45: 0 | L45: 0 | M45: 0 | N45: 0 | O45: 0 | P45: 0 | Q45: 0 | R45: 4 | S45: 6 | T45: 10 | U45: 22 | V45: 14 | W45: 3 | X45: 1 | Y45: 0 | Z45: 0 | AA45: 0 | AB45: 0 | AC45: 0 | AD45: 0 | AE45: 0 | AF45: 0 | AG45: 0 | AH45: 0 | AI45: 36.7 | AJ45: 42.5 | AK45: 22 | AL45: 53.3 | AM45: Mon | AN45: 1000 | AO45: 0 | AP45: 49 | AQ45: 1 | AR45: 10 | AS45: 0 | AT45: 1 | AU45: 0 | AV45: 2 | AW45: 2 | AX45: 0 | AY45: 0 | AZ45: 0 | BA45: 0 | BB45: 0 | BC45: 0 | BD45: 0 | BE45: 10 | BF45: 20 | BG45: 12 | BH45: 18 | BI45: 4 | BJ45: 0 | BK45: 1 | BL45: 0 | BM45: 0 | BN45: 0 | BO45: 0 | BP45: 0 | BQ45: 0 | BR45: 0 | BS45: 0 | BT45: 0 | BU45: 36.4 | BV45: 42.9 | BW45: 25.3 | BX45: 55.3 | BY45: Mon | BZ45: 1000 | CA45: 0 | CB45: 103 | CC45: 1 | CD45: 16 | CE45: 0 | CF45: 1 | CG45: 0 | CH45: 2 | CI45: 2 | CJ45: 0 | CK45: 0 | CL45: 0 | CM45: 0 | CN45: 0 | CO45: 0 | CP45: 4 | CQ45: 16 | CR45: 30 | CS45: 34 | CT45: 32 | CU45: 7 | CV45: 1 | CW45: 1 | CX45: 0 | CY45: 0 | CZ45: 0 | DA45: 0 | DB45: 0 | DC45: 0 | DD45: 0 | DE45: 0 | DF45: 0 | DG45: 36.544 | DH45: 42.7 | DI45: 22 | DJ45: 55.3 | DK45: 0 | DL45: 54 | DM45: 6 | DN45: 0 | DO45: 0 | DP45: 60 | DQ45: 0 | DR45: 50 | DS45: 10 | DT45: 1 | DU45: 4 | DV45: 65 | DW45: 0 | DX45: 104 | DY45: 16 | DZ45: 1 | EA45: 4 | EB45: 125 | EC45: 60 | ED45: 75 | EE45: 89 | EF45: 63 | EG45: 98 | EH45: 83 | EI45: 68 | EJ45: 65 | EK45: 82 | EL45: 72 | EM45: 68 | EN45: 73 | EO45: 43 | EP45: 55 | EQ45: 125 | ER45: 157 | ES45: 161 | ET45: 131 | EU45: 171 | EV45: 126 | EW45: 123 | EX45: 77 | EY45: 76.57142857 | FE45: 72 | FF45: 65.42857143 | FL45: 149 | FM45: 142 | FN45: 60 | FO45: 75 | FP45: 89 | FQ45: 63 | FR45: 98 | FS45: 83 | FT45: 68 | FU45: 65 | FV45: 82 | FW45: 72 | FX45: 68 | FY45: 73 | FZ45: 43 | GA45: 55 | GB45: 125 | GC45: 157 | GD45: 161 | GE45: 131 | GF45: 171 | GG45: 126 | GH45: 123
A46: Mon | B46: 1015 | C46: 0 | D46: 68 | E46: 2 | F46: 5 | G46: 0 | H46: 3 | I46: 0 | J46: 1 | K46: 2 | L46: 0 | M46: 0 | N46: 0 | O46: 0 | P46: 0 | Q46: 0 | R46: 2 | S46: 16 | T46: 13 | U46: 30 | V46: 19 | W46: 1 | X46: 0 | Y46: 0 | Z46: 0 | AA46: 0 | AB46: 0 | AC46: 0 | AD46: 0 | AE46: 0 | AF46: 0 | AG46: 0 | AH46: 0 | AI46: 35.7 | AJ46: 40.7 | AK46: 21.6 | AL46: 48.1 | AM46: Mon | AN46: 1015 | AO46: 1 | AP46: 62 | AQ46: 0 | AR46: 7 | AS46: 1 | AT46: 0 | AU46: 0 | AV46: 2 | AW46: 0 | AX46: 1 | AY46: 0 | AZ46: 0 | BA46: 0 | BB46: 0 | BC46: 0 | BD46: 1 | BE46: 15 | BF46: 20 | BG46: 24 | BH46: 10 | BI46: 4 | BJ46: 0 | BK46: 0 | BL46: 0 | BM46: 0 | BN46: 0 | BO46: 0 | BP46: 0 | BQ46: 0 | BR46: 0 | BS46: 0 | BT46: 0 | BU46: 35.4 | BV46: 40.9 | BW46: 24.1 | BX46: 49.3 | BY46: Mon | BZ46: 1015 | CA46: 1 | CB46: 130 | CC46: 2 | CD46: 12 | CE46: 1 | CF46: 3 | CG46: 0 | CH46: 3 | CI46: 2 | CJ46: 1 | CK46: 0 | CL46: 0 | CM46: 0 | CN46: 0 | CO46: 0 | CP46: 3 | CQ46: 31 | CR46: 33 | CS46: 54 | CT46: 29 | CU46: 5 | CV46: 0 | CW46: 0 | CX46: 0 | CY46: 0 | CZ46: 0 | DA46: 0 | DB46: 0 | DC46: 0 | DD46: 0 | DE46: 0 | DF46: 0 | DG46: 35.55677419 | DH46: 40.8 | DI46: 21.6 | DJ46: 49.3 | DK46: 0 | DL46: 70 | DM46: 5 | DN46: 3 | DO46: 3 | DP46: 81 | DQ46: 1 | DR46: 62 | DS46: 7 | DT46: 1 | DU46: 3 | DV46: 74 | DW46: 1 | DX46: 132 | DY46: 12 | DZ46: 4 | EA46: 6 | EB46: 155 | EC46: 81 | ED46: 99 | EE46: 77 | EF46: 76 | EG46: 109 | EH46: 74 | EI46: 87 | EJ46: 74 | EK46: 68 | EL46: 87 | EM46: 65 | EN46: 68 | EO46: 60 | EP46: 44 | EQ46: 155 | ER46: 167 | ES46: 164 | ET46: 141 | EU46: 177 | EV46: 134 | EW46: 131 | EX46: 88.4 | EY46: 86.14285714 | FE46: 72.4 | FF46: 66.57142857 | FL46: 160.8 | FM46: 152.7142857 | FN46: 81 | FO46: 99 | FP46: 77 | FQ46: 76 | FR46: 109 | FS46: 74 | FT46: 87 | FU46: 74 | FV46: 68 | FW46: 87 | FX46: 65 | FY46: 68 | FZ46: 60 | GA46: 44 | GB46: 155 | GC46: 167 | GD46: 164 | GE46: 141 | GF46: 177 | GG46: 134 | GH46: 131
A47: Mon | B47: 1030 | C47: 0 | D47: 69 | E47: 1 | F47: 9 | G47: 0 | H47: 0 | I47: 0 | J47: 0 | K47: 0 | L47: 0 | M47: 0 | N47: 0 | O47: 0 | P47: 0 | Q47: 0 | R47: 4 | S47: 16 | T47: 20 | U47: 26 | V47: 8 | W47: 3 | X47: 2 | Y47: 0 | Z47: 0 | AA47: 0 | AB47: 0 | AC47: 0 | AD47: 0 | AE47: 0 | AF47: 0 | AG47: 0 | AH47: 0 | AI47: 35 | AJ47: 40.3 | AK47: 23.3 | AL47: 52 | AM47: Mon | AN47: 1030 | AO47: 0 | AP47: 66 | AQ47: 1 | AR47: 7 | AS47: 1 | AT47: 2 | AU47: 0 | AV47: 0 | AW47: 2 | AX47: 0 | AY47: 0 | AZ47: 0 | BA47: 0 | BB47: 0 | BC47: 1 | BD47: 18 | BE47: 10 | BF47: 14 | BG47: 27 | BH47: 6 | BI47: 3 | BJ47: 0 | BK47: 0 | BL47: 0 | BM47: 0 | BN47: 0 | BO47: 0 | BP47: 0 | BQ47: 0 | BR47: 0 | BS47: 0 | BT47: 0 | BU47: 32.5 | BV47: 39.1 | BW47: 19.7 | BX47: 49.5 | BY47: Mon | BZ47: 1030 | CA47: 0 | CB47: 135 | CC47: 2 | CD47: 16 | CE47: 1 | CF47: 2 | CG47: 0 | CH47: 0 | CI47: 2 | CJ47: 0 | CK47: 0 | CL47: 0 | CM47: 0 | CN47: 0 | CO47: 1 | CP47: 22 | CQ47: 26 | CR47: 34 | CS47: 53 | CT47: 14 | CU47: 6 | CV47: 2 | CW47: 0 | CX47: 0 | CY47: 0 | CZ47: 0 | DA47: 0 | DB47: 0 | DC47: 0 | DD47: 0 | DE47: 0 | DF47: 0 | DG47: 33.75 | DH47: 39.7 | DI47: 19.7 | DJ47: 52 | DK47: 0 | DL47: 70 | DM47: 9 | DN47: 0 | DO47: 0 | DP47: 79 | DQ47: 0 | DR47: 67 | DS47: 7 | DT47: 3 | DU47: 2 | DV47: 79 | DW47: 0 | DX47: 137 | DY47: 16 | DZ47: 3 | EA47: 2 | EB47: 158 | EC47: 79 | ED47: 93 | EE47: 89 | EF47: 103 | EG47: 96 | EH47: 78 | EI47: 98 | EJ47: 79 | EK47: 90 | EL47: 73 | EM47: 94 | EN47: 94 | EO47: 85 | EP47: 47 | EQ47: 158 | ER47: 183 | ES47: 162 | ET47: 197 | EU47: 190 | EV47: 163 | EW47: 145 | EX47: 92 | EY47: 90.85714286 | FE47: 86 | FF47: 80.28571429 | FL47: 178 | FM47: 171.1428571 | FN47: 79 | FO47: 93 | FP47: 89 | FQ47: 103 | FR47: 96 | FS47: 78 | FT47: 98 | FU47: 79 | FV47: 90 | FW47: 73 | FX47: 94 | FY47: 94 | FZ47: 85 | GA47: 47 | GB47: 158 | GC47: 183 | GD47: 162 | GE47: 197 | GF47: 190 | GG47: 163 | GH47: 145
A48: Mon | B48: 1045 | C48: 0 | D48: 88 | E48: 0 | F48: 10 | G48: 1 | H48: 0 | I48: 0 | J48: 0 | K48: 2 | L48: 1 | M48: 0 | N48: 0 | O48: 0 | P48: 0 | Q48: 0 | R48: 7 | S48: 19 | T48: 18 | U48: 25 | V48: 24 | W48: 9 | X48: 0 | Y48: 0 | Z48: 0 | AA48: 0 | AB48: 0 | AC48: 0 | AD48: 0 | AE48: 0 | AF48: 0 | AG48: 0 | AH48: 0 | AI48: 35.9 | AJ48: 43.2 | AK48: 20.1 | AL48: 49.2 | AM48: Mon | AN48: 1045 | AO48: 2 | AP48: 64 | AQ48: 1 | AR48: 7 | AS48: 0 | AT48: 1 | AU48: 0 | AV48: 0 | AW48: 0 | AX48: 0 | AY48: 0 | AZ48: 0 | BA48: 0 | BB48: 1 | BC48: 2 | BD48: 1 | BE48: 20 | BF48: 14 | BG48: 26 | BH48: 10 | BI48: 0 | BJ48: 1 | BK48: 0 | BL48: 0 | BM48: 0 | BN48: 0 | BO48: 0 | BP48: 0 | BQ48: 0 | BR48: 0 | BS48: 0 | BT48: 0 | BU48: 33.6 | BV48: 39.6 | BW48: 13.4 | BX48: 50.2 | BY48: Mon | BZ48: 1045 | CA48: 2 | CB48: 152 | CC48: 1 | CD48: 17 | CE48: 1 | CF48: 1 | CG48: 0 | CH48: 0 | CI48: 2 | CJ48: 1 | CK48: 0 | CL48: 0 | CM48: 0 | CN48: 1 | CO48: 2 | CP48: 8 | CQ48: 39 | CR48: 32 | CS48: 51 | CT48: 34 | CU48: 9 | CV48: 1 | CW48: 0 | CX48: 0 | CY48: 0 | CZ48: 0 | DA48: 0 | DB48: 0 | DC48: 0 | DD48: 0 | DE48: 0 | DF48: 0 | DG48: 34.92542373 | DH48: 41.4 | DI48: 13.4 | DJ48: 50.2 | DK48: 0 | DL48: 88 | DM48: 10 | DN48: 1 | DO48: 3 | DP48: 102 | DQ48: 2 | DR48: 65 | DS48: 7 | DT48: 1 | DU48: 0 | DV48: 75 | DW48: 2 | DX48: 153 | DY48: 17 | DZ48: 2 | EA48: 3 | EB48: 177 | EC48: 102 | ED48: 98 | EE48: 86 | EF48: 106 | EG48: 95 | EH48: 108 | EI48: 80 | EJ48: 75 | EK48: 89 | EL48: 85 | EM48: 81 | EN48: 59 | EO48: 74 | EP48: 70 | EQ48: 177 | ER48: 187 | ES48: 171 | ET48: 187 | EU48: 154 | EV48: 182 | EW48: 150 | EX48: 97.4 | EY48: 96.42857143 | FE48: 77.8 | FF48: 76.14285714 | FL48: 175.2 | FM48: 172.5714286 | FN48: 102 | FO48: 98 | FP48: 86 | FQ48: 106 | FR48: 95 | FS48: 108 | FT48: 80 | FU48: 75 | FV48: 89 | FW48: 85 | FX48: 81 | FY48: 59 | FZ48: 74 | GA48: 70 | GB48: 177 | GC48: 187 | GD48: 171 | GE48: 187 | GF48: 154 | GG48: 182 | GH48: 150
A49: Mon | B49: 1100 | C49: 0 | D49: 82 | E49: 1 | F49: 14 | G49: 2 | H49: 2 | I49: 0 | J49: 1 | K49: 0 | L49: 0 | M49: 0 | N49: 0 | O49: 0 | P49: 0 | Q49: 1 | R49: 6 | S49: 33 | T49: 22 | U49: 31 | V49: 9 | W49: 0 | X49: 0 | Y49: 0 | Z49: 0 | AA49: 0 | AB49: 0 | AC49: 0 | AD49: 0 | AE49: 0 | AF49: 0 | AG49: 0 | AH49: 0 | AI49: 32.8 | AJ49: 37.8 | AK49: 19.9 | AL49: 44.4 | AM49: Mon | AN49: 1100 | AO49: 1 | AP49: 71 | AQ49: 1 | AR49: 9 | AS49: 1 | AT49: 0 | AU49: 0 | AV49: 0 | AW49: 1 | AX49: 2 | AY49: 0 | AZ49: 0 | BA49: 0 | BB49: 0 | BC49: 5 | BD49: 17 | BE49: 8 | BF49: 13 | BG49: 29 | BH49: 12 | BI49: 1 | BJ49: 0 | BK49: 0 | BL49: 0 | BM49: 1 | BN49: 0 | BO49: 0 | BP49: 0 | BQ49: 0 | BR49: 0 | BS49: 0 | BT49: 0 | BU49: 33.1 | BV49: 40 | BW49: 15.7 | BX49: 66.3 | BY49: Mon | BZ49: 1100 | CA49: 1 | CB49: 153 | CC49: 2 | CD49: 23 | CE49: 3 | CF49: 2 | CG49: 0 | CH49: 1 | CI49: 1 | CJ49: 2 | CK49: 0 | CL49: 0 | CM49: 0 | CN49: 0 | CO49: 6 | CP49: 23 | CQ49: 41 | CR49: 35 | CS49: 60 | CT49: 21 | CU49: 1 | CV49: 0 | CW49: 0 | CX49: 0 | CY49: 1 | CZ49: 0 | DA49: 0 | DB49: 0 | DC49: 0 | DD49: 0 | DE49: 0 | DF49: 0 | DG49: 32.93723404 | DH49: 38.9 | DI49: 15.7 | DJ49: 66.3 | DK49: 0 | DL49: 83 | DM49: 14 | DN49: 4 | DO49: 1 | DP49: 102 | DQ49: 1 | DR49: 72 | DS49: 9 | DT49: 1 | DU49: 3 | DV49: 86 | DW49: 1 | DX49: 155 | DY49: 23 | DZ49: 5 | EA49: 4 | EB49: 188 | EC49: 102 | ED49: 83 | EE49: 73 | EF49: 83 | EG49: 87 | EH49: 84 | EI49: 95 | EJ49: 86 | EK49: 70 | EL49: 71 | EM49: 77 | EN49: 79 | EO49: 78 | EP49: 55 | EQ49: 188 | ER49: 153 | ES49: 144 | ET49: 160 | EU49: 166 | EV49: 162 | EW49: 150 | EX49: 85.6 | EY49: 86.71428571 | FE49: 76.6 | FF49: 73.71428571 | FL49: 162.2 | FM49: 160.4285714 | FN49: 102 | FO49: 83 | FP49: 73 | FQ49: 83 | FR49: 87 | FS49: 84 | FT49: 95 | FU49: 86 | FV49: 70 | FW49: 71 | FX49: 77 | FY49: 79 | FZ49: 78 | GA49: 55 | GB49: 188 | GC49: 153 | GD49: 144 | GE49: 160 | GF49: 166 | GG49: 162 | GH49: 150
A50: Mon | B50: 1115 | C50: 0 | D50: 62 | E50: 0 | F50: 9 | G50: 0 | H50: 0 | I50: 0 | J50: 0 | K50: 1 | L50: 3 | M50: 0 | N50: 0 | O50: 0 | P50: 0 | Q50: 0 | R50: 8 | S50: 20 | T50: 14 | U50: 15 | V50: 13 | W50: 2 | X50: 3 | Y50: 0 | Z50: 0 | AA50: 0 | AB50: 0 | AC50: 0 | AD50: 0 | AE50: 0 | AF50: 0 | AG50: 0 | AH50: 0 | AI50: 34.3 | AJ50: 41.6 | AK50: 20.8 | AL50: 52.3 | AM50: Mon | AN50: 1115 | AO50: 1 | AP50: 50 | AQ50: 0 | AR50: 9 | AS50: 1 | AT50: 1 | AU50: 0 | AV50: 0 | AW50: 1 | AX50: 0 | AY50: 0 | AZ50: 0 | BA50: 0 | BB50: 0 | BC50: 0 | BD50: 0 | BE50: 7 | BF50: 8 | BG50: 26 | BH50: 11 | BI50: 10 | BJ50: 0 | BK50: 1 | BL50: 0 | BM50: 0 | BN50: 0 | BO50: 0 | BP50: 0 | BQ50: 0 | BR50: 0 | BS50: 0 | BT50: 0 | BU50: 38.3 | BV50: 45.2 | BW50: 27.2 | BX50: 58.1 | BY50: Mon | BZ50: 1115 | CA50: 1 | CB50: 112 | CC50: 0 | CD50: 18 | CE50: 1 | CF50: 1 | CG50: 0 | CH50: 0 | CI50: 2 | CJ50: 3 | CK50: 0 | CL50: 0 | CM50: 0 | CN50: 0 | CO50: 0 | CP50: 8 | CQ50: 27 | CR50: 22 | CS50: 41 | CT50: 24 | CU50: 12 | CV50: 3 | CW50: 1 | CX50: 0 | CY50: 0 | CZ50: 0 | DA50: 0 | DB50: 0 | DC50: 0 | DD50: 0 | DE50: 0 | DF50: 0 | DG50: 36.12608696 | DH50: 43.4 | DI50: 20.8 | DJ50: 58.1 | DK50: 0 | DL50: 62 | DM50: 9 | DN50: 0 | DO50: 4 | DP50: 75 | DQ50: 1 | DR50: 50 | DS50: 9 | DT50: 2 | DU50: 1 | DV50: 63 | DW50: 1 | DX50: 112 | DY50: 18 | DZ50: 2 | EA50: 5 | EB50: 138 | EC50: 75 | ED50: 86 | EE50: 79 | EF50: 94 | EG50: 111 | EH50: 103 | EI50: 112 | EJ50: 63 | EK50: 70 | EL50: 88 | EM50: 72 | EN50: 85 | EO50: 87 | EP50: 61 | EQ50: 138 | ER50: 156 | ES50: 167 | ET50: 166 | EU50: 196 | EV50: 190 | EW50: 173 | EX50: 89 | EY50: 94.28571429 | FE50: 75.6 | FF50: 75.14285714 | FL50: 164.6 | FM50: 169.4285714 | FN50: 75 | FO50: 86 | FP50: 79 | FQ50: 94 | FR50: 111 | FS50: 103 | FT50: 112 | FU50: 63 | FV50: 70 | FW50: 88 | FX50: 72 | FY50: 85 | FZ50: 87 | GA50: 61 | GB50: 138 | GC50: 156 | GD50: 167 | GE50: 166 | GF50: 196 | GG50: 190 | GH50: 173
A51: Mon | B51: 1130 | C51: 0 | D51: 71 | E51: 2 | F51: 9 | G51: 1 | H51: 2 | I51: 0 | J51: 0 | K51: 0 | L51: 2 | M51: 0 | N51: 0 | O51: 0 | P51: 0 | Q51: 1 | R51: 6 | S51: 11 | T51: 11 | U51: 24 | V51: 28 | W51: 6 | X51: 0 | Y51: 0 | Z51: 0 | AA51: 0 | AB51: 0 | AC51: 0 | AD51: 0 | AE51: 0 | AF51: 0 | AG51: 0 | AH51: 0 | AI51: 36.8 | AJ51: 43.2 | AK51: 19.7 | AL51: 48.6 | AM51: Mon | AN51: 1130 | AO51: 0 | AP51: 69 | AQ51: 2 | AR51: 9 | AS51: 1 | AT51: 0 | AU51: 0 | AV51: 0 | AW51: 0 | AX51: 0 | AY51: 0 | AZ51: 0 | BA51: 0 | BB51: 0 | BC51: 0 | BD51: 2 | BE51: 10 | BF51: 29 | BG51: 19 | BH51: 10 | BI51: 5 | BJ51: 6 | BK51: 0 | BL51: 0 | BM51: 0 | BN51: 0 | BO51: 0 | BP51: 0 | BQ51: 0 | BR51: 0 | BS51: 0 | BT51: 0 | BU51: 36.7 | BV51: 44.7 | BW51: 23.4 | BX51: 52.9 | BY51: Mon | BZ51: 1130 | CA51: =SUM(C51+AO51) -> 0 | CB51: =SUM(D51+AP51) -> 140 | CC51: =SUM(E51+AQ51) -> 4 | CD51: =SUM(F51+AR51) -> 18 | CE51: =SUM(G51+AS51) -> 2 | CF51: =SUM(H51+AT51) -> 2 | CG51: =SUM(I51+AU51) -> 0 | CH51: =SUM(J51+AV51) -> 0 | CI51: =SUM(K51+AW51) -> 0 | CJ51: =SUM(L51+AX51) -> 2 | CK51: =SUM(M51+AY51) -> 0 | CL51: =SUM(N51+AZ51) -> 0 | CM51: =SUM(O51+BA51) -> 0 | CN51: 0 | CO51: 1 | CP51: 8 | CQ51: 21 | CR51: 40 | CS51: 43 | CT51: 38 | CU51: 11 | CV51: 6 | CW51: 0 | CX51: 0 | CY51: 0 | CZ51: 0 | DA51: 0 | DB51: 0 | DC51: 0 | DD51: 0 | DE51: 0 | DF51: 0 | DG51: 36.75178571 | DH51: 43.95 | DI51: 19.7 | DJ51: 52.9 | DK51: 0 | DL51: 73 | DM51: 9 | DN51: 3 | DO51: 2 | DP51: 87 | DQ51: 0 | DR51: 71 | DS51: 9 | DT51: 1 | DU51: 0 | DV51: 81 | DW51: 0 | DX51: 144 | DY51: 18 | DZ51: 4 | EA51: 2 | EB51: 168 | EC51: 87 | ED51: 92 | EE51: 85 | EF51: 89 | EG51: 93 | EH51: 105 | EI51: 85 | EJ51: 81 | EK51: 108 | EL51: 98 | EM51: 73 | EN51: 78 | EO51: 93 | EP51: 62 | EQ51: 168 | ER51: 200 | ES51: 183 | ET51: 162 | EU51: 171 | EV51: 198 | EW51: 147 | EX51: 89.2 | EY51: 90.85714286 | FE51: 87.6 | FF51: 84.71428571 | FL51: 176.8 | FM51: 175.5714286 | FN51: 87 | FO51: 92 | FP51: 85 | FQ51: 89 | FR51: 93 | FS51: 105 | FT51: 85 | FU51: 81 | FV51: 108 | FW51: 98 | FX51: 73 | FY51: 78 | FZ51: 93 | GA51: 62 | GB51: 168 | GC51: 200 | GD51: 183 | GE51: 162 | GF51: 171 | GG51: 198 | GH51: 147
A52: Mon | B52: 1145 | C52: 1 | D52: 67 | E52: 2 | F52: 6 | G52: 2 | H52: 1 | I52: 0 | J52: 1 | K52: 0 | L52: 2 | M52: 0 | N52: 0 | O52: 0 | P52: 0 | Q52: 1 | R52: 2 | S52: 15 | T52: 22 | U52: 12 | V52: 21 | W52: 4 | X52: 3 | Y52: 0 | Z52: 0 | AA52: 0 | AB52: 0 | AC52: 0 | AD52: 0 | AE52: 0 | AF52: 0 | AG52: 0 | AH52: 2 | AI52: 37.9 | AJ52: 43.8 | AK52: 19.2 | AL52: 120.6 | AM52: Mon | AN52: 1145 | AO52: 0 | AP52: 60 | AQ52: 0 | AR52: 10 | AS52: 0 | AT52: 3 | AU52: 0 | AV52: 4 | AW52: 0 | AX52: 2 | AY52: 0 | AZ52: 0 | BA52: 0 | BB52: 0 | BC52: 0 | BD52: 6 | BE52: 14 | BF52: 26 | BG52: 18 | BH52: 13 | BI52: 1 | BJ52: 1 | BK52: 0 | BL52: 0 | BM52: 0 | BN52: 0 | BO52: 0 | BP52: 0 | BQ52: 0 | BR52: 0 | BS52: 0 | BT52: 0 | BU52: 34.1 | BV52: 40.9 | BW52: 20.2 | BX52: 51.7 | BY52: Mon | BZ52: 1145 | CA52: 1 | CB52: 127 | CC52: 2 | CD52: 16 | CE52: 2 | CF52: 4 | CG52: 0 | CH52: 5 | CI52: 0 | CJ52: 4 | CK52: 0 | CL52: 0 | CM52: 0 | CN52: 0 | CO52: 1 | CP52: 8 | CQ52: 29 | CR52: 48 | CS52: 30 | CT52: 34 | CU52: 5 | CV52: 4 | CW52: 0 | CX52: 0 | CY52: 0 | CZ52: 0 | DA52: 0 | DB52: 0 | DC52: 0 | DD52: 0 | DE52: 0 | DF52: 2 | DG52: 36.03540373 | DH52: 42.35 | DI52: 19.2 | DJ52: 120.6 | DK52: 1 | DL52: 69 | DM52: 6 | DN52: 3 | DO52: 3 | DP52: 82 | DQ52: 0 | DR52: 60 | DS52: 10 | DT52: 3 | DU52: 6 | DV52: 79 | DW52: 1 | DX52: 129 | DY52: 16 | DZ52: 6 | EA52: 9 | EB52: 161 | EC52: 82 | ED52: 99 | EE52: 95 | EF52: 106 | EG52: 108 | EH52: 90 | EI52: 119 | EJ52: 79 | EK52: 83 | EL52: 77 | EM52: 96 | EN52: 77 | EO52: 93 | EP52: 55 | EQ52: 161 | ER52: 182 | ES52: 172 | ET52: 202 | EU52: 185 | EV52: 183 | EW52: 174 | EX52: 98 | EY52: 99.85714286 | FE52: 82.4 | FF52: 80 | FL52: 180.4 | FM52: 179.8571429 | FN52: 82 | FO52: 99 | FP52: 95 | FQ52: 106 | FR52: 108 | FS52: 90 | FT52: 119 | FU52: 79 | FV52: 83 | FW52: 77 | FX52: 96 | FY52: 77 | FZ52: 93 | GA52: 55 | GB52: 161 | GC52: 182 | GD52: 172 | GE52: 202 | GF52: 185 | GG52: 183 | GH52: 174
A53: Mon | B53: 1200 | C53: 0 | D53: 71 | E53: 0 | F53: 6 | G53: 0 | H53: 1 | I53: 0 | J53: 0 | K53: 0 | L53: 1 | M53: 0 | N53: 0 | O53: 0 | P53: 0 | Q53: 0 | R53: 2 | S53: 17 | T53: 17 | U53: 20 | V53: 21 | W53: 2 | X53: 0 | Y53: 0 | Z53: 0 | AA53: 0 | AB53: 0 | AC53: 0 | AD53: 0 | AE53: 0 | AF53: 0 | AG53: 0 | AH53: 0 | AI53: 35.5 | AJ53: 41.4 | AK53: 24.1 | AL53: 47.1 | AM53: Mon | AN53: 1200 | AO53: 1 | AP53: 56 | AQ53: 0 | AR53: 9 | AS53: 1 | AT53: 0 | AU53: 0 | AV53: 2 | AW53: 2 | AX53: 0 | AY53: 0 | AZ53: 0 | BA53: 0 | BB53: 0 | BC53: 1 | BD53: 9 | BE53: 9 | BF53: 22 | BG53: 22 | BH53: 4 | BI53: 4 | BJ53: 0 | BK53: 0 | BL53: 0 | BM53: 0 | BN53: 0 | BO53: 0 | BP53: 0 | BQ53: 0 | BR53: 0 | BS53: 0 | BT53: 0 | BU53: 33.1 | BV53: 38.9 | BW53: 15.1 | BX53: 46.9 | BY53: Mon | BZ53: 1200 | CA53: 1 | CB53: 127 | CC53: 0 | CD53: 15 | CE53: 1 | CF53: 1 | CG53: 0 | CH53: 2 | CI53: 2 | CJ53: 1 | CK53: 0 | CL53: 0 | CM53: 0 | CN53: 0 | CO53: 1 | CP53: 11 | CQ53: 26 | CR53: 39 | CS53: 42 | CT53: 25 | CU53: 6 | CV53: 0 | CW53: 0 | CX53: 0 | CY53: 0 | CZ53: 0 | DA53: 0 | DB53: 0 | DC53: 0 | DD53: 0 | DE53: 0 | DF53: 0 | DG53: 34.364 | DH53: 40.15 | DI53: 15.1 | DJ53: 47.1 | DK53: 0 | DL53: 71 | DM53: 6 | DN53: 1 | DO53: 1 | DP53: 79 | DQ53: 1 | DR53: 56 | DS53: 9 | DT53: 1 | DU53: 4 | DV53: 71 | DW53: 1 | DX53: 127 | DY53: 15 | DZ53: 2 | EA53: 5 | EB53: 150 | EC53: 79 | ED53: 103 | EE53: 87 | EF53: 83 | EG53: 104 | EH53: 91 | EI53: 100 | EJ53: 71 | EK53: 87 | EL53: 88 | EM53: 86 | EN53: 88 | EO53: 86 | EP53: 68 | EQ53: 150 | ER53: 190 | ES53: 175 | ET53: 169 | EU53: 192 | EV53: 177 | EW53: 168 | EX53: 91.2 | EY53: 92.42857143 | FE53: 84 | FF53: 82 | FL53: 175.2 | FM53: 174.4285714 | FN53: 79 | FO53: 103 | FP53: 87 | FQ53: 83 | FR53: 104 | FS53: 91 | FT53: 100 | FU53: 71 | FV53: 87 | FW53: 88 | FX53: 86 | FY53: 88 | FZ53: 86 | GA53: 68 | GB53: 150 | GC53: 190 | GD53: 175 | GE53: 169 | GF53: 192 | GG53: 177 | GH53: 168
A54: Mon | B54: 1215 | C54: 1 | D54: 56 | E54: 1 | F54: 9 | G54: 1 | H54: 1 | I54: 0 | J54: 1 | K54: 0 | L54: 0 | M54: 0 | N54: 0 | O54: 0 | P54: 0 | Q54: 0 | R54: 1 | S54: 7 | T54: 11 | U54: 18 | V54: 20 | W54: 7 | X54: 5 | Y54: 0 | Z54: 1 | AA54: 0 | AB54: 0 | AC54: 0 | AD54: 0 | AE54: 0 | AF54: 0 | AG54: 0 | AH54: 0 | AI54: 39.1 | AJ54: 45.9 | AK54: 21.3 | AL54: 60.3 | AM54: Mon | AN54: 1215 | AO54: 0 | AP54: 55 | AQ54: 3 | AR54: 14 | AS54: 1 | AT54: 2 | AU54: 0 | AV54: 1 | AW54: 1 | AX54: 0 | AY54: 0 | AZ54: 0 | BA54: 0 | BB54: 1 | BC54: 4 | BD54: 5 | BE54: 6 | BF54: 18 | BG54: 27 | BH54: 9 | BI54: 4 | BJ54: 3 | BK54: 0 | BL54: 0 | BM54: 0 | BN54: 0 | BO54: 0 | BP54: 0 | BQ54: 0 | BR54: 0 | BS54: 0 | BT54: 0 | BU54: 35 | BV54: 41.4 | BW54: 12.1 | BX54: 52.5 | BY54: Mon | BZ54: 1215 | CA54: 1 | CB54: 111 | CC54: 4 | CD54: 23 | CE54: 2 | CF54: 3 | CG54: 0 | CH54: 2 | CI54: 1 | CJ54: 0 | CK54: 0 | CL54: 0 | CM54: 0 | CN54: 1 | CO54: 4 | CP54: 6 | CQ54: 13 | CR54: 29 | CS54: 45 | CT54: 29 | CU54: 11 | CV54: 8 | CW54: 0 | CX54: 1 | CY54: 0 | CZ54: 0 | DA54: 0 | DB54: 0 | DC54: 0 | DD54: 0 | DE54: 0 | DF54: 0 | DG54: 36.95238095 | DH54: 43.65 | DI54: 12.1 | DJ54: 60.3 | DK54: 1 | DL54: 57 | DM54: 9 | DN54: 2 | DO54: 1 | DP54: 70 | DQ54: 0 | DR54: 58 | DS54: 14 | DT54: 3 | DU54: 2 | DV54: 77 | DW54: 1 | DX54: 115 | DY54: 23 | DZ54: 5 | EA54: 3 | EB54: 147 | EC54: 70 | ED54: 106 | EE54: 94 | EF54: 93 | EG54: 106 | EH54: 114 | EI54: 124 | EJ54: 77 | EK54: 95 | EL54: 106 | EM54: 74 | EN54: 98 | EO54: 86 | EP54: 90 | EQ54: 147 | ER54: 201 | ES54: 200 | ET54: 167 | EU54: 204 | EV54: 200 | EW54: 214 | EX54: 93.8 | EY54: 101 | FE54: 90 | FF54: 89.42857143 | FL54: 183.8 | FM54: 190.4285714 | FN54: 70 | FO54: 106 | FP54: 94 | FQ54: 93 | FR54: 106 | FS54: 114 | FT54: 124 | FU54: 77 | FV54: 95 | FW54: 106 | FX54: 74 | FY54: 98 | FZ54: 86 | GA54: 90 | GB54: 147 | GC54: 201 | GD54: 200 | GE54: 167 | GF54: 204 | GG54: 200 | GH54: 214
A55: Mon | B55: 1230 | C55: 2 | D55: 73 | E55: 2 | F55: 8 | G55: 0 | H55: 0 | I55: 0 | J55: 0 | K55: 1 | L55: 0 | M55: 0 | N55: 0 | O55: 0 | P55: 0 | Q55: 1 | R55: 8 | S55: 22 | T55: 14 | U55: 30 | V55: 8 | W55: 2 | X55: 0 | Y55: 0 | Z55: 1 | AA55: 0 | AB55: 0 | AC55: 0 | AD55: 0 | AE55: 0 | AF55: 0 | AG55: 0 | AH55: 0 | AI55: 33.6 | AJ55: 39.6 | AK55: 17.9 | AL55: 60.4 | AM55: Mon | AN55: 1230 | AO55: 1 | AP55: 78 | AQ55: 1 | AR55: 1 | AS55: 0 | AT55: 0 | AU55: 0 | AV55: 1 | AW55: 0 | AX55: 0 | AY55: 0 | AZ55: 0 | BA55: 0 | BB55: 0 | BC55: 0 | BD55: 1 | BE55: 5 | BF55: 25 | BG55: 14 | BH55: 25 | BI55: 7 | BJ55: 3 | BK55: 2 | BL55: 0 | BM55: 0 | BN55: 0 | BO55: 0 | BP55: 0 | BQ55: 0 | BR55: 0 | BS55: 0 | BT55: 0 | BU55: 38.7 | BV55: 44.5 | BW55: 24.2 | BX55: 55.5 | BY55: Mon | BZ55: 1230 | CA55: 3 | CB55: 151 | CC55: 3 | CD55: 9 | CE55: 0 | CF55: 0 | CG55: 0 | CH55: 1 | CI55: 1 | CJ55: 0 | CK55: 0 | CL55: 0 | CM55: 0 | CN55: 0 | CO55: 1 | CP55: 9 | CQ55: 27 | CR55: 39 | CS55: 44 | CT55: 33 | CU55: 9 | CV55: 3 | CW55: 2 | CX55: 1 | CY55: 0 | CZ55: 0 | DA55: 0 | DB55: 0 | DC55: 0 | DD55: 0 | DE55: 0 | DF55: 0 | DG55: 36.08928571 | DH55: 42.05 | DI55: 17.9 | DJ55: 60.4 | DK55: 2 | DL55: 75 | DM55: 8 | DN55: 0 | DO55: 1 | DP55: 86 | DQ55: 1 | DR55: 79 | DS55: 1 | DT55: 0 | DU55: 1 | DV55: 82 | DW55: 3 | DX55: 154 | DY55: 9 | DZ55: 0 | EA55: 2 | EB55: 168 | EC55: 86 | ED55: 106 | EE55: 104 | EF55: 84 | EG55: 111 | EH55: 129 | EI55: 97 | EJ55: 82 | EK55: 76 | EL55: 94 | EM55: 117 | EN55: 92 | EO55: 101 | EP55: 93 | EQ55: 168 | ER55: 182 | ES55: 198 | ET55: 201 | EU55: 203 | EV55: 230 | EW55: 190 | EX55: 98.2 | EY55: 102.4285714 | FE55: 92.2 | FF55: 93.57142857 | FL55: 190.4 | FM55: 196 | FN55: 86 | FO55: 106 | FP55: 104 | FQ55: 84 | FR55: 111 | FS55: 129 | FT55: 97 | FU55: 82 | FV55: 76 | FW55: 94 | FX55: 117 | FY55: 92 | FZ55: 101 | GA55: 93 | GB55: 168 | GC55: 182 | GD55: 198 | GE55: 201 | GF55: 203 | GG55: 230 | GH55: 190
A56: Mon | B56: 1245 | C56: 0 | D56: 67 | E56: 0 | F56: 7 | G56: 1 | H56: 2 | I56: 0 | J56: 0 | K56: 0 | L56: 1 | M56: 0 | N56: 0 | O56: 0 | P56: 0 | Q56: 0 | R56: 4 | S56: 12 | T56: 13 | U56: 23 | V56: 20 | W56: 6 | X56: 0 | Y56: 0 | Z56: 0 | AA56: 0 | AB56: 0 | AC56: 0 | AD56: 0 | AE56: 0 | AF56: 0 | AG56: 0 | AH56: 0 | AI56: 36.3 | AJ56: 42.5 | AK56: 23.7 | AL56: 48.6 | AM56: Mon | AN56: 1245 | AO56: 0 | AP56: 91 | AQ56: 0 | AR56: 9 | AS56: 0 | AT56: 1 | AU56: 0 | AV56: 0 | AW56: 0 | AX56: 1 | AY56: 0 | AZ56: 0 | BA56: 0 | BB56: 0 | BC56: 2 | BD56: 2 | BE56: 19 | BF56: 34 | BG56: 31 | BH56: 12 | BI56: 0 | BJ56: 2 | BK56: 0 | BL56: 0 | BM56: 0 | BN56: 0 | BO56: 0 | BP56: 0 | BQ56: 0 | BR56: 0 | BS56: 0 | BT56: 0 | BU56: 33.9 | BV56: 39.6 | BW56: 17.3 | BX56: 54.9 | BY56: Mon | BZ56: 1245 | CA56: 0 | CB56: 158 | CC56: 0 | CD56: 16 | CE56: 1 | CF56: 3 | CG56: 0 | CH56: 0 | CI56: 0 | CJ56: 2 | CK56: 0 | CL56: 0 | CM56: 0 | CN56: 0 | CO56: 2 | CP56: 6 | CQ56: 31 | CR56: 47 | CS56: 54 | CT56: 32 | CU56: 6 | CV56: 2 | CW56: 0 | CX56: 0 | CY56: 0 | CZ56: 0 | DA56: 0 | DB56: 0 | DC56: 0 | DD56: 0 | DE56: 0 | DF56: 0 | DG56: 34.94 | DH56: 41.05 | DI56: 17.3 | DJ56: 54.9 | DK56: 0 | DL56: 67 | DM56: 7 | DN56: 3 | DO56: 1 | DP56: 78 | DQ56: 0 | DR56: 91 | DS56: 9 | DT56: 1 | DU56: 1 | DV56: 102 | DW56: 0 | DX56: =SUM(DL56+DR56) -> 158 | DY56: =SUM(DM56+DS56) -> 16 | DZ56: =SUM(DN56+DT56) -> 4 | EA56: =SUM(DO56+DU56) -> 2 | EB56: =SUM(DP56+DV56) -> 180 | EC56: 78 | ED56: 81 | EE56: 84 | EF56: 89 | EG56: 92 | EH56: 91 | EI56: 84 | EJ56: 102 | EK56: 105 | EL56: 99 | EM56: 101 | EN56: 78 | EO56: 87 | EP56: 80 | EQ56: 180 | ER56: 186 | ES56: 183 | ET56: 190 | EU56: 170 | EV56: 178 | EW56: 164 | EX56: 84.8 | EY56: 85.57142857 | FE56: 97 | FF56: 93.14285714 | FL56: 181.8 | FM56: 178.7142857 | FN56: 78 | FO56: 81 | FP56: 84 | FQ56: 89 | FR56: 92 | FS56: 91 | FT56: 84 | FU56: 102 | FV56: 105 | FW56: 99 | FX56: 101 | FY56: 78 | FZ56: 87 | GA56: 80 | GB56: 180 | GC56: 186 | GD56: 183 | GE56: 190 | GF56: 170 | GG56: 178 | GH56: 164
A57: Mon | B57: 1300 | C57: 0 | D57: 80 | E57: 0 | F57: 12 | G57: 0 | H57: 0 | I57: 0 | J57: 0 | K57: 0 | L57: 2 | M57: 0 | N57: 0 | O57: 0 | P57: 0 | Q57: 0 | R57: 4 | S57: 15 | T57: 10 | U57: 27 | V57: 33 | W57: 5 | X57: 0 | Y57: 0 | Z57: 0 | AA57: 0 | AB57: 0 | AC57: 0 | AD57: 0 | AE57: 0 | AF57: 0 | AG57: 0 | AH57: 0 | AI57: 37.3 | AJ57: 43.2 | AK57: 20.4 | AL57: 49.2 | AM57: Mon | AN57: 1300 | AO57: 0 | AP57: 77 | AQ57: 2 | AR57: 4 | AS57: 0 | AT57: 0 | AU57: 0 | AV57: 0 | AW57: 0 | AX57: 0 | AY57: 0 | AZ57: 0 | BA57: 0 | BB57: 4 | BC57: 6 | BD57: 8 | BE57: 6 | BF57: 15 | BG57: 31 | BH57: 10 | BI57: 3 | BJ57: 0 | BK57: 0 | BL57: 0 | BM57: 0 | BN57: 0 | BO57: 0 | BP57: 0 | BQ57: 0 | BR57: 0 | BS57: 0 | BT57: 0 | BU57: 32.6 | BV57: 40.5 | BW57: 11.1 | BX57: 48.8 | BY57: Mon | BZ57: 1300 | CA57: 0 | CB57: 157 | CC57: 2 | CD57: 16 | CE57: 0 | CF57: 0 | CG57: 0 | CH57: 0 | CI57: 0 | CJ57: 2 | CK57: 0 | CL57: 0 | CM57: 0 | CN57: 4 | CO57: 6 | CP57: 12 | CQ57: 21 | CR57: 25 | CS57: 58 | CT57: 43 | CU57: 8 | CV57: 0 | CW57: 0 | CX57: 0 | CY57: 0 | CZ57: 0 | DA57: 0 | DB57: 0 | DC57: 0 | DD57: 0 | DE57: 0 | DF57: 0 | DG57: 35.0960452 | DH57: 41.85 | DI57: 11.1 | DJ57: 49.2 | DK57: 0 | DL57: 80 | DM57: 12 | DN57: 0 | DO57: 2 | DP57: 94 | DQ57: 0 | DR57: 79 | DS57: 4 | DT57: 0 | DU57: 0 | DV57: 83 | DW57: 0 | DX57: 159 | DY57: 16 | DZ57: 0 | EA57: 2 | EB57: 177 | EC57: 94 | ED57: 87 | EE57: 88 | EF57: 90 | EG57: 123 | EH57: 95 | EI57: 105 | EJ57: 83 | EK57: 97 | EL57: 81 | EM57: 80 | EN57: 100 | EO57: 87 | EP57: 87 | EQ57: 177 | ER57: 184 | ES57: 169 | ET57: =SUM(EF57+EM57) -> 170 | EU57: 223 | EV57: 182 | EW57: 192 | EX57: 96.4 | EY57: 97.42857143 | FE57: 88.2 | FF57: 87.85714286 | FL57: 184.6 | FM57: 185.2857143 | FN57: 94 | FO57: 87 | FP57: 88 | FQ57: 90 | FR57: 123 | FS57: 95 | FT57: 105 | FU57: 83 | FV57: 97 | FW57: 81 | FX57: 80 | FY57: 100 | FZ57: 87 | GA57: 87 | GB57: 177 | GC57: 184 | GD57: 169 | GE57: 170 | GF57: 223 | GG57: 182 | GH57: 192
A58: Mon | B58: 1315 | C58: 1 | D58: 65 | E58: 1 | F58: 8 | G58: 0 | H58: 0 | I58: 0 | J58: 1 | K58: 0 | L58: 2 | M58: 0 | N58: 1 | O58: 0 | P58: 0 | Q58: 0 | R58: 0 | S58: 10 | T58: 19 | U58: 30 | V58: 17 | W58: 1 | X58: 2 | Y58: 0 | Z58: 0 | AA58: 0 | AB58: 0 | AC58: 0 | AD58: 0 | AE58: 0 | AF58: 0 | AG58: 0 | AH58: 0 | AI58: 36.3 | AJ58: 41.6 | AK58: 25.1 | AL58: 50.3 | AM58: Mon | AN58: 1315 | AO58: 3 | AP58: 75 | AQ58: 2 | AR58: 7 | AS58: 0 | AT58: 0 | AU58: 0 | AV58: 1 | AW58: 0 | AX58: 1 | AY58: 0 | AZ58: 0 | BA58: 0 | BB58: 0 | BC58: 1 | BD58: 5 | BE58: 11 | BF58: 22 | BG58: 29 | BH58: 10 | BI58: 7 | BJ58: 3 | BK58: 1 | BL58: 0 | BM58: 0 | BN58: 0 | BO58: 0 | BP58: 0 | BQ58: 0 | BR58: 0 | BS58: 0 | BT58: 0 | BU58: 36.1 | BV58: 43.8 | BW58: 19.4 | BX58: 59.1 | BY58: Mon | BZ58: 1315 | CA58: 4 | CB58: 140 | CC58: 3 | CD58: 15 | CE58: 0 | CF58: 0 | CG58: 0 | CH58: 2 | CI58: 0 | CJ58: 3 | CK58: 0 | CL58: 1 | CM58: 0 | CN58: 0 | CO58: 1 | CP58: 5 | CQ58: 21 | CR58: 41 | CS58: 59 | CT58: 27 | CU58: 8 | CV58: 5 | CW58: 1 | CX58: 0 | CY58: 0 | CZ58: 0 | DA58: 0 | DB58: 0 | DC58: 0 | DD58: 0 | DE58: 0 | DF58: 0 | DG58: 36.19404762 | DH58: 42.7 | DI58: 19.4 | DJ58: 59.1 | DK58: 1 | DL58: 66 | DM58: 8 | DN58: 0 | DO58: 4 | DP58: 79 | DQ58: 3 | DR58: 77 | DS58: 7 | DT58: 0 | DU58: 2 | DV58: 89 | DW58: 4 | DX58: 143 | DY58: 15 | DZ58: 0 | EA58: 6 | EB58: 168 | EC58: 79 | ED58: 93 | EE58: 100 | EF58: 103 | EG58: 83 | EH58: 113 | EI58: 74 | EJ58: 89 | EK58: 83 | EL58: 91 | EM58: 88 | EN58: 100 | EO58: 83 | EP58: 100 | EQ58: =SUM(EC58+EJ58) -> 168 | ER58: 176 | ES58: 191 | ET58: 191 | EU58: 183 | EV58: 196 | EW58: 174 | EX58: 91.6 | EY58: 92.14285714 | FE58: 90.2 | FF58: 90.57142857 | FL58: 181.8 | FM58: 182.7142857 | FN58: 79 | FO58: 93 | FP58: 100 | FQ58: 103 | FR58: 83 | FS58: 113 | FT58: 74 | FU58: 89 | FV58: 83 | FW58: 91 | FX58: 88 | FY58: 100 | FZ58: 83 | GA58: 100 | GB58: 168 | GC58: 176 | GD58: 191 | GE58: 191 | GF58: 183 | GG58: 196 | GH58: 174
A59: Mon | B59: 1330 | C59: 0 | D59: 71 | E59: 0 | F59: 6 | G59: 0 | H59: 1 | I59: 0 | J59: 0 | K59: 0 | L59: 3 | M59: 0 | N59: 0 | O59: 0 | P59: 0 | Q59: 0 | R59: 5 | S59: 9 | T59: 15 | U59: 20 | V59: 27 | W59: 5 | X59: 0 | Y59: 0 | Z59: 0 | AA59: 0 | AB59: 0 | AC59: 0 | AD59: 0 | AE59: 0 | AF59: 0 | AG59: 0 | AH59: 0 | AI59: 36.8 | AJ59: 42.7 | AK59: 22.3 | AL59: 49 | AM59: Mon | AN59: 1330 | AO59: 2 | AP59: 58 | AQ59: 1 | AR59: 8 | AS59: 0 | AT59: 0 | AU59: 0 | AV59: 0 | AW59: 0 | AX59: 0 | AY59: 0 | AZ59: 0 | BA59: 1 | BB59: 1 | BC59: 5 | BD59: 3 | BE59: 11 | BF59: 18 | BG59: 16 | BH59: 11 | BI59: 2 | BJ59: 1 | BK59: 0 | BL59: 0 | BM59: 0 | BN59: 0 | BO59: 0 | BP59: 0 | BQ59: 0 | BR59: 0 | BS59: 0 | BT59: 0 | BU59: 33 | BV59: 40.9 | BW59: 9.9 | BX59: 52.4 | BY59: Mon | BZ59: 1330 | CA59: 2 | CB59: 129 | CC59: 1 | CD59: 14 | CE59: 0 | CF59: 1 | CG59: 0 | CH59: 0 | CI59: 0 | CJ59: 3 | CK59: 0 | CL59: 0 | CM59: 1 | CN59: 1 | CO59: 5 | CP59: 8 | CQ59: 20 | CR59: 33 | CS59: 36 | CT59: 38 | CU59: 7 | CV59: 1 | CW59: 0 | CX59: 0 | CY59: 0 | CZ59: 0 | DA59: 0 | DB59: 0 | DC59: 0 | DD59: 0 | DE59: 0 | DF59: 0 | DG59: 35.052 | DH59: 41.8 | DI59: 9.9 | DJ59: 52.4 | DK59: 0 | DL59: 71 | DM59: 6 | DN59: 1 | DO59: 3 | DP59: 81 | DQ59: 2 | DR59: 59 | DS59: 8 | DT59: 0 | DU59: 0 | DV59: 69 | DW59: 2 | DX59: 130 | DY59: 14 | DZ59: 1 | EA59: 3 | EB59: 150 | EC59: 81 | ED59: 85 | EE59: 94 | EF59: 94 | EG59: 123 | EH59: 88 | EI59: 91 | EJ59: 69 | EK59: 88 | EL59: 88 | EM59: 80 | EN59: 104 | EO59: 113 | EP59: 96 | EQ59: 150 | ER59: 173 | ES59: 182 | ET59: 174 | EU59: 227 | EV59: 201 | EW59: 187 | EX59: 95.4 | EY59: 93.71428571 | FE59: 85.8 | FF59: 91.14285714 | FL59: 181.2 | FM59: 184.8571429 | FN59: 81 | FO59: 85 | FP59: 94 | FQ59: 94 | FR59: 123 | FS59: 88 | FT59: 91 | FU59: 69 | FV59: 88 | FW59: 88 | FX59: 80 | FY59: 104 | FZ59: 113 | GA59: 96 | GB59: 150 | GC59: 173 | GD59: 182 | GE59: 174 | GF59: 227 | GG59: 201 | GH59: 187
A60: Mon | B60: 1345 | C60: 2 | D60: 54 | E60: 1 | F60: 11 | G60: 0 | H60: 0 | I60: 0 | J60: 0 | K60: 2 | L60: 1 | M60: 0 | N60: 0 | O60: 0 | P60: 0 | Q60: 0 | R60: 5 | S60: 10 | T60: 20 | U60: 19 | V60: 13 | W60: 2 | X60: 2 | Y60: 0 | Z60: 0 | AA60: 0 | AB60: 0 | AC60: 0 | AD60: 0 | AE60: 0 | AF60: 0 | AG60: 0 | AH60: 0 | AI60: 35.3 | AJ60: 40.9 | AK60: 22.4 | AL60: 50.4 | AM60: Mon | AN60: 1345 | AO60: 1 | AP60: 57 | AQ60: 1 | AR60: 8 | AS60: 1 | AT60: 1 | AU60: 0 | AV60: 0 | AW60: 1 | AX60: 0 | AY60: 0 | AZ60: 0 | BA60: 0 | BB60: 0 | BC60: 0 | BD60: 1 | BE60: 8 | BF60: 19 | BG60: 25 | BH60: 11 | BI60: 6 | BJ60: 0 | BK60: 0 | BL60: 0 | BM60: 0 | BN60: 0 | BO60: 0 | BP60: 0 | BQ60: 0 | BR60: 0 | BS60: 0 | BT60: 0 | BU60: 36.3 | BV60: 42.9 | BW60: 24.7 | BX60: 47.7 | BY60: Mon | BZ60: 1345 | CA60: 3 | CB60: 111 | CC60: 2 | CD60: 19 | CE60: 1 | CF60: 1 | CG60: 0 | CH60: 0 | CI60: 3 | CJ60: 1 | CK60: 0 | CL60: 0 | CM60: 0 | CN60: 0 | CO60: 0 | CP60: 6 | CQ60: 18 | CR60: 39 | CS60: 44 | CT60: 24 | CU60: 8 | CV60: 2 | CW60: 0 | CX60: 0 | CY60: 0 | CZ60: 0 | DA60: 0 | DB60: 0 | DC60: 0 | DD60: 0 | DE60: 0 | DF60: 0 | DG60: 35.7964539 | DH60: 41.9 | DI60: 22.4 | DJ60: 50.4 | DK60: 2 | DL60: 55 | DM60: 11 | DN60: 0 | DO60: 3 | DP60: 71 | DQ60: 1 | DR60: 58 | DS60: 8 | DT60: 2 | DU60: 1 | DV60: 70 | DW60: 3 | DX60: 113 | DY60: 19 | DZ60: 2 | EA60: 4 | EB60: 141 | EC60: 71 | ED60: 78 | EE60: 82 | EF60: 81 | EG60: 105 | EH60: 109 | EI60: 73 | EJ60: 70 | EK60: 89 | EL60: 102 | EM60: 121 | EN60: 91 | EO60: 82 | EP60: 98 | EQ60: 141 | ER60: 167 | ES60: 184 | ET60: 202 | EU60: 196 | EV60: 191 | EW60: 171 | EX60: 83.4 | EY60: 85.57142857 | FE60: 94.6 | FF60: 93.28571429 | FL60: 178 | FM60: 178.8571429 | FN60: 71 | FO60: 78 | FP60: 82 | FQ60: 81 | FR60: 105 | FS60: 109 | FT60: 73 | FU60: 70 | FV60: 89 | FW60: 102 | FX60: 121 | FY60: 91 | FZ60: 82 | GA60: 98 | GB60: 141 | GC60: 167 | GD60: 184 | GE60: 202 | GF60: 196 | GG60: 191 | GH60: 171
A61: Mon | B61: 1400 | C61: 3 | D61: 66 | E61: 1 | F61: 11 | G61: 0 | H61: 1 | I61: 0 | J61: 1 | K61: 2 | L61: 5 | M61: 0 | N61: 0 | O61: 0 | P61: 0 | Q61: 0 | R61: 1 | S61: 22 | T61: 21 | U61: 28 | V61: 15 | W61: 2 | X61: 1 | Y61: 0 | Z61: 0 | AA61: 0 | AB61: 0 | AC61: 0 | AD61: 0 | AE61: 0 | AF61: 0 | AG61: 0 | AH61: 0 | AI61: 35.1 | AJ61: 40.3 | AK61: 23 | AL61: 53 | AM61: Mon | AN61: 1400 | AO61: 0 | AP61: 71 | AQ61: 1 | AR61: 11 | AS61: 0 | AT61: 0 | AU61: 0 | AV61: 2 | AW61: 1 | AX61: 1 | AY61: 0 | AZ61: 0 | BA61: 0 | BB61: 2 | BC61: 4 | BD61: 8 | BE61: 7 | BF61: 23 | BG61: 19 | BH61: 15 | BI61: 5 | BJ61: 4 | BK61: 0 | BL61: 0 | BM61: 0 | BN61: 0 | BO61: 0 | BP61: 0 | BQ61: 0 | BR61: 0 | BS61: 0 | BT61: 0 | BU61: 34.5 | BV61: 43.4 | BW61: 13 | BX61: 51.2 | BY61: Mon | BZ61: 1400 | CA61: 3 | CB61: 137 | CC61: 2 | CD61: 22 | CE61: 0 | CF61: 1 | CG61: 0 | CH61: 3 | CI61: 3 | CJ61: 6 | CK61: 0 | CL61: 0 | CM61: 0 | CN61: 2 | CO61: 4 | CP61: 9 | CQ61: 29 | CR61: 44 | CS61: 47 | CT61: 30 | CU61: 7 | CV61: 5 | CW61: 0 | CX61: 0 | CY61: 0 | CZ61: 0 | DA61: 0 | DB61: 0 | DC61: 0 | DD61: 0 | DE61: 0 | DF61: 0 | DG61: 34.80508475 | DH61: 41.85 | DI61: 13 | DJ61: 53 | DK61: 3 | DL61: 67 | DM61: 11 | DN61: 1 | DO61: 8 | DP61: 90 | DQ61: 0 | DR61: 72 | DS61: 11 | DT61: 0 | DU61: 4 | DV61: 87 | DW61: 3 | DX61: 139 | DY61: 22 | DZ61: 1 | EA61: 12 | EB61: 177 | EC61: 90 | ED61: 80 | EE61: 95 | EF61: 72 | EG61: 93 | EH61: 87 | EI61: 81 | EJ61: 87 | EK61: 107 | EL61: 96 | EM61: 90 | EN61: 108 | EO61: 106 | EP61: 103 | EQ61: 177 | ER61: 187 | ES61: 191 | ET61: 162 | EU61: 201 | EV61: 193 | EW61: 184 | EX61: 86 | EY61: 85.42857143 | FE61: 97.6 | FF61: 99.57142857 | FL61: 183.6 | FM61: 185 | FN61: 90 | FO61: 80 | FP61: 95 | FQ61: 72 | FR61: 93 | FS61: 87 | FT61: 81 | FU61: 87 | FV61: 107 | FW61: 96 | FX61: 90 | FY61: 108 | FZ61: 106 | GA61: 103 | GB61: 177 | GC61: 187 | GD61: 191 | GE61: 162 | GF61: 201 | GG61: 193 | GH61: 184
A62: Mon | B62: 1415 | C62: 1 | D62: 71 | E62: 1 | F62: 11 | G62: 0 | H62: 1 | I62: 0 | J62: 0 | K62: 0 | L62: 0 | M62: 0 | N62: 0 | O62: 0 | P62: 0 | Q62: 2 | R62: 4 | S62: 19 | T62: 17 | U62: 22 | V62: 11 | W62: 8 | X62: 2 | Y62: 0 | Z62: 0 | AA62: 0 | AB62: 0 | AC62: 0 | AD62: 0 | AE62: 0 | AF62: 0 | AG62: 0 | AH62: 0 | AI62: 35.1 | AJ62: 42.7 | AK62: 19.1 | AL62: 54.9 | AM62: Mon | AN62: 1415 | AO62: 2 | AP62: 75 | AQ62: 2 | AR62: 7 | AS62: 0 | AT62: 2 | AU62: 0 | AV62: 1 | AW62: 0 | AX62: 0 | AY62: 0 | AZ62: 0 | BA62: 0 | BB62: 0 | BC62: 0 | BD62: 7 | BE62: 16 | BF62: 18 | BG62: 22 | BH62: 19 | BI62: 7 | BJ62: 0 | BK62: 0 | BL62: 0 | BM62: 0 | BN62: 0 | BO62: 0 | BP62: 0 | BQ62: 0 | BR62: 0 | BS62: 0 | BT62: 0 | BU62: 35.3 | BV62: 42.5 | BW62: 22.6 | BX62: 49.4 | BY62: Mon | BZ62: 1415 | CA62: 3 | CB62: 146 | CC62: 3 | CD62: 18 | CE62: 0 | CF62: 3 | CG62: 0 | CH62: 1 | CI62: 0 | CJ62: 0 | CK62: 0 | CL62: 0 | CM62: 0 | CN62: 0 | CO62: 2 | CP62: 11 | CQ62: 35 | CR62: 35 | CS62: 44 | CT62: 30 | CU62: 15 | CV62: 2 | CW62: 0 | CX62: 0 | CY62: 0 | CZ62: 0 | DA62: 0 | DB62: 0 | DC62: 0 | DD62: 0 | DE62: 0 | DF62: 0 | DG62: 35.20229885 | DH62: 42.6 | DI62: 19.1 | DJ62: 54.9 | DK62: 1 | DL62: 72 | DM62: 11 | DN62: 1 | DO62: 0 | DP62: 85 | DQ62: 2 | DR62: 77 | DS62: 7 | DT62: 2 | DU62: 1 | DV62: 89 | DW62: 3 | DX62: 149 | DY62: 18 | DZ62: 3 | EA62: 1 | EB62: 174 | EC62: 85 | ED62: 62 | EE62: 96 | EF62: 89 | EG62: 98 | EH62: 88 | EI62: 81 | EJ62: 89 | EK62: 109 | EL62: 97 | EM62: 96 | EN62: 107 | EO62: 96 | EP62: 117 | EQ62: 174 | ER62: 171 | ES62: 193 | ET62: 185 | EU62: 205 | EV62: 184 | EW62: 198 | EX62: 86 | EY62: 85.57142857 | FE62: 99.6 | FF62: 101.5714286 | FL62: 185.6 | FM62: 187.1428571 | FN62: 85 | FO62: 62 | FP62: 96 | FQ62: 89 | FR62: 98 | FS62: 88 | FT62: 81 | FU62: 89 | FV62: 109 | FW62: 97 | FX62: 96 | FY62: 107 | FZ62: 96 | GA62: 117 | GB62: 174 | GC62: 171 | GD62: 193 | GE62: 185 | GF62: 205 | GG62: 184 | GH62: 198
A63: Mon | B63: 1430 | C63: 2 | D63: 70 | E63: 1 | F63: 8 | G63: 1 | H63: 0 | I63: 0 | J63: 0 | K63: 1 | L63: 0 | M63: 0 | N63: 0 | O63: 0 | P63: 0 | Q63: 1 | R63: 0 | S63: 18 | T63: 31 | U63: 17 | V63: 10 | W63: 1 | X63: 5 | Y63: 0 | Z63: 0 | AA63: 0 | AB63: 0 | AC63: 0 | AD63: 0 | AE63: 0 | AF63: 0 | AG63: 0 | AH63: 0 | AI63: 34.8 | AJ63: 42.7 | AK63: 19.2 | AL63: 52.3 | AM63: Mon | AN63: 1430 | AO63: 1 | AP63: 85 | AQ63: 0 | AR63: 10 | AS63: 0 | AT63: 0 | AU63: 1 | AV63: 1 | AW63: 0 | AX63: 2 | AY63: 0 | AZ63: 0 | BA63: 0 | BB63: 0 | BC63: 6 | BD63: 2 | BE63: 16 | BF63: 33 | BG63: 33 | BH63: 9 | BI63: 1 | BJ63: 0 | BK63: 0 | BL63: 0 | BM63: 0 | BN63: 0 | BO63: 0 | BP63: 0 | BQ63: 0 | BR63: 0 | BS63: 0 | BT63: 0 | BU63: 33.4 | BV63: 38.7 | BW63: 16.9 | BX63: 45.3 | BY63: Mon | BZ63: 1430 | CA63: 3 | CB63: 155 | CC63: 1 | CD63: 18 | CE63: 1 | CF63: 0 | CG63: 1 | CH63: 1 | CI63: 1 | CJ63: 2 | CK63: 0 | CL63: 0 | CM63: 0 | CN63: 0 | CO63: 7 | CP63: 2 | CQ63: 34 | CR63: 64 | CS63: 50 | CT63: 19 | CU63: 2 | CV63: 5 | CW63: 0 | CX63: 0 | CY63: 0 | CZ63: 0 | DA63: 0 | DB63: 0 | DC63: 0 | DD63: 0 | DE63: 0 | DF63: 0 | DG63: 34.03497268 | DH63: 40.7 | DI63: 16.9 | DJ63: 52.3 | DK63: 2 | DL63: 71 | DM63: 8 | DN63: 1 | DO63: 1 | DP63: 83 | DQ63: 1 | DR63: 85 | DS63: 10 | DT63: 0 | DU63: 4 | DV63: 100 | DW63: 3 | DX63: 156 | DY63: 18 | DZ63: 1 | EA63: 5 | EB63: 183 | EC63: 83 | ED63: 86 | EE63: 98 | EF63: 107 | EG63: 86 | EH63: 98 | EI63: 78 | EJ63: 100 | EK63: 109 | EL63: 110 | EM63: 132 | EN63: 105 | EO63: 93 | EP63: 85 | EQ63: 183 | ER63: 195 | ES63: 208 | ET63: 239 | EU63: 191 | EV63: 191 | EW63: 163 | EX63: 92 | EY63: 90.85714286 | FE63: 111.2 | FF63: 104.8571429 | FL63: 203.2 | FM63: 195.7142857 | FN63: 83 | FO63: 86 | FP63: 98 | FQ63: 107 | FR63: 86 | FS63: 98 | FT63: 78 | FU63: 100 | FV63: 109 | FW63: 110 | FX63: 132 | FY63: 105 | FZ63: 93 | GA63: 85 | GB63: 183 | GC63: 195 | GD63: 208 | GE63: 239 | GF63: 191 | GG63: 191 | GH63: 163
A64: Mon | B64: 1445 | C64: 0 | D64: 74 | E64: 2 | F64: 5 | G64: 0 | H64: 0 | I64: 0 | J64: 0 | K64: 1 | L64: 0 | M64: 0 | N64: 0 | O64: 0 | P64: 0 | Q64: 0 | R64: 3 | S64: 19 | T64: 19 | U64: 21 | V64: 9 | W64: 8 | X64: 3 | Y64: 0 | Z64: 0 | AA64: 0 | AB64: 0 | AC64: 0 | AD64: 0 | AE64: 0 | AF64: 0 | AG64: 0 | AH64: 0 | AI64: 35.6 | AJ64: 44.1 | AK64: 21.9 | AL64: 53.8 | AM64: Mon | AN64: 1445 | AO64: 1 | AP64: 92 | AQ64: 1 | AR64: 7 | AS64: 1 | AT64: 2 | AU64: 0 | AV64: 0 | AW64: 0 | AX64: 1 | AY64: 0 | AZ64: 0 | BA64: 0 | BB64: 1 | BC64: 0 | BD64: 0 | BE64: 14 | BF64: 31 | BG64: 34 | BH64: 20 | BI64: 5 | BJ64: 0 | BK64: 0 | BL64: 0 | BM64: 0 | BN64: 0 | BO64: 0 | BP64: 0 | BQ64: 0 | BR64: 0 | BS64: 0 | BT64: 0 | BU64: 35.9 | BV64: 41.8 | BW64: 13.3 | BX64: 48.1 | BY64: Mon | BZ64: 1445 | CA64: 1 | CB64: 166 | CC64: 3 | CD64: 12 | CE64: 1 | CF64: 2 | CG64: 0 | CH64: 0 | CI64: 1 | CJ64: 1 | CK64: 0 | CL64: 0 | CM64: 0 | CN64: 1 | CO64: 0 | CP64: 3 | CQ64: 33 | CR64: 50 | CS64: 55 | CT64: 29 | CU64: 13 | CV64: 3 | CW64: 0 | CX64: 0 | CY64: 0 | CZ64: 0 | DA64: 0 | DB64: 0 | DC64: 0 | DD64: 0 | DE64: 0 | DF64: 0 | DG64: 35.7684492 | DH64: 42.95 | DI64: 13.3 | DJ64: 53.8 | DK64: 0 | DL64: 76 | DM64: 5 | DN64: 0 | DO64: 1 | DP64: 82 | DQ64: 1 | DR64: 93 | DS64: 7 | DT64: 3 | DU64: 1 | DV64: 105 | DW64: 1 | DX64: 169 | DY64: 12 | DZ64: 3 | EA64: 2 | EB64: 187 | EC64: 82 | ED64: 71 | EE64: 84 | EF64: 91 | EG64: 125 | EH64: 73 | EI64: 81 | EJ64: 105 | EK64: 111 | EL64: 108 | EM64: 116 | EN64: 124 | EO64: 107 | EP64: 86 | EQ64: 187 | ER64: 182 | ES64: 192 | ET64: 207 | EU64: 249 | EV64: 180 | EW64: 167 | EX64: 90.6 | EY64: 86.71428571 | FE64: 112.8 | FF64: 108.1428571 | FL64: 203.4 | FM64: 194.8571429 | FN64: 82 | FO64: 71 | FP64: 84 | FQ64: 91 | FR64: 125 | FS64: 73 | FT64: 81 | FU64: 105 | FV64: 111 | FW64: 108 | FX64: 116 | FY64: 124 | FZ64: 107 | GA64: 86 | GB64: 187 | GC64: 182 | GD64: 192 | GE64: 207 | GF64: 249 | GG64: 180 | GH64: 167
A65: Mon | B65: 1500 | C65: 2 | D65: 80 | E65: 0 | F65: 8 | G65: 0 | H65: 1 | I65: 0 | J65: 0 | K65: 1 | L65: 3 | M65: 0 | N65: 0 | O65: 0 | P65: 0 | Q65: 0 | R65: 10 | S65: 21 | T65: 23 | U65: 21 | V65: 13 | W65: 3 | X65: 1 | Y65: 3 | Z65: 0 | AA65: 0 | AB65: 0 | AC65: 0 | AD65: 0 | AE65: 0 | AF65: 0 | AG65: 0 | AH65: 0 | AI65: 34.2 | AJ65: 42.3 | AK65: 20.6 | AL65: 55.9 | AM65: Mon | AN65: 1500 | AO65: 2 | AP65: 100 | AQ65: 1 | AR65: 11 | AS65: 0 | AT65: 0 | AU65: 0 | AV65: 0 | AW65: 1 | AX65: 0 | AY65: 0 | AZ65: 0 | BA65: 0 | BB65: 0 | BC65: 1 | BD65: 4 | BE65: 11 | BF65: 39 | BG65: 46 | BH65: 11 | BI65: 2 | BJ65: 0 | BK65: 0 | BL65: 1 | BM65: 0 | BN65: 0 | BO65: 0 | BP65: 0 | BQ65: 0 | BR65: 0 | BS65: 0 | BT65: 0 | BU65: 35 | BV65: 39.4 | BW65: 18.7 | BX65: 62 | BY65: Mon | BZ65: 1500 | CA65: 4 | CB65: 180 | CC65: 1 | CD65: 19 | CE65: 0 | CF65: 1 | CG65: 0 | CH65: 0 | CI65: 2 | CJ65: 3 | CK65: 0 | CL65: 0 | CM65: 0 | CN65: 0 | CO65: 1 | CP65: 14 | CQ65: 32 | CR65: 62 | CS65: 67 | CT65: 24 | CU65: 5 | CV65: 1 | CW65: 3 | CX65: 1 | CY65: 0 | CZ65: 0 | DA65: 0 | DB65: 0 | DC65: 0 | DD65: 0 | DE65: 0 | DF65: 0 | DG65: 34.63809524 | DH65: 40.85 | DI65: 18.7 | DJ65: 62 | DK65: 2 | DL65: 80 | DM65: 8 | DN65: 1 | DO65: 4 | DP65: 95 | DQ65: 2 | DR65: 101 | DS65: 11 | DT65: 0 | DU65: 1 | DV65: 115 | DW65: 4 | DX65: 181 | DY65: 19 | DZ65: 1 | EA65: 5 | EB65: 210 | EC65: 95 | ED65: 91 | EE65: 104 | EF65: 92 | EG65: 109 | EH65: 64 | EI65: 62 | EJ65: 115 | EK65: 101 | EL65: 129 | EM65: 104 | EN65: 130 | EO65: 90 | EP65: 103 | EQ65: 210 | ER65: 192 | ES65: 233 | ET65: 196 | EU65: 239 | EV65: 154 | EW65: 165 | EX65: 98.2 | EY65: 88.14285714 | FE65: 115.8 | FF65: 110.2857143 | FL65: 214 | FM65: 198.4285714 | FN65: 95 | FO65: 91 | FP65: 104 | FQ65: 92 | FR65: 109 | FS65: 64 | FT65: 62 | FU65: 115 | FV65: 101 | FW65: 129 | FX65: 104 | FY65: 130 | FZ65: 90 | GA65: 103 | GB65: 210 | GC65: 192 | GD65: 233 | GE65: 196 | GF65: 239 | GG65: 154 | GH65: 165
A66: Mon | B66: 1515 | C66: 0 | D66: 76 | E66: 0 | F66: 8 | G66: 0 | H66: 0 | I66: 0 | J66: 0 | K66: 0 | L66: 1 | M66: 1 | N66: 0 | O66: 0 | P66: 0 | Q66: 2 | R66: 1 | S66: 15 | T66: 21 | U66: 27 | V66: 9 | W66: 9 | X66: 2 | Y66: 0 | Z66: 0 | AA66: 0 | AB66: 0 | AC66: 0 | AD66: 0 | AE66: 0 | AF66: 0 | AG66: 0 | AH66: 0 | AI66: 35.5 | AJ66: 42.5 | AK66: 17.2 | AL66: 54.6 | AM66: Mon | AN66: 1515 | AO66: 2 | AP66: 91 | AQ66: 3 | AR66: 6 | AS66: 1 | AT66: 0 | AU66: 0 | AV66: 2 | AW66: 0 | AX66: 0 | AY66: 0 | AZ66: 0 | BA66: 0 | BB66: 4 | BC66: 7 | BD66: 5 | BE66: 11 | BF66: 23 | BG66: 32 | BH66: 19 | BI66: 3 | BJ66: 0 | BK66: 0 | BL66: 0 | BM66: 0 | BN66: 1 | BO66: 0 | BP66: 0 | BQ66: 0 | BR66: 0 | BS66: 0 | BT66: 0 | BU66: 34.2 | BV66: 41.4 | BW66: 13.5 | BX66: 72.7 | BY66: Mon | BZ66: 1515 | CA66: 2 | CB66: 167 | CC66: 3 | CD66: 14 | CE66: 1 | CF66: 0 | CG66: 0 | CH66: 2 | CI66: 0 | CJ66: 1 | CK66: 1 | CL66: 0 | CM66: 0 | CN66: 4 | CO66: 9 | CP66: 6 | CQ66: 26 | CR66: 44 | CS66: 59 | CT66: 28 | CU66: 12 | CV66: 2 | CW66: 0 | CX66: 0 | CY66: 0 | CZ66: 1 | DA66: 0 | DB66: 0 | DC66: 0 | DD66: 0 | DE66: 0 | DF66: 0 | DG66: 34.78534031 | DH66: 41.95 | DI66: 13.5 | DJ66: 72.7 | DK66: 0 | DL66: 76 | DM66: 8 | DN66: 0 | DO66: 2 | DP66: 86 | DQ66: 2 | DR66: 94 | DS66: 6 | DT66: 1 | DU66: 2 | DV66: 105 | DW66: 2 | DX66: 170 | DY66: 14 | DZ66: 1 | EA66: 4 | EB66: 191 | EC66: 86 | ED66: 98 | EE66: 130 | EF66: 119 | EG66: 137 | EH66: 77 | EI66: 90 | EJ66: 105 | EK66: 102 | EL66: 106 | EM66: 136 | EN66: 118 | EO66: 98 | EP66: 99 | EQ66: 191 | ER66: 200 | ES66: 236 | ET66: 255 | EU66: 255 | EV66: 175 | EW66: 189 | EX66: 114 | EY66: 105.2857143 | FE66: 113.4 | FF66: 109.1428571 | FL66: 227.4 | FM66: 214.4285714 | FN66: 86 | FO66: 98 | FP66: 130 | FQ66: 119 | FR66: 137 | FS66: 77 | FT66: 90 | FU66: 105 | FV66: 102 | FW66: 106 | FX66: 136 | FY66: 118 | FZ66: 98 | GA66: 99 | GB66: 191 | GC66: 200 | GD66: 236 | GE66: 255 | GF66: 255 | GG66: 175 | GH66: 189
A67: Mon | B67: 1530 | C67: 0 | D67: 95 | E67: 1 | F67: 6 | G67: 1 | H67: 0 | I67: 0 | J67: 0 | K67: 3 | L67: 3 | M67: 0 | N67: 0 | O67: 0 | P67: 0 | Q67: 0 | R67: 6 | S67: 26 | T67: 22 | U67: 32 | V67: 14 | W67: 7 | X67: 2 | Y67: 0 | Z67: 0 | AA67: 0 | AB67: 0 | AC67: 0 | AD67: 0 | AE67: 0 | AF67: 0 | AG67: 0 | AH67: 0 | AI67: 34.9 | AJ67: 42.9 | AK67: 21.4 | AL67: 51.3 | AM67: Mon | AN67: 1530 | AO67: 2 | AP67: 87 | AQ67: 1 | AR67: 11 | AS67: 0 | AT67: 0 | AU67: 0 | AV67: 1 | AW67: 4 | AX67: 0 | AY67: 0 | AZ67: 0 | BA67: 1 | BB67: 3 | BC67: 3 | BD67: 0 | BE67: 17 | BF67: 42 | BG67: 24 | BH67: 13 | BI67: 3 | BJ67: 0 | BK67: 0 | BL67: 0 | BM67: 0 | BN67: 0 | BO67: 0 | BP67: 0 | BQ67: 0 | BR67: 0 | BS67: 0 | BT67: 0 | BU67: 33.1 | BV67: 39.8 | BW67: 9.3 | BX67: 47.2 | BY67: Mon | BZ67: 1530 | CA67: 2 | CB67: 182 | CC67: 2 | CD67: 17 | CE67: 1 | CF67: 0 | CG67: 0 | CH67: 1 | CI67: 7 | CJ67: 3 | CK67: 0 | CL67: 0 | CM67: 1 | CN67: 3 | CO67: 3 | CP67: 6 | CQ67: 43 | CR67: 64 | CS67: 56 | CT67: 27 | CU67: 10 | CV67: 2 | CW67: 0 | CX67: 0 | CY67: 0 | CZ67: 0 | DA67: 0 | DB67: 0 | DC67: 0 | DD67: 0 | DE67: 0 | DF67: 0 | DG67: 34.01255814 | DH67: 41.35 | DI67: 9.3 | DJ67: 51.3 | DK67: 0 | DL67: 96 | DM67: 6 | DN67: 1 | DO67: 6 | DP67: 109 | DQ67: 2 | DR67: 88 | DS67: 11 | DT67: 0 | DU67: 5 | DV67: 106 | DW67: 2 | DX67: 184 | DY67: 17 | DZ67: 1 | EA67: 11 | EB67: 215 | EC67: 109 | ED67: 128 | EE67: 113 | EF67: 96 | EG67: 117 | EH67: 71 | EI67: 71 | EJ67: 106 | EK67: 127 | EL67: 137 | EM67: 116 | EN67: 171 | EO67: 80 | EP67: 105 | EQ67: 215 | ER67: 255 | ES67: 250 | ET67: 212 | EU67: 288 | EV67: 151 | EW67: 176 | EX67: 112.6 | EY67: 100.7142857 | FE67: 131.4 | FF67: 120.2857143 | FL67: 244 | FM67: 221 | FN67: 109 | FO67: 128 | FP67: 113 | FQ67: 96 | FR67: 117 | FS67: 71 | FT67: 71 | FU67: 106 | FV67: 127 | FW67: 137 | FX67: 116 | FY67: 171 | FZ67: 80 | GA67: 105 | GB67: 215 | GC67: 255 | GD67: 250 | GE67: 212 | GF67: 288 | GG67: 151 | GH67: 176
A68: Mon | B68: 1545 | C68: 1 | D68: 103 | E68: 0 | F68: 12 | G68: 2 | H68: 1 | I68: 0 | J68: 0 | K68: 1 | L68: 0 | M68: 0 | N68: 0 | O68: 0 | P68: 0 | Q68: 2 | R68: 8 | S68: 19 | T68: 38 | U68: 27 | V68: 19 | W68: 7 | X68: 0 | Y68: 0 | Z68: 0 | AA68: 0 | AB68: 0 | AC68: 0 | AD68: 0 | AE68: 0 | AF68: 0 | AG68: 0 | AH68: 0 | AI68: 34 | AJ68: 40.9 | AK68: 17.5 | AL68: 47.5 | AM68: Mon | AN68: 1545 | AO68: 1 | AP68: 135 | AQ68: 2 | AR68: 8 | AS68: 0 | AT68: 0 | AU68: 0 | AV68: 1 | AW68: 0 | AX68: 1 | AY68: 0 | AZ68: 0 | BA68: 0 | BB68: 6 | BC68: 8 | BD68: 12 | BE68: 22 | BF68: 32 | BG68: 41 | BH68: 26 | BI68: 1 | BJ68: 0 | BK68: 0 | BL68: 0 | BM68: 0 | BN68: 0 | BO68: 0 | BP68: 0 | BQ68: 0 | BR68: 0 | BS68: 0 | BT68: 0 | BU68: 32.7 | BV68: 40.3 | BW68: 11.9 | BX68: 49.6 | BY68: Mon | BZ68: 1545 | CA68: 2 | CB68: 238 | CC68: 2 | CD68: 20 | CE68: 2 | CF68: 1 | CG68: 0 | CH68: 1 | CI68: 1 | CJ68: 1 | CK68: 0 | CL68: 0 | CM68: 0 | CN68: 6 | CO68: 10 | CP68: 20 | CQ68: 41 | CR68: 70 | CS68: 68 | CT68: 45 | CU68: 8 | CV68: 0 | CW68: 0 | CX68: 0 | CY68: 0 | CZ68: 0 | DA68: 0 | DB68: 0 | DC68: 0 | DD68: 0 | DE68: 0 | DF68: 0 | DG68: 33.28208955 | DH68: 40.6 | DI68: 11.9 | DJ68: 49.6 | DK68: 1 | DL68: 103 | DM68: 12 | DN68: 3 | DO68: 1 | DP68: 120 | DQ68: 1 | DR68: 137 | DS68: 8 | DT68: 0 | DU68: 2 | DV68: 148 | DW68: 2 | DX68: 240 | DY68: 20 | DZ68: 3 | EA68: 3 | EB68: 268 | EC68: 120 | ED68: 119 | EE68: 114 | EF68: 113 | EG68: 124 | EH68: 71 | EI68: 76 | EJ68: 148 | EK68: 133 | EL68: 116 | EM68: 126 | EN68: 123 | EO68: 98 | EP68: 105 | EQ68: 268 | ER68: 252 | ES68: 230 | ET68: 239 | EU68: 247 | EV68: 169 | EW68: 181 | EX68: 118 | EY68: 105.2857143 | FE68: 129.2 | FF68: 121.2857143 | FL68: 247.2 | FM68: 226.5714286 | FN68: 120 | FO68: 119 | FP68: 114 | FQ68: 113 | FR68: 124 | FS68: 71 | FT68: 76 | FU68: 148 | FV68: 133 | FW68: 116 | FX68: 126 | FY68: 123 | FZ68: 98 | GA68: 105 | GB68: 268 | GC68: 252 | GD68: 230 | GE68: 239 | GF68: 247 | GG68: 169 | GH68: 181
A69: Mon | B69: 1600 | C69: 2 | D69: 99 | E69: 2 | F69: 9 | G69: 0 | H69: 0 | I69: 0 | J69: 0 | K69: 1 | L69: 0 | M69: 0 | N69: 0 | O69: 0 | P69: 0 | Q69: 1 | R69: 3 | S69: 19 | T69: 39 | U69: 25 | V69: 16 | W69: 6 | X69: 4 | Y69: 0 | Z69: 0 | AA69: 0 | AB69: 0 | AC69: 0 | AD69: 0 | AE69: 0 | AF69: 0 | AG69: 0 | AH69: 0 | AI69: 35.1 | AJ69: 41.8 | AK69: 15.8 | AL69: 50.6 | AM69: Mon | AN69: 1600 | AO69: 0 | AP69: 102 | AQ69: 3 | AR69: 12 | AS69: 2 | AT69: 1 | AU69: 0 | AV69: 1 | AW69: 0 | AX69: 0 | AY69: 0 | AZ69: 0 | BA69: 0 | BB69: 0 | BC69: 1 | BD69: 10 | BE69: 25 | BF69: 33 | BG69: 29 | BH69: 15 | BI69: 6 | BJ69: 2 | BK69: 0 | BL69: 0 | BM69: 0 | BN69: 0 | BO69: 0 | BP69: 0 | BQ69: 0 | BR69: 0 | BS69: 0 | BT69: 0 | BU69: 34 | BV69: 40.5 | BW69: 18 | BX69: 51.9 | BY69: Mon | BZ69: 1600 | CA69: 2 | CB69: 201 | CC69: 5 | CD69: 21 | CE69: 2 | CF69: 1 | CG69: 0 | CH69: 1 | CI69: 1 | CJ69: 0 | CK69: 0 | CL69: 0 | CM69: 0 | CN69: =SUM(P69+BB69) -> 0 | CO69: =SUM(Q69+BC69) -> 2 | CP69: =SUM(R69+BD69) -> 13 | CQ69: =SUM(S69+BE69) -> 44 | CR69: =SUM(T69+BF69) -> 72 | CS69: =SUM(U69+BG69) -> 54 | CT69: =SUM(V69+BH69) -> 31 | CU69: =SUM(W69+BI69) -> 12 | CV69: =SUM(X69+BJ69) -> 6 | CW69: =SUM(Y69+BK69) -> 0 | CX69: =SUM(Z69+BL69) -> 0 | CY69: =SUM(AA69+BM69) -> 0 | CZ69: =SUM(AB69+BN69) -> 0 | DA69: =SUM(AC69+BO69) -> 0 | DB69: =SUM(AD69+BP69) -> 0 | DC69: =SUM(AE69+BQ69) -> 0 | DD69: =SUM(AF69+BR69) -> 0 | DE69: =SUM(AG69+BS69) -> 0 | DF69: =SUM(AH69+BT69) -> 0 | DG69: 34.53119658 | DH69: 41.15 | DI69: 15.8 | DJ69: 51.9 | DK69: 2 | DL69: 101 | DM69: 9 | DN69: 0 | DO69: 1 | DP69: 113 | DQ69: 0 | DR69: 105 | DS69: 12 | DT69: 3 | DU69: 1 | DV69: 121 | DW69: 2 | DX69: 206 | DY69: 21 | DZ69: 3 | EA69: 2 | EB69: 234 | EC69: 113 | ED69: 129 | EE69: 141 | EF69: 130 | EG69: 126 | EH69: 79 | EI69: 77 | EJ69: 121 | EK69: 149 | EL69: 142 | EM69: 122 | EN69: 129 | EO69: 90 | EP69: 103 | EQ69: 234 | ER69: 278 | ES69: 283 | ET69: 252 | EU69: 255 | EV69: 169 | EW69: 180 | EX69: 127.8 | EY69: 113.5714286 | FE69: 132.6 | FF69: 122.2857143 | FL69: 260.4 | FM69: 235.8571429 | FN69: 113 | FO69: 129 | FP69: 141 | FQ69: 130 | FR69: 126 | FS69: 79 | FT69: 77 | FU69: 121 | FV69: 149 | FW69: 142 | FX69: 122 | FY69: 129 | FZ69: 90 | GA69: 103 | GB69: 234 | GC69: 278 | GD69: 283 | GE69: 252 | GF69: 255 | GG69: 169 | GH69: 180
A70: Mon | B70: 1615 | C70: 1 | D70: 94 | E70: 0 | F70: 8 | G70: 0 | H70: 1 | I70: 0 | J70: 0 | K70: 1 | L70: 2 | M70: 0 | N70: 0 | O70: 0 | P70: 0 | Q70: 0 | R70: 1 | S70: 18 | T70: 27 | U70: 29 | V70: 27 | W70: 3 | X70: 2 | Y70: 0 | Z70: 0 | AA70: 0 | AB70: 0 | AC70: 0 | AD70: 0 | AE70: 0 | AF70: 0 | AG70: 0 | AH70: 0 | AI70: 36.4 | AJ70: 40.9 | AK70: 24.2 | AL70: 53 | AM70: Mon | AN70: 1615 | AO70: 3 | AP70: 119 | AQ70: 2 | AR70: 5 | AS70: 0 | AT70: 0 | AU70: 0 | AV70: 0 | AW70: 1 | AX70: 0 | AY70: 0 | AZ70: 0 | BA70: 0 | BB70: 3 | BC70: 6 | BD70: 10 | BE70: 17 | BF70: 30 | BG70: 42 | BH70: 16 | BI70: 5 | BJ70: 1 | BK70: 0 | BL70: 0 | BM70: 0 | BN70: 0 | BO70: 0 | BP70: 0 | BQ70: 0 | BR70: 0 | BS70: 0 | BT70: 0 | BU70: 33.2 | BV70: 40.7 | BW70: 11.3 | BX70: 51.1 | BY70: Mon | BZ70: 1615 | CA70: 4 | CB70: 213 | CC70: 2 | CD70: 13 | CE70: 0 | CF70: 1 | CG70: 0 | CH70: 0 | CI70: 2 | CJ70: 2 | CK70: 0 | CL70: 0 | CM70: 0 | CN70: 3 | CO70: 6 | CP70: 11 | CQ70: 35 | CR70: 57 | CS70: 71 | CT70: 43 | CU70: 8 | CV70: 3 | CW70: 0 | CX70: 0 | CY70: 0 | CZ70: 0 | DA70: 0 | DB70: 0 | DC70: 0 | DD70: 0 | DE70: 0 | DF70: 0 | DG70: =IF(EB70=0,"-",IF(DP70=0,BU70,IF(DV70=0,AI70,SUM((AI70*DP70),(BU70*DV70))/EB70))) -> 34.64472574 | DH70: =IFERROR(IF(BV70="-",IF(AJ70="-","-",AJ70),IF(AJ70="-",BV70,AVERAGE(AJ70,BV70))), "-") -> 40.8 | DI70: =IF(MIN(AK70,BW70)=0,"-",MIN(AK70,BW70)) -> 11.3 | DJ70: =IF(MAX(AL70,BX70)=0,"-",MAX(AL70,BX70)) -> 53 | DK70: =SUM(C70) -> 1 | DL70: =SUM(D70+E70) -> 94 | DM70: =F70 -> 8 | DN70: =SUM(G70:H70) -> 1 | DO70: =SUM(I70:N70) -> 3 | DP70: =SUM(C70:N70) -> 107 | DQ70: =SUM(AO70) -> 3 | DR70: =SUM(AP70+AQ70) -> 121 | DS70: =AR70 -> 5 | DT70: =SUM(AS70:AT70) -> 0 | DU70: =SUM(AU70:AZ70) -> 1 | DV70: =SUM(AO70:AZ70) -> 130 | DW70: =SUM(DK70+DQ70) -> 4 | DX70: 215 | DY70: 13 | DZ70: 1 | EA70: 4 | EB70: 237 | EC70: =+DP70 -> 107 | ED70: =+DP166 -> 119 | EE70: =+DP262 -> 129 | EF70: =+DP358 -> 117 | EG70: =+DP454 -> 107 | EH70: =+DP550 -> 76 | EI70: =+DP646 -> 71 | EJ70: =+DV70 -> 130 | EK70: =+DV166 -> 128 | EL70: =+DV262 -> 147 | EM70: =+DV358 -> 120 | EN70: =+DV454 -> 122 | EO70: =+DV550 -> 100 | EP70: =+DV646 -> 103 | EQ70: 237 | ER70: 247 | ES70: 276 | ET70: 237 | EU70: 229 | EV70: 176 | EW70: 174 | EX70: =IF((SUM(FN70:FR70))>0,AVERAGE(FN70:FR70),0) -> 115.8 | EY70: =IF((SUM(FN70:FT70))>0,AVERAGE(FN70:FT70),0) -> 103.7142857 | FE70: =IF((SUM(FU70:FY70))>0,AVERAGE(FU70:FY70),0) -> 129.4 | FF70: =IF((SUM(FU70:GA70))>0,AVERAGE(FU70:GA70),0) -> 121.4285714 | FL70: =IF((SUM(GB70:GF70))>0,AVERAGE(GB70:GF70),0) -> 245.2 | FM70: =IF((SUM(GB70:GH70))>0,AVERAGE(GB70:GH70),0) -> 225.1428571 | FN70: =IF(C70="", "-", SUM(C70:N70)) -> 107 | FO70: =IF(C166="","-",SUM(C166:N166)) -> 119 | FP70: =IF(C262="","-",SUM(C262:N262)) -> 129 | FQ70: =IF(C358="","-",SUM(C358:N358)) -> 117 | FR70: =IF(C454="","-",SUM(C454:N454)) -> 107 | FS70: =IF(C550="","-",SUM(C550:N550)) -> 76 | FT70: =IF(C646="","-",SUM(C646:N646)) -> 71 | FU70: =IF(AO70="","-",SUM(AO70:AZ70)) -> 130 | FV70: =IF(AO166="","-",SUM(AO166:AZ166)) -> 128 | FW70: =IF(AO262="","-",SUM(AO262:AZ262)) -> 147 | FX70: =IF(AO358="","-",SUM(AO358:AZ358)) -> 120 | FY70: =IF(AO454="","-",SUM(AO454:AZ454)) -> 122 | FZ70: =IF(AO550="","-",SUM(AO550:AZ550)) -> 100 | GA70: =IF(AO646="","-",SUM(AO646:AZ646)) -> 103 | GB70: =IF(FN70="-","-",IF(FU70="-","-",FN70+FU70)) -> 237 | GC70: =IF(FO70="-","-",IF(FV70="-","-",FO70+FV70)) -> 247 | GD70: =IF(FP70="-","-",IF(FW70="-","-",FP70+FW70)) -> 276 | GE70: =IF(FQ70="-","-",IF(FX70="-","-",FQ70+FX70)) -> 237 | GF70: =IF(FR70="-","-",IF(FY70="-","-",FR70+FY70)) -> 229 | GG70: =IF(FS70="-","-",IF(FZ70="-","-",FS70+FZ70)) -> 176 | GH70: =IF(FT70="-","-",IF(GA70="-","-",FT70+GA70)) -> 174
A71: =+A70 -> Mon | B71: 1630 | C71: 3 | D71: 104 | E71: 1 | F71: 2 | G71: 0 | H71: 0 | I71: 0 | J71: 0 | K71: 1 | L71: 1 | M71: 0 | N71: 0 | O71: 0 | P71: 0 | Q71: 0 | R71: 3 | S71: 21 | T71: 23 | U71: 39 | V71: 20 | W71: 6 | X71: 0 | Y71: 0 | Z71: 0 | AA71: 0 | AB71: 0 | AC71: 0 | AD71: 0 | AE71: 0 | AF71: 0 | AG71: 0 | AH71: 0 | AI71: 35.3 | AJ71: 42.1 | AK71: 20.5 | AL71: 47.9 | AM71: Mon | AN71: 1630 | AO71: 1 | AP71: 111 | AQ71: 2 | AR71: 9 | AS71: 0 | AT71: 0 | AU71: 0 | AV71: 0 | AW71: 0 | AX71: 1 | AY71: 0 | AZ71: 0 | BA71: 0 | BB71: 0 | BC71: 8 | BD71: 10 | BE71: 10 | BF71: 47 | BG71: 29 | BH71: 13 | BI71: 6 | BJ71: 1 | BK71: 0 | BL71: 0 | BM71: 0 | BN71: 0 | BO71: 0 | BP71: 0 | BQ71: 0 | BR71: 0 | BS71: 0 | BT71: 0 | BU71: 33.6 | BV71: 40.5 | BW71: 17.1 | BX71: 50.9 | BY71: Mon | BZ71: 1630 | CA71: 4 | CB71: 215 | CC71: 3 | CD71: 11 | CE71: 0 | CF71: 0 | CG71: 0 | CH71: 0 | CI71: 1 | CJ71: 2 | CK71: 0 | CL71: 0 | CM71: 0 | CN71: 0 | CO71: 8 | CP71: 13 | CQ71: 31 | CR71: 70 | CS71: 68 | CT71: 33 | CU71: 12 | CV71: 1 | CW71: 0 | CX71: 0 | CY71: 0 | CZ71: 0 | DA71: 0 | DB71: 0 | DC71: 0 | DD71: 0 | DE71: 0 | DF71: 0 | DG71: 34.40677966 | DH71: 41.3 | DI71: 17.1 | DJ71: 50.9 | DK71: 3 | DL71: 105 | DM71: 2 | DN71: 0 | DO71: 2 | DP71: 112 | DQ71: 1 | DR71: 113 | DS71: 9 | DT71: 0 | DU71: 1 | DV71: 124 | DW71: 4 | DX71: 218 | DY71: 11 | DZ71: 0 | EA71: 3 | EB71: 236 | EC71: 112 | ED71: 126 | EE71: 126 | EF71: 123 | EG71: 84 | EH71: 67 | EI71: 69 | EJ71: 124 | EK71: 157 | EL71: 121 | EM71: 117 | EN71: 139 | EO71: 83 | EP71: 124 | EQ71: 236 | ER71: 283 | ES71: 247 | ET71: 240 | EU71: 223 | EV71: 150 | EW71: 193 | EX71: 114.2 | EY71: 101 | FE71: 131.6 | FF71: 123.5714286 | FL71: 245.8 | FM71: 224.5714286 | FN71: 112 | FO71: 126 | FP71: 126 | FQ71: 123 | FR71: 84 | FS71: 67 | FT71: 69 | FU71: 124 | FV71: 157 | FW71: 121 | FX71: 117 | FY71: 139 | FZ71: 83 | GA71: 124 | GB71: 236 | GC71: 283 | GD71: 247 | GE71: 240 | GF71: 223 | GG71: 150 | GH71: 193
A72: Mon | B72: 1645 | C72: 1 | D72: 97 | E72: 1 | F72: 2 | G72: 1 | H72: 0 | I72: 0 | J72: 0 | K72: 0 | L72: 3 | M72: 0 | N72: 0 | O72: 0 | P72: 0 | Q72: 0 | R72: 0 | S72: 19 | T72: 25 | U72: 30 | V72: 14 | W72: 12 | X72: 5 | Y72: 0 | Z72: 0 | AA72: 0 | AB72: 0 | AC72: 0 | AD72: 0 | AE72: 0 | AF72: 0 | AG72: 0 | AH72: 0 | AI72: 36.9 | AJ72: 45 | AK72: 25.6 | AL72: 54.9 | AM72: Mon | AN72: 1645 | AO72: 1 | AP72: 123 | AQ72: 0 | AR72: 9 | AS72: 1 | AT72: 0 | AU72: 0 | AV72: 0 | AW72: 0 | AX72: 1 | AY72: 0 | AZ72: 0 | BA72: 0 | BB72: 0 | BC72: 0 | BD72: 0 | BE72: 5 | BF72: 37 | BG72: 56 | BH72: 29 | BI72: 7 | BJ72: 1 | BK72: 0 | BL72: 0 | BM72: 0 | BN72: 0 | BO72: 0 | BP72: 0 | BQ72: 0 | BR72: 0 | BS72: 0 | BT72: 0 | BU72: 37.3 | BV72: 42.5 | BW72: 27.7 | BX72: 51 | BY72: Mon | BZ72: 1645 | CA72: 2 | CB72: 220 | CC72: 1 | CD72: 11 | CE72: 2 | CF72: 0 | CG72: 0 | CH72: 0 | CI72: 0 | CJ72: 4 | CK72: 0 | CL72: 0 | CM72: 0 | CN72: 0 | CO72: 0 | CP72: 0 | CQ72: 24 | CR72: 62 | CS72: 86 | CT72: 43 | CU72: 19 | CV72: 6 | CW72: 0 | CX72: 0 | CY72: 0 | CZ72: 0 | DA72: 0 | DB72: 0 | DC72: 0 | DD72: 0 | DE72: 0 | DF72: 0 | DG72: 37.125 | DH72: 43.75 | DI72: 25.6 | DJ72: 54.9 | DK72: 1 | DL72: 98 | DM72: 2 | DN72: 1 | DO72: 3 | DP72: 105 | DQ72: 1 | DR72: 123 | DS72: 9 | DT72: 1 | DU72: 1 | DV72: 135 | DW72: 2 | DX72: 221 | DY72: 11 | DZ72: 2 | EA72: 4 | EB72: 240 | EC72: 105 | ED72: 101 | EE72: 86 | EF72: 104 | EG72: 102 | EH72: 66 | EI72: 81 | EJ72: 135 | EK72: 132 | EL72: 142 | EM72: 136 | EN72: 143 | EO72: 85 | EP72: 89 | EQ72: 240 | ER72: 233 | ES72: 228 | ET72: 240 | EU72: 245 | EV72: 151 | EW72: 170 | EX72: 99.6 | EY72: 92.14285714 | FE72: 137.6 | FF72: 123.1428571 | FL72: 237.2 | FM72: 215.2857143 | FN72: 105 | FO72: 101 | FP72: 86 | FQ72: 104 | FR72: 102 | FS72: 66 | FT72: 81 | FU72: 135 | FV72: 132 | FW72: 142 | FX72: 136 | FY72: 143 | FZ72: 85 | GA72: 89 | GB72: 240 | GC72: 233 | GD72: 228 | GE72: 240 | GF72: 245 | GG72: 151 | GH72: 170
A73: Mon | B73: 1700 | C73: 1 | D73: 89 | E73: 1 | F73: 6 | G73: 0 | H73: 0 | I73: 0 | J73: 0 | K73: 1 | L73: 2 | M73: 0 | N73: 0 | O73: 0 | P73: 0 | Q73: 0 | R73: 1 | S73: 20 | T73: 21 | U73: 27 | V73: 21 | W73: 8 | X73: 2 | Y73: 0 | Z73: 0 | AA73: 0 | AB73: 0 | AC73: 0 | AD73: 0 | AE73: 0 | AF73: 0 | AG73: 0 | AH73: 0 | AI73: 36.5 | AJ73: 43.2 | AK73: 23.5 | AL73: 51.1 | AM73: Mon | AN73: 1700 | AO73: 0 | AP73: 128 | AQ73: 4 | AR73: 4 | AS73: 0 | AT73: 0 | AU73: 0 | AV73: 0 | AW73: 0 | AX73: 0 | AY73: 0 | AZ73: 0 | BA73: 0 | BB73: 0 | BC73: 0 | BD73: 4 | BE73: 29 | BF73: 46 | BG73: 35 | BH73: 13 | BI73: 8 | BJ73: 0 | BK73: 1 | BL73: 0 | BM73: 0 | BN73: 0 | BO73: 0 | BP73: 0 | BQ73: 0 | BR73: 0 | BS73: 0 | BT73: 0 | BU73: 34.4 | BV73: 40.7 | BW73: 22.8 | BX73: 55.7 | BY73: Mon | BZ73: 1700 | CA73: 1 | CB73: 217 | CC73: 5 | CD73: 10 | CE73: 0 | CF73: 0 | CG73: 0 | CH73: 0 | CI73: 1 | CJ73: 2 | CK73: 0 | CL73: 0 | CM73: 0 | CN73: 0 | CO73: 0 | CP73: 5 | CQ73: 49 | CR73: 67 | CS73: 62 | CT73: 34 | CU73: 16 | CV73: 2 | CW73: 1 | CX73: 0 | CY73: 0 | CZ73: 0 | DA73: 0 | DB73: 0 | DC73: 0 | DD73: 0 | DE73: 0 | DF73: 0 | DG73: 35.28983051 | DH73: 41.95 | DI73: 22.8 | DJ73: 55.7 | DK73: 1 | DL73: 90 | DM73: 6 | DN73: 0 | DO73: 3 | DP73: 100 | DQ73: 0 | DR73: 132 | DS73: 4 | DT73: 0 | DU73: 0 | DV73: 136 | DW73: 1 | DX73: 222 | DY73: 10 | DZ73: 0 | EA73: 3 | EB73: 236 | EC73: 100 | ED73: 137 | EE73: 137 | EF73: 116 | EG73: 90 | EH73: 70 | EI73: 87 | EJ73: 136 | EK73: 127 | EL73: 120 | EM73: 133 | EN73: 178 | EO73: 95 | EP73: 117 | EQ73: 236 | ER73: 264 | ES73: 257 | ET73: 249 | EU73: 268 | EV73: 165 | EW73: 204 | EX73: 116 | EY73: 105.2857143 | FE73: 138.8 | FF73: 129.4285714 | FL73: 254.8 | FM73: 234.7142857 | FN73: 100 | FO73: 137 | FP73: 137 | FQ73: 116 | FR73: 90 | FS73: 70 | FT73: 87 | FU73: 136 | FV73: 127 | FW73: 120 | FX73: 133 | FY73: 178 | FZ73: 95 | GA73: 117 | GB73: 236 | GC73: 264 | GD73: 257 | GE73: 249 | GF73: 268 | GG73: 165 | GH73: 204
A74: Mon | B74: 1715 | C74: 2 | D74: 88 | E74: 0 | F74: 5 | G74: 1 | H74: 0 | I74: 0 | J74: 0 | K74: 0 | L74: 2 | M74: 0 | N74: 0 | O74: 0 | P74: 0 | Q74: 0 | R74: 1 | S74: 14 | T74: 24 | U74: 26 | V74: 17 | W74: 11 | X74: 4 | Y74: 0 | Z74: 0 | AA74: 1 | AB74: 0 | AC74: 0 | AD74: 0 | AE74: 0 | AF74: 0 | AG74: 0 | AH74: 0 | AI74: 37.6 | AJ74: 45.2 | AK74: 20.8 | AL74: 69 | AM74: Mon | AN74: 1715 | AO74: 0 | AP74: 128 | AQ74: 0 | AR74: 2 | AS74: 1 | AT74: 0 | AU74: 0 | AV74: 0 | AW74: 1 | AX74: 0 | AY74: 0 | AZ74: 0 | BA74: 0 | BB74: 0 | BC74: 0 | BD74: 5 | BE74: 18 | BF74: 32 | BG74: 48 | BH74: 25 | BI74: 4 | BJ74: 0 | BK74: 0 | BL74: 0 | BM74: 0 | BN74: 0 | BO74: 0 | BP74: 0 | BQ74: 0 | BR74: 0 | BS74: 0 | BT74: 0 | BU74: 35.5 | BV74: 40.9 | BW74: 20.6 | BX74: 49.8 | BY74: Mon | BZ74: 1715 | CA74: 2 | CB74: 216 | CC74: 0 | CD74: 7 | CE74: 2 | CF74: 0 | CG74: 0 | CH74: 0 | CI74: 1 | CJ74: 2 | CK74: 0 | CL74: 0 | CM74: 0 | CN74: 0 | CO74: 0 | CP74: 6 | CQ74: 32 | CR74: 56 | CS74: 74 | CT74: 42 | CU74: 15 | CV74: 4 | CW74: 0 | CX74: 0 | CY74: 1 | CZ74: 0 | DA74: 0 | DB74: 0 | DC74: 0 | DD74: 0 | DE74: 0 | DF74: 0 | DG74: 36.39478261 | DH74: 43.05 | DI74: 20.6 | DJ74: 69 | DK74: 2 | DL74: 88 | DM74: 5 | DN74: 1 | DO74: 2 | DP74: 98 | DQ74: 0 | DR74: 128 | DS74: 2 | DT74: 1 | DU74: 1 | DV74: 132 | DW74: 2 | DX74: 216 | DY74: 7 | DZ74: 2 | EA74: 3 | EB74: 230 | EC74: 98 | ED74: 116 | EE74: 119 | EF74: 108 | EG74: 91 | EH74: 77 | EI74: 76 | EJ74: 132 | EK74: 136 | EL74: 142 | EM74: 133 | EN74: 139 | EO74: 96 | EP74: 98 | EQ74: 230 | ER74: 252 | ES74: 261 | ET74: 241 | EU74: 230 | EV74: 173 | EW74: 174 | EX74: 106.4 | EY74: 97.85714286 | FE74: 136.4 | FF74: 125.1428571 | FL74: 242.8 | FM74: 223 | FN74: 98 | FO74: 116 | FP74: 119 | FQ74: 108 | FR74: 91 | FS74: 77 | FT74: 76 | FU74: 132 | FV74: 136 | FW74: 142 | FX74: 133 | FY74: 139 | FZ74: 96 | GA74: 98 | GB74: 230 | GC74: 252 | GD74: 261 | GE74: 241 | GF74: 230 | GG74: 173 | GH74: 174
A75: Mon | B75: 1730 | C75: 1 | D75: 104 | E75: 2 | F75: 4 | G75: 0 | H75: 0 | I75: 0 | J75: 0 | K75: 2 | L75: 0 | M75: 1 | N75: 0 | O75: 0 | P75: 0 | Q75: 0 | R75: 0 | S75: 23 | T75: 56 | U75: 22 | V75: 8 | W75: 4 | X75: 0 | Y75: 1 | Z75: 0 | AA75: 0 | AB75: 0 | AC75: 0 | AD75: 0 | AE75: 0 | AF75: 0 | AG75: 0 | AH75: 0 | AI75: 33.7 | AJ75: 38 | AK75: 25.1 | AL75: 55.7 | AM75: Mon | AN75: 1730 | AO75: 0 | AP75: 106 | AQ75: 0 | AR75: 3 | AS75: 0 | AT75: 0 | AU75: 0 | AV75: 0 | AW75: 0 | AX75: 1 | AY75: 0 | AZ75: 0 | BA75: 0 | BB75: 0 | BC75: 0 | BD75: 5 | BE75: 13 | BF75: 30 | BG75: 26 | BH75: 26 | BI75: 10 | BJ75: 0 | BK75: 0 | BL75: 0 | BM75: 0 | BN75: 0 | BO75: 0 | BP75: 0 | BQ75: 0 | BR75: 0 | BS75: 0 | BT75: 0 | BU75: 36.5 | BV75: 43.4 | BW75: 21.9 | BX75: 50 | BY75: Mon | BZ75: 1730 | CA75: 1 | CB75: 210 | CC75: 2 | CD75: 7 | CE75: 0 | CF75: 0 | CG75: 0 | CH75: 0 | CI75: 2 | CJ75: 1 | CK75: 1 | CL75: 0 | CM75: 0 | CN75: 0 | CO75: 0 | CP75: 5 | CQ75: 36 | CR75: 86 | CS75: 48 | CT75: 34 | CU75: 14 | CV75: 0 | CW75: 1 | CX75: 0 | CY75: 0 | CZ75: 0 | DA75: 0 | DB75: 0 | DC75: 0 | DD75: 0 | DE75: 0 | DF75: 0 | DG75: 35.075 | DH75: 40.7 | DI75: 21.9 | DJ75: 55.7 | DK75: 1 | DL75: 106 | DM75: 4 | DN75: 0 | DO75: 3 | DP75: 114 | DQ75: 0 | DR75: 106 | DS75: 3 | DT75: 0 | DU75: 1 | DV75: 110 | DW75: 1 | DX75: 212 | DY75: 7 | DZ75: 0 | EA75: 4 | EB75: 224 | EC75: 114 | ED75: 117 | EE75: 111 | EF75: 117 | EG75: 115 | EH75: 72 | EI75: 85 | EJ75: 110 | EK75: 137 | EL75: 130 | EM75: 128 | EN75: 120 | EO75: 86 | EP75: 93 | EQ75: 224 | ER75: 254 | ES75: 241 | ET75: 245 | EU75: 235 | EV75: 158 | EW75: 178 | EX75: 114.8 | EY75: 104.4285714 | FE75: 125 | FF75: 114.8571429 | FL75: 239.8 | FM75: 219.2857143 | FN75: 114 | FO75: 117 | FP75: 111 | FQ75: 117 | FR75: 115 | FS75: 72 | FT75: 85 | FU75: 110 | FV75: 137 | FW75: 130 | FX75: 128 | FY75: 120 | FZ75: 86 | GA75: 93 | GB75: 224 | GC75: 254 | GD75: 241 | GE75: 245 | GF75: 235 | GG75: 158 | GH75: 178
A76: Mon | B76: 1745 | C76: 1 | D76: 84 | E76: 1 | F76: 2 | G76: 0 | H76: 0 | I76: 0 | J76: 0 | K76: 0 | L76: 0 | M76: 0 | N76: 0 | O76: 0 | P76: 0 | Q76: 0 | R76: 1 | S76: 16 | T76: 11 | U76: 17 | V76: 22 | W76: 17 | X76: 4 | Y76: 0 | Z76: 0 | AA76: 0 | AB76: 0 | AC76: 0 | AD76: 0 | AE76: 0 | AF76: 0 | AG76: 0 | AH76: 0 | AI76: 38.8 | AJ76: 46.5 | AK76: 23.7 | AL76: 51.6 | AM76: Mon | AN76: 1745 | AO76: 3 | AP76: 92 | AQ76: 1 | AR76: 3 | AS76: 1 | AT76: 0 | AU76: 0 | AV76: 0 | AW76: 0 | AX76: 1 | AY76: 0 | AZ76: 0 | BA76: 0 | BB76: 2 | BC76: 18 | BD76: 9 | BE76: 3 | BF76: 19 | BG76: 28 | BH76: 14 | BI76: 6 | BJ76: 2 | BK76: 0 | BL76: 0 | BM76: 0 | BN76: 0 | BO76: 0 | BP76: 0 | BQ76: 0 | BR76: 0 | BS76: 0 | BT76: 0 | BU76: 32.3 | BV76: 41.4 | BW76: 13.3 | BX76: 53 | BY76: Mon | BZ76: 1745 | CA76: 4 | CB76: 176 | CC76: 2 | CD76: 5 | CE76: 1 | CF76: 0 | CG76: 0 | CH76: 0 | CI76: 0 | CJ76: 1 | CK76: 0 | CL76: 0 | CM76: 0 | CN76: 2 | CO76: 18 | CP76: 10 | CQ76: 19 | CR76: 30 | CS76: 45 | CT76: 36 | CU76: 23 | CV76: 6 | CW76: 0 | CX76: 0 | CY76: 0 | CZ76: 0 | DA76: 0 | DB76: 0 | DC76: 0 | DD76: 0 | DE76: 0 | DF76: 0 | DG76: 35.32645503 | DH76: 43.95 | DI76: 13.3 | DJ76: 53 | DK76: 1 | DL76: 85 | DM76: 2 | DN76: 0 | DO76: 0 | DP76: 88 | DQ76: 3 | DR76: 93 | DS76: 3 | DT76: 1 | DU76: 1 | DV76: 101 | DW76: 4 | DX76: 178 | DY76: 5 | DZ76: 1 | EA76: 1 | EB76: 189 | EC76: 88 | ED76: 104 | EE76: 98 | EF76: 116 | EG76: 83 | EH76: 70 | EI76: 58 | EJ76: 101 | EK76: 129 | EL76: 118 | EM76: 129 | EN76: 118 | EO76: 70 | EP76: 77 | EQ76: 189 | ER76: 233 | ES76: 216 | ET76: 245 | EU76: 201 | EV76: 140 | EW76: 135 | EX76: 97.8 | EY76: 88.14285714 | FE76: 119 | FF76: 106 | FL76: 216.8 | FM76: 194.1428571 | FN76: 88 | FO76: 104 | FP76: 98 | FQ76: 116 | FR76: 83 | FS76: 70 | FT76: 58 | FU76: 101 | FV76: 129 | FW76: 118 | FX76: 129 | FY76: 118 | FZ76: 70 | GA76: 77 | GB76: 189 | GC76: 233 | GD76: 216 | GE76: 245 | GF76: 201 | GG76: 140 | GH76: 135
A77: Mon | B77: 1800 | C77: 1 | D77: 72 | E77: 1 | F77: 4 | G77: 0 | H77: 0 | I77: 0 | J77: 0 | K77: 0 | L77: 0 | M77: 0 | N77: 0 | O77: 0 | P77: 0 | Q77: 0 | R77: 0 | S77: 7 | T77: 18 | U77: 27 | V77: 17 | W77: 6 | X77: 2 | Y77: 1 | Z77: 0 | AA77: 0 | AB77: 0 | AC77: 0 | AD77: 0 | AE77: 0 | AF77: 0 | AG77: 0 | AH77: 0 | AI77: 38 | AJ77: 43.4 | AK77: 25.4 | AL77: 55.7 | AM77: Mon | AN77: 1800 | AO77: 1 | AP77: 97 | AQ77: 0 | AR77: 5 | AS77: 0 | AT77: 0 | AU77: 0 | AV77: 0 | AW77: 0 | AX77: 0 | AY77: 0 | AZ77: 0 | BA77: 0 | BB77: 1 | BC77: 9 | BD77: 13 | BE77: 4 | BF77: 18 | BG77: 24 | BH77: 22 | BI77: 6 | BJ77: 6 | BK77: 0 | BL77: 0 | BM77: 0 | BN77: 0 | BO77: 0 | BP77: 0 | BQ77: 0 | BR77: 0 | BS77: 0 | BT77: 0 | BU77: 34.8 | BV77: 43.4 | BW77: 12.5 | BX77: 54.6 | BY77: Mon | BZ77: 1800 | CA77: 2 | CB77: 169 | CC77: 1 | CD77: 9 | CE77: 0 | CF77: 0 | CG77: 0 | CH77: 0 | CI77: 0 | CJ77: 0 | CK77: 0 | CL77: 0 | CM77: 0 | CN77: 1 | CO77: 9 | CP77: 13 | CQ77: 11 | CR77: 36 | CS77: 51 | CT77: 39 | CU77: 12 | CV77: 8 | CW77: 1 | CX77: 0 | CY77: 0 | CZ77: 0 | DA77: 0 | DB77: 0 | DC77: 0 | DD77: 0 | DE77: 0 | DF77: 0 | DG77: 36.17900552 | DH77: 43.4 | DI77: 12.5 | DJ77: 55.7 | DK77: 1 | DL77: 73 | DM77: 4 | DN77: 0 | DO77: 0 | DP77: 78 | DQ77: 1 | DR77: 97 | DS77: 5 | DT77: 0 | DU77: 0 | DV77: 103 | DW77: 2 | DX77: 170 | DY77: 9 | DZ77: 0 | EA77: 0 | EB77: 181 | EC77: 78 | ED77: 90 | EE77: 107 | EF77: 121 | EG77: 88 | EH77: 71 | EI77: 70 | EJ77: 103 | EK77: 135 | EL77: 106 | EM77: 120 | EN77: 109 | EO77: 72 | EP77: 102 | EQ77: 181 | ER77: 225 | ES77: 213 | ET77: 241 | EU77: 197 | EV77: 143 | EW77: 172 | EX77: 96.8 | EY77: 89.28571429 | FE77: 114.6 | FF77: 106.7142857 | FL77: 211.4 | FM77: 196 | FN77: 78 | FO77: 90 | FP77: 107 | FQ77: 121 | FR77: 88 | FS77: 71 | FT77: 70 | FU77: 103 | FV77: 135 | FW77: 106 | FX77: 120 | FY77: 109 | FZ77: 72 | GA77: 102 | GB77: 181 | GC77: 225 | GD77: 213 | GE77: 241 | GF77: 197 | GG77: 143 | GH77: 172
A78: Mon | B78: 1815 | C78: 1 | D78: 65 | E78: 0 | F78: 7 | G78: 0 | H78: 0 | I78: 0 | J78: 0 | K78: 0 | L78: 0 | M78: 0 | N78: 0 | O78: 0 | P78: 0 | Q78: 0 | R78: 0 | S78: 15 | T78: 13 | U78: 16 | V78: 19 | W78: 7 | X78: 3 | Y78: 0 | Z78: 0 | AA78: 0 | AB78: 0 | AC78: 0 | AD78: 0 | AE78: 0 | AF78: 0 | AG78: 0 | AH78: 0 | AI78: 37.5 | AJ78: 44.5 | AK78: 25.2 | AL78: 54.9 | AM78: Mon | AN78: 1815 | AO78: 0 | AP78: 106 | AQ78: 0 | AR78: 3 | AS78: 0 | AT78: 0 | AU78: 0 | AV78: 0 | AW78: 0 | AX78: 0 | AY78: 1 | AZ78: 0 | BA78: 0 | BB78: 0 | BC78: 0 | BD78: 2 | BE78: 6 | BF78: 37 | BG78: 36 | BH78: 23 | BI78: 5 | BJ78: 1 | BK78: 0 | BL78: 0 | BM78: 0 | BN78: 0 | BO78: 0 | BP78: 0 | BQ78: 0 | BR78: 0 | BS78: 0 | BT78: 0 | BU78: 36.4 | BV78: 41.4 | BW78: 22.4 | BX78: 54.2 | BY78: Mon | BZ78: 1815 | CA78: 1 | CB78: 171 | CC78: 0 | CD78: 10 | CE78: 0 | CF78: 0 | CG78: 0 | CH78: 0 | CI78: 0 | CJ78: 0 | CK78: 1 | CL78: 0 | CM78: 0 | CN78: 0 | CO78: 0 | CP78: 2 | CQ78: 21 | CR78: 50 | CS78: 52 | CT78: 42 | CU78: 12 | CV78: 4 | CW78: 0 | CX78: 0 | CY78: 0 | CZ78: 0 | DA78: 0 | DB78: 0 | DC78: 0 | DD78: 0 | DE78: 0 | DF78: 0 | DG78: 36.83879781 | DH78: 42.95 | DI78: 22.4 | DJ78: 54.9 | DK78: 1 | DL78: 65 | DM78: 7 | DN78: 0 | DO78: 0 | DP78: 73 | DQ78: 0 | DR78: 106 | DS78: 3 | DT78: 0 | DU78: 1 | DV78: 110 | DW78: 1 | DX78: 171 | DY78: 10 | DZ78: 0 | EA78: 1 | EB78: 183 | EC78: 73 | ED78: 80 | EE78: 74 | EF78: 79 | EG78: 75 | EH78: 48 | EI78: 64 | EJ78: 110 | EK78: 103 | EL78: 121 | EM78: 89 | EN78: 103 | EO78: 69 | EP78: 61 | EQ78: 183 | ER78: 183 | ES78: 195 | ET78: 168 | EU78: 178 | EV78: 117 | EW78: 125 | EX78: 76.2 | EY78: 70.42857143 | FE78: 105.2 | FF78: 93.71428571 | FL78: 181.4 | FM78: 164.1428571 | FN78: 73 | FO78: 80 | FP78: 74 | FQ78: 79 | FR78: 75 | FS78: 48 | FT78: 64 | FU78: 110 | FV78: 103 | FW78: 121 | FX78: 89 | FY78: 103 | FZ78: 69 | GA78: 61 | GB78: 183 | GC78: 183 | GD78: 195 | GE78: 168 | GF78: 178 | GG78: 117 | GH78: 125
A79: Mon | B79: 1830 | C79: 0 | D79: 58 | E79: 0 | F79: 4 | G79: 1 | H79: 0 | I79: 0 | J79: 0 | K79: 1 | L79: 0 | M79: 0 | N79: 0 | O79: 0 | P79: 1 | Q79: 4 | R79: 3 | S79: 13 | T79: 9 | U79: 11 | V79: 18 | W79: 3 | X79: 2 | Y79: 0 | Z79: 0 | AA79: 0 | AB79: 0 | AC79: 0 | AD79: 0 | AE79: 0 | AF79: 0 | AG79: 0 | AH79: 0 | AI79: 34.5 | AJ79: 42.1 | AK79: 14.8 | AL79: 50.8 | AM79: Mon | AN79: 1830 | AO79: 4 | AP79: 96 | AQ79: 1 | AR79: 11 | AS79: 0 | AT79: 0 | AU79: 0 | AV79: 0 | AW79: 0 | AX79: 1 | AY79: 0 | AZ79: 0 | BA79: 0 | BB79: 0 | BC79: 0 | BD79: 0 | BE79: 8 | BF79: 38 | BG79: 34 | BH79: 24 | BI79: 6 | BJ79: 3 | BK79: 0 | BL79: 0 | BM79: 0 | BN79: 0 | BO79: 0 | BP79: 0 | BQ79: 0 | BR79: 0 | BS79: 0 | BT79: 0 | BU79: 37.1 | BV79: 43.2 | BW79: 28 | BX79: 52.6 | BY79: Mon | BZ79: 1830 | CA79: 4 | CB79: 154 | CC79: 1 | CD79: 15 | CE79: 1 | CF79: 0 | CG79: 0 | CH79: 0 | CI79: 1 | CJ79: 1 | CK79: 0 | CL79: 0 | CM79: 0 | CN79: 1 | CO79: 4 | CP79: 3 | CQ79: 21 | CR79: 47 | CS79: 45 | CT79: 42 | CU79: 9 | CV79: 5 | CW79: 0 | CX79: 0 | CY79: 0 | CZ79: 0 | DA79: 0 | DB79: 0 | DC79: 0 | DD79: 0 | DE79: 0 | DF79: 0 | DG79: 36.15988701 | DH79: 42.65 | DI79: 14.8 | DJ79: 52.6 | DK79: 0 | DL79: 58 | DM79: 4 | DN79: 1 | DO79: 1 | DP79: 64 | DQ79: 4 | DR79: 97 | DS79: 11 | DT79: 0 | DU79: 1 | DV79: 113 | DW79: 4 | DX79: 155 | DY79: 15 | DZ79: 1 | EA79: 2 | EB79: 177 | EC79: 64 | ED79: 68 | EE79: 67 | EF79: 69 | EG79: 78 | EH79: 48 | EI79: 45 | EJ79: 113 | EK79: 126 | EL79: 115 | EM79: 146 | EN79: 141 | EO79: 108 | EP79: 125 | EQ79: 177 | ER79: 194 | ES79: 182 | ET79: 215 | EU79: 219 | EV79: 156 | EW79: 170 | EX79: 69.2 | EY79: 62.71428571 | FE79: 128.2 | FF79: 124.8571429 | FL79: 197.4 | FM79: 187.5714286 | FN79: 64 | FO79: 68 | FP79: 67 | FQ79: 69 | FR79: 78 | FS79: 48 | FT79: 45 | FU79: 113 | FV79: 126 | FW79: 115 | FX79: 146 | FY79: 141 | FZ79: 108 | GA79: 125 | GB79: 177 | GC79: 194 | GD79: 182 | GE79: 215 | GF79: 219 | GG79: 156 | GH79: 170
A80: Mon | B80: 1845 | C80: 0 | D80: 66 | E80: 1 | F80: 2 | G80: 0 | H80: 0 | I80: 0 | J80: 0 | K80: 0 | L80: 0 | M80: 0 | N80: 0 | O80: 0 | P80: 0 | Q80: 0 | R80: 2 | S80: 7 | T80: 9 | U80: 13 | V80: 25 | W80: 7 | X80: 5 | Y80: 1 | Z80: 0 | AA80: 0 | AB80: 0 | AC80: 0 | AD80: 0 | AE80: 0 | AF80: 0 | AG80: 0 | AH80: 0 | AI80: 39.7 | AJ80: 46.8 | AK80: 21.3 | AL80: 55.6 | AM80: Mon | AN80: 1845 | AO80: 1 | AP80: 84 | AQ80: 0 | AR80: 4 | AS80: 0 | AT80: 0 | AU80: 0 | AV80: 0 | AW80: 0 | AX80: 0 | AY80: 0 | AZ80: 0 | BA80: 0 | BB80: 1 | BC80: 5 | BD80: 2 | BE80: 6 | BF80: 25 | BG80: 27 | BH80: 17 | BI80: 6 | BJ80: 0 | BK80: 0 | BL80: 0 | BM80: 0 | BN80: 0 | BO80: 0 | BP80: 0 | BQ80: 0 | BR80: 0 | BS80: 0 | BT80: 0 | BU80: 35.5 | BV80: 42.7 | BW80: 10.7 | BX80: 49.6 | BY80: Mon | BZ80: 1845 | CA80: 1 | CB80: 150 | CC80: 1 | CD80: 6 | CE80: 0 | CF80: 0 | CG80: 0 | CH80: 0 | CI80: 0 | CJ80: 0 | CK80: 0 | CL80: 0 | CM80: 0 | CN80: 1 | CO80: 5 | CP80: 4 | CQ80: 13 | CR80: 34 | CS80: 40 | CT80: 42 | CU80: 13 | CV80: 5 | CW80: 1 | CX80: 0 | CY80: 0 | CZ80: 0 | DA80: 0 | DB80: 0 | DC80: 0 | DD80: 0 | DE80: 0 | DF80: 0 | DG80: 37.33417722 | DH80: 44.75 | DI80: 10.7 | DJ80: 55.6 | DK80: 0 | DL80: 67 | DM80: 2 | DN80: 0 | DO80: 0 | DP80: 69 | DQ80: 1 | DR80: 84 | DS80: 4 | DT80: 0 | DU80: 0 | DV80: 89 | DW80: 1 | DX80: 151 | DY80: 6 | DZ80: 0 | EA80: 0 | EB80: 158 | EC80: 69 | ED80: 83 | EE80: 68 | EF80: 67 | EG80: 73 | EH80: 38 | EI80: 68 | EJ80: 89 | EK80: 118 | EL80: 112 | EM80: 95 | EN80: 92 | EO80: 68 | EP80: 102 | EQ80: 158 | ER80: 201 | ES80: 180 | ET80: 162 | EU80: 165 | EV80: 106 | EW80: 170 | EX80: 72 | EY80: 66.57142857 | FE80: 101.2 | FF80: 96.57142857 | FL80: 173.2 | FM80: 163.1428571 | FN80: 69 | FO80: 83 | FP80: 68 | FQ80: 67 | FR80: 73 | FS80: 38 | FT80: 68 | FU80: 89 | FV80: 118 | FW80: 112 | FX80: 95 | FY80: 92 | FZ80: 68 | GA80: 102 | GB80: 158 | GC80: 201 | GD80: 180 | GE80: 162 | GF80: 165 | GG80: 106 | GH80: 170
A81: Mon | B81: 1900 | C81: 4 | D81: 69 | E81: 0 | F81: 2 | G81: 0 | H81: 0 | I81: 0 | J81: 0 | K81: 0 | L81: 0 | M81: 0 | N81: 0 | O81: 0 | P81: 0 | Q81: 0 | R81: 1 | S81: 7 | T81: 12 | U81: 16 | V81: 25 | W81: 11 | X81: 2 | Y81: 0 | Z81: 0 | AA81: 0 | AB81: 1 | AC81: 0 | AD81: 0 | AE81: 0 | AF81: 0 | AG81: 0 | AH81: 0 | AI81: 39.9 | AJ81: 46.3 | AK81: 23.7 | AL81: 70.1 | AM81: Mon | AN81: 1900 | AO81: 3 | AP81: 69 | AQ81: 0 | AR81: 2 | AS81: 0 | AT81: 0 | AU81: 0 | AV81: 0 | AW81: 0 | AX81: 1 | AY81: 0 | AZ81: 0 | BA81: 0 | BB81: 0 | BC81: 2 | BD81: 2 | BE81: 5 | BF81: 18 | BG81: 26 | BH81: 12 | BI81: 8 | BJ81: 1 | BK81: 1 | BL81: 0 | BM81: 0 | BN81: 0 | BO81: 0 | BP81: 0 | BQ81: 0 | BR81: 0 | BS81: 0 | BT81: 0 | BU81: 37.4 | BV81: 44.7 | BW81: 19.1 | BX81: 57 | BY81: Mon | BZ81: 1900 | CA81: 7 | CB81: 138 | CC81: 0 | CD81: 4 | CE81: 0 | CF81: 0 | CG81: 0 | CH81: 0 | CI81: 0 | CJ81: 1 | CK81: 0 | CL81: 0 | CM81: 0 | CN81: 0 | CO81: 2 | CP81: 3 | CQ81: 12 | CR81: 30 | CS81: 42 | CT81: 37 | CU81: 19 | CV81: 3 | CW81: 1 | CX81: 0 | CY81: 0 | CZ81: 1 | DA81: 0 | DB81: 0 | DC81: 0 | DD81: 0 | DE81: 0 | DF81: 0 | DG81: 38.65 | DH81: 45.5 | DI81: 19.1 | DJ81: 70.1 | DK81: 4 | DL81: 69 | DM81: 2 | DN81: 0 | DO81: 0 | DP81: 75 | DQ81: 3 | DR81: 69 | DS81: 2 | DT81: 0 | DU81: 1 | DV81: 75 | DW81: 7 | DX81: 138 | DY81: 4 | DZ81: 0 | EA81: 1 | EB81: 150 | EC81: 75 | ED81: 80 | EE81: 86 | EF81: 72 | EG81: 66 | EH81: 65 | EI81: 65 | EJ81: 75 | EK81: 81 | EL81: 71 | EM81: 99 | EN81: 70 | EO81: 64 | EP81: 55 | EQ81: 150 | ER81: 161 | ES81: 157 | ET81: 171 | EU81: 136 | EV81: 129 | EW81: 120 | EX81: 75.8 | EY81: 72.71428571 | FE81: 79.2 | FF81: 73.57142857 | FL81: 155 | FM81: 146.2857143 | FN81: 75 | FO81: 80 | FP81: 86 | FQ81: 72 | FR81: 66 | FS81: 65 | FT81: 65 | FU81: 75 | FV81: 81 | FW81: 71 | FX81: 99 | FY81: 70 | FZ81: 64 | GA81: 55 | GB81: 150 | GC81: 161 | GD81: 157 | GE81: 171 | GF81: 136 | GG81: 129 | GH81: 120
A82: Mon | B82: 1915 | C82: 0 | D82: 40 | E82: 0 | F82: 0 | G82: 0 | H82: 0 | I82: 0 | J82: 0 | K82: 1 | L82: 0 | M82: 0 | N82: 0 | O82: 0 | P82: 0 | Q82: 0 | R82: 2 | S82: 4 | T82: 10 | U82: 6 | V82: 7 | W82: 9 | X82: 2 | Y82: 1 | Z82: 0 | AA82: 0 | AB82: 0 | AC82: 0 | AD82: 0 | AE82: 0 | AF82: 0 | AG82: 0 | AH82: 0 | AI82: 38.6 | AJ82: 47.4 | AK82: 23.4 | AL82: 55.4 | AM82: Mon | AN82: 1915 | AO82: 0 | AP82: 70 | AQ82: 0 | AR82: 2 | AS82: 1 | AT82: 1 | AU82: 0 | AV82: 0 | AW82: 0 | AX82: 0 | AY82: 0 | AZ82: 0 | BA82: 0 | BB82: 0 | BC82: 9 | BD82: 9 | BE82: 10 | BF82: 12 | BG82: 19 | BH82: 10 | BI82: 5 | BJ82: 0 | BK82: 0 | BL82: 0 | BM82: 0 | BN82: 0 | BO82: 0 | BP82: 0 | BQ82: 0 | BR82: 0 | BS82: 0 | BT82: 0 | BU82: 32.6 | BV82: 42.7 | BW82: 16.5 | BX82: 48.5 | BY82: Mon | BZ82: 1915 | CA82: 0 | CB82: 110 | CC82: 0 | CD82: 2 | CE82: 1 | CF82: 1 | CG82: 0 | CH82: 0 | CI82: 1 | CJ82: 0 | CK82: 0 | CL82: 0 | CM82: 0 | CN82: 0 | CO82: 9 | CP82: 11 | CQ82: 14 | CR82: 22 | CS82: 25 | CT82: 17 | CU82: 14 | CV82: 2 | CW82: 1 | CX82: 0 | CY82: 0 | CZ82: 0 | DA82: 0 | DB82: 0 | DC82: 0 | DD82: 0 | DE82: 0 | DF82: 0 | DG82: 34.73913043 | DH82: 45.05 | DI82: 16.5 | DJ82: 55.4 | DK82: 0 | DL82: 40 | DM82: 0 | DN82: 0 | DO82: 1 | DP82: 41 | DQ82: 0 | DR82: 70 | DS82: 2 | DT82: 2 | DU82: 0 | DV82: 74 | DW82: 0 | DX82: 110 | DY82: 2 | DZ82: 2 | EA82: 1 | EB82: 115 | EC82: 41 | ED82: 48 | EE82: 70 | EF82: 51 | EG82: 52 | EH82: 53 | EI82: 37 | EJ82: 74 | EK82: 86 | EL82: 83 | EM82: 82 | EN82: 71 | EO82: 48 | EP82: 65 | EQ82: 115 | ER82: 134 | ES82: 153 | ET82: 133 | EU82: 123 | EV82: 101 | EW82: 102 | EX82: 52.4 | EY82: 50.28571429 | FE82: 79.2 | FF82: 72.71428571 | FL82: 131.6 | FM82: 123 | FN82: 41 | FO82: 48 | FP82: 70 | FQ82: 51 | FR82: 52 | FS82: 53 | FT82: 37 | FU82: 74 | FV82: 86 | FW82: 83 | FX82: 82 | FY82: 71 | FZ82: 48 | GA82: 65 | GB82: 115 | GC82: 134 | GD82: 153 | GE82: 133 | GF82: 123 | GG82: 101 | GH82: 102
A83: Mon | B83: 1930 | C83: 3 | D83: 53 | E83: 0 | F83: 3 | G83: 0 | H83: 0 | I83: 0 | J83: 0 | K83: 0 | L83: 0 | M83: 0 | N83: 0 | O83: 0 | P83: 0 | Q83: 0 | R83: 0 | S83: 6 | T83: 20 | U83: 14 | V83: 10 | W83: 6 | X83: 3 | Y83: 0 | Z83: 0 | AA83: 0 | AB83: 0 | AC83: 0 | AD83: 0 | AE83: 0 | AF83: 0 | AG83: 0 | AH83: 0 | AI83: 37.3 | AJ83: 43.6 | AK83: 25 | AL83: 53.9 | AM83: Mon | AN83: 1930 | AO83: 2 | AP83: 51 | AQ83: 1 | AR83: 1 | AS83: 0 | AT83: 1 | AU83: 0 | AV83: 0 | AW83: 0 | AX83: 0 | AY83: 0 | AZ83: 0 | BA83: 0 | BB83: 1 | BC83: 0 | BD83: 2 | BE83: 4 | BF83: 6 | BG83: 18 | BH83: 19 | BI83: 4 | BJ83: 2 | BK83: 0 | BL83: 0 | BM83: 0 | BN83: 0 | BO83: 0 | BP83: 0 | BQ83: 0 | BR83: 0 | BS83: 0 | BT83: 0 | BU83: 38.1 | BV83: 44.1 | BW83: 14.8 | BX83: 51.3 | BY83: Mon | BZ83: 1930 | CA83: =SUM(C83+AO83) -> 5 | CB83: =SUM(D83+AP83) -> 104 | CC83: =SUM(E83+AQ83) -> 1 | CD83: =SUM(F83+AR83) -> 4 | CE83: =SUM(G83+AS83) -> 0 | CF83: =SUM(H83+AT83) -> 1 | CG83: =SUM(I83+AU83) -> 0 | CH83: =SUM(J83+AV83) -> 0 | CI83: =SUM(K83+AW83) -> 0 | CJ83: =SUM(L83+AX83) -> 0 | CK83: =SUM(M83+AY83) -> 0 | CL83: =SUM(N83+AZ83) -> 0 | CM83: =SUM(O83+BA83) -> 0 | CN83: 1 | CO83: 0 | CP83: 2 | CQ83: 10 | CR83: 26 | CS83: 32 | CT83: 29 | CU83: 10 | CV83: 5 | CW83: 0 | CX83: 0 | CY83: 0 | CZ83: 0 | DA83: 0 | DB83: 0 | DC83: 0 | DD83: 0 | DE83: 0 | DF83: 0 | DG83: 37.68956522 | DH83: 43.85 | DI83: 14.8 | DJ83: 53.9 | DK83: 3 | DL83: 53 | DM83: 3 | DN83: 0 | DO83: 0 | DP83: 59 | DQ83: 2 | DR83: 52 | DS83: 1 | DT83: 1 | DU83: 0 | DV83: 56 | DW83: 5 | DX83: 105 | DY83: 4 | DZ83: 1 | EA83: 0 | EB83: 115 | EC83: 59 | ED83: 58 | EE83: 51 | EF83: 67 | EG83: 49 | EH83: 53 | EI83: 41 | EJ83: 56 | EK83: 51 | EL83: 73 | EM83: 64 | EN83: 73 | EO83: 54 | EP83: 52 | EQ83: 115 | ER83: 109 | ES83: 124 | ET83: 131 | EU83: 122 | EV83: 107 | EW83: 93 | EX83: 56.8 | EY83: 54 | FE83: 63.4 | FF83: 60.42857143 | FL83: 120.2 | FM83: 114.4285714 | FN83: 59 | FO83: 58 | FP83: 51 | FQ83: 67 | FR83: 49 | FS83: 53 | FT83: 41 | FU83: 56 | FV83: 51 | FW83: 73 | FX83: 64 | FY83: 73 | FZ83: 54 | GA83: 52 | GB83: 115 | GC83: 109 | GD83: 124 | GE83: 131 | GF83: 122 | GG83: 107 | GH83: 93
A84: Mon | B84: 1945 | C84: 2 | D84: 26 | E84: 2 | F84: 3 | G84: 0 | H84: 0 | I84: 0 | J84: 0 | K84: 1 | L84: 0 | M84: 0 | N84: 0 | O84: 0 | P84: 1 | Q84: 0 | R84: 4 | S84: 3 | T84: 5 | U84: 4 | V84: 8 | W84: 7 | X84: 1 | Y84: 0 | Z84: 1 | AA84: 0 | AB84: 0 | AC84: 0 | AD84: 0 | AE84: 0 | AF84: 0 | AG84: 0 | AH84: 0 | AI84: 38 | AJ84: 47.2 | AK84: 13.8 | AL84: 62.3 | AM84: Mon | AN84: 1945 | AO84: 0 | AP84: 57 | AQ84: 0 | AR84: 2 | AS84: 0 | AT84: 0 | AU84: 0 | AV84: 0 | AW84: 0 | AX84: 0 | AY84: 0 | AZ84: 0 | BA84: 0 | BB84: 0 | BC84: 0 | BD84: 1 | BE84: 0 | BF84: 15 | BG84: 33 | BH84: 8 | BI84: 2 | BJ84: 0 | BK84: 0 | BL84: 0 | BM84: 0 | BN84: 0 | BO84: 0 | BP84: 0 | BQ84: 0 | BR84: 0 | BS84: 0 | BT84: 0 | BU84: 37.1 | BV84: 40.3 | BW84: 23.2 | BX84: 48.7 | BY84: Mon | BZ84: 1945 | CA84: 2 | CB84: 83 | CC84: 2 | CD84: 5 | CE84: 0 | CF84: 0 | CG84: 0 | CH84: 0 | CI84: 1 | CJ84: 0 | CK84: 0 | CL84: 0 | CM84: 0 | CN84: 1 | CO84: 0 | CP84: 5 | CQ84: 3 | CR84: 20 | CS84: 37 | CT84: 16 | CU84: 9 | CV84: 1 | CW84: 0 | CX84: 1 | CY84: 0 | CZ84: 0 | DA84: 0 | DB84: 0 | DC84: 0 | DD84: 0 | DE84: 0 | DF84: 0 | DG84: 37.42903226 | DH84: 43.75 | DI84: 13.8 | DJ84: 62.3 | DK84: 2 | DL84: 28 | DM84: 3 | DN84: 0 | DO84: 1 | DP84: 34 | DQ84: 0 | DR84: 57 | DS84: 2 | DT84: 0 | DU84: 0 | DV84: 59 | DW84: 2 | DX84: 85 | DY84: 5 | DZ84: 0 | EA84: 1 | EB84: 93 | EC84: 34 | ED84: 57 | EE84: 40 | EF84: 60 | EG84: 49 | EH84: 38 | EI84: 38 | EJ84: 59 | EK84: 68 | EL84: 66 | EM84: 61 | EN84: 46 | EO84: 58 | EP84: 49 | EQ84: 93 | ER84: 125 | ES84: 106 | ET84: 121 | EU84: 95 | EV84: 96 | EW84: 87 | EX84: 48 | EY84: 45.14285714 | FE84: 60 | FF84: 58.14285714 | FL84: 108 | FM84: 103.2857143 | FN84: 34 | FO84: 57 | FP84: 40 | FQ84: 60 | FR84: 49 | FS84: 38 | FT84: 38 | FU84: 59 | FV84: 68 | FW84: 66 | FX84: 61 | FY84: 46 | FZ84: 58 | GA84: 49 | GB84: 93 | GC84: 125 | GD84: 106 | GE84: 121 | GF84: 95 | GG84: 96 | GH84: 87
A85: Mon | B85: 2000 | C85: 1 | D85: 30 | E85: 0 | F85: 0 | G85: 0 | H85: 0 | I85: 0 | J85: 0 | K85: 0 | L85: 0 | M85: 0 | N85: 0 | O85: 0 | P85: 0 | Q85: 0 | R85: 3 | S85: 2 | T85: 5 | U85: 7 | V85: 3 | W85: 4 | X85: 6 | Y85: 1 | Z85: 0 | AA85: 0 | AB85: 0 | AC85: 0 | AD85: 0 | AE85: 0 | AF85: 0 | AG85: 0 | AH85: 0 | AI85: 39.7 | AJ85: 51.2 | AK85: 20.9 | AL85: 56.8 | AM85: Mon | AN85: 2000 | AO85: 1 | AP85: 45 | AQ85: 0 | AR85: 4 | AS85: 0 | AT85: 0 | AU85: 0 | AV85: 0 | AW85: 0 | AX85: 0 | AY85: 0 | AZ85: 0 | BA85: 0 | BB85: 0 | BC85: 0 | BD85: 2 | BE85: 7 | BF85: 4 | BG85: 13 | BH85: 13 | BI85: 10 | BJ85: 0 | BK85: 0 | BL85: 1 | BM85: 0 | BN85: 0 | BO85: 0 | BP85: 0 | BQ85: 0 | BR85: 0 | BS85: 0 | BT85: 0 | BU85: 38.8 | BV85: 45.9 | BW85: 22.6 | BX85: 62.2 | BY85: Mon | BZ85: 2000 | CA85: 2 | CB85: 75 | CC85: 0 | CD85: 4 | CE85: 0 | CF85: 0 | CG85: 0 | CH85: 0 | CI85: 0 | CJ85: 0 | CK85: 0 | CL85: 0 | CM85: 0 | CN85: 0 | CO85: 0 | CP85: 5 | CQ85: 9 | CR85: 9 | CS85: 20 | CT85: 16 | CU85: 14 | CV85: 6 | CW85: 1 | CX85: 1 | CY85: 0 | CZ85: 0 | DA85: 0 | DB85: 0 | DC85: 0 | DD85: 0 | DE85: 0 | DF85: 0 | DG85: 39.14444444 | DH85: 48.55 | DI85: 20.9 | DJ85: 62.2 | DK85: 1 | DL85: 30 | DM85: 0 | DN85: 0 | DO85: 0 | DP85: 31 | DQ85: 1 | DR85: 45 | DS85: 4 | DT85: 0 | DU85: 0 | DV85: 50 | DW85: 2 | DX85: 75 | DY85: 4 | DZ85: 0 | EA85: 0 | EB85: 81 | EC85: 31 | ED85: 56 | EE85: 47 | EF85: 46 | EG85: 52 | EH85: 38 | EI85: 40 | EJ85: 50 | EK85: 66 | EL85: 55 | EM85: 56 | EN85: 50 | EO85: 47 | EP85: 39 | EQ85: 81 | ER85: 122 | ES85: 102 | ET85: 102 | EU85: 102 | EV85: 85 | EW85: 79 | EX85: 46.4 | EY85: 44.28571429 | FE85: 55.4 | FF85: 51.85714286 | FL85: 101.8 | FM85: 96.14285714 | FN85: 31 | FO85: 56 | FP85: 47 | FQ85: 46 | FR85: 52 | FS85: 38 | FT85: 40 | FU85: 50 | FV85: 66 | FW85: 55 | FX85: 56 | FY85: 50 | FZ85: 47 | GA85: 39 | GB85: 81 | GC85: 122 | GD85: 102 | GE85: 102 | GF85: 102 | GG85: 85 | GH85: 79
A86: Mon | B86: 2015 | C86: 1 | D86: 40 | E86: 0 | F86: 1 | G86: 1 | H86: 0 | I86: 0 | J86: 0 | K86: 0 | L86: 0 | M86: 0 | N86: 0 | O86: 0 | P86: 0 | Q86: 0 | R86: 1 | S86: 4 | T86: 5 | U86: 13 | V86: 8 | W86: 8 | X86: 4 | Y86: 0 | Z86: 0 | AA86: 0 | AB86: 0 | AC86: 0 | AD86: 0 | AE86: 0 | AF86: 0 | AG86: 0 | AH86: 0 | AI86: 40 | AJ86: 47.4 | AK86: 24.3 | AL86: 51.4 | AM86: Mon | AN86: 2015 | AO86: 1 | AP86: 44 | AQ86: 1 | AR86: 2 | AS86: 0 | AT86: 0 | AU86: 0 | AV86: 0 | AW86: 0 | AX86: 0 | AY86: 0 | AZ86: 0 | BA86: 0 | BB86: 0 | BC86: 0 | BD86: 5 | BE86: 3 | BF86: 11 | BG86: 9 | BH86: 9 | BI86: 6 | BJ86: 5 | BK86: 0 | BL86: 0 | BM86: 0 | BN86: 0 | BO86: 0 | BP86: 0 | BQ86: 0 | BR86: 0 | BS86: 0 | BT86: 0 | BU86: 37.7 | BV86: 45.9 | BW86: 21.4 | BX86: 52.9 | BY86: Mon | BZ86: 2015 | CA86: 2 | CB86: 84 | CC86: 1 | CD86: 3 | CE86: 1 | CF86: 0 | CG86: 0 | CH86: 0 | CI86: 0 | CJ86: 0 | CK86: 0 | CL86: 0 | CM86: 0 | CN86: 0 | CO86: 0 | CP86: 6 | CQ86: 7 | CR86: 16 | CS86: 22 | CT86: 17 | CU86: 14 | CV86: 9 | CW86: 0 | CX86: 0 | CY86: 0 | CZ86: 0 | DA86: 0 | DB86: 0 | DC86: 0 | DD86: 0 | DE86: 0 | DF86: 0 | DG86: 38.78681319 | DH86: 46.65 | DI86: 21.4 | DJ86: 52.9 | DK86: 1 | DL86: 40 | DM86: 1 | DN86: 1 | DO86: 0 | DP86: 43 | DQ86: 1 | DR86: 45 | DS86: 2 | DT86: 0 | DU86: 0 | DV86: 48 | DW86: 2 | DX86: 85 | DY86: 3 | DZ86: 1 | EA86: 0 | EB86: 91 | EC86: 43 | ED86: 59 | EE86: 48 | EF86: 42 | EG86: 34 | EH86: 36 | EI86: 29 | EJ86: 48 | EK86: 52 | EL86: 61 | EM86: 69 | EN86: 58 | EO86: 34 | EP86: 48 | EQ86: 91 | ER86: 111 | ES86: 109 | ET86: 111 | EU86: 92 | EV86: 70 | EW86: 77 | EX86: 45.2 | EY86: 41.57142857 | FE86: 57.6 | FF86: 52.85714286 | FL86: 102.8 | FM86: 94.42857143 | FN86: 43 | FO86: 59 | FP86: 48 | FQ86: 42 | FR86: 34 | FS86: 36 | FT86: 29 | FU86: 48 | FV86: 52 | FW86: 61 | FX86: 69 | FY86: 58 | FZ86: 34 | GA86: 48 | GB86: 91 | GC86: 111 | GD86: 109 | GE86: 111 | GF86: 92 | GG86: 70 | GH86: 77
A87: Mon | B87: 2030 | C87: 0 | D87: 24 | E87: 0 | F87: 3 | G87: 0 | H87: 0 | I87: 0 | J87: 0 | K87: 0 | L87: 0 | M87: 0 | N87: 0 | O87: 0 | P87: 0 | Q87: 2 | R87: 0 | S87: 4 | T87: 5 | U87: 6 | V87: 7 | W87: 3 | X87: 0 | Y87: 0 | Z87: 0 | AA87: 0 | AB87: 0 | AC87: 0 | AD87: 0 | AE87: 0 | AF87: 0 | AG87: 0 | AH87: 0 | AI87: 35.7 | AJ87: 42.5 | AK87: 19.7 | AL87: 49 | AM87: Mon | AN87: 2030 | AO87: 0 | AP87: 38 | AQ87: 1 | AR87: 1 | AS87: 0 | AT87: 0 | AU87: 0 | AV87: 0 | AW87: 0 | AX87: 0 | AY87: 0 | AZ87: 0 | BA87: 0 | BB87: 0 | BC87: 0 | BD87: 2 | BE87: 0 | BF87: 9 | BG87: 15 | BH87: 10 | BI87: 2 | BJ87: 2 | BK87: 0 | BL87: 0 | BM87: 0 | BN87: 0 | BO87: 0 | BP87: 0 | BQ87: 0 | BR87: 0 | BS87: 0 | BT87: 0 | BU87: 38.2 | BV87: 42.9 | BW87: 23.7 | BX87: 51.3 | BY87: Mon | BZ87: 2030 | CA87: 0 | CB87: 62 | CC87: 1 | CD87: 4 | CE87: 0 | CF87: 0 | CG87: 0 | CH87: 0 | CI87: 0 | CJ87: 0 | CK87: 0 | CL87: 0 | CM87: 0 | CN87: 0 | CO87: 2 | CP87: 2 | CQ87: 4 | CR87: 14 | CS87: 21 | CT87: 17 | CU87: 5 | CV87: 2 | CW87: 0 | CX87: 0 | CY87: 0 | CZ87: 0 | DA87: 0 | DB87: 0 | DC87: 0 | DD87: 0 | DE87: 0 | DF87: 0 | DG87: 37.19253731 | DH87: 42.7 | DI87: 19.7 | DJ87: 51.3 | DK87: 0 | DL87: 24 | DM87: 3 | DN87: 0 | DO87: 0 | DP87: 27 | DQ87: 0 | DR87: 39 | DS87: 1 | DT87: 0 | DU87: 0 | DV87: 40 | DW87: 0 | DX87: 63 | DY87: 4 | DZ87: 0 | EA87: 0 | EB87: 67 | EC87: 27 | ED87: 49 | EE87: 37 | EF87: 28 | EG87: 30 | EH87: 17 | EI87: 27 | EJ87: 40 | EK87: 57 | EL87: 73 | EM87: 55 | EN87: 40 | EO87: 33 | EP87: 39 | EQ87: 67 | ER87: 106 | ES87: 110 | ET87: 83 | EU87: 70 | EV87: 50 | EW87: 66 | EX87: 34.2 | EY87: 30.71428571 | FE87: 53 | FF87: 48.14285714 | FL87: 87.2 | FM87: 78.85714286 | FN87: 27 | FO87: 49 | FP87: 37 | FQ87: 28 | FR87: 30 | FS87: 17 | FT87: 27 | FU87: 40 | FV87: 57 | FW87: 73 | FX87: 55 | FY87: 40 | FZ87: 33 | GA87: 39 | GB87: 67 | GC87: 106 | GD87: 110 | GE87: 83 | GF87: 70 | GG87: 50 | GH87: 66
A88: Mon | B88: 2045 | C88: 0 | D88: 30 | E88: 0 | F88: 1 | G88: 0 | H88: 0 | I88: 0 | J88: 0 | K88: 0 | L88: 0 | M88: 0 | N88: 0 | O88: 0 | P88: 0 | Q88: 0 | R88: 0 | S88: 1 | T88: 7 | U88: 5 | V88: 9 | W88: 3 | X88: 4 | Y88: 0 | Z88: 1 | AA88: 1 | AB88: 0 | AC88: 0 | AD88: 0 | AE88: 0 | AF88: 0 | AG88: 0 | AH88: 0 | AI88: 42.3 | AJ88: 50.3 | AK88: 26.1 | AL88: 67.8 | AM88: Mon | AN88: 2045 | AO88: 0 | AP88: 55 | AQ88: 0 | AR88: 0 | AS88: 0 | AT88: 0 | AU88: 0 | AV88: 0 | AW88: 0 | AX88: 0 | AY88: 0 | AZ88: 0 | BA88: 0 | BB88: 0 | BC88: 0 | BD88: 1 | BE88: 9 | BF88: 11 | BG88: 14 | BH88: 15 | BI88: 3 | BJ88: 1 | BK88: 0 | BL88: 0 | BM88: 1 | BN88: 0 | BO88: 0 | BP88: 0 | BQ88: 0 | BR88: 0 | BS88: 0 | BT88: 0 | BU88: 37.7 | BV88: 44.1 | BW88: 24.1 | BX88: 65.9 | BY88: Mon | BZ88: 2045 | CA88: 0 | CB88: 85 | CC88: 0 | CD88: 1 | CE88: 0 | CF88: 0 | CG88: 0 | CH88: 0 | CI88: 0 | CJ88: 0 | CK88: 0 | CL88: 0 | CM88: 0 | CN88: 0 | CO88: 0 | CP88: 1 | CQ88: 10 | CR88: 18 | CS88: 19 | CT88: 24 | CU88: 6 | CV88: 5 | CW88: 0 | CX88: 1 | CY88: 2 | CZ88: 0 | DA88: 0 | DB88: 0 | DC88: 0 | DD88: 0 | DE88: 0 | DF88: 0 | DG88: 39.35813953 | DH88: 47.2 | DI88: 24.1 | DJ88: 67.8 | DK88: 0 | DL88: 30 | DM88: 1 | DN88: 0 | DO88: 0 | DP88: 31 | DQ88: 0 | DR88: 55 | DS88: 0 | DT88: 0 | DU88: 0 | DV88: 55 | DW88: 0 | DX88: 85 | DY88: 1 | DZ88: 0 | EA88: 0 | EB88: 86 | EC88: 31 | ED88: 45 | EE88: 41 | EF88: 38 | EG88: 47 | EH88: 25 | EI88: 26 | EJ88: 55 | EK88: 55 | EL88: 46 | EM88: 48 | EN88: 38 | EO88: 43 | EP88: 25 | EQ88: 86 | ER88: 100 | ES88: 87 | ET88: 86 | EU88: 85 | EV88: 68 | EW88: 51 | EX88: 40.4 | EY88: 36.14285714 | FE88: 48.4 | FF88: 44.28571429 | FL88: 88.8 | FM88: 80.42857143 | FN88: 31 | FO88: 45 | FP88: 41 | FQ88: 38 | FR88: 47 | FS88: 25 | FT88: 26 | FU88: 55 | FV88: 55 | FW88: 46 | FX88: 48 | FY88: 38 | FZ88: 43 | GA88: 25 | GB88: 86 | GC88: 100 | GD88: 87 | GE88: 86 | GF88: 85 | GG88: 68 | GH88: 51
A89: Mon | B89: 2100 | C89: 0 | D89: 22 | E89: 0 | F89: 0 | G89: 0 | H89: 0 | I89: 0 | J89: 0 | K89: 0 | L89: 0 | M89: 0 | N89: 0 | O89: 0 | P89: 0 | Q89: 1 | R89: 0 | S89: 0 | T89: 8 | U89: 7 | V89: 1 | W89: 4 | X89: 0 | Y89: 0 | Z89: 0 | AA89: 0 | AB89: 1 | AC89: 0 | AD89: 0 | AE89: 0 | AF89: 0 | AG89: 0 | AH89: 0 | AI89: 38 | AJ89: 45 | AK89: 19.9 | AL89: 70.4 | AM89: Mon | AN89: 2100 | AO89: 1 | AP89: 52 | AQ89: 0 | AR89: 1 | AS89: 0 | AT89: 0 | AU89: 0 | AV89: 0 | AW89: 0 | AX89: 0 | AY89: 0 | AZ89: 0 | BA89: 0 | BB89: 0 | BC89: 0 | BD89: 1 | BE89: 9 | BF89: 19 | BG89: 19 | BH89: 5 | BI89: 1 | BJ89: 0 | BK89: 0 | BL89: 0 | BM89: 0 | BN89: 0 | BO89: 0 | BP89: 0 | BQ89: 0 | BR89: 0 | BS89: 0 | BT89: 0 | BU89: 34.6 | BV89: 39.4 | BW89: 23.1 | BX89: 46.3 | BY89: Mon | BZ89: 2100 | CA89: 1 | CB89: 74 | CC89: 0 | CD89: 1 | CE89: 0 | CF89: 0 | CG89: 0 | CH89: 0 | CI89: 0 | CJ89: 0 | CK89: 0 | CL89: 0 | CM89: 0 | CN89: 0 | CO89: 1 | CP89: 1 | CQ89: 9 | CR89: 27 | CS89: 26 | CT89: 6 | CU89: 5 | CV89: 0 | CW89: 0 | CX89: 0 | CY89: 0 | CZ89: 1 | DA89: 0 | DB89: 0 | DC89: 0 | DD89: 0 | DE89: 0 | DF89: 0 | DG89: 35.58421053 | DH89: 42.2 | DI89: 19.9 | DJ89: 70.4 | DK89: 0 | DL89: 22 | DM89: 0 | DN89: 0 | DO89: 0 | DP89: 22 | DQ89: 1 | DR89: 52 | DS89: 1 | DT89: 0 | DU89: 0 | DV89: 54 | DW89: 1 | DX89: 74 | DY89: 1 | DZ89: 0 | EA89: 0 | EB89: 76 | EC89: 22 | ED89: 39 | EE89: 33 | EF89: 37 | EG89: 33 | EH89: 13 | EI89: 25 | EJ89: 54 | EK89: 40 | EL89: 45 | EM89: 40 | EN89: 39 | EO89: 27 | EP89: 33 | EQ89: 76 | ER89: 79 | ES89: 78 | ET89: 77 | EU89: 72 | EV89: 40 | EW89: 58 | EX89: 32.8 | EY89: 28.85714286 | FE89: 43.6 | FF89: 39.71428571 | FL89: 76.4 | FM89: 68.57142857 | FN89: 22 | FO89: 39 | FP89: 33 | FQ89: 37 | FR89: 33 | FS89: 13 | FT89: 25 | FU89: 54 | FV89: 40 | FW89: 45 | FX89: 40 | FY89: 39 | FZ89: 27 | GA89: 33 | GB89: 76 | GC89: 79 | GD89: 78 | GE89: 77 | GF89: 72 | GG89: 40 | GH89: 58
A90: Mon | B90: 2115 | C90: 1 | D90: 17 | E90: 0 | F90: 1 | G90: 1 | H90: 0 | I90: 0 | J90: 0 | K90: 0 | L90: 0 | M90: 0 | N90: 0 | O90: 0 | P90: 0 | Q90: 0 | R90: 0 | S90: 5 | T90: 4 | U90: 3 | V90: 3 | W90: 2 | X90: 2 | Y90: 1 | Z90: 0 | AA90: 0 | AB90: 0 | AC90: 0 | AD90: 0 | AE90: 0 | AF90: 0 | AG90: 0 | AH90: 0 | AI90: 38 | AJ90: 48.3 | AK90: 25.5 | AL90: 57.5 | AM90: Mon | AN90: 2115 | AO90: 1 | AP90: 30 | AQ90: 0 | AR90: 2 | AS90: 0 | AT90: 0 | AU90: 0 | AV90: 0 | AW90: 0 | AX90: 0 | AY90: 0 | AZ90: 0 | BA90: 0 | BB90: 0 | BC90: 0 | BD90: 0 | BE90: 5 | BF90: 4 | BG90: 12 | BH90: 5 | BI90: 3 | BJ90: 4 | BK90: 0 | BL90: 0 | BM90: 0 | BN90: 0 | BO90: 0 | BP90: 0 | BQ90: 0 | BR90: 0 | BS90: 0 | BT90: 0 | BU90: 39.1 | BV90: 47.6 | BW90: 26.3 | BX90: 52.3 | BY90: Mon | BZ90: 2115 | CA90: 2 | CB90: 47 | CC90: 0 | CD90: 3 | CE90: 1 | CF90: 0 | CG90: 0 | CH90: 0 | CI90: 0 | CJ90: 0 | CK90: 0 | CL90: 0 | CM90: 0 | CN90: 0 | CO90: 0 | CP90: 0 | CQ90: 10 | CR90: 8 | CS90: 15 | CT90: 8 | CU90: 5 | CV90: 6 | CW90: 1 | CX90: 0 | CY90: 0 | CZ90: 0 | DA90: 0 | DB90: 0 | DC90: 0 | DD90: 0 | DE90: 0 | DF90: 0 | DG90: 38.68490566 | DH90: 47.95 | DI90: 25.5 | DJ90: 57.5 | DK90: 1 | DL90: 17 | DM90: 1 | DN90: 1 | DO90: 0 | DP90: 20 | DQ90: 1 | DR90: 30 | DS90: 2 | DT90: 0 | DU90: 0 | DV90: 33 | DW90: 2 | DX90: 47 | DY90: 3 | DZ90: 1 | EA90: 0 | EB90: 53 | EC90: 20 | ED90: 36 | EE90: 33 | EF90: 39 | EG90: 34 | EH90: 24 | EI90: 22 | EJ90: 33 | EK90: 47 | EL90: 49 | EM90: 35 | EN90: 36 | EO90: 31 | EP90: 31 | EQ90: 53 | ER90: 83 | ES90: 82 | ET90: 74 | EU90: 70 | EV90: 55 | EW90: 53 | EX90: 32.4 | EY90: 29.71428571 | FE90: 40 | FF90: 37.42857143 | FL90: 72.4 | FM90: 67.14285714 | FN90: 20 | FO90: 36 | FP90: 33 | FQ90: 39 | FR90: 34 | FS90: 24 | FT90: 22 | FU90: 33 | FV90: 47 | FW90: 49 | FX90: 35 | FY90: 36 | FZ90: 31 | GA90: 31 | GB90: 53 | GC90: 83 | GD90: 82 | GE90: 74 | GF90: 70 | GG90: 55 | GH90: 53
A91: Mon | B91: 2130 | C91: 3 | D91: 29 | E91: 0 | F91: 1 | G91: 0 | H91: 1 | I91: 0 | J91: 0 | K91: 0 | L91: 0 | M91: 0 | N91: 0 | O91: 0 | P91: 0 | Q91: 0 | R91: 0 | S91: 6 | T91: 3 | U91: 10 | V91: 12 | W91: 1 | X91: 1 | Y91: 1 | Z91: 0 | AA91: 0 | AB91: 0 | AC91: 0 | AD91: 0 | AE91: 0 | AF91: 0 | AG91: 0 | AH91: 0 | AI91: 38.1 | AJ91: 41.6 | AK91: 25 | AL91: 56.7 | AM91: Mon | AN91: 2130 | AO91: 0 | AP91: 26 | AQ91: 0 | AR91: 1 | AS91: 0 | AT91: 0 | AU91: 0 | AV91: 0 | AW91: 0 | AX91: 0 | AY91: 0 | AZ91: 0 | BA91: 0 | BB91: 0 | BC91: 0 | BD91: 0 | BE91: 0 | BF91: 5 | BG91: 9 | BH91: 8 | BI91: 4 | BJ91: 1 | BK91: 0 | BL91: 0 | BM91: 0 | BN91: 0 | BO91: 0 | BP91: 0 | BQ91: 0 | BR91: 0 | BS91: 0 | BT91: 0 | BU91: 39.8 | BV91: 45 | BW91: 31.3 | BX91: 52.3 | BY91: Mon | BZ91: 2130 | CA91: 3 | CB91: 55 | CC91: 0 | CD91: 2 | CE91: 0 | CF91: 1 | CG91: 0 | CH91: 0 | CI91: 0 | CJ91: 0 | CK91: 0 | CL91: 0 | CM91: 0 | CN91: 0 | CO91: 0 | CP91: 0 | CQ91: 6 | CR91: 8 | CS91: 19 | CT91: 20 | CU91: 5 | CV91: 2 | CW91: 1 | CX91: 0 | CY91: 0 | CZ91: 0 | DA91: 0 | DB91: 0 | DC91: 0 | DD91: 0 | DE91: 0 | DF91: 0 | DG91: 38.85245902 | DH91: 43.3 | DI91: 25 | DJ91: 56.7 | DK91: 3 | DL91: 29 | DM91: 1 | DN91: 1 | DO91: 0 | DP91: 34 | DQ91: 0 | DR91: 26 | DS91: 1 | DT91: 0 | DU91: 0 | DV91: 27 | DW91: 3 | DX91: 55 | DY91: 2 | DZ91: 1 | EA91: 0 | EB91: 61 | EC91: 34 | ED91: 38 | EE91: 43 | EF91: 36 | EG91: 29 | EH91: 17 | EI91: 28 | EJ91: 27 | EK91: 46 | EL91: 50 | EM91: 39 | EN91: 38 | EO91: 24 | EP91: 28 | EQ91: 61 | ER91: 84 | ES91: 93 | ET91: 75 | EU91: 67 | EV91: 41 | EW91: 56 | EX91: 36 | EY91: 32.14285714 | FE91: 40 | FF91: 36 | FL91: 76 | FM91: 68.14285714 | FN91: 34 | FO91: 38 | FP91: 43 | FQ91: 36 | FR91: 29 | FS91: 17 | FT91: 28 | FU91: 27 | FV91: 46 | FW91: 50 | FX91: 39 | FY91: 38 | FZ91: 24 | GA91: 28 | GB91: 61 | GC91: 84 | GD91: 93 | GE91: 75 | GF91: 67 | GG91: 41 | GH91: 56
A92: Mon | B92: 2145 | C92: 0 | D92: 21 | E92: 0 | F92: 1 | G92: 0 | H92: 0 | I92: 0 | J92: 0 | K92: 0 | L92: 0 | M92: 0 | N92: 0 | O92: 0 | P92: 0 | Q92: 0 | R92: 0 | S92: 2 | T92: 5 | U92: 6 | V92: 5 | W92: 3 | X92: 1 | Y92: 0 | Z92: 0 | AA92: 0 | AB92: 0 | AC92: 0 | AD92: 0 | AE92: 0 | AF92: 0 | AG92: 0 | AH92: 0 | AI92: 38.8 | AJ92: 45.6 | AK92: 27.4 | AL92: 51.5 | AM92: Mon | AN92: 2145 | AO92: 3 | AP92: 35 | AQ92: 0 | AR92: 2 | AS92: 0 | AT92: 0 | AU92: 0 | AV92: 0 | AW92: 0 | AX92: 0 | AY92: 0 | AZ92: 0 | BA92: 0 | BB92: 0 | BC92: 0 | BD92: 0 | BE92: 8 | BF92: 13 | BG92: 10 | BH92: 8 | BI92: 1 | BJ92: 0 | BK92: 0 | BL92: 0 | BM92: 0 | BN92: 0 | BO92: 0 | BP92: 0 | BQ92: 0 | BR92: 0 | BS92: 0 | BT92: 0 | BU92: 35.2 | BV92: 40.9 | BW92: 25.3 | BX92: 48.7 | BY92: Mon | BZ92: 2145 | CA92: 3 | CB92: 56 | CC92: 0 | CD92: 3 | CE92: 0 | CF92: 0 | CG92: 0 | CH92: 0 | CI92: 0 | CJ92: 0 | CK92: 0 | CL92: 0 | CM92: 0 | CN92: 0 | CO92: 0 | CP92: 0 | CQ92: 10 | CR92: 18 | CS92: 16 | CT92: 13 | CU92: 4 | CV92: 1 | CW92: 0 | CX92: 0 | CY92: 0 | CZ92: 0 | DA92: 0 | DB92: 0 | DC92: 0 | DD92: 0 | DE92: 0 | DF92: 0 | DG92: 36.47741935 | DH92: 43.25 | DI92: 25.3 | DJ92: 51.5 | DK92: 0 | DL92: 21 | DM92: 1 | DN92: 0 | DO92: 0 | DP92: 22 | DQ92: 3 | DR92: 35 | DS92: 2 | DT92: 0 | DU92: 0 | DV92: 40 | DW92: 3 | DX92: 56 | DY92: 3 | DZ92: 0 | EA92: 0 | EB92: 62 | EC92: 22 | ED92: 28 | EE92: 42 | EF92: 34 | EG92: 29 | EH92: 28 | EI92: 26 | EJ92: 40 | EK92: 44 | EL92: 37 | EM92: 38 | EN92: 42 | EO92: 24 | EP92: 34 | EQ92: 62 | ER92: 72 | ES92: 79 | ET92: 72 | EU92: 71 | EV92: 52 | EW92: 60 | EX92: 31 | EY92: 29.85714286 | FE92: 40.2 | FF92: 37 | FL92: 71.2 | FM92: 66.85714286 | FN92: 22 | FO92: 28 | FP92: 42 | FQ92: 34 | FR92: 29 | FS92: 28 | FT92: 26 | FU92: 40 | FV92: 44 | FW92: 37 | FX92: 38 | FY92: 42 | FZ92: 24 | GA92: 34 | GB92: 62 | GC92: 72 | GD92: 79 | GE92: 72 | GF92: 71 | GG92: 52 | GH92: 60
A93: Mon | B93: 2200 | C93: 0 | D93: 14 | E93: 0 | F93: 0 | G93: 0 | H93: 0 | I93: 0 | J93: 0 | K93: 0 | L93: 0 | M93: 0 | N93: 0 | O93: 0 | P93: 0 | Q93: 0 | R93: 0 | S93: 3 | T93: 5 | U93: 3 | V93: 1 | W93: 1 | X93: 1 | Y93: 0 | Z93: 0 | AA93: 0 | AB93: 0 | AC93: 0 | AD93: 0 | AE93: 0 | AF93: 0 | AG93: 0 | AH93: 0 | AI93: 35.3 | AJ93: 41.6 | AK93: 25 | AL93: 51 | AM93: Mon | AN93: 2200 | AO93: 1 | AP93: 25 | AQ93: 0 | AR93: 1 | AS93: 0 | AT93: 0 | AU93: 0 | AV93: 0 | AW93: 0 | AX93: 0 | AY93: 0 | AZ93: 0 | BA93: 0 | BB93: 0 | BC93: 0 | BD93: 0 | BE93: 1 | BF93: 8 | BG93: 6 | BH93: 9 | BI93: 2 | BJ93: 1 | BK93: 0 | BL93: 0 | BM93: 0 | BN93: 0 | BO93: 0 | BP93: 0 | BQ93: 0 | BR93: 0 | BS93: 0 | BT93: 0 | BU93: 38.6 | BV93: 44.1 | BW93: 29.1 | BX93: 52.5 | BY93: Mon | BZ93: 2200 | CA93: 1 | CB93: 39 | CC93: 0 | CD93: 1 | CE93: 0 | CF93: 0 | CG93: 0 | CH93: 0 | CI93: 0 | CJ93: 0 | CK93: 0 | CL93: 0 | CM93: 0 | CN93: 0 | CO93: 0 | CP93: 0 | CQ93: 4 | CR93: 13 | CS93: 9 | CT93: 10 | CU93: 3 | CV93: 2 | CW93: 0 | CX93: 0 | CY93: 0 | CZ93: 0 | DA93: 0 | DB93: 0 | DC93: 0 | DD93: 0 | DE93: 0 | DF93: 0 | DG93: 37.47317073 | DH93: 42.85 | DI93: 25 | DJ93: 52.5 | DK93: 0 | DL93: 14 | DM93: 0 | DN93: 0 | DO93: 0 | DP93: 14 | DQ93: 1 | DR93: 25 | DS93: 1 | DT93: 0 | DU93: 0 | DV93: 27 | DW93: 1 | DX93: 39 | DY93: 1 | DZ93: 0 | EA93: 0 | EB93: 41 | EC93: 14 | ED93: 24 | EE93: 30 | EF93: 29 | EG93: 29 | EH93: 34 | EI93: 18 | EJ93: 27 | EK93: 20 | EL93: 37 | EM93: 36 | EN93: 50 | EO93: 27 | EP93: 29 | EQ93: 41 | ER93: 44 | ES93: 67 | ET93: 65 | EU93: 79 | EV93: 61 | EW93: 47 | EX93: 25.2 | EY93: 25.42857143 | FE93: 34 | FF93: 32.28571429 | FL93: 59.2 | FM93: 57.71428571 | FN93: 14 | FO93: 24 | FP93: 30 | FQ93: 29 | FR93: 29 | FS93: 34 | FT93: 18 | FU93: 27 | FV93: 20 | FW93: 37 | FX93: 36 | FY93: 50 | FZ93: 27 | GA93: 29 | GB93: 41 | GC93: 44 | GD93: 67 | GE93: 65 | GF93: 79 | GG93: 61 | GH93: 47
A94: Mon | B94: 2215 | C94: 0 | D94: 12 | E94: 0 | F94: 0 | G94: 0 | H94: 0 | I94: 0 | J94: 0 | K94: 0 | L94: 0 | M94: 0 | N94: 0 | O94: 0 | P94: 0 | Q94: 0 | R94: 0 | S94: 0 | T94: 1 | U94: 4 | V94: 7 | W94: 0 | X94: 0 | Y94: 0 | Z94: 0 | AA94: 0 | AB94: 0 | AC94: 0 | AD94: 0 | AE94: 0 | AF94: 0 | AG94: 0 | AH94: 0 | AI94: 39.1 | AJ94: 40.9 | AK94: 30.5 | AL94: 42.2 | AM94: Mon | AN94: 2215 | AO94: 1 | AP94: 20 | AQ94: 1 | AR94: 0 | AS94: 0 | AT94: 0 | AU94: 0 | AV94: 0 | AW94: 0 | AX94: 0 | AY94: 0 | AZ94: 0 | BA94: 0 | BB94: 0 | BC94: 0 | BD94: 0 | BE94: 4 | BF94: 5 | BG94: 8 | BH94: 3 | BI94: 2 | BJ94: 0 | BK94: 0 | BL94: 0 | BM94: 0 | BN94: 0 | BO94: 0 | BP94: 0 | BQ94: 0 | BR94: 0 | BS94: 0 | BT94: 0 | BU94: 36.8 | BV94: 42.3 | BW94: 27.5 | BX94: 49 | BY94: Mon | BZ94: 2215 | CA94: 1 | CB94: 32 | CC94: 1 | CD94: 0 | CE94: 0 | CF94: 0 | CG94: 0 | CH94: 0 | CI94: 0 | CJ94: 0 | CK94: 0 | CL94: 0 | CM94: 0 | CN94: 0 | CO94: 0 | CP94: 0 | CQ94: 4 | CR94: 6 | CS94: 12 | CT94: 10 | CU94: 2 | CV94: 0 | CW94: 0 | CX94: 0 | CY94: 0 | CZ94: 0 | DA94: 0 | DB94: 0 | DC94: 0 | DD94: 0 | DE94: 0 | DF94: 0 | DG94: 37.61176471 | DH94: 41.6 | DI94: 27.5 | DJ94: 49 | DK94: 0 | DL94: 12 | DM94: 0 | DN94: 0 | DO94: 0 | DP94: 12 | DQ94: 1 | DR94: 21 | DS94: 0 | DT94: 0 | DU94: 0 | DV94: 22 | DW94: 1 | DX94: 33 | DY94: 0 | DZ94: 0 | EA94: 0 | EB94: 34 | EC94: 12 | ED94: 26 | EE94: 15 | EF94: 26 | EG94: 30 | EH94: 36 | EI94: 22 | EJ94: 22 | EK94: 42 | EL94: 30 | EM94: 26 | EN94: 30 | EO94: 29 | EP94: 33 | EQ94: 34 | ER94: 68 | ES94: 45 | ET94: 52 | EU94: 60 | EV94: 65 | EW94: 55 | EX94: 21.8 | EY94: 23.85714286 | FE94: 30 | FF94: 30.28571429 | FL94: 51.8 | FM94: 54.14285714 | FN94: 12 | FO94: 26 | FP94: 15 | FQ94: 26 | FR94: 30 | FS94: 36 | FT94: 22 | FU94: 22 | FV94: 42 | FW94: 30 | FX94: 26 | FY94: 30 | FZ94: 29 | GA94: 33 | GB94: 34 | GC94: 68 | GD94: 45 | GE94: 52 | GF94: 60 | GG94: 65 | GH94: 55
A95: Mon | B95: 2230 | C95: 0 | D95: 4 | E95: 0 | F95: 1 | G95: 0 | H95: 0 | I95: 0 | J95: 0 | K95: 0 | L95: 0 | M95: 0 | N95: 0 | O95: 0 | P95: 0 | Q95: 0 | R95: 3 | S95: 1 | T95: 0 | U95: 0 | V95: 0 | W95: 0 | X95: 0 | Y95: 0 | Z95: 1 | AA95: 0 | AB95: 0 | AC95: 0 | AD95: 0 | AE95: 0 | AF95: 0 | AG95: 0 | AH95: 0 | AI95: 31.2 | AJ95: - | AK95: 20 | AL95: 61.7 | AM95: Mon | AN95: 2230 | AO95: 2 | AP95: 24 | AQ95: 0 | AR95: 4 | AS95: 0 | AT95: 0 | AU95: 0 | AV95: 0 | AW95: 0 | AX95: 0 | AY95: 0 | AZ95: 0 | BA95: 0 | BB95: 0 | BC95: 0 | BD95: 0 | BE95: 2 | BF95: 4 | BG95: 11 | BH95: 10 | BI95: 2 | BJ95: 1 | BK95: 0 | BL95: 0 | BM95: 0 | BN95: 0 | BO95: 0 | BP95: 0 | BQ95: 0 | BR95: 0 | BS95: 0 | BT95: 0 | BU95: 38.8 | BV95: 44.5 | BW95: 27.7 | BX95: 52.5 | BY95: Mon | BZ95: 2230 | CA95: 2 | CB95: 28 | CC95: 0 | CD95: 5 | CE95: 0 | CF95: 0 | CG95: 0 | CH95: 0 | CI95: 0 | CJ95: 0 | CK95: 0 | CL95: 0 | CM95: 0 | CN95: 0 | CO95: 0 | CP95: 3 | CQ95: 3 | CR95: 4 | CS95: 11 | CT95: 10 | CU95: 2 | CV95: 1 | CW95: 0 | CX95: 1 | CY95: 0 | CZ95: 0 | DA95: 0 | DB95: 0 | DC95: 0 | DD95: 0 | DE95: 0 | DF95: 0 | DG95: 37.71428571 | DH95: 44.5 | DI95: 20 | DJ95: 61.7 | DK95: 0 | DL95: 4 | DM95: 1 | DN95: 0 | DO95: 0 | DP95: 5 | DQ95: 2 | DR95: 24 | DS95: 4 | DT95: 0 | DU95: 0 | DV95: 30 | DW95: 2 | DX95: 28 | DY95: 5 | DZ95: 0 | EA95: 0 | EB95: 35 | EC95: 5 | ED95: 17 | EE95: 18 | EF95: 21 | EG95: 18 | EH95: 24 | EI95: 11 | EJ95: 30 | EK95: 37 | EL95: 21 | EM95: 29 | EN95: 31 | EO95: 33 | EP95: 29 | EQ95: 35 | ER95: 54 | ES95: 39 | ET95: 50 | EU95: 49 | EV95: 57 | EW95: 40 | EX95: 15.8 | EY95: 16.28571429 | FE95: 29.6 | FF95: 30 | FL95: 45.4 | FM95: 46.28571429 | FN95: 5 | FO95: 17 | FP95: 18 | FQ95: 21 | FR95: 18 | FS95: 24 | FT95: 11 | FU95: 30 | FV95: 37 | FW95: 21 | FX95: 29 | FY95: 31 | FZ95: 33 | GA95: 29 | GB95: 35 | GC95: 54 | GD95: 39 | GE95: 50 | GF95: 49 | GG95: 57 | GH95: 40
A96: Mon | B96: 2245 | C96: 0 | D96: 8 | E96: 0 | F96: 1 | G96: 0 | H96: 0 | I96: 0 | J96: 0 | K96: 0 | L96: 0 | M96: 0 | N96: 0 | O96: 0 | P96: 0 | Q96: 0 | R96: 0 | S96: 2 | T96: 1 | U96: 4 | V96: 1 | W96: 1 | X96: 0 | Y96: 0 | Z96: 0 | AA96: 0 | AB96: 0 | AC96: 0 | AD96: 0 | AE96: 0 | AF96: 0 | AG96: 0 | AH96: 0 | AI96: 36.1 | AJ96: - | AK96: 25.5 | AL96: 47.9 | AM96: Mon | AN96: 2245 | AO96: 0 | AP96: 19 | AQ96: 0 | AR96: 2 | AS96: 0 | AT96: 0 | AU96: 0 | AV96: 0 | AW96: 0 | AX96: 0 | AY96: 0 | AZ96: 0 | BA96: 0 | BB96: 0 | BC96: 0 | BD96: 0 | BE96: 2 | BF96: 7 | BG96: 4 | BH96: 5 | BI96: 1 | BJ96: 2 | BK96: 0 | BL96: 0 | BM96: 0 | BN96: 0 | BO96: 0 | BP96: 0 | BQ96: 0 | BR96: 0 | BS96: 0 | BT96: 0 | BU96: 38 | BV96: 43.6 | BW96: 26.9 | BX96: 52.9 | BY96: Mon | BZ96: 2245 | CA96: 0 | CB96: 27 | CC96: 0 | CD96: 3 | CE96: 0 | CF96: 0 | CG96: 0 | CH96: 0 | CI96: 0 | CJ96: 0 | CK96: 0 | CL96: 0 | CM96: 0 | CN96: 0 | CO96: 0 | CP96: 0 | CQ96: 4 | CR96: 8 | CS96: 8 | CT96: 6 | CU96: 2 | CV96: 2 | CW96: 0 | CX96: 0 | CY96: 0 | CZ96: 0 | DA96: 0 | DB96: 0 | DC96: 0 | DD96: 0 | DE96: 0 | DF96: 0 | DG96: 37.43 | DH96: 43.6 | DI96: 25.5 | DJ96: 52.9 | DK96: 0 | DL96: 8 | DM96: 1 | DN96: 0 | DO96: 0 | DP96: 9 | DQ96: 0 | DR96: 19 | DS96: 2 | DT96: 0 | DU96: 0 | DV96: 21 | DW96: 0 | DX96: 27 | DY96: 3 | DZ96: 0 | EA96: 0 | EB96: 30 | EC96: 9 | ED96: 25 | EE96: 17 | EF96: 13 | EG96: 38 | EH96: 19 | EI96: 14 | EJ96: 21 | EK96: 22 | EL96: 20 | EM96: 25 | EN96: 25 | EO96: 18 | EP96: 24 | EQ96: 30 | ER96: 47 | ES96: 37 | ET96: 38 | EU96: 63 | EV96: 37 | EW96: 38 | EX96: 20.4 | EY96: 19.28571429 | FE96: 22.6 | FF96: 22.14285714 | FL96: 43 | FM96: 41.42857143 | FN96: 9 | FO96: 25 | FP96: 17 | FQ96: 13 | FR96: 38 | FS96: 19 | FT96: 14 | FU96: 21 | FV96: 22 | FW96: 20 | FX96: 25 | FY96: 25 | FZ96: 18 | GA96: 24 | GB96: 30 | GC96: 47 | GD96: 37 | GE96: 38 | GF96: 63 | GG96: 37 | GH96: 38
A97: Mon | B97: 2300 | C97: 2 | D97: 6 | E97: 0 | F97: 0 | G97: 1 | H97: 0 | I97: 0 | J97: 0 | K97: 0 | L97: 0 | M97: 0 | N97: 0 | O97: 0 | P97: 0 | Q97: 0 | R97: 0 | S97: 1 | T97: 2 | U97: 3 | V97: 2 | W97: 1 | X97: 0 | Y97: 0 | Z97: 0 | AA97: 0 | AB97: 0 | AC97: 0 | AD97: 0 | AE97: 0 | AF97: 0 | AG97: 0 | AH97: 0 | AI97: 37.3 | AJ97: - | AK97: 28.9 | AL97: 45.3 | AM97: Mon | AN97: 2300 | AO97: 2 | AP97: 9 | AQ97: 0 | AR97: 0 | AS97: 0 | AT97: 0 | AU97: 0 | AV97: 0 | AW97: 0 | AX97: 0 | AY97: 0 | AZ97: 0 | BA97: 0 | BB97: 0 | BC97: 0 | BD97: 0 | BE97: 1 | BF97: 5 | BG97: 1 | BH97: 0 | BI97: 3 | BJ97: 1 | BK97: 0 | BL97: 0 | BM97: 0 | BN97: 0 | BO97: 0 | BP97: 0 | BQ97: 0 | BR97: 0 | BS97: 0 | BT97: 0 | BU97: 37.7 | BV97: 47.2 | BW97: 25.7 | BX97: 50.8 | BY97: Mon | BZ97: 2300 | CA97: 4 | CB97: 15 | CC97: 0 | CD97: 0 | CE97: 1 | CF97: 0 | CG97: 0 | CH97: 0 | CI97: 0 | CJ97: 0 | CK97: 0 | CL97: 0 | CM97: 0 | CN97: 0 | CO97: 0 | CP97: 0 | CQ97: 2 | CR97: 7 | CS97: 4 | CT97: 2 | CU97: 4 | CV97: 1 | CW97: 0 | CX97: 0 | CY97: 0 | CZ97: 0 | DA97: 0 | DB97: 0 | DC97: 0 | DD97: 0 | DE97: 0 | DF97: 0 | DG97: 37.52 | DH97: 47.2 | DI97: 25.7 | DJ97: 50.8 | DK97: 2 | DL97: 6 | DM97: 0 | DN97: 1 | DO97: 0 | DP97: 9 | DQ97: 2 | DR97: 9 | DS97: 0 | DT97: 0 | DU97: 0 | DV97: 11 | DW97: 4 | DX97: 15 | DY97: 0 | DZ97: 1 | EA97: 0 | EB97: 20 | EC97: 9 | ED97: 13 | EE97: 8 | EF97: 16 | EG97: 13 | EH97: 17 | EI97: 11 | EJ97: 11 | EK97: 27 | EL97: 11 | EM97: 16 | EN97: 32 | EO97: 20 | EP97: 12 | EQ97: 20 | ER97: 40 | ES97: 19 | ET97: 32 | EU97: 45 | EV97: 37 | EW97: 23 | EX97: 11.8 | EY97: 12.42857143 | FE97: 19.4 | FF97: 18.42857143 | FL97: 31.2 | FM97: 30.85714286 | FN97: 9 | FO97: 13 | FP97: 8 | FQ97: 16 | FR97: 13 | FS97: 17 | FT97: 11 | FU97: 11 | FV97: 27 | FW97: 11 | FX97: 16 | FY97: 32 | FZ97: 20 | GA97: 12 | GB97: 20 | GC97: 40 | GD97: 19 | GE97: 32 | GF97: 45 | GG97: 37 | GH97: 23
A98: Mon | B98: 2315 | C98: 0 | D98: 6 | E98: 0 | F98: 1 | G98: 0 | H98: 0 | I98: 0 | J98: 0 | K98: 0 | L98: 0 | M98: 0 | N98: 0 | O98: 0 | P98: 0 | Q98: 0 | R98: 0 | S98: 2 | T98: 1 | U98: 1 | V98: 1 | W98: 1 | X98: 0 | Y98: 0 | Z98: 1 | AA98: 0 | AB98: 0 | AC98: 0 | AD98: 0 | AE98: 0 | AF98: 0 | AG98: 0 | AH98: 0 | AI98: 40.4 | AJ98: - | AK98: 28.7 | AL98: 64.1 | AM98: Mon | AN98: 2315 | AO98: 0 | AP98: 14 | AQ98: 0 | AR98: 1 | AS98: 0 | AT98: 0 | AU98: 0 | AV98: 0 | AW98: 0 | AX98: 0 | AY98: 0 | AZ98: 0 | BA98: 0 | BB98: 0 | BC98: 0 | BD98: 1 | BE98: 1 | BF98: 3 | BG98: 6 | BH98: 2 | BI98: 2 | BJ98: 0 | BK98: 0 | BL98: 0 | BM98: 0 | BN98: 0 | BO98: 0 | BP98: 0 | BQ98: 0 | BR98: 0 | BS98: 0 | BT98: 0 | BU98: 37.1 | BV98: 43.2 | BW98: 23.9 | BX98: 46.6 | BY98: Mon | BZ98: 2315 | CA98: 0 | CB98: 20 | CC98: 0 | CD98: 2 | CE98: 0 | CF98: 0 | CG98: 0 | CH98: 0 | CI98: 0 | CJ98: 0 | CK98: 0 | CL98: 0 | CM98: 0 | CN98: 0 | CO98: 0 | CP98: 1 | CQ98: 3 | CR98: 4 | CS98: 7 | CT98: 3 | CU98: 3 | CV98: 0 | CW98: 0 | CX98: 1 | CY98: 0 | CZ98: 0 | DA98: 0 | DB98: 0 | DC98: 0 | DD98: 0 | DE98: 0 | DF98: 0 | DG98: 38.15 | DH98: 43.2 | DI98: 23.9 | DJ98: 64.1 | DK98: 0 | DL98: 6 | DM98: 1 | DN98: 0 | DO98: 0 | DP98: 7 | DQ98: 0 | DR98: 14 | DS98: 1 | DT98: 0 | DU98: 0 | DV98: 15 | DW98: 0 | DX98: 20 | DY98: 2 | DZ98: 0 | EA98: 0 | EB98: 22 | EC98: 7 | ED98: 10 | EE98: 8 | EF98: 17 | EG98: 9 | EH98: 21 | EI98: 9 | EJ98: 15 | EK98: 18 | EL98: 12 | EM98: 31 | EN98: 26 | EO98: 20 | EP98: 23 | EQ98: 22 | ER98: 28 | ES98: 20 | ET98: 48 | EU98: 35 | EV98: 41 | EW98: 32 | EX98: 10.2 | EY98: 11.57142857 | FE98: 20.4 | FF98: 20.71428571 | FL98: 30.6 | FM98: 32.28571429 | FN98: 7 | FO98: 10 | FP98: 8 | FQ98: 17 | FR98: 9 | FS98: 21 | FT98: 9 | FU98: 15 | FV98: 18 | FW98: 12 | FX98: 31 | FY98: 26 | FZ98: 20 | GA98: 23 | GB98: 22 | GC98: 28 | GD98: 20 | GE98: 48 | GF98: 35 | GG98: 41 | GH98: 32
A99: Mon | B99: 2330 | C99: 0 | D99: 7 | E99: 0 | F99: 0 | G99: 0 | H99: 0 | I99: 0 | J99: 0 | K99: 0 | L99: 0 | M99: 0 | N99: 0 | O99: 0 | P99: 0 | Q99: 0 | R99: 0 | S99: 0 | T99: 1 | U99: 2 | V99: 2 | W99: 2 | X99: 0 | Y99: 0 | Z99: 0 | AA99: 0 | AB99: 0 | AC99: 0 | AD99: 0 | AE99: 0 | AF99: 0 | AG99: 0 | AH99: 0 | AI99: 41 | AJ99: - | AK99: 32.3 | AL99: 48.5 | AM99: Mon | AN99: 2330 | AO99: 0 | AP99: 5 | AQ99: 0 | AR99: 0 | AS99: 0 | AT99: 0 | AU99: 0 | AV99: 0 | AW99: 0 | AX99: 0 | AY99: 0 | AZ99: 0 | BA99: 0 | BB99: 0 | BC99: 0 | BD99: 0 | BE99: 0 | BF99: 0 | BG99: 2 | BH99: 3 | BI99: 0 | BJ99: 0 | BK99: 0 | BL99: 0 | BM99: 0 | BN99: 0 | BO99: 0 | BP99: 0 | BQ99: 0 | BR99: 0 | BS99: 0 | BT99: 0 | BU99: 40.6 | BV99: - | BW99: 35.1 | BX99: 44.7 | BY99: Mon | BZ99: 2330 | CA99: 0 | CB99: 12 | CC99: 0 | CD99: 0 | CE99: 0 | CF99: 0 | CG99: 0 | CH99: 0 | CI99: 0 | CJ99: 0 | CK99: 0 | CL99: 0 | CM99: 0 | CN99: 0 | CO99: 0 | CP99: 0 | CQ99: 0 | CR99: 1 | CS99: 4 | CT99: 5 | CU99: 2 | CV99: 0 | CW99: 0 | CX99: 0 | CY99: 0 | CZ99: 0 | DA99: 0 | DB99: 0 | DC99: 0 | DD99: 0 | DE99: 0 | DF99: 0 | DG99: 40.83333333 | DH99: - | DI99: 32.3 | DJ99: 48.5 | DK99: 0 | DL99: 7 | DM99: 0 | DN99: 0 | DO99: 0 | DP99: 7 | DQ99: 0 | DR99: 5 | DS99: 0 | DT99: 0 | DU99: 0 | DV99: 5 | DW99: 0 | DX99: 12 | DY99: 0 | DZ99: 0 | EA99: 0 | EB99: 12 | EC99: 7 | ED99: 5 | EE99: 10 | EF99: 13 | EG99: 13 | EH99: 25 | EI99: 12 | EJ99: 5 | EK99: 15 | EL99: 13 | EM99: 20 | EN99: 24 | EO99: 25 | EP99: 7 | EQ99: 12 | ER99: 20 | ES99: 23 | ET99: 33 | EU99: 37 | EV99: 50 | EW99: 19 | EX99: 9.6 | EY99: 12.14285714 | FE99: 15.4 | FF99: 15.57142857 | FL99: 25 | FM99: 27.71428571 | FN99: 7 | FO99: 5 | FP99: 10 | FQ99: 13 | FR99: 13 | FS99: 25 | FT99: 12 | FU99: 5 | FV99: 15 | FW99: 13 | FX99: 20 | FY99: 24 | FZ99: 25 | GA99: 7 | GB99: 12 | GC99: 20 | GD99: 23 | GE99: 33 | GF99: 37 | GG99: 50 | GH99: 19
A100: Mon | B100: 2345 | C100: 0 | D100: 8 | E100: 0 | F100: 2 | G100: 0 | H100: 0 | I100: 0 | J100: 0 | K100: 0 | L100: 0 | M100: 0 | N100: 0 | O100: 0 | P100: 0 | Q100: 0 | R100: 0 | S100: 0 | T100: 0 | U100: 4 | V100: 1 | W100: 3 | X100: 2 | Y100: 0 | Z100: 0 | AA100: 0 | AB100: 0 | AC100: 0 | AD100: 0 | AE100: 0 | AF100: 0 | AG100: 0 | AH100: 0 | AI100: 43.7 | AJ100: - | AK100: 35.4 | AL100: 53.3 | AM100: Mon | AN100: 2345 | AO100: 0 | AP100: 11 | AQ100: 0 | AR100: 0 | AS100: 0 | AT100: 0 | AU100: 0 | AV100: 0 | AW100: 0 | AX100: 0 | AY100: 0 | AZ100: 0 | BA100: 0 | BB100: 0 | BC100: 0 | BD100: 0 | BE100: 0 | BF100: 1 | BG100: 2 | BH100: 2 | BI100: 4 | BJ100: 1 | BK100: 1 | BL100: 0 | BM100: 0 | BN100: 0 | BO100: 0 | BP100: 0 | BQ100: 0 | BR100: 0 | BS100: 0 | BT100: 0 | BU100: 45.2 | BV100: 49.4 | BW100: 30.2 | BX100: 59.8 | BY100: Mon | BZ100: 2345 | CA100: 0 | CB100: 19 | CC100: 0 | CD100: 2 | CE100: 0 | CF100: 0 | CG100: 0 | CH100: 0 | CI100: 0 | CJ100: 0 | CK100: 0 | CL100: 0 | CM100: 0 | CN100: 0 | CO100: 0 | CP100: 0 | CQ100: 0 | CR100: 1 | CS100: 6 | CT100: 3 | CU100: 7 | CV100: 3 | CW100: 1 | CX100: 0 | CY100: 0 | CZ100: 0 | DA100: 0 | DB100: 0 | DC100: 0 | DD100: 0 | DE100: 0 | DF100: 0 | DG100: 44.48571429 | DH100: 49.4 | DI100: 30.2 | DJ100: 59.8 | DK100: 0 | DL100: 8 | DM100: 2 | DN100: 0 | DO100: 0 | DP100: 10 | DQ100: 0 | DR100: 11 | DS100: 0 | DT100: 0 | DU100: 0 | DV100: 11 | DW100: 0 | DX100: 19 | DY100: 2 | DZ100: 0 | EA100: 0 | EB100: 21 | EC100: 10 | ED100: 4 | EE100: 6 | EF100: 7 | EG100: 14 | EH100: 20 | EI100: 5 | EJ100: 11 | EK100: 16 | EL100: 14 | EM100: 20 | EN100: 18 | EO100: 21 | EP100: 6 | EQ100: 21 | ER100: 20 | ES100: 20 | ET100: 27 | EU100: 32 | EV100: 41 | EW100: 11 | EX100: 8.2 | EY100: 9.428571429 | FE100: 15.8 | FF100: 15.14285714 | FL100: 24 | FM100: 24.57142857 | FN100: 10 | FO100: 4 | FP100: 6 | FQ100: 7 | FR100: 14 | FS100: 20 | FT100: 5 | FU100: 11 | FV100: 16 | FW100: 14 | FX100: 20 | FY100: 18 | FZ100: 21 | GA100: 6 | GB100: 21 | GC100: 20 | GD100: 20 | GE100: 27 | GF100: 32 | GG100: 41 | GH100: 11
A101: Tues | B101: 0 | C101: 0 | D101: 3 | E101: 0 | F101: 0 | G101: 0 | H101: 0 | I101: 0 | J101: 0 | K101: 0 | L101: 0 | M101: 0 | N101: 0 | O101: 0 | P101: 0 | Q101: 0 | R101: 0 | S101: 0 | T101: 1 | U101: 0 | V101: 1 | W101: 0 | X101: 1 | Y101: 0 | Z101: 0 | AA101: 0 | AB101: 0 | AC101: 0 | AD101: 0 | AE101: 0 | AF101: 0 | AG101: 0 | AH101: 0 | AI101: 44 | AJ101: - | AK101: 34.3 | AL101: 53.3 | AM101: Tues | AN101: 0 | AO101: 0 | AP101: 9 | AQ101: 0 | AR101: 2 | AS101: 0 | AT101: 0 | AU101: 0 | AV101: 0 | AW101: 0 | AX101: 0 | AY101: 0 | AZ101: 0 | BA101: 0 | BB101: 0 | BC101: 0 | BD101: 0 | BE101: 2 | BF101: 2 | BG101: 4 | BH101: 1 | BI101: 0 | BJ101: 2 | BK101: 0 | BL101: 0 | BM101: 0 | BN101: 0 | BO101: 0 | BP101: 0 | BQ101: 0 | BR101: 0 | BS101: 0 | BT101: 0 | BU101: 38.4 | BV101: 40.9 | BW101: 29.3 | BX101: 55 | BY101: Tues | BZ101: 0 | CA101: 0 | CB101: 12 | CC101: 0 | CD101: 2 | CE101: 0 | CF101: 0 | CG101: 0 | CH101: 0 | CI101: 0 | CJ101: 0 | CK101: 0 | CL101: 0 | CM101: 0 | CN101: 0 | CO101: 0 | CP101: 0 | CQ101: 2 | CR101: 3 | CS101: 4 | CT101: 2 | CU101: 0 | CV101: 3 | CW101: 0 | CX101: 0 | CY101: 0 | CZ101: 0 | DA101: 0 | DB101: 0 | DC101: 0 | DD101: 0 | DE101: 0 | DF101: 0 | DG101: 39.6 | DH101: 40.9 | DI101: 29.3 | DJ101: 55 | DK101: 0 | DL101: 3 | DM101: =F101 -> 0 | DN101: 0 | DO101: 0 | DP101: 3 | DQ101: 0 | DR101: 9 | DS101: 2 | DT101: 0 | DU101: 0 | DV101: 11 | DW101: 0 | DX101: 12 | DY101: 2 | DZ101: 0 | EA101: 0 | EB101: 14 | FN101: =EC101 -> 0 | FU101: =EJ101 -> 0 | GB101: =EQ101 -> 0
A102: Tues | B102: 15 | C102: 0 | D102: 5 | E102: 0 | F102: 0 | G102: 0 | H102: 0 | I102: 0 | J102: 0 | K102: 0 | L102: 0 | M102: 0 | N102: 0 | O102: 0 | P102: 0 | Q102: 0 | R102: 0 | S102: 2 | T102: 0 | U102: 0 | V102: 1 | W102: 0 | X102: 0 | Y102: 1 | Z102: 0 | AA102: 1 | AB102: 0 | AC102: 0 | AD102: 0 | AE102: 0 | AF102: 0 | AG102: 0 | AH102: 0 | AI102: 44.9 | AJ102: - | AK102: 25 | AL102: 66.9 | AM102: Tues | AN102: 15 | AO102: 0 | AP102: 4 | AQ102: 0 | AR102: 4 | AS102: 0 | AT102: 0 | AU102: 0 | AV102: 0 | AW102: 0 | AX102: 0 | AY102: 0 | AZ102: 0 | BA102: 0 | BB102: 0 | BC102: 0 | BD102: 0 | BE102: 2 | BF102: 0 | BG102: 1 | BH102: 5 | BI102: 0 | BJ102: 0 | BK102: 0 | BL102: 0 | BM102: 0 | BN102: 0 | BO102: 0 | BP102: 0 | BQ102: 0 | BR102: 0 | BS102: 0 | BT102: 0 | BU102: 38.4 | BV102: - | BW102: 26.3 | BX102: 44.2 | BY102: Tues | BZ102: 15 | CA102: 0 | CB102: 9 | CC102: 0 | CD102: 4 | CE102: 0 | CF102: 0 | CG102: 0 | CH102: 0 | CI102: 0 | CJ102: 0 | CK102: 0 | CL102: 0 | CM102: 0 | CN102: 0 | CO102: 0 | CP102: 0 | CQ102: 4 | CR102: 0 | CS102: 1 | CT102: 6 | CU102: 0 | CV102: 0 | CW102: 1 | CX102: 0 | CY102: 1 | CZ102: 0 | DA102: 0 | DB102: 0 | DC102: 0 | DD102: 0 | DE102: 0 | DF102: 0 | DG102: 40.9 | DH102: - | DI102: 25 | DJ102: 66.9 | DK102: 0 | DL102: 5 | DM102: 0 | DN102: 0 | DO102: 0 | DP102: 5 | DQ102: 0 | DR102: 4 | DS102: 4 | DT102: 0 | DU102: 0 | DV102: 8 | DW102: 0 | DX102: 9 | DY102: 4 | DZ102: 0 | EA102: 0 | EB102: 13 | EX102: PRI 5 | EY102: PRI 7 | FE102: SEC 5 | FF102: SEC 7 | FL102: COM 5 | FM102: COM 7
A103: Tues | B103: 30 | C103: 0 | D103: 1 | E103: 0 | F103: 1 | G103: 0 | H103: 0 | I103: 0 | J103: 0 | K103: 0 | L103: 0 | M103: 0 | N103: 0 | O103: 0 | P103: 0 | Q103: 0 | R103: 0 | S103: 1 | T103: 0 | U103: 0 | V103: 1 | W103: 0 | X103: 0 | Y103: 0 | Z103: 0 | AA103: 0 | AB103: 0 | AC103: 0 | AD103: 0 | AE103: 0 | AF103: 0 | AG103: 0 | AH103: 0 | AI103: 35.3 | AJ103: - | AK103: 27.2 | AL103: 43.4 | AM103: Tues | AN103: 30 | AO103: 2 | AP103: 4 | AQ103: 0 | AR103: 0 | AS103: 0 | AT103: 0 | AU103: 0 | AV103: 0 | AW103: 0 | AX103: 0 | AY103: 0 | AZ103: 0 | BA103: 0 | BB103: 0 | BC103: 0 | BD103: 0 | BE103: 0 | BF103: 0 | BG103: 1 | BH103: 0 | BI103: 0 | BJ103: 3 | BK103: 1 | BL103: 0 | BM103: 1 | BN103: 0 | BO103: 0 | BP103: 0 | BQ103: 0 | BR103: 0 | BS103: 0 | BT103: 0 | BU103: 53 | BV103: - | BW103: 38.9 | BX103: 65.9 | BY103: Tues | BZ103: 30 | CA103: 2 | CB103: 5 | CC103: 0 | CD103: 1 | CE103: 0 | CF103: 0 | CG103: 0 | CH103: 0 | CI103: 0 | CJ103: 0 | CK103: 0 | CL103: 0 | CM103: 0 | CN103: 0 | CO103: 0 | CP103: 0 | CQ103: 1 | CR103: 0 | CS103: 1 | CT103: 1 | CU103: 0 | CV103: 3 | CW103: 1 | CX103: 0 | CY103: 1 | CZ103: 0 | DA103: 0 | DB103: 0 | DC103: 0 | DD103: 0 | DE103: 0 | DF103: 0 | DG103: 48.575 | DH103: - | DI103: 27.2 | DJ103: 65.9 | DK103: 0 | DL103: 1 | DM103: 1 | DN103: 0 | DO103: 0 | DP103: 2 | DQ103: 2 | DR103: 4 | DS103: 0 | DT103: 0 | DU103: 0 | DV103: 6 | DW103: 2 | DX103: 5 | DY103: 1 | DZ103: 0 | EA103: 0 | EB103: 8 | FN103: Mon | FO103: Tue | FP103: Wed | FQ103: Thu | FR103: Fri | FS103: Sat | FT103: Sun | FU103: Mon | FV103: Tue | FW103: Wed | FX103: Thu | FY103: Fri | FZ103: Sat | GA103: Sun | GB103: Mon | GC103: Tue | GD103: Wed | GE103: Thu | GF103: Fri | GG103: Sat | GH103: Sun
A104: Tues | B104: 45 | C104: 0 | D104: 1 | E104: 0 | F104: 1 | G104: 0 | H104: 0 | I104: 0 | J104: 0 | K104: 0 | L104: 0 | M104: 0 | N104: 0 | O104: 0 | P104: 0 | Q104: 0 | R104: 0 | S104: 1 | T104: 0 | U104: 0 | V104: 1 | W104: 0 | X104: 0 | Y104: 0 | Z104: 0 | AA104: 0 | AB104: 0 | AC104: 0 | AD104: 0 | AE104: 0 | AF104: 0 | AG104: 0 | AH104: 0 | AI104: 34.7 | AJ104: - | AK104: 29.1 | AL104: 40.3 | AM104: Tues | AN104: 45 | AO104: 0 | AP104: 3 | AQ104: 0 | AR104: 0 | AS104: 0 | AT104: 0 | AU104: 0 | AV104: 0 | AW104: 0 | AX104: 0 | AY104: 0 | AZ104: 0 | BA104: 0 | BB104: 0 | BC104: 0 | BD104: 0 | BE104: 0 | BF104: 1 | BG104: 1 | BH104: 0 | BI104: 0 | BJ104: 1 | BK104: 0 | BL104: 0 | BM104: 0 | BN104: 0 | BO104: 0 | BP104: 0 | BQ104: 0 | BR104: 0 | BS104: 0 | BT104: 0 | BU104: 40.6 | BV104: - | BW104: 31.7 | BX104: 52.1 | BY104: Tues | BZ104: 45 | CA104: 0 | CB104: 4 | CC104: 0 | CD104: 1 | CE104: 0 | CF104: 0 | CG104: 0 | CH104: 0 | CI104: 0 | CJ104: 0 | CK104: 0 | CL104: 0 | CM104: 0 | CN104: 0 | CO104: 0 | CP104: 0 | CQ104: 1 | CR104: 1 | CS104: 1 | CT104: 1 | CU104: 0 | CV104: 1 | CW104: 0 | CX104: 0 | CY104: 0 | CZ104: 0 | DA104: 0 | DB104: 0 | DC104: 0 | DD104: 0 | DE104: 0 | DF104: 0 | DG104: 38.24 | DH104: - | DI104: 29.1 | DJ104: 52.1 | DK104: 0 | DL104: 1 | DM104: 1 | DN104: 0 | DO104: 0 | DP104: 2 | DQ104: 0 | DR104: 3 | DS104: 0 | DT104: 0 | DU104: 0 | DV104: 3 | DW104: 0 | DX104: 4 | DY104: 1 | DZ104: 0 | EA104: 0 | EB104: 5 | EX104: =IF((SUM(FN104:FR104))>0,AVERAGE(FN104:FR104),0) -> 7.4 | EY104: =IF((SUM(FN104:FT104))>0,AVERAGE(FN104:FT104),0) -> 11 | FE104: =IF((SUM(FU104:FY104))>0,AVERAGE(FU104:FY104),0) -> 23 | FF104: =IF((SUM(FU104:GA104))>0,AVERAGE(FU104:GA104),0) -> 28.57142857 | FL104: =IF((SUM(GB104:GF104))>0,AVERAGE(GB104:GF104),0) -> 30.4 | FM104: =IF((SUM(GB104:GH104))>0,AVERAGE(GB104:GH104),0) -> 39.57142857 | FN104: =IF(FN5="-",(IF(FN6="-","-",FN6)),(IF(FN6="-",FN5,(SUM(FN5:FN6))))) -> 4 | FO104: =IF(FO5="-",(IF(FO6="-","-",FO6)),(IF(FO6="-",FO5,(SUM(FO5:FO6))))) -> 8 | FP104: 9 | FQ104: 8 | FR104: 8 | FS104: 15 | FT104: 25 | FU104: =IF(FU5="-",(IF(FU6="-","-",FU6)),(IF(FU6="-",FU5,(SUM(FU5:FU6))))) -> 22 | FV104: =IF(FV5="-",(IF(FV6="-","-",FV6)),(IF(FV6="-",FV5,(SUM(FV5:FV6))))) -> 19 | FW104: 15 | FX104: 22 | FY104: 37 | FZ104: 32 | GA104: 53 | GB104: =IF(GB5="-",(IF(GB6="-","-",GB6)),(IF(GB6="-",GB5,(SUM(GB5:GB6))))) -> 26 | GC104: =IF(GC5="-",(IF(GC6="-","-",GC6)),(IF(GC6="-",GC5,(SUM(GC5:GC6))))) -> 27 | GD104: 24 | GE104: 30 | GF104: 45 | GG104: 47 | GH104: 78
A105: Tues | B105: 100 | C105: 0 | D105: 4 | E105: 0 | F105: 0 | G105: 0 | H105: 0 | I105: 0 | J105: 1 | K105: 0 | L105: 0 | M105: 0 | N105: 0 | O105: 0 | P105: 0 | Q105: 0 | R105: 0 | S105: 0 | T105: 2 | U105: 1 | V105: 2 | W105: 0 | X105: 0 | Y105: 0 | Z105: 0 | AA105: 0 | AB105: 0 | AC105: 0 | AD105: 0 | AE105: 0 | AF105: 0 | AG105: 0 | AH105: 0 | AI105: 37.9 | AJ105: - | AK105: 34.1 | AL105: 42.3 | AM105: Tues | AN105: 100 | AO105: 0 | AP105: 7 | AQ105: 0 | AR105: 0 | AS105: 0 | AT105: 0 | AU105: 0 | AV105: 0 | AW105: 0 | AX105: 0 | AY105: 0 | AZ105: 0 | BA105: 0 | BB105: 0 | BC105: 0 | BD105: 0 | BE105: 1 | BF105: 1 | BG105: 3 | BH105: 1 | BI105: 1 | BJ105: 0 | BK105: 0 | BL105: 0 | BM105: 0 | BN105: 0 | BO105: 0 | BP105: 0 | BQ105: 0 | BR105: 0 | BS105: 0 | BT105: 0 | BU105: 37.7 | BV105: - | BW105: 27.4 | BX105: 46.6 | BY105: Tues | BZ105: 100 | CA105: 0 | CB105: 11 | CC105: 0 | CD105: 0 | CE105: 0 | CF105: 0 | CG105: 0 | CH105: 1 | CI105: 0 | CJ105: 0 | CK105: 0 | CL105: 0 | CM105: 0 | CN105: 0 | CO105: 0 | CP105: 0 | CQ105: 1 | CR105: 3 | CS105: 4 | CT105: 3 | CU105: 1 | CV105: 0 | CW105: 0 | CX105: 0 | CY105: 0 | CZ105: 0 | DA105: 0 | DB105: 0 | DC105: 0 | DD105: 0 | DE105: 0 | DF105: 0 | DG105: 37.78333333 | DH105: - | DI105: 27.4 | DJ105: 46.6 | DK105: 0 | DL105: 4 | DM105: 0 | DN105: 0 | DO105: 1 | DP105: 5 | DQ105: 0 | DR105: 7 | DS105: 0 | DT105: 0 | DU105: 0 | DV105: 7 | DW105: 0 | DX105: 11 | DY105: 0 | DZ105: 0 | EA105: 1 | EB105: 12
A106: Tues | B106: 115 | C106: 0 | D106: 3 | E106: 0 | F106: 0 | G106: 0 | H106: 0 | I106: 0 | J106: 0 | K106: 0 | L106: 0 | M106: 0 | N106: 0 | O106: 0 | P106: 0 | Q106: 0 | R106: 0 | S106: 0 | T106: 1 | U106: 1 | V106: 0 | W106: 1 | X106: 0 | Y106: 0 | Z106: 0 | AA106: 0 | AB106: 0 | AC106: 0 | AD106: 0 | AE106: 0 | AF106: 0 | AG106: 0 | AH106: 0 | AI106: 38.8 | AJ106: - | AK106: 31.1 | AL106: 47 | AM106: Tues | AN106: 115 | AO106: 0 | AP106: 2 | AQ106: 0 | AR106: 0 | AS106: 0 | AT106: 0 | AU106: 0 | AV106: 0 | AW106: 0 | AX106: 0 | AY106: 0 | AZ106: 0 | BA106: 0 | BB106: 0 | BC106: 0 | BD106: 0 | BE106: 0 | BF106: 0 | BG106: 1 | BH106: 0 | BI106: 0 | BJ106: 0 | BK106: 0 | BL106: 0 | BM106: 1 | BN106: 0 | BO106: 0 | BP106: 0 | BQ106: 0 | BR106: 0 | BS106: 0 | BT106: 0 | BU106: 52.4 | BV106: - | BW106: 39.1 | BX106: 65.7 | BY106: Tues | BZ106: 115 | CA106: 0 | CB106: 5 | CC106: 0 | CD106: 0 | CE106: 0 | CF106: 0 | CG106: 0 | CH106: 0 | CI106: 0 | CJ106: 0 | CK106: 0 | CL106: 0 | CM106: 0 | CN106: 0 | CO106: 0 | CP106: 0 | CQ106: 0 | CR106: 1 | CS106: 2 | CT106: 0 | CU106: 1 | CV106: 0 | CW106: 0 | CX106: 0 | CY106: 1 | CZ106: 0 | DA106: 0 | DB106: 0 | DC106: 0 | DD106: 0 | DE106: 0 | DF106: 0 | DG106: 44.24 | DH106: - | DI106: 31.1 | DJ106: 65.7 | DK106: 0 | DL106: 3 | DM106: 0 | DN106: 0 | DO106: 0 | DP106: 3 | DQ106: 0 | DR106: 2 | DS106: 0 | DT106: 0 | DU106: 0 | DV106: 2 | DW106: 0 | DX106: 5 | DY106: 0 | DZ106: 0 | EA106: 0 | EB106: 5 | EX106: =IF((SUM(FN106:FR106))>0,AVERAGE(FN106:FR106),0) -> 7.8 | EY106: =IF((SUM(FN106:FT106))>0,AVERAGE(FN106:FT106),0) -> 12.42857143 | FE106: =IF((SUM(FU106:FY106))>0,AVERAGE(FU106:FY106),0) -> 13.2 | FF106: =IF((SUM(FU106:GA106))>0,AVERAGE(FU106:GA106),0) -> 20.42857143 | FL106: =IF((SUM(GB106:GF106))>0,AVERAGE(GB106:GF106),0) -> 21 | FM106: =IF((SUM(GB106:GH106))>0,AVERAGE(GB106:GH106),0) -> 32.85714286 | FN106: =IF(FN7="-",(IF(FN8="-","-",FN8)),(IF(FN8="-",FN7,(SUM(FN7:FN8))))) -> 6 | FO106: 4 | FP106: 9 | FQ106: 10 | FR106: 10 | FS106: 18 | FT106: 30 | FU106: =IF(FU7="-",(IF(FU8="-","-",FU8)),(IF(FU8="-",FU7,(SUM(FU7:FU8))))) -> 30 | FV106: 9 | FW106: 9 | FX106: 8 | FY106: 10 | FZ106: 27 | GA106: 50 | GB106: =IF(GB7="-",(IF(GB8="-","-",GB8)),(IF(GB8="-",GB7,(SUM(GB7:GB8))))) -> 36 | GC106: =IF(GC7="-",(IF(GC8="-","-",GC8)),(IF(GC8="-",GC7,(SUM(GC7:GC8))))) -> 13 | GD106: 18 | GE106: 18 | GF106: 20 | GG106: 45 | GH106: 80
A107: Tues | B107: 130 | C107: 0 | D107: 0 | E107: 0 | F107: 1 | G107: 0 | H107: 0 | I107: 0 | J107: 0 | K107: 0 | L107: 0 | M107: 0 | N107: 0 | O107: 0 | P107: 0 | Q107: 0 | R107: 0 | S107: 0 | T107: 0 | U107: 0 | V107: 0 | W107: 1 | X107: 0 | Y107: 0 | Z107: 0 | AA107: 0 | AB107: 0 | AC107: 0 | AD107: 0 | AE107: 0 | AF107: 0 | AG107: 0 | AH107: 0 | AI107: 47.4 | AJ107: - | AK107: 47.4 | AL107: 47.4 | AM107: Tues | AN107: 130 | AO107: 0 | AP107: 3 | AQ107: 0 | AR107: 0 | AS107: 0 | AT107: 0 | AU107: 0 | AV107: 0 | AW107: 0 | AX107: 0 | AY107: 0 | AZ107: 0 | BA107: 0 | BB107: 0 | BC107: 0 | BD107: 0 | BE107: 0 | BF107: 0 | BG107: 1 | BH107: 2 | BI107: 0 | BJ107: 0 | BK107: 0 | BL107: 0 | BM107: 0 | BN107: 0 | BO107: 0 | BP107: 0 | BQ107: 0 | BR107: 0 | BS107: 0 | BT107: 0 | BU107: 40.5 | BV107: - | BW107: 37.7 | BX107: 42.8 | BY107: Tues | BZ107: 130 | CA107: 0 | CB107: 3 | CC107: 0 | CD107: 1 | CE107: 0 | CF107: 0 | CG107: 0 | CH107: 0 | CI107: 0 | CJ107: 0 | CK107: 0 | CL107: 0 | CM107: 0 | CN107: 0 | CO107: 0 | CP107: 0 | CQ107: 0 | CR107: 0 | CS107: 1 | CT107: 2 | CU107: 1 | CV107: 0 | CW107: 0 | CX107: 0 | CY107: 0 | CZ107: 0 | DA107: 0 | DB107: 0 | DC107: 0 | DD107: 0 | DE107: 0 | DF107: 0 | DG107: 42.225 | DH107: - | DI107: 37.7 | DJ107: 47.4 | DK107: 0 | DL107: 0 | DM107: 1 | DN107: 0 | DO107: 0 | DP107: 1 | DQ107: 0 | DR107: 3 | DS107: 0 | DT107: 0 | DU107: 0 | DV107: 3 | DW107: 0 | DX107: 3 | DY107: 1 | DZ107: 0 | EA107: 0 | EB107: 4
A108: Tues | B108: 145 | C108: 0 | D108: 5 | E108: 0 | F108: 0 | G108: 0 | H108: 0 | I108: 0 | J108: 0 | K108: 0 | L108: 0 | M108: 0 | N108: 0 | O108: 0 | P108: 0 | Q108: 0 | R108: 0 | S108: 1 | T108: 0 | U108: 0 | V108: 3 | W108: 1 | X108: 0 | Y108: 0 | Z108: 0 | AA108: 0 | AB108: 0 | AC108: 0 | AD108: 0 | AE108: 0 | AF108: 0 | AG108: 0 | AH108: 0 | AI108: 40.7 | AJ108: - | AK108: 26.5 | AL108: 48.3 | AM108: Tues | AN108: 145 | AO108: 0 | AP108: 5 | AQ108: 0 | AR108: 1 | AS108: 0 | AT108: 0 | AU108: 0 | AV108: 0 | AW108: 0 | AX108: 0 | AY108: 0 | AZ108: 0 | BA108: 0 | BB108: 0 | BC108: 0 | BD108: 0 | BE108: 0 | BF108: 2 | BG108: 1 | BH108: 2 | BI108: 0 | BJ108: 1 | BK108: 0 | BL108: 0 | BM108: 0 | BN108: 0 | BO108: 0 | BP108: 0 | BQ108: 0 | BR108: 0 | BS108: 0 | BT108: 0 | BU108: 39.3 | BV108: - | BW108: 30.7 | BX108: 51.1 | BY108: Tues | BZ108: 145 | CA108: 0 | CB108: 10 | CC108: 0 | CD108: 1 | CE108: 0 | CF108: 0 | CG108: 0 | CH108: 0 | CI108: 0 | CJ108: 0 | CK108: 0 | CL108: 0 | CM108: 0 | CN108: 0 | CO108: 0 | CP108: 0 | CQ108: 1 | CR108: 2 | CS108: 1 | CT108: 5 | CU108: 1 | CV108: 1 | CW108: 0 | CX108: 0 | CY108: 0 | CZ108: 0 | DA108: 0 | DB108: 0 | DC108: 0 | DD108: 0 | DE108: 0 | DF108: 0 | DG108: 39.93636364 | DH108: - | DI108: 26.5 | DJ108: 51.1 | DK108: 0 | DL108: 5 | DM108: 0 | DN108: 0 | DO108: 0 | DP108: 5 | DQ108: 0 | DR108: 5 | DS108: 1 | DT108: 0 | DU108: 0 | DV108: 6 | DW108: 0 | DX108: 10 | DY108: 1 | DZ108: 0 | EA108: 0 | EB108: 11 | EX108: =IF((SUM(FN108:FR108))>0,AVERAGE(FN108:FR108),0) -> 4.8 | EY108: =IF((SUM(FN108:FT108))>0,AVERAGE(FN108:FT108),0) -> 9.571428571 | FE108: =IF((SUM(FU108:FY108))>0,AVERAGE(FU108:FY108),0) -> 12 | FF108: =IF((SUM(FU108:GA108))>0,AVERAGE(FU108:GA108),0) -> 16.42857143 | FL108: =IF((SUM(GB108:GF108))>0,AVERAGE(GB108:GF108),0) -> 16.8 | FM108: =IF((SUM(GB108:GH108))>0,AVERAGE(GB108:GH108),0) -> 26 | FN108: =IF(FN9="-",(IF(FN10="-","-",FN10)),(IF(FN10="-",FN9,(SUM(FN9:FN10))))) -> 3 | FO108: 8 | FP108: 3 | FQ108: 5 | FR108: 5 | FS108: 16 | FT108: 27 | FU108: =IF(FU9="-",(IF(FU10="-","-",FU10)),(IF(FU10="-",FU9,(SUM(FU9:FU10))))) -> 19 | FV108: 9 | FW108: 5 | FX108: 18 | FY108: 9 | FZ108: 22 | GA108: 33 | GB108: =IF(GB9="-",(IF(GB10="-","-",GB10)),(IF(GB10="-",GB9,(SUM(GB9:GB10))))) -> 22 | GC108: =IF(GC9="-",(IF(GC10="-","-",GC10)),(IF(GC10="-",GC9,(SUM(GC9:GC10))))) -> 17 | GD108: 8 | GE108: 23 | GF108: 14 | GG108: 38 | GH108: 60
A109: Tues | B109: 200 | C109: 1 | D109: 4 | E109: 0 | F109: 0 | G109: 0 | H109: 0 | I109: 0 | J109: 0 | K109: 0 | L109: 0 | M109: 0 | N109: 0 | O109: 0 | P109: 0 | Q109: 0 | R109: 0 | S109: 0 | T109: 1 | U109: 0 | V109: 2 | W109: 1 | X109: 0 | Y109: 1 | Z109: 0 | AA109: 0 | AB109: 0 | AC109: 0 | AD109: 0 | AE109: 0 | AF109: 0 | AG109: 0 | AH109: 0 | AI109: 43.9 | AJ109: - | AK109: 30.2 | AL109: 58.6 | AM109: Tues | AN109: 200 | AO109: 0 | AP109: 8 | AQ109: 0 | AR109: 0 | AS109: 0 | AT109: 0 | AU109: 0 | AV109: 0 | AW109: 0 | AX109: 0 | AY109: 0 | AZ109: 0 | BA109: 0 | BB109: 0 | BC109: 0 | BD109: 0 | BE109: 3 | BF109: 1 | BG109: 1 | BH109: 2 | BI109: 1 | BJ109: 0 | BK109: 0 | BL109: 0 | BM109: 0 | BN109: 0 | BO109: 0 | BP109: 0 | BQ109: 0 | BR109: 0 | BS109: 0 | BT109: 0 | BU109: 34.8 | BV109: - | BW109: 25.5 | BX109: 46.9 | BY109: Tues | BZ109: 200 | CA109: 1 | CB109: 12 | CC109: 0 | CD109: 0 | CE109: 0 | CF109: 0 | CG109: 0 | CH109: 0 | CI109: 0 | CJ109: 0 | CK109: 0 | CL109: 0 | CM109: 0 | CN109: 0 | CO109: 0 | CP109: 0 | CQ109: 3 | CR109: 2 | CS109: 1 | CT109: 4 | CU109: 2 | CV109: 0 | CW109: 1 | CX109: 0 | CY109: 0 | CZ109: 0 | DA109: 0 | DB109: 0 | DC109: 0 | DD109: 0 | DE109: 0 | DF109: 0 | DG109: 38.3 | DH109: - | DI109: 25.5 | DJ109: 58.6 | DK109: 1 | DL109: 4 | DM109: 0 | DN109: 0 | DO109: 0 | DP109: 5 | DQ109: 0 | DR109: 8 | DS109: 0 | DT109: 0 | DU109: 0 | DV109: 8 | DW109: 1 | DX109: 12 | DY109: 0 | DZ109: 0 | EA109: 0 | EB109: 13
A110: Tues | B110: 215 | C110: 0 | D110: 4 | E110: 0 | F110: 0 | G110: 0 | H110: 0 | I110: 0 | J110: 0 | K110: 0 | L110: 0 | M110: 0 | N110: 0 | O110: 0 | P110: 0 | Q110: 0 | R110: 0 | S110: 1 | T110: 0 | U110: 0 | V110: 1 | W110: 1 | X110: 0 | Y110: 0 | Z110: 1 | AA110: 0 | AB110: 0 | AC110: 0 | AD110: 0 | AE110: 0 | AF110: 0 | AG110: 0 | AH110: 0 | AI110: 45 | AJ110: - | AK110: 27.8 | AL110: 61.3 | AM110: Tues | AN110: 215 | AO110: 0 | AP110: 3 | AQ110: 0 | AR110: 0 | AS110: 0 | AT110: 0 | AU110: 0 | AV110: 0 | AW110: 0 | AX110: 0 | AY110: 0 | AZ110: 0 | BA110: 0 | BB110: 0 | BC110: 0 | BD110: 0 | BE110: 1 | BF110: 0 | BG110: 0 | BH110: 1 | BI110: 1 | BJ110: 0 | BK110: 0 | BL110: 0 | BM110: 0 | BN110: 0 | BO110: 0 | BP110: 0 | BQ110: 0 | BR110: 0 | BS110: 0 | BT110: 0 | BU110: 39.9 | BV110: - | BW110: 29.6 | BX110: 48.4 | BY110: Tues | BZ110: 215 | CA110: 0 | CB110: 7 | CC110: 0 | CD110: 0 | CE110: 0 | CF110: 0 | CG110: 0 | CH110: 0 | CI110: 0 | CJ110: 0 | CK110: 0 | CL110: 0 | CM110: 0 | CN110: 0 | CO110: 0 | CP110: 0 | CQ110: 2 | CR110: 0 | CS110: 0 | CT110: 2 | CU110: 2 | CV110: 0 | CW110: 0 | CX110: 1 | CY110: 0 | CZ110: 0 | DA110: 0 | DB110: 0 | DC110: 0 | DD110: 0 | DE110: 0 | DF110: 0 | DG110: 42.81428571 | DH110: - | DI110: 27.8 | DJ110: 61.3 | DK110: 0 | DL110: 4 | DM110: 0 | DN110: 0 | DO110: 0 | DP110: 4 | DQ110: 0 | DR110: 3 | DS110: 0 | DT110: 0 | DU110: 0 | DV110: 3 | DW110: 0 | DX110: 7 | DY110: 0 | DZ110: 0 | EA110: 0 | EB110: 7 | EX110: =IF((SUM(FN110:FR110))>0,AVERAGE(FN110:FR110),0) -> 5.4 | EY110: =IF((SUM(FN110:FT110))>0,AVERAGE(FN110:FT110),0) -> 6 | FE110: =IF((SUM(FU110:FY110))>0,AVERAGE(FU110:FY110),0) -> 7.6 | FF110: =IF((SUM(FU110:GA110))>0,AVERAGE(FU110:GA110),0) -> 9.571428571 | FL110: =IF((SUM(GB110:GF110))>0,AVERAGE(GB110:GF110),0) -> 13 | FM110: =IF((SUM(GB110:GH110))>0,AVERAGE(GB110:GH110),0) -> 15.57142857 | FN110: =IF(FN11="-",(IF(FN12="-","-",FN12)),(IF(FN12="-",FN11,(SUM(FN11:FN12))))) -> 5 | FO110: 6 | FP110: 3 | FQ110: 11 | FR110: 2 | FS110: 6 | FT110: 9 | FU110: =IF(FU11="-",(IF(FU12="-","-",FU12)),(IF(FU12="-",FU11,(SUM(FU11:FU12))))) -> 9 | FV110: 9 | FW110: 4 | FX110: 7 | FY110: 9 | FZ110: 16 | GA110: 13 | GB110: =IF(GB11="-",(IF(GB12="-","-",GB12)),(IF(GB12="-",GB11,(SUM(GB11:GB12))))) -> 14 | GC110: =IF(GC11="-",(IF(GC12="-","-",GC12)),(IF(GC12="-",GC11,(SUM(GC11:GC12))))) -> 15 | GD110: 7 | GE110: 18 | GF110: 11 | GG110: 22 | GH110: 22
A111: Tues | B111: 230 | C111: 0 | D111: 9 | E111: 0 | F111: 1 | G111: 0 | H111: 0 | I111: 0 | J111: 0 | K111: 0 | L111: 0 | M111: 0 | N111: 0 | O111: 0 | P111: 0 | Q111: 1 | R111: 0 | S111: 0 | T111: 0 | U111: 4 | V111: 3 | W111: 2 | X111: 0 | Y111: 0 | Z111: 0 | AA111: 0 | AB111: 0 | AC111: 0 | AD111: 0 | AE111: 0 | AF111: 0 | AG111: 0 | AH111: 0 | AI111: 38.5 | AJ111: - | AK111: 16.5 | AL111: 48.1 | AM111: Tues | AN111: 230 | AO111: 0 | AP111: 2 | AQ111: 0 | AR111: 0 | AS111: 0 | AT111: 0 | AU111: 0 | AV111: 0 | AW111: 0 | AX111: 0 | AY111: 0 | AZ111: 0 | BA111: 0 | BB111: 0 | BC111: 0 | BD111: 0 | BE111: 0 | BF111: 0 | BG111: 1 | BH111: 0 | BI111: 1 | BJ111: 0 | BK111: 0 | BL111: 0 | BM111: 0 | BN111: 0 | BO111: 0 | BP111: 0 | BQ111: 0 | BR111: 0 | BS111: 0 | BT111: 0 | BU111: 43.6 | BV111: - | BW111: 39.1 | BX111: 48.1 | BY111: Tues | BZ111: 230 | CA111: 0 | CB111: 11 | CC111: 0 | CD111: 1 | CE111: 0 | CF111: 0 | CG111: 0 | CH111: 0 | CI111: 0 | CJ111: 0 | CK111: 0 | CL111: 0 | CM111: 0 | CN111: 0 | CO111: 1 | CP111: 0 | CQ111: 0 | CR111: 0 | CS111: 5 | CT111: 3 | CU111: 3 | CV111: 0 | CW111: 0 | CX111: 0 | CY111: 0 | CZ111: 0 | DA111: 0 | DB111: 0 | DC111: 0 | DD111: 0 | DE111: 0 | DF111: 0 | DG111: 39.35 | DH111: - | DI111: 16.5 | DJ111: 48.1 | DK111: 0 | DL111: 9 | DM111: 1 | DN111: 0 | DO111: 0 | DP111: 10 | DQ111: 0 | DR111: 2 | DS111: 0 | DT111: 0 | DU111: 0 | DV111: 2 | DW111: 0 | DX111: 11 | DY111: 1 | DZ111: 0 | EA111: 0 | EB111: 12
A112: Tues | B112: 245 | C112: 0 | D112: 3 | E112: 0 | F112: 0 | G112: 0 | H112: 0 | I112: 1 | J112: 0 | K112: 0 | L112: 0 | M112: 0 | N112: 0 | O112: 0 | P112: 0 | Q112: 0 | R112: 1 | S112: 0 | T112: 0 | U112: 2 | V112: 0 | W112: 0 | X112: 1 | Y112: 0 | Z112: 0 | AA112: 0 | AB112: 0 | AC112: 0 | AD112: 0 | AE112: 0 | AF112: 0 | AG112: 0 | AH112: 0 | AI112: 38.5 | AJ112: - | AK112: 24.4 | AL112: 51 | AM112: Tues | AN112: 245 | AO112: 0 | AP112: 0 | AQ112: 0 | AR112: 0 | AS112: 0 | AT112: 0 | AU112: 0 | AV112: 0 | AW112: 0 | AX112: 0 | AY112: 0 | AZ112: 0 | BA112: 0 | BB112: 0 | BC112: 0 | BD112: 0 | BE112: 0 | BF112: 0 | BG112: 0 | BH112: 0 | BI112: 0 | BJ112: 0 | BK112: 0 | BL112: 0 | BM112: 0 | BN112: 0 | BO112: 0 | BP112: 0 | BQ112: 0 | BR112: 0 | BS112: 0 | BT112: 0 | BU112: - | BV112: - | BW112: - | BX112: - | BY112: Tues | BZ112: 245 | CA112: 0 | CB112: 3 | CC112: 0 | CD112: 0 | CE112: 0 | CF112: 0 | CG112: 1 | CH112: 0 | CI112: 0 | CJ112: 0 | CK112: 0 | CL112: 0 | CM112: 0 | CN112: 0 | CO112: 0 | CP112: 1 | CQ112: 0 | CR112: 0 | CS112: 2 | CT112: 0 | CU112: 0 | CV112: 1 | CW112: 0 | CX112: 0 | CY112: 0 | CZ112: 0 | DA112: 0 | DB112: 0 | DC112: 0 | DD112: 0 | DE112: 0 | DF112: 0 | DG112: 38.5 | DH112: - | DI112: 24.4 | DJ112: 51 | DK112: 0 | DL112: 3 | DM112: 0 | DN112: 0 | DO112: 1 | DP112: 4 | DQ112: 0 | DR112: 0 | DS112: 0 | DT112: 0 | DU112: 0 | DV112: 0 | DW112: 0 | DX112: 3 | DY112: 0 | DZ112: =SUM(DN112+DT112) -> 0 | EA112: 1 | EB112: 4 | EX112: =IF((SUM(FN112:FR112))>0,AVERAGE(FN112:FR112),0) -> 8.6 | EY112: =IF((SUM(FN112:FT112))>0,AVERAGE(FN112:FT112),0) -> 9.571428571 | FE112: =IF((SUM(FU112:FY112))>0,AVERAGE(FU112:FY112),0) -> 7.2 | FF112: =IF((SUM(FU112:GA112))>0,AVERAGE(FU112:GA112),0) -> 8.571428571 | FL112: =IF((SUM(GB112:GF112))>0,AVERAGE(GB112:GF112),0) -> 15.8 | FM112: =IF((SUM(GB112:GH112))>0,AVERAGE(GB112:GH112),0) -> 18.14285714 | FN112: =IF(FN13="-",(IF(FN14="-","-",FN14)),(IF(FN14="-",FN13,(SUM(FN13:FN14))))) -> 8 | FO112: 9 | FP112: 6 | FQ112: 9 | FR112: 11 | FS112: 13 | FT112: 11 | FU112: =IF(FU13="-",(IF(FU14="-","-",FU14)),(IF(FU14="-",FU13,(SUM(FU13:FU14))))) -> 6 | FV112: 11 | FW112: 7 | FX112: 6 | FY112: 6 | FZ112: 14 | GA112: 10 | GB112: =IF(GB13="-",(IF(GB14="-","-",GB14)),(IF(GB14="-",GB13,(SUM(GB13:GB14))))) -> 14 | GC112: =IF(GC13="-",(IF(GC14="-","-",GC14)),(IF(GC14="-",GC13,(SUM(GC13:GC14))))) -> 20 | GD112: 13 | GE112: 15 | GF112: 17 | GG112: 27 | GH112: 21
A113: Tues | B113: 300 | C113: 0 | D113: 5 | E113: 0 | F113: 0 | G113: 0 | H113: 0 | I113: 0 | J113: 0 | K113: 0 | L113: 0 | M113: 0 | N113: 0 | O113: 0 | P113: 0 | Q113: 0 | R113: 0 | S113: 1 | T113: 2 | U113: 2 | V113: 0 | W113: 0 | X113: 0 | Y113: 0 | Z113: 0 | AA113: 0 | AB113: 0 | AC113: 0 | AD113: 0 | AE113: 0 | AF113: 0 | AG113: 0 | AH113: 0 | AI113: 33.6 | AJ113: - | AK113: 28.6 | AL113: 39.9 | AM113: Tues | AN113: 300 | AO113: 0 | AP113: 0 | AQ113: 0 | AR113: 0 | AS113: 0 | AT113: 0 | AU113: 1 | AV113: 0 | AW113: 0 | AX113: 0 | AY113: 0 | AZ113: 0 | BA113: 0 | BB113: 0 | BC113: 0 | BD113: 0 | BE113: 0 | BF113: 0 | BG113: 0 | BH113: 0 | BI113: 1 | BJ113: 0 | BK113: 0 | BL113: 0 | BM113: 0 | BN113: 0 | BO113: 0 | BP113: 0 | BQ113: 0 | BR113: 0 | BS113: 0 | BT113: 0 | BU113: 45.3 | BV113: - | BW113: 45.3 | BX113: 45.3 | BY113: Tues | BZ113: 300 | CA113: 0 | CB113: 5 | CC113: 0 | CD113: 0 | CE113: 0 | CF113: 0 | CG113: 1 | CH113: 0 | CI113: 0 | CJ113: 0 | CK113: 0 | CL113: 0 | CM113: 0 | CN113: 0 | CO113: 0 | CP113: 0 | CQ113: 1 | CR113: 2 | CS113: 2 | CT113: 0 | CU113: 1 | CV113: 0 | CW113: 0 | CX113: 0 | CY113: 0 | CZ113: 0 | DA113: 0 | DB113: 0 | DC113: 0 | DD113: 0 | DE113: 0 | DF113: 0 | DG113: 35.55 | DH113: - | DI113: 28.6 | DJ113: 45.3 | DK113: 0 | DL113: 5 | DM113: 0 | DN113: 0 | DO113: 0 | DP113: 5 | DQ113: 0 | DR113: 0 | DS113: 0 | DT113: 0 | DU113: 1 | DV113: 1 | DW113: =SUM(DK113+DQ113) -> 0 | DX113: =SUM(DL113+DR113) -> 5 | DY113: =SUM(DM113+DS113) -> 0 | DZ113: 0 | EA113: 1 | EB113: 6
A114: Tues | B114: 315 | C114: 0 | D114: 5 | E114: 0 | F114: 1 | G114: 0 | H114: 0 | I114: 0 | J114: 0 | K114: 0 | L114: 0 | M114: 0 | N114: 0 | O114: 0 | P114: 0 | Q114: 0 | R114: 0 | S114: 0 | T114: 1 | U114: 2 | V114: 2 | W114: 1 | X114: 0 | Y114: 0 | Z114: 0 | AA114: 0 | AB114: 0 | AC114: 0 | AD114: 0 | AE114: 0 | AF114: 0 | AG114: 0 | AH114: 0 | AI114: 39.6 | AJ114: - | AK114: 34.7 | AL114: 48.7 | AM114: Tues | AN114: 315 | AO114: 0 | AP114: 7 | AQ114: 0 | AR114: 0 | AS114: 0 | AT114: 0 | AU114: 0 | AV114: 0 | AW114: 0 | AX114: 0 | AY114: 0 | AZ114: 0 | BA114: 0 | BB114: 0 | BC114: 0 | BD114: 0 | BE114: 0 | BF114: 2 | BG114: 1 | BH114: 2 | BI114: 1 | BJ114: 0 | BK114: 0 | BL114: 0 | BM114: 0 | BN114: 0 | BO114: 1 | BP114: 0 | BQ114: 0 | BR114: 0 | BS114: 0 | BT114: 0 | BU114: 45.3 | BV114: - | BW114: 32.5 | BX114: 78.1 | BY114: Tues | BZ114: 315 | CA114: 0 | CB114: 12 | CC114: 0 | CD114: 1 | CE114: 0 | CF114: 0 | CG114: 0 | CH114: 0 | CI114: 0 | CJ114: 0 | CK114: 0 | CL114: 0 | CM114: 0 | CN114: 0 | CO114: 0 | CP114: 0 | CQ114: 0 | CR114: 3 | CS114: 3 | CT114: 4 | CU114: 2 | CV114: 0 | CW114: 0 | CX114: 0 | CY114: 0 | CZ114: 0 | DA114: 1 | DB114: 0 | DC114: 0 | DD114: 0 | DE114: 0 | DF114: 0 | DG114: 42.66923077 | DH114: - | DI114: 32.5 | DJ114: 78.1 | DK114: 0 | DL114: 5 | DM114: 1 | DN114: 0 | DO114: 0 | DP114: 6 | DQ114: 0 | DR114: 7 | DS114: 0 | DT114: 0 | DU114: 0 | DV114: 7 | DW114: 0 | DX114: 12 | DY114: 1 | DZ114: 0 | EA114: 0 | EB114: 13 | EX114: =IF((SUM(FN114:FR114))>0,AVERAGE(FN114:FR114),0) -> 9 | EY114: =IF((SUM(FN114:FT114))>0,AVERAGE(FN114:FT114),0) -> 10.71428571 | FE114: =IF((SUM(FU114:FY114))>0,AVERAGE(FU114:FY114),0) -> 6.2 | FF114: =IF((SUM(FU114:GA114))>0,AVERAGE(FU114:GA114),0) -> 5.714285714 | FL114: =IF((SUM(GB114:GF114))>0,AVERAGE(GB114:GF114),0) -> 15.2 | FM114: =IF((SUM(GB114:GH114))>0,AVERAGE(GB114:GH114),0) -> 16.42857143 | FN114: =IF(FN15="-",(IF(FN16="-","-",FN16)),(IF(FN16="-",FN15,(SUM(FN15:FN16))))) -> 11 | FO114: 14 | FP114: 6 | FQ114: 5 | FR114: 9 | FS114: 17 | FT114: 13 | FU114: =IF(FU15="-",(IF(FU16="-","-",FU16)),(IF(FU16="-",FU15,(SUM(FU15:FU16))))) -> 9 | FV114: 2 | FW114: 3 | FX114: 10 | FY114: 7 | FZ114: 5 | GA114: 4 | GB114: =IF(GB15="-",(IF(GB16="-","-",GB16)),(IF(GB16="-",GB15,(SUM(GB15:GB16))))) -> 20 | GC114: =IF(GC15="-",(IF(GC16="-","-",GC16)),(IF(GC16="-",GC15,(SUM(GC15:GC16))))) -> 16 | GD114: 9 | GE114: 15 | GF114: 16 | GG114: 22 | GH114: 17
A115: Tues | B115: 330 | C115: 0 | D115: 8 | E115: 0 | F115: 3 | G115: 0 | H115: 0 | I115: 0 | J115: 0 | K115: 0 | L115: 0 | M115: 0 | N115: 0 | O115: 0 | P115: 0 | Q115: 0 | R115: 0 | S115: 0 | T115: 2 | U115: 5 | V115: 3 | W115: 0 | X115: 0 | Y115: 1 | Z115: 0 | AA115: 0 | AB115: 0 | AC115: 0 | AD115: 0 | AE115: 0 | AF115: 0 | AG115: 0 | AH115: 0 | AI115: 39 | AJ115: 42.3 | AK115: 30.2 | AL115: 55.2 | AM115: Tues | AN115: 330 | AO115: 0 | AP115: 3 | AQ115: 0 | AR115: 0 | AS115: 1 | AT115: 0 | AU115: 0 | AV115: 0 | AW115: 0 | AX115: 0 | AY115: 0 | AZ115: 0 | BA115: 0 | BB115: 0 | BC115: 0 | BD115: 0 | BE115: 0 | BF115: 1 | BG115: 1 | BH115: 1 | BI115: 1 | BJ115: 0 | BK115: 0 | BL115: 0 | BM115: 0 | BN115: 0 | BO115: 0 | BP115: 0 | BQ115: 0 | BR115: 0 | BS115: 0 | BT115: 0 | BU115: 40.6 | BV115: - | BW115: 33.1 | BX115: 49.5 | BY115: Tues | BZ115: 330 | CA115: 0 | CB115: 11 | CC115: 0 | CD115: 3 | CE115: 1 | CF115: 0 | CG115: 0 | CH115: 0 | CI115: 0 | CJ115: 0 | CK115: 0 | CL115: 0 | CM115: 0 | CN115: 0 | CO115: 0 | CP115: 0 | CQ115: 0 | CR115: 3 | CS115: 6 | CT115: 4 | CU115: 1 | CV115: 0 | CW115: 1 | CX115: 0 | CY115: 0 | CZ115: 0 | DA115: 0 | DB115: 0 | DC115: 0 | DD115: 0 | DE115: 0 | DF115: 0 | DG115: 39.42666667 | DH115: 42.3 | DI115: 30.2 | DJ115: 55.2 | DK115: 0 | DL115: 8 | DM115: 3 | DN115: 0 | DO115: 0 | DP115: 11 | DQ115: 0 | DR115: 3 | DS115: 0 | DT115: 1 | DU115: 0 | DV115: 4 | DW115: 0 | DX115: 11 | DY115: 3 | DZ115: 1 | EA115: 0 | EB115: 15
A116: Tues | B116: 345 | C116: 0 | D116: 10 | E116: 0 | F116: 0 | G116: 0 | H116: 0 | I116: 0 | J116: 0 | K116: 0 | L116: 0 | M116: 0 | N116: 0 | O116: 0 | P116: 0 | Q116: 0 | R116: 0 | S116: 1 | T116: 0 | U116: 0 | V116: 3 | W116: 2 | X116: 3 | Y116: 0 | Z116: 1 | AA116: 0 | AB116: 0 | AC116: 0 | AD116: 0 | AE116: 0 | AF116: 0 | AG116: 0 | AH116: 0 | AI116: 46.8 | AJ116: - | AK116: 29 | AL116: 61.1 | AM116: Tues | AN116: 345 | AO116: 0 | AP116: 9 | AQ116: 0 | AR116: 5 | AS116: 0 | AT116: 0 | AU116: 0 | AV116: 0 | AW116: 0 | AX116: 0 | AY116: 0 | AZ116: 0 | BA116: 0 | BB116: 0 | BC116: 0 | BD116: 0 | BE116: 0 | BF116: 0 | BG116: 3 | BH116: 2 | BI116: 6 | BJ116: 3 | BK116: 0 | BL116: 0 | BM116: 0 | BN116: 0 | BO116: 0 | BP116: 0 | BQ116: 0 | BR116: 0 | BS116: 0 | BT116: 0 | BU116: 45.7 | BV116: 53.2 | BW116: 35.8 | BX116: 54.8 | BY116: Tues | BZ116: 345 | CA116: 0 | CB116: 19 | CC116: 0 | CD116: 5 | CE116: 0 | CF116: 0 | CG116: 0 | CH116: 0 | CI116: 0 | CJ116: 0 | CK116: 0 | CL116: 0 | CM116: 0 | CN116: 0 | CO116: 0 | CP116: 0 | CQ116: 1 | CR116: 0 | CS116: 3 | CT116: 5 | CU116: 8 | CV116: 6 | CW116: 0 | CX116: 1 | CY116: 0 | CZ116: 0 | DA116: 0 | DB116: 0 | DC116: 0 | DD116: 0 | DE116: 0 | DF116: 0 | DG116: 46.15833333 | DH116: 53.2 | DI116: 29 | DJ116: 61.1 | DK116: 0 | DL116: 10 | DM116: 0 | DN116: 0 | DO116: 0 | DP116: 10 | DQ116: 0 | DR116: 9 | DS116: 5 | DT116: 0 | DU116: 0 | DV116: 14 | DW116: 0 | DX116: 19 | DY116: 5 | DZ116: 0 | EA116: 0 | EB116: 24 | EX116: =IF((SUM(FN116:FR116))>0,AVERAGE(FN116:FR116),0) -> 10.6 | EY116: =IF((SUM(FN116:FT116))>0,AVERAGE(FN116:FT116),0) -> 10.85714286 | FE116: =IF((SUM(FU116:FY116))>0,AVERAGE(FU116:FY116),0) -> 9.8 | FF116: =IF((SUM(FU116:GA116))>0,AVERAGE(FU116:GA116),0) -> 9.428571429 | FL116: =IF((SUM(GB116:GF116))>0,AVERAGE(GB116:GF116),0) -> 20.4 | FM116: =IF((SUM(GB116:GH116))>0,AVERAGE(GB116:GH116),0) -> 20.28571429 | FN116: =IF(FN17="-",(IF(FN18="-","-",FN18)),(IF(FN18="-",FN17,(SUM(FN17:FN18))))) -> 11 | FO116: 11 | FP116: 7 | FQ116: 15 | FR116: 9 | FS116: 15 | FT116: 8 | FU116: =IF(FU17="-",(IF(FU18="-","-",FU18)),(IF(FU18="-",FU17,(SUM(FU17:FU18))))) -> 22 | FV116: 8 | FW116: 4 | FX116: 9 | FY116: 6 | FZ116: 12 | GA116: 5 | GB116: =IF(GB17="-",(IF(GB18="-","-",GB18)),(IF(GB18="-",GB17,(SUM(GB17:GB18))))) -> 33 | GC116: =IF(GC17="-",(IF(GC18="-","-",GC18)),(IF(GC18="-",GC17,(SUM(GC17:GC18))))) -> 19 | GD116: 11 | GE116: 24 | GF116: 15 | GG116: 27 | GH116: 13
A117: Tues | B117: 400 | C117: 0 | D117: 9 | E117: 0 | F117: 0 | G117: 0 | H117: 0 | I117: 0 | J117: 0 | K117: 0 | L117: 0 | M117: 0 | N117: 0 | O117: 0 | P117: 0 | Q117: 0 | R117: 0 | S117: 1 | T117: 1 | U117: 5 | V117: 2 | W117: 0 | X117: 0 | Y117: 0 | Z117: 0 | AA117: 0 | AB117: 0 | AC117: 0 | AD117: 0 | AE117: 0 | AF117: 0 | AG117: 0 | AH117: 0 | AI117: 37.1 | AJ117: - | AK117: 28.2 | AL117: 41.1 | AM117: Tues | AN117: 400 | AO117: 0 | AP117: 6 | AQ117: 0 | AR117: 0 | AS117: 0 | AT117: 0 | AU117: 0 | AV117: 0 | AW117: 0 | AX117: 0 | AY117: 0 | AZ117: 0 | BA117: 0 | BB117: 0 | BC117: 0 | BD117: 0 | BE117: 0 | BF117: 1 | BG117: 1 | BH117: 2 | BI117: 1 | BJ117: 0 | BK117: 1 | BL117: 0 | BM117: 0 | BN117: 0 | BO117: 0 | BP117: 0 | BQ117: 0 | BR117: 0 | BS117: 0 | BT117: 0 | BU117: 44.6 | BV117: - | BW117: 33.2 | BX117: 58.3 | BY117: Tues | BZ117: 400 | CA117: 0 | CB117: 15 | CC117: 0 | CD117: 0 | CE117: 0 | CF117: 0 | CG117: 0 | CH117: 0 | CI117: 0 | CJ117: 0 | CK117: 0 | CL117: 0 | CM117: 0 | CN117: 0 | CO117: 0 | CP117: 0 | CQ117: 1 | CR117: 2 | CS117: 6 | CT117: 4 | CU117: 1 | CV117: 0 | CW117: 1 | CX117: 0 | CY117: 0 | CZ117: 0 | DA117: 0 | DB117: 0 | DC117: 0 | DD117: 0 | DE117: 0 | DF117: 0 | DG117: 40.1 | DH117: - | DI117: 28.2 | DJ117: 58.3 | DK117: 0 | DL117: 9 | DM117: 0 | DN117: 0 | DO117: 0 | DP117: 9 | DQ117: 0 | DR117: 6 | DS117: 0 | DT117: 0 | DU117: 0 | DV117: 6 | DW117: 0 | DX117: 15 | DY117: 0 | DZ117: 0 | EA117: 0 | EB117: 15
A118: Tues | B118: 415 | C118: 0 | D118: 7 | E118: 0 | F118: 0 | G118: 0 | H118: 0 | I118: 0 | J118: 0 | K118: 0 | L118: 0 | M118: 0 | N118: 0 | O118: 0 | P118: 0 | Q118: 0 | R118: 1 | S118: 1 | T118: 2 | U118: 1 | V118: 0 | W118: 2 | X118: 0 | Y118: 0 | Z118: 0 | AA118: 0 | AB118: 0 | AC118: 0 | AD118: 0 | AE118: 0 | AF118: 0 | AG118: 0 | AH118: 0 | AI118: 34.5 | AJ118: - | AK118: 22.8 | AL118: 45.2 | AM118: Tues | AN118: 415 | AO118: 0 | AP118: 3 | AQ118: 0 | AR118: 0 | AS118: 0 | AT118: 0 | AU118: 0 | AV118: 0 | AW118: 0 | AX118: 0 | AY118: 0 | AZ118: 0 | BA118: 0 | BB118: 0 | BC118: 0 | BD118: 0 | BE118: 0 | BF118: 0 | BG118: 3 | BH118: 0 | BI118: 0 | BJ118: 0 | BK118: 0 | BL118: 0 | BM118: 0 | BN118: 0 | BO118: 0 | BP118: 0 | BQ118: 0 | BR118: 0 | BS118: 0 | BT118: 0 | BU118: 37.7 | BV118: - | BW118: 35.7 | BX118: 39.5 | BY118: Tues | BZ118: 415 | CA118: 0 | CB118: 10 | CC118: 0 | CD118: 0 | CE118: 0 | CF118: 0 | CG118: 0 | CH118: 0 | CI118: 0 | CJ118: 0 | CK118: 0 | CL118: 0 | CM118: 0 | CN118: 0 | CO118: 0 | CP118: 1 | CQ118: 1 | CR118: 2 | CS118: 4 | CT118: 0 | CU118: 2 | CV118: 0 | CW118: 0 | CX118: 0 | CY118: 0 | CZ118: 0 | DA118: 0 | DB118: 0 | DC118: 0 | DD118: 0 | DE118: 0 | DF118: 0 | DG118: 35.46 | DH118: - | DI118: 22.8 | DJ118: 45.2 | DK118: 0 | DL118: 7 | DM118: 0 | DN118: 0 | DO118: 0 | DP118: 7 | DQ118: 0 | DR118: 3 | DS118: 0 | DT118: 0 | DU118: 0 | DV118: 3 | DW118: 0 | DX118: 10 | DY118: 0 | DZ118: 0 | EA118: 0 | EB118: 10 | EX118: =IF((SUM(FN118:FR118))>0,AVERAGE(FN118:FR118),0) -> 13.4 | EY118: =IF((SUM(FN118:FT118))>0,AVERAGE(FN118:FT118),0) -> 13 | FE118: =IF((SUM(FU118:FY118))>0,AVERAGE(FU118:FY118),0) -> 8.2 | FF118: =IF((SUM(FU118:GA118))>0,AVERAGE(FU118:GA118),0) -> 10 | FL118: =IF((SUM(GB118:GF118))>0,AVERAGE(GB118:GF118),0) -> 21.6 | FM118: =IF((SUM(GB118:GH118))>0,AVERAGE(GB118:GH118),0) -> 23 | FN118: =IF(FN19="-",(IF(FN20="-","-",FN20)),(IF(FN20="-",FN19,(SUM(FN19:FN20))))) -> 16 | FO118: 21 | FP118: 7 | FQ118: 13 | FR118: 10 | FS118: 15 | FT118: 9 | FU118: =IF(FU19="-",(IF(FU20="-","-",FU20)),(IF(FU20="-",FU19,(SUM(FU19:FU20))))) -> 5 | FV118: 18 | FW118: 6 | FX118: 8 | FY118: 4 | FZ118: 11 | GA118: 18 | GB118: =IF(GB19="-",(IF(GB20="-","-",GB20)),(IF(GB20="-",GB19,(SUM(GB19:GB20))))) -> 21 | GC118: =IF(GC19="-",(IF(GC20="-","-",GC20)),(IF(GC20="-",GC19,(SUM(GC19:GC20))))) -> 39 | GD118: 13 | GE118: 21 | GF118: 14 | GG118: 26 | GH118: 27
A119: Tues | B119: 430 | C119: 0 | D119: 7 | E119: 0 | F119: 2 | G119: 1 | H119: 0 | I119: 0 | J119: 0 | K119: 0 | L119: 0 | M119: 0 | N119: 0 | O119: 0 | P119: 0 | Q119: 0 | R119: 0 | S119: 0 | T119: 2 | U119: 2 | V119: 1 | W119: 3 | X119: 0 | Y119: 1 | Z119: 0 | AA119: 1 | AB119: 0 | AC119: 0 | AD119: 0 | AE119: 0 | AF119: 0 | AG119: 0 | AH119: 0 | AI119: 44.5 | AJ119: - | AK119: 32.3 | AL119: 66.1 | AM119: Tues | AN119: 430 | AO119: 0 | AP119: 3 | AQ119: 0 | AR119: 1 | AS119: 0 | AT119: 0 | AU119: 0 | AV119: 0 | AW119: 0 | AX119: 0 | AY119: 0 | AZ119: 0 | BA119: 0 | BB119: 0 | BC119: 0 | BD119: 0 | BE119: 0 | BF119: 1 | BG119: 0 | BH119: 2 | BI119: 1 | BJ119: 0 | BK119: 0 | BL119: 0 | BM119: 0 | BN119: 0 | BO119: 0 | BP119: 0 | BQ119: 0 | BR119: 0 | BS119: 0 | BT119: 0 | BU119: 39.6 | BV119: - | BW119: 30.4 | BX119: 47 | BY119: Tues | BZ119: 430 | CA119: =SUM(C119+AO119) -> 0 | CB119: =SUM(D119+AP119) -> 10 | CC119: =SUM(E119+AQ119) -> 0 | CD119: =SUM(F119+AR119) -> 3 | CE119: =SUM(G119+AS119) -> 1 | CF119: =SUM(H119+AT119) -> 0 | CG119: =SUM(I119+AU119) -> 0 | CH119: =SUM(J119+AV119) -> 0 | CI119: =SUM(K119+AW119) -> 0 | CJ119: =SUM(L119+AX119) -> 0 | CK119: =SUM(M119+AY119) -> 0 | CL119: =SUM(N119+AZ119) -> 0 | CM119: =SUM(O119+BA119) -> 0 | CN119: 0 | CO119: 0 | CP119: 0 | CQ119: 0 | CR119: 3 | CS119: 2 | CT119: 3 | CU119: 4 | CV119: 0 | CW119: 1 | CX119: 0 | CY119: 1 | CZ119: 0 | DA119: 0 | DB119: 0 | DC119: 0 | DD119: 0 | DE119: 0 | DF119: 0 | DG119: 43.1 | DH119: - | DI119: 30.4 | DJ119: 66.1 | DK119: 0 | DL119: 7 | DM119: 2 | DN119: 1 | DO119: 0 | DP119: 10 | DQ119: 0 | DR119: 3 | DS119: 1 | DT119: 0 | DU119: 0 | DV119: 4 | DW119: 0 | DX119: 10 | DY119: 3 | DZ119: 1 | EA119: 0 | EB119: 14
A120: Tues | B120: 445 | C120: 0 | D120: 15 | E120: 0 | F120: 0 | G120: 0 | H120: 0 | I120: 0 | J120: 0 | K120: 0 | L120: 0 | M120: 0 | N120: 0 | O120: 0 | P120: 0 | Q120: 0 | R120: 1 | S120: 4 | T120: 2 | U120: 2 | V120: 3 | W120: 2 | X120: 0 | Y120: 0 | Z120: 1 | AA120: 0 | AB120: 0 | AC120: 0 | AD120: 0 | AE120: 0 | AF120: 0 | AG120: 0 | AH120: 0 | AI120: 37.5 | AJ120: 45.9 | AK120: 24.1 | AL120: 62.2 | AM120: Tues | AN120: 445 | AO120: 0 | AP120: 9 | AQ120: 0 | AR120: 0 | AS120: 0 | AT120: 0 | AU120: 0 | AV120: 0 | AW120: 0 | AX120: 0 | AY120: 0 | AZ120: 0 | BA120: 0 | BB120: 0 | BC120: 0 | BD120: 0 | BE120: 1 | BF120: 1 | BG120: 4 | BH120: 1 | BI120: 2 | BJ120: 0 | BK120: 0 | BL120: 0 | BM120: 0 | BN120: 0 | BO120: 0 | BP120: 0 | BQ120: 0 | BR120: 0 | BS120: 0 | BT120: 0 | BU120: 38.6 | BV120: - | BW120: 25.5 | BX120: 47.7 | BY120: Tues | BZ120: 445 | CA120: 0 | CB120: 24 | CC120: 0 | CD120: 0 | CE120: 0 | CF120: 0 | CG120: 0 | CH120: 0 | CI120: 0 | CJ120: 0 | CK120: 0 | CL120: 0 | CM120: 0 | CN120: 0 | CO120: 0 | CP120: 1 | CQ120: 5 | CR120: 3 | CS120: 6 | CT120: 4 | CU120: 4 | CV120: 0 | CW120: 0 | CX120: 1 | CY120: 0 | CZ120: 0 | DA120: 0 | DB120: 0 | DC120: 0 | DD120: 0 | DE120: 0 | DF120: 0 | DG120: 37.9125 | DH120: 45.9 | DI120: 24.1 | DJ120: 62.2 | DK120: 0 | DL120: 15 | DM120: 0 | DN120: 0 | DO120: 0 | DP120: 15 | DQ120: 0 | DR120: 9 | DS120: 0 | DT120: 0 | DU120: 0 | DV120: 9 | DW120: 0 | DX120: 24 | DY120: 0 | DZ120: 0 | EA120: 0 | EB120: 24 | EX120: =IF((SUM(FN120:FR120))>0,AVERAGE(FN120:FR120),0) -> 13 | EY120: =IF((SUM(FN120:FT120))>0,AVERAGE(FN120:FT120),0) -> 13.42857143 | FE120: =IF((SUM(FU120:FY120))>0,AVERAGE(FU120:FY120),0) -> 6.6 | FF120: =IF((SUM(FU120:GA120))>0,AVERAGE(FU120:GA120),0) -> 7.142857143 | FL120: =IF((SUM(GB120:GF120))>0,AVERAGE(GB120:GF120),0) -> 19.6 | FM120: =IF((SUM(GB120:GH120))>0,AVERAGE(GB120:GH120),0) -> 20.57142857 | FN120: =IF(FN21="-",(IF(FN22="-","-",FN22)),(IF(FN22="-",FN21,(SUM(FN21:FN22))))) -> 17 | FO120: 16 | FP120: 10 | FQ120: 16 | FR120: 6 | FS120: 12 | FT120: 17 | FU120: =IF(FU21="-",(IF(FU22="-","-",FU22)),(IF(FU22="-",FU21,(SUM(FU21:FU22))))) -> 6 | FV120: =IF(FV21="-",(IF(FV22="-","-",FV22)),(IF(FV22="-",FV21,(SUM(FV21:FV22))))) -> 9 | FW120: 3 | FX120: 9 | FY120: 6 | FZ120: 10 | GA120: 7 | GB120: =IF(GB21="-",(IF(GB22="-","-",GB22)),(IF(GB22="-",GB21,(SUM(GB21:GB22))))) -> 23 | GC120: =IF(GC21="-",(IF(GC22="-","-",GC22)),(IF(GC22="-",GC21,(SUM(GC21:GC22))))) -> 25 | GD120: 13 | GE120: 25 | GF120: 12 | GG120: 22 | GH120: 24
A121: Tues | B121: 500 | C121: 0 | D121: 9 | E121: 0 | F121: 2 | G121: 0 | H121: 0 | I121: 0 | J121: 0 | K121: 0 | L121: 0 | M121: 0 | N121: 0 | O121: 0 | P121: 0 | Q121: 0 | R121: 0 | S121: 0 | T121: 0 | U121: 1 | V121: 3 | W121: 2 | X121: 3 | Y121: 2 | Z121: 0 | AA121: 0 | AB121: 0 | AC121: 0 | AD121: 0 | AE121: 0 | AF121: 0 | AG121: 0 | AH121: 0 | AI121: 48.7 | AJ121: 53.7 | AK121: 39 | AL121: 58 | AM121: Tues | AN121: 500 | AO121: 0 | AP121: 3 | AQ121: 0 | AR121: 2 | AS121: 0 | AT121: 0 | AU121: 0 | AV121: 0 | AW121: 0 | AX121: 0 | AY121: 0 | AZ121: 0 | BA121: 0 | BB121: 0 | BC121: 0 | BD121: 0 | BE121: 1 | BF121: 1 | BG121: 0 | BH121: 0 | BI121: 1 | BJ121: 2 | BK121: 0 | BL121: 0 | BM121: 0 | BN121: 0 | BO121: 0 | BP121: 0 | BQ121: 0 | BR121: 0 | BS121: 0 | BT121: 0 | BU121: 42.3 | BV121: - | BW121: 25.5 | BX121: 54.2 | BY121: Tues | BZ121: 500 | CA121: 0 | CB121: 12 | CC121: 0 | CD121: 4 | CE121: 0 | CF121: 0 | CG121: 0 | CH121: 0 | CI121: 0 | CJ121: 0 | CK121: 0 | CL121: 0 | CM121: 0 | CN121: 0 | CO121: 0 | CP121: 0 | CQ121: 1 | CR121: 1 | CS121: 1 | CT121: 3 | CU121: 3 | CV121: 5 | CW121: 2 | CX121: 0 | CY121: 0 | CZ121: 0 | DA121: 0 | DB121: 0 | DC121: 0 | DD121: 0 | DE121: 0 | DF121: 0 | DG121: 46.7 | DH121: 53.7 | DI121: 25.5 | DJ121: 58 | DK121: 0 | DL121: 9 | DM121: 2 | DN121: 0 | DO121: 0 | DP121: 11 | DQ121: 0 | DR121: 3 | DS121: 2 | DT121: 0 | DU121: 0 | DV121: 5 | DW121: 0 | DX121: 12 | DY121: 4 | DZ121: 0 | EA121: 0 | EB121: 16
A122: Tues | B122: 515 | C122: 1 | D122: 19 | E122: 0 | F122: 0 | G122: 0 | H122: 1 | I122: 0 | J122: 0 | K122: 0 | L122: 0 | M122: 0 | N122: 0 | O122: 0 | P122: 0 | Q122: 0 | R122: 0 | S122: 2 | T122: 6 | U122: 0 | V122: 8 | W122: 3 | X122: 1 | Y122: 0 | Z122: 1 | AA122: 0 | AB122: 0 | AC122: 0 | AD122: 0 | AE122: 0 | AF122: 0 | AG122: 0 | AH122: 0 | AI122: 40.2 | AJ122: 46.1 | AK122: 27.8 | AL122: 62.5 | AM122: Tues | AN122: 515 | AO122: 0 | AP122: 6 | AQ122: 0 | AR122: 2 | AS122: 0 | AT122: 0 | AU122: 0 | AV122: 0 | AW122: 0 | AX122: 0 | AY122: 0 | AZ122: 0 | BA122: 0 | BB122: 0 | BC122: 0 | BD122: 0 | BE122: 0 | BF122: 0 | BG122: 4 | BH122: 1 | BI122: 2 | BJ122: 1 | BK122: 0 | BL122: 0 | BM122: 0 | BN122: 0 | BO122: 0 | BP122: 0 | BQ122: 0 | BR122: 0 | BS122: 0 | BT122: 0 | BU122: 42.7 | BV122: - | BW122: 37.1 | BX122: 50.9 | BY122: Tues | BZ122: 515 | CA122: 1 | CB122: 25 | CC122: 0 | CD122: 2 | CE122: 0 | CF122: 1 | CG122: 0 | CH122: 0 | CI122: 0 | CJ122: 0 | CK122: 0 | CL122: 0 | CM122: 0 | CN122: 0 | CO122: 0 | CP122: 0 | CQ122: 2 | CR122: 6 | CS122: 4 | CT122: 9 | CU122: 5 | CV122: 2 | CW122: 0 | CX122: 1 | CY122: 0 | CZ122: 0 | DA122: 0 | DB122: 0 | DC122: 0 | DD122: 0 | DE122: 0 | DF122: 0 | DG122: 40.88965517 | DH122: 46.1 | DI122: 27.8 | DJ122: 62.5 | DK122: 1 | DL122: 19 | DM122: 0 | DN122: 1 | DO122: 0 | DP122: 21 | DQ122: 0 | DR122: 6 | DS122: 2 | DT122: 0 | DU122: 0 | DV122: 8 | DW122: 1 | DX122: 25 | DY122: 2 | DZ122: 1 | EA122: 0 | EB122: 29 | EX122: =IF((SUM(FN122:FR122))>0,AVERAGE(FN122:FR122),0) -> 23.8 | EY122: =IF((SUM(FN122:FT122))>0,AVERAGE(FN122:FT122),0) -> 21.57142857 | FE122: =IF((SUM(FU122:FY122))>0,AVERAGE(FU122:FY122),0) -> 11 | FF122: =IF((SUM(FU122:GA122))>0,AVERAGE(FU122:GA122),0) -> 9.142857143 | FL122: =IF((SUM(GB122:GF122))>0,AVERAGE(GB122:GF122),0) -> 34.8 | FM122: =IF((SUM(GB122:GH122))>0,AVERAGE(GB122:GH122),0) -> 30.71428571 | FN122: =IF(FN23="-",(IF(FN24="-","-",FN24)),(IF(FN24="-",FN23,(SUM(FN23:FN24))))) -> 29 | FO122: 25 | FP122: 25 | FQ122: 16 | FR122: 24 | FS122: 23 | FT122: 9 | FU122: =IF(FU23="-",(IF(FU24="-","-",FU24)),(IF(FU24="-",FU23,(SUM(FU23:FU24))))) -> 20 | FV122: 13 | FW122: 5 | FX122: 9 | FY122: 8 | FZ122: 6 | GA122: 3 | GB122: =IF(GB23="-",(IF(GB24="-","-",GB24)),(IF(GB24="-",GB23,(SUM(GB23:GB24))))) -> 49 | GC122: =IF(GC23="-",(IF(GC24="-","-",GC24)),(IF(GC24="-",GC23,(SUM(GC23:GC24))))) -> 38 | GD122: 30 | GE122: 25 | GF122: 32 | GG122: 29 | GH122: 12
A123: Tues | B123: 530 | C123: 0 | D123: 29 | E123: 0 | F123: 1 | G123: 1 | H123: 0 | I123: 0 | J123: 0 | K123: 0 | L123: 0 | M123: 0 | N123: 0 | O123: 0 | P123: 0 | Q123: 0 | R123: 0 | S123: 7 | T123: 3 | U123: 5 | V123: 4 | W123: 5 | X123: 4 | Y123: 3 | Z123: 0 | AA123: 0 | AB123: 0 | AC123: 0 | AD123: 0 | AE123: 0 | AF123: 0 | AG123: 0 | AH123: 0 | AI123: 41.1 | AJ123: 53 | AK123: 26 | AL123: 59.4 | AM123: Tues | AN123: 530 | AO123: 0 | AP123: 11 | AQ123: 0 | AR123: 1 | AS123: 0 | AT123: 0 | AU123: 0 | AV123: 0 | AW123: 0 | AX123: 0 | AY123: 0 | AZ123: 0 | BA123: 0 | BB123: 0 | BC123: 0 | BD123: 0 | BE123: 0 | BF123: 0 | BG123: 5 | BH123: 3 | BI123: 2 | BJ123: 2 | BK123: 0 | BL123: 0 | BM123: 0 | BN123: 0 | BO123: 0 | BP123: 0 | BQ123: 0 | BR123: 0 | BS123: 0 | BT123: 0 | BU123: 43.9 | BV123: 48.5 | BW123: 36.6 | BX123: 54.3 | BY123: Tues | BZ123: 530 | CA123: 0 | CB123: 40 | CC123: 0 | CD123: 2 | CE123: 1 | CF123: 0 | CG123: 0 | CH123: 0 | CI123: 0 | CJ123: 0 | CK123: 0 | CL123: 0 | CM123: 0 | CN123: 0 | CO123: 0 | CP123: 0 | CQ123: 7 | CR123: 3 | CS123: 10 | CT123: 7 | CU123: 7 | CV123: 6 | CW123: 3 | CX123: 0 | CY123: 0 | CZ123: 0 | DA123: 0 | DB123: 0 | DC123: 0 | DD123: 0 | DE123: 0 | DF123: 0 | DG123: 41.88139535 | DH123: 50.75 | DI123: 26 | DJ123: 59.4 | DK123: 0 | DL123: 29 | DM123: 1 | DN123: 1 | DO123: 0 | DP123: 31 | DQ123: 0 | DR123: 11 | DS123: 1 | DT123: 0 | DU123: 0 | DV123: 12 | DW123: 0 | DX123: 40 | DY123: 2 | DZ123: 1 | EA123: 0 | EB123: 43
A124: Tues | B124: 545 | C124: 1 | D124: 47 | E124: 1 | F124: 3 | G124: 1 | H124: 0 | I124: 0 | J124: 0 | K124: 0 | L124: 0 | M124: 0 | N124: 0 | O124: 0 | P124: 0 | Q124: 0 | R124: 0 | S124: 11 | T124: 3 | U124: 2 | V124: 14 | W124: 10 | X124: 8 | Y124: 3 | Z124: 2 | AA124: 0 | AB124: 0 | AC124: 0 | AD124: 0 | AE124: 0 | AF124: 0 | AG124: 0 | AH124: 0 | AI124: 42.7 | AJ124: 51.2 | AK124: 25 | AL124: 64.2 | AM124: Tues | AN124: 545 | AO124: 1 | AP124: 11 | AQ124: 0 | AR124: 2 | AS124: 0 | AT124: 1 | AU124: 0 | AV124: 2 | AW124: 0 | AX124: 0 | AY124: 0 | AZ124: 0 | BA124: 0 | BB124: 0 | BC124: 0 | BD124: 0 | BE124: 0 | BF124: 4 | BG124: 3 | BH124: 4 | BI124: 4 | BJ124: 1 | BK124: 1 | BL124: 0 | BM124: 0 | BN124: 0 | BO124: 0 | BP124: 0 | BQ124: 0 | BR124: 0 | BS124: 0 | BT124: 0 | BU124: 41.1 | BV124: 47.6 | BW124: 30.3 | BX124: 58.2 | BY124: Tues | BZ124: 545 | CA124: 2 | CB124: 58 | CC124: 1 | CD124: 5 | CE124: 1 | CF124: 1 | CG124: 0 | CH124: 2 | CI124: 0 | CJ124: 0 | CK124: 0 | CL124: 0 | CM124: 0 | CN124: 0 | CO124: 0 | CP124: 0 | CQ124: 11 | CR124: 7 | CS124: 5 | CT124: 18 | CU124: 14 | CV124: 9 | CW124: 4 | CX124: 2 | CY124: 0 | CZ124: 0 | DA124: 0 | DB124: 0 | DC124: 0 | DD124: 0 | DE124: 0 | DF124: 0 | DG124: 42.31142857 | DH124: 49.4 | DI124: 25 | DJ124: 64.2 | DK124: 1 | DL124: 48 | DM124: 3 | DN124: 1 | DO124: 0 | DP124: 53 | DQ124: 1 | DR124: 11 | DS124: 2 | DT124: 1 | DU124: 2 | DV124: 17 | DW124: 2 | DX124: 59 | DY124: 5 | DZ124: 2 | EA124: 2 | EB124: 70 | EX124: =IF((SUM(FN124:FR124))>0,AVERAGE(FN124:FR124),0) -> 39.4 | EY124: =IF((SUM(FN124:FT124))>0,AVERAGE(FN124:FT124),0) -> 36 | FE124: =IF((SUM(FU124:FY124))>0,AVERAGE(FU124:FY124),0) -> 16.6 | FF124: =IF((SUM(FU124:GA124))>0,AVERAGE(FU124:GA124),0) -> 17.85714286 | FL124: =IF((SUM(GB124:GF124))>0,AVERAGE(GB124:GF124),0) -> 56 | FM124: =IF((SUM(GB124:GH124))>0,AVERAGE(GB124:GH124),0) -> 53.85714286 | FN124: =IF(FN25="-",(IF(FN26="-","-",FN26)),(IF(FN26="-",FN25,(SUM(FN25:FN26))))) -> 47 | FO124: 32 | FP124: 40 | FQ124: 35 | FR124: 43 | FS124: 30 | FT124: 25 | FU124: =IF(FU25="-",(IF(FU26="-","-",FU26)),(IF(FU26="-",FU25,(SUM(FU25:FU26))))) -> 18 | FV124: 13 | FW124: 22 | FX124: 14 | FY124: 16 | FZ124: 23 | GA124: 19 | GB124: =IF(GB25="-",(IF(GB26="-","-",GB26)),(IF(GB26="-",GB25,(SUM(GB25:GB26))))) -> 65 | GC124: =IF(GC25="-",(IF(GC26="-","-",GC26)),(IF(GC26="-",GC25,(SUM(GC25:GC26))))) -> 45 | GD124: 62 | GE124: 49 | GF124: 59 | GG124: 53 | GH124: 44
A125: Tues | B125: 600 | C125: 4 | D125: 67 | E125: 1 | F125: 1 | G125: 0 | H125: 0 | I125: 0 | J125: 0 | K125: 0 | L125: 3 | M125: 0 | N125: 0 | O125: 0 | P125: 0 | Q125: 0 | R125: 1 | S125: 12 | T125: 10 | U125: 10 | V125: 22 | W125: 13 | X125: 6 | Y125: 2 | Z125: 0 | AA125: 0 | AB125: 0 | AC125: 0 | AD125: 0 | AE125: 0 | AF125: 0 | AG125: 0 | AH125: 0 | AI125: 40.3 | AJ125: 48.1 | AK125: 23.2 | AL125: 59.6 | AM125: Tues | AN125: 600 | AO125: 1 | AP125: 19 | AQ125: 0 | AR125: 1 | AS125: 0 | AT125: 0 | AU125: 0 | AV125: 2 | AW125: 3 | AX125: 0 | AY125: 0 | AZ125: 0 | BA125: 0 | BB125: 0 | BC125: 0 | BD125: 0 | BE125: 0 | BF125: 1 | BG125: 7 | BH125: 12 | BI125: 5 | BJ125: 1 | BK125: 0 | BL125: 0 | BM125: 0 | BN125: 0 | BO125: 0 | BP125: 0 | BQ125: 0 | BR125: 0 | BS125: 0 | BT125: 0 | BU125: 42.3 | BV125: 45.4 | BW125: 32.2 | BX125: 51.9 | BY125: Tues | BZ125: 600 | CA125: 5 | CB125: 86 | CC125: 1 | CD125: 2 | CE125: 0 | CF125: 0 | CG125: 0 | CH125: 2 | CI125: 3 | CJ125: 3 | CK125: 0 | CL125: 0 | CM125: 0 | CN125: 0 | CO125: 0 | CP125: 1 | CQ125: 12 | CR125: 11 | CS125: 17 | CT125: 34 | CU125: 18 | CV125: 7 | CW125: 2 | CX125: 0 | CY125: 0 | CZ125: 0 | DA125: 0 | DB125: 0 | DC125: 0 | DD125: 0 | DE125: 0 | DF125: 0 | DG125: 40.80980392 | DH125: 46.75 | DI125: 23.2 | DJ125: 59.6 | DK125: 4 | DL125: 68 | DM125: 1 | DN125: 0 | DO125: 3 | DP125: 76 | DQ125: 1 | DR125: 19 | DS125: 1 | DT125: 0 | DU125: 5 | DV125: 26 | DW125: 5 | DX125: 87 | DY125: 2 | DZ125: 0 | EA125: 8 | EB125: 102
A126: Tues | B126: 615 | C126: 1 | D126: 44 | E126: 0 | F126: 0 | G126: 0 | H126: 0 | I126: 0 | J126: 0 | K126: 0 | L126: 0 | M126: 0 | N126: 0 | O126: 0 | P126: 0 | Q126: 0 | R126: 0 | S126: 5 | T126: 5 | U126: 12 | V126: 9 | W126: 8 | X126: 2 | Y126: 2 | Z126: 2 | AA126: 0 | AB126: 0 | AC126: 0 | AD126: 0 | AE126: 0 | AF126: 0 | AG126: 0 | AH126: 0 | AI126: 41.4 | AJ126: 48.8 | AK126: 27.2 | AL126: 62.6 | AM126: Tues | AN126: 615 | AO126: 0 | AP126: 18 | AQ126: 0 | AR126: 4 | AS126: 1 | AT126: 0 | AU126: 0 | AV126: 1 | AW126: 0 | AX126: 0 | AY126: 0 | AZ126: 0 | BA126: 0 | BB126: 0 | BC126: 0 | BD126: 0 | BE126: 1 | BF126: 4 | BG126: 9 | BH126: 4 | BI126: 2 | BJ126: 2 | BK126: 1 | BL126: 1 | BM126: 0 | BN126: 0 | BO126: 0 | BP126: 0 | BQ126: 0 | BR126: 0 | BS126: 0 | BT126: 0 | BU126: 41 | BV126: 47 | BW126: 28.3 | BX126: 62.7 | BY126: Tues | BZ126: 615 | CA126: 1 | CB126: 62 | CC126: 0 | CD126: 4 | CE126: 1 | CF126: 0 | CG126: 0 | CH126: 1 | CI126: 0 | CJ126: 0 | CK126: 0 | CL126: 0 | CM126: 0 | CN126: 0 | CO126: 0 | CP126: 0 | CQ126: 6 | CR126: 9 | CS126: 21 | CT126: 13 | CU126: 10 | CV126: 4 | CW126: 3 | CX126: 3 | CY126: 0 | CZ126: 0 | DA126: 0 | DB126: 0 | DC126: 0 | DD126: 0 | DE126: 0 | DF126: 0 | DG126: 41.26086957 | DH126: 47.9 | DI126: 27.2 | DJ126: 62.7 | DK126: 1 | DL126: 44 | DM126: 0 | DN126: 0 | DO126: 0 | DP126: 45 | DQ126: 0 | DR126: 18 | DS126: 4 | DT126: 1 | DU126: 1 | DV126: 24 | DW126: 1 | DX126: 62 | DY126: 4 | DZ126: 1 | EA126: 1 | EB126: 69 | EX126: =IF((SUM(FN126:FR126))>0,AVERAGE(FN126:FR126),0) -> 81.8 | EY126: =IF((SUM(FN126:FT126))>0,AVERAGE(FN126:FT126),0) -> 76.71428571 | FE126: =IF((SUM(FU126:FY126))>0,AVERAGE(FU126:FY126),0) -> 26.4 | FF126: =IF((SUM(FU126:GA126))>0,AVERAGE(FU126:GA126),0) -> 26.14285714 | FL126: =IF((SUM(GB126:GF126))>0,AVERAGE(GB126:GF126),0) -> 108.2 | FM126: =IF((SUM(GB126:GH126))>0,AVERAGE(GB126:GH126),0) -> 102.8571429 | FN126: =IF(FN27="-",(IF(FN28="-","-",FN28)),(IF(FN28="-",FN27,(SUM(FN27:FN28))))) -> 78 | FO126: 84 | FP126: 82 | FQ126: 88 | FR126: 77 | FS126: 69 | FT126: 59 | FU126: =IF(FU27="-",(IF(FU28="-","-",FU28)),(IF(FU28="-",FU27,(SUM(FU27:FU28))))) -> 19 | FV126: 29 | FW126: 25 | FX126: 29 | FY126: 30 | FZ126: 29 | GA126: 22 | GB126: =IF(GB27="-",(IF(GB28="-","-",GB28)),(IF(GB28="-",GB27,(SUM(GB27:GB28))))) -> 97 | GC126: =IF(GC27="-",(IF(GC28="-","-",GC28)),(IF(GC28="-",GC27,(SUM(GC27:GC28))))) -> 113 | GD126: 107 | GE126: 117 | GF126: 107 | GG126: 98 | GH126: 81
A127: Tues | B127: 630 | C127: 3 | D127: 68 | E127: 1 | F127: 4 | G127: 1 | H127: 1 | I127: 0 | J127: 0 | K127: 0 | L127: 0 | M127: 0 | N127: 0 | O127: 0 | P127: 0 | Q127: 1 | R127: 5 | S127: 14 | T127: 12 | U127: 10 | V127: 15 | W127: 15 | X127: 5 | Y127: 1 | Z127: 0 | AA127: 0 | AB127: 0 | AC127: 0 | AD127: 0 | AE127: 0 | AF127: 0 | AG127: 0 | AH127: 0 | AI127: 37.9 | AJ127: 46.1 | AK127: 18.8 | AL127: 57.5 | AM127: Tues | AN127: 630 | AO127: 2 | AP127: 41 | AQ127: 0 | AR127: 2 | AS127: 0 | AT127: 0 | AU127: 0 | AV127: 0 | AW127: 0 | AX127: 1 | AY127: 0 | AZ127: 0 | BA127: 0 | BB127: 0 | BC127: 0 | BD127: 0 | BE127: 0 | BF127: 7 | BG127: 5 | BH127: 13 | BI127: 14 | BJ127: 4 | BK127: 2 | BL127: 1 | BM127: 0 | BN127: 0 | BO127: 0 | BP127: 0 | BQ127: 0 | BR127: 0 | BS127: 0 | BT127: 0 | BU127: 43.7 | BV127: 49.7 | BW127: 31.1 | BX127: 61.1 | BY127: Tues | BZ127: 630 | CA127: 5 | CB127: 109 | CC127: 1 | CD127: 6 | CE127: 1 | CF127: 1 | CG127: 0 | CH127: 0 | CI127: 0 | CJ127: 1 | CK127: 0 | CL127: 0 | CM127: 0 | CN127: 0 | CO127: 1 | CP127: 5 | CQ127: 14 | CR127: 19 | CS127: 15 | CT127: 28 | CU127: 29 | CV127: 9 | CW127: 3 | CX127: 1 | CY127: 0 | CZ127: 0 | DA127: 0 | DB127: 0 | DC127: 0 | DD127: 0 | DE127: 0 | DF127: 0 | DG127: 40.0516129 | DH127: 47.9 | DI127: 18.8 | DJ127: 61.1 | DK127: 3 | DL127: 69 | DM127: 4 | DN127: 2 | DO127: 0 | DP127: 78 | DQ127: 2 | DR127: 41 | DS127: 2 | DT127: 0 | DU127: 1 | DV127: 46 | DW127: 5 | DX127: 110 | DY127: 6 | DZ127: 2 | EA127: 1 | EB127: 124
A128: Tues | B128: 645 | C128: 0 | D128: 50 | E128: 0 | F128: 4 | G128: 0 | H128: 0 | I128: 0 | J128: 0 | K128: 0 | L128: 0 | M128: 0 | N128: 0 | O128: 0 | P128: 0 | Q128: 0 | R128: 1 | S128: 11 | T128: 11 | U128: 2 | V128: 11 | W128: 12 | X128: 5 | Y128: 0 | Z128: 1 | AA128: 0 | AB128: 0 | AC128: 0 | AD128: 0 | AE128: 0 | AF128: 0 | AG128: 0 | AH128: 0 | AI128: 39.5 | AJ128: 49.4 | AK128: 21.8 | AL128: 61.4 | AM128: Tues | AN128: 645 | AO128: 2 | AP128: 27 | AQ128: 0 | AR128: 5 | AS128: 0 | AT128: 0 | AU128: 0 | AV128: 0 | AW128: 0 | AX128: 0 | AY128: 0 | AZ128: 0 | BA128: 0 | BB128: 0 | BC128: 0 | BD128: 0 | BE128: 0 | BF128: 4 | BG128: 5 | BH128: 11 | BI128: 7 | BJ128: 4 | BK128: 3 | BL128: 0 | BM128: 0 | BN128: 0 | BO128: 0 | BP128: 0 | BQ128: 0 | BR128: 0 | BS128: 0 | BT128: 0 | BU128: 44 | BV128: 51.9 | BW128: 32.2 | BX128: 56.8 | BY128: Tues | BZ128: 645 | CA128: 2 | CB128: 77 | CC128: 0 | CD128: 9 | CE128: 0 | CF128: 0 | CG128: 0 | CH128: 0 | CI128: 0 | CJ128: 0 | CK128: 0 | CL128: 0 | CM128: 0 | CN128: 0 | CO128: 0 | CP128: 1 | CQ128: 11 | CR128: 15 | CS128: 7 | CT128: 22 | CU128: 19 | CV128: 9 | CW128: 3 | CX128: 1 | CY128: 0 | CZ128: 0 | DA128: 0 | DB128: 0 | DC128: 0 | DD128: 0 | DE128: 0 | DF128: 0 | DG128: 41.23863636 | DH128: 50.65 | DI128: 21.8 | DJ128: 61.4 | DK128: 0 | DL128: 50 | DM128: 4 | DN128: 0 | DO128: 0 | DP128: 54 | DQ128: 2 | DR128: 27 | DS128: 5 | DT128: 0 | DU128: 0 | DV128: 34 | DW128: 2 | DX128: 77 | DY128: 9 | DZ128: 0 | EA128: 0 | EB128: 88 | EX128: =IF((SUM(FN128:FR128))>0,AVERAGE(FN128:FR128),0) -> 118.2 | EY128: =IF((SUM(FN128:FT128))>0,AVERAGE(FN128:FT128),0) -> 101.8571429 | FE128: =IF((SUM(FU128:FY128))>0,AVERAGE(FU128:FY128),0) -> 49.2 | FF128: =IF((SUM(FU128:GA128))>0,AVERAGE(FU128:GA128),0) -> 41.71428571 | FL128: =IF((SUM(GB128:GF128))>0,AVERAGE(GB128:GF128),0) -> 167.4 | FM128: =IF((SUM(GB128:GH128))>0,AVERAGE(GB128:GH128),0) -> 143.5714286 | FN128: =IF(FN29="-",(IF(FN30="-","-",FN30)),(IF(FN30="-",FN29,(SUM(FN29:FN30))))) -> 114 | FO128: 121 | FP128: 113 | FQ128: 117 | FR128: 126 | FS128: 67 | FT128: 55 | FU128: =IF(FU29="-",(IF(FU30="-","-",FU30)),(IF(FU30="-",FU29,(SUM(FU29:FU30))))) -> 45 | FV128: 50 | FW128: 50 | FX128: 51 | FY128: 50 | FZ128: 26 | GA128: 20 | GB128: =IF(GB29="-",(IF(GB30="-","-",GB30)),(IF(GB30="-",GB29,(SUM(GB29:GB30))))) -> 159 | GC128: =IF(GC29="-",(IF(GC30="-","-",GC30)),(IF(GC30="-",GC29,(SUM(GC29:GC30))))) -> 171 | GD128: 163 | GE128: 168 | GF128: 176 | GG128: 93 | GH128: 75
A129: Tues | B129: 700 | C129: 2 | D129: 81 | E129: 1 | F129: 7 | G129: 0 | H129: 0 | I129: 0 | J129: 0 | K129: 0 | L129: 0 | M129: 0 | N129: 0 | O129: 0 | P129: 0 | Q129: 0 | R129: 3 | S129: 16 | T129: 18 | U129: 13 | V129: 20 | W129: 16 | X129: 5 | Y129: 0 | Z129: 0 | AA129: 0 | AB129: 0 | AC129: 0 | AD129: 0 | AE129: 0 | AF129: 0 | AG129: 0 | AH129: 0 | AI129: 38 | AJ129: 47 | AK129: 24.7 | AL129: 53.3 | AM129: Tues | AN129: 700 | AO129: 4 | AP129: 56 | AQ129: 0 | AR129: 11 | AS129: 1 | AT129: 1 | AU129: 0 | AV129: 0 | AW129: 0 | AX129: 0 | AY129: 0 | AZ129: 0 | BA129: 0 | BB129: 1 | BC129: 0 | BD129: 0 | BE129: 7 | BF129: 14 | BG129: 23 | BH129: 16 | BI129: 7 | BJ129: 3 | BK129: 0 | BL129: 1 | BM129: 1 | BN129: 0 | BO129: 0 | BP129: 0 | BQ129: 0 | BR129: 0 | BS129: 0 | BT129: 0 | BU129: 38.7 | BV129: 45.6 | BW129: 12.3 | BX129: 68.2 | BY129: Tues | BZ129: 700 | CA129: 6 | CB129: 137 | CC129: 1 | CD129: 18 | CE129: 1 | CF129: 1 | CG129: 0 | CH129: 0 | CI129: 0 | CJ129: 0 | CK129: 0 | CL129: 0 | CM129: 0 | CN129: 1 | CO129: 0 | CP129: 3 | CQ129: 23 | CR129: 32 | CS129: 36 | CT129: 36 | CU129: 23 | CV129: 8 | CW129: 0 | CX129: 1 | CY129: 1 | CZ129: 0 | DA129: 0 | DB129: 0 | DC129: 0 | DD129: 0 | DE129: 0 | DF129: 0 | DG129: 38.31158537 | DH129: 46.3 | DI129: 12.3 | DJ129: 68.2 | DK129: 2 | DL129: 82 | DM129: 7 | DN129: 0 | DO129: 0 | DP129: 91 | DQ129: 4 | DR129: 56 | DS129: 11 | DT129: 2 | DU129: 0 | DV129: 73 | DW129: 6 | DX129: 138 | DY129: 18 | DZ129: 2 | EA129: 0 | EB129: 164
A130: Tues | B130: 715 | C130: 2 | D130: 87 | E130: 1 | F130: 4 | G130: 1 | H130: 0 | I130: 0 | J130: 0 | K130: 0 | L130: 0 | M130: 0 | N130: 0 | O130: 0 | P130: 1 | Q130: 0 | R130: 4 | S130: 23 | T130: 20 | U130: 8 | V130: 18 | W130: 15 | X130: 6 | Y130: 0 | Z130: 0 | AA130: 0 | AB130: 0 | AC130: 0 | AD130: 0 | AE130: 0 | AF130: 0 | AG130: 0 | AH130: 0 | AI130: 36.7 | AJ130: 47 | AK130: 14.5 | AL130: 54.8 | AM130: Tues | AN130: 715 | AO130: 0 | AP130: 76 | AQ130: 0 | AR130: 10 | AS130: 3 | AT130: 0 | AU130: 0 | AV130: 0 | AW130: 0 | AX130: 0 | AY130: 0 | AZ130: 0 | BA130: 0 | BB130: 0 | BC130: 0 | BD130: 1 | BE130: 7 | BF130: 19 | BG130: 34 | BH130: 23 | BI130: 3 | BJ130: 1 | BK130: 1 | BL130: 0 | BM130: 0 | BN130: 0 | BO130: 0 | BP130: 0 | BQ130: 0 | BR130: 0 | BS130: 0 | BT130: 0 | BU130: 37.6 | BV130: 42.5 | BW130: 24.5 | BX130: 58.1 | BY130: Tues | BZ130: 715 | CA130: 2 | CB130: 163 | CC130: 1 | CD130: 14 | CE130: 4 | CF130: 0 | CG130: 0 | CH130: 0 | CI130: 0 | CJ130: 0 | CK130: 0 | CL130: 0 | CM130: 0 | CN130: 1 | CO130: 0 | CP130: 5 | CQ130: 30 | CR130: 39 | CS130: 42 | CT130: 41 | CU130: 18 | CV130: 7 | CW130: 1 | CX130: 0 | CY130: 0 | CZ130: 0 | DA130: 0 | DB130: 0 | DC130: 0 | DD130: 0 | DE130: 0 | DF130: 0 | DG130: 37.13532609 | DH130: 44.75 | DI130: 14.5 | DJ130: 58.1 | DK130: 2 | DL130: 88 | DM130: 4 | DN130: 1 | DO130: 0 | DP130: 95 | DQ130: 0 | DR130: 76 | DS130: 10 | DT130: 3 | DU130: 0 | DV130: 89 | DW130: 2 | DX130: 164 | DY130: 14 | DZ130: 4 | EA130: 0 | EB130: 184 | EX130: =IF((SUM(FN130:FR130))>0,AVERAGE(FN130:FR130),0) -> 127 | EY130: =IF((SUM(FN130:FT130))>0,AVERAGE(FN130:FT130),0) -> 105.2857143 | FE130: =IF((SUM(FU130:FY130))>0,AVERAGE(FU130:FY130),0) -> 85.2 | FF130: =IF((SUM(FU130:GA130))>0,AVERAGE(FU130:GA130),0) -> 72.71428571 | FL130: =IF((SUM(GB130:GF130))>0,AVERAGE(GB130:GF130),0) -> 212.2 | FM130: =IF((SUM(GB130:GH130))>0,AVERAGE(GB130:GH130),0) -> 178 | FN130: =IF(FN31="-",(IF(FN32="-","-",FN32)),(IF(FN32="-",FN31,(SUM(FN31:FN32))))) -> 123 | FO130: =IF(FO31="-",(IF(FO32="-","-",FO32)),(IF(FO32="-",FO31,(SUM(FO31:FO32))))) -> 132 | FP130: 127 | FQ130: 129 | FR130: 124 | FS130: 59 | FT130: 43 | FU130: =IF(FU31="-",(IF(FU32="-","-",FU32)),(IF(FU32="-",FU31,(SUM(FU31:FU32))))) -> 86 | FV130: =IF(FV31="-",(IF(FV32="-","-",FV32)),(IF(FV32="-",FV31,(SUM(FV31:FV32))))) -> 80 | FW130: 81 | FX130: 97 | FY130: 82 | FZ130: 45 | GA130: 38 | GB130: =IF(GB31="-",(IF(GB32="-","-",GB32)),(IF(GB32="-",GB31,(SUM(GB31:GB32))))) -> 209 | GC130: =IF(GC31="-",(IF(GC32="-","-",GC32)),(IF(GC32="-",GC31,(SUM(GC31:GC32))))) -> 212 | GD130: 208 | GE130: 226 | GF130: 206 | GG130: 104 | GH130: 81
A131: Tues | B131: 730 | C131: 3 | D131: 124 | E131: 0 | F131: 7 | G131: 1 | H131: 0 | I131: 0 | J131: 1 | K131: 0 | L131: 1 | M131: 0 | N131: 0 | O131: 0 | P131: 0 | Q131: 1 | R131: 12 | S131: 29 | T131: 22 | U131: 34 | V131: 24 | W131: 11 | X131: 4 | Y131: 0 | Z131: 0 | AA131: 0 | AB131: 0 | AC131: 0 | AD131: 0 | AE131: 0 | AF131: 0 | AG131: 0 | AH131: 0 | AI131: 35.3 | AJ131: 42.7 | AK131: 19.9 | AL131: 54 | AM131: Tues | AN131: 730 | AO131: 0 | AP131: 95 | AQ131: 1 | AR131: 9 | AS131: 0 | AT131: 0 | AU131: 0 | AV131: 0 | AW131: 0 | AX131: 0 | AY131: 0 | AZ131: 0 | BA131: 0 | BB131: 0 | BC131: 0 | BD131: 0 | BE131: 5 | BF131: 34 | BG131: 39 | BH131: 18 | BI131: 9 | BJ131: 0 | BK131: 0 | BL131: 0 | BM131: 0 | BN131: 0 | BO131: 0 | BP131: 0 | BQ131: 0 | BR131: 0 | BS131: 0 | BT131: 0 | BU131: 37 | BV131: 41.8 | BW131: 27.6 | BX131: 49.2 | BY131: Tues | BZ131: 730 | CA131: 3 | CB131: 219 | CC131: 1 | CD131: 16 | CE131: 1 | CF131: 0 | CG131: 0 | CH131: 1 | CI131: 0 | CJ131: 1 | CK131: 0 | CL131: 0 | CM131: 0 | CN131: 0 | CO131: 1 | CP131: 12 | CQ131: 34 | CR131: 56 | CS131: 73 | CT131: 42 | CU131: 20 | CV131: 4 | CW131: 0 | CX131: 0 | CY131: 0 | CZ131: 0 | DA131: 0 | DB131: 0 | DC131: 0 | DD131: 0 | DE131: 0 | DF131: 0 | DG131: 36.03760331 | DH131: 42.25 | DI131: 19.9 | DJ131: 54 | DK131: 3 | DL131: 124 | DM131: 7 | DN131: 1 | DO131: 2 | DP131: 137 | DQ131: 0 | DR131: 96 | DS131: 9 | DT131: 0 | DU131: 0 | DV131: 105 | DW131: 3 | DX131: 220 | DY131: 16 | DZ131: 1 | EA131: 2 | EB131: 242
A132: Tues | B132: 745 | C132: 2 | D132: 113 | E132: 1 | F132: 9 | G132: 2 | H132: 2 | I132: 1 | J132: 0 | K132: 1 | L132: 3 | M132: 1 | N132: 0 | O132: 0 | P132: 0 | Q132: 1 | R132: 2 | S132: 22 | T132: 26 | U132: 33 | V132: 38 | W132: 11 | X132: 2 | Y132: 0 | Z132: 0 | AA132: 0 | AB132: 0 | AC132: 0 | AD132: 0 | AE132: 0 | AF132: 0 | AG132: 0 | AH132: 0 | AI132: 36.9 | AJ132: 42.9 | AK132: 17 | AL132: 54.2 | AM132: Tues | AN132: 745 | AO132: 1 | AP132: 113 | AQ132: 0 | AR132: 16 | AS132: 1 | AT132: 0 | AU132: 0 | AV132: 0 | AW132: 0 | AX132: 1 | AY132: 0 | AZ132: 0 | BA132: 0 | BB132: 0 | BC132: 1 | BD132: 0 | BE132: 10 | BF132: 46 | BG132: 41 | BH132: 25 | BI132: 5 | BJ132: 4 | BK132: 0 | BL132: 0 | BM132: 0 | BN132: 0 | BO132: 0 | BP132: 0 | BQ132: 0 | BR132: 0 | BS132: 0 | BT132: 0 | BU132: 36.4 | BV132: 41.8 | BW132: 15.1 | BX132: 55 | BY132: Tues | BZ132: 745 | CA132: 3 | CB132: 226 | CC132: 1 | CD132: 25 | CE132: 3 | CF132: 2 | CG132: 1 | CH132: 0 | CI132: 1 | CJ132: 4 | CK132: 1 | CL132: 0 | CM132: 0 | CN132: 0 | CO132: 2 | CP132: 2 | CQ132: 32 | CR132: 72 | CS132: 74 | CT132: 63 | CU132: 16 | CV132: 6 | CW132: 0 | CX132: 0 | CY132: 0 | CZ132: 0 | DA132: 0 | DB132: 0 | DC132: 0 | DD132: 0 | DE132: 0 | DF132: 0 | DG132: 36.65280899 | DH132: 42.35 | DI132: 15.1 | DJ132: 55 | DK132: 2 | DL132: 114 | DM132: 9 | DN132: 4 | DO132: 6 | DP132: 135 | DQ132: 1 | DR132: 113 | DS132: 16 | DT132: 1 | DU132: 1 | DV132: 132 | DW132: 3 | DX132: 227 | DY132: 25 | DZ132: 5 | EA132: 7 | EB132: 267 | EX132: =IF((SUM(FN132:FR132))>0,AVERAGE(FN132:FR132),0) -> 182.2 | EY132: =IF((SUM(FN132:FT132))>0,AVERAGE(FN132:FT132),0) -> 141.8571429 | FE132: =IF((SUM(FU132:FY132))>0,AVERAGE(FU132:FY132),0) -> 138.8 | FF132: =IF((SUM(FU132:GA132))>0,AVERAGE(FU132:GA132),0) -> 110.4285714 | FL132: =IF((SUM(GB132:GF132))>0,AVERAGE(GB132:GF132),0) -> 321 | FM132: =IF((SUM(GB132:GH132))>0,AVERAGE(GB132:GH132),0) -> 252.2857143 | FN132: =IF(FN33="-",(IF(FN34="-","-",FN34)),(IF(FN34="-",FN33,(SUM(FN33:FN34))))) -> 184 | FO132: =IF(FO33="-",(IF(FO34="-","-",FO34)),(IF(FO34="-",FO33,(SUM(FO33:FO34))))) -> 186 | FP132: 187 | FQ132: 175 | FR132: 179 | FS132: 53 | FT132: 29 | FU132: =IF(FU33="-",(IF(FU34="-","-",FU34)),(IF(FU34="-",FU33,(SUM(FU33:FU34))))) -> 118 | FV132: =IF(FV33="-",(IF(FV34="-","-",FV34)),(IF(FV34="-",FV33,(SUM(FV33:FV34))))) -> 162 | FW132: 137 | FX132: 154 | FY132: 123 | FZ132: 53 | GA132: 26 | GB132: =IF(GB33="-",(IF(GB34="-","-",GB34)),(IF(GB34="-",GB33,(SUM(GB33:GB34))))) -> 302 | GC132: =IF(GC33="-",(IF(GC34="-","-",GC34)),(IF(GC34="-",GC33,(SUM(GC33:GC34))))) -> 348 | GD132: 324 | GE132: 329 | GF132: 302 | GG132: 106 | GH132: 55
